Workbook

Sheet Sample Report (hidden)
A2: Date
A3: Hen
A4: Program
A5: Start at 999999
A6: Sequence component 1 | B6: Time 1 | C6: Seqeunce Component 2 | D6: Time 2 | E6: Seqeunce Component 3 | F6: Time 3 | G6: Correct 0 = No 1=Yes | J6: Seqeunce | K6: Time
A7: 12 | B7: 7 | C7: 12 | D7: 42 | E7: 13 | F7: 18 | G7: if 77 new line, if 31 or 41 = yes new line on 77, | J7: =string of Seqeunce compponent 1, 2 & 3 | K7: =time 3
A8: This continues until ther is a 1 on its own to indicate start of summary data
J9: 10-19 =1
A10: Summary Data | J10: 20-29 =2
A11: Correct | B11: Incorrect | C11: Rft | D11: total | E11: Av Correct | F11: Av Incorrect | G11: Percent correct | H11: Time | J11: in this example the seqeunce would be 111
A12: 40 | B12: 33 | C12: 40 | D12: 73 | E12: 23.95 | F12: 15 | G12: 54 | H12: 806

Sheet Summary
A2: Day | B2: Date | C2: Average Response Rate | D2: Target % | E2: RF for non correct sequence | F2: U Value | K2: Block 1 | L2: Block 2 | M2: Block 3 | N2: Block 4 | O2: Block 5 | P2: Block 6
A3: 1 | B3: ='!M321A3D.UST'!B2:C2 -> <date> | C3: =('!M321A3D.UST'!F143/60)/'!M321A3D.UST'!Q3 -> 2.324939173 | D3: ='!M321A3D.UST'!N20/'!M321A3D.UST'!Q3 -> 0.2919708029 | E3: =SUM('!M321A3D.UST'!L20:Q20)/'!M321A3D.UST'!Q3 -> 1.518248175 | F3: ='!M321A3D.UST'!Q16 -> 0.2912702343 | J3: Average Response Rate | K3: =AVERAGE(C3:C7) -> 3.074638672 | L3: =AVERAGE(C8:C12) -> 3.052540386 | M3: =AVERAGE(C13:C17) -> 2.972056523 | N3: =AVERAGE(C18:C22) -> 3.310472065 | O3: =AVERAGE(C23:C27) -> 3.282886532 | P3: =AVERAGE(C28:C32) -> 3.61225813
A4: 2 | B4: ='!M322B2D.UST'!B2:C2 -> <date> | C4: =('!M322B2D.UST'!F63/60)/'!M322B2D.UST'!Q3 -> 2.84122807 | D4: ='!M322B2D.UST'!N20/'!M322B2D.UST'!Q3 -> 0.701754386 | E4: =SUM('!M322B2D.UST'!L20:Q20)/'!M322B2D.UST'!Q3 -> 4.929824561 | F4: ='!M322B2D.UST'!Q16 -> 0.2475778965 | J4: Target % | K4: =AVERAGE(D3:D7) -> 0.7752677399 | L4: =AVERAGE(D8:D12) -> 0.957660226 | M4: =AVERAGE(D13:D17) -> 0.9807200929 | N4: =AVERAGE(D18:D22) -> 0.9762904141 | O4: =AVERAGE(D23:D27) -> 0.8799045599 | P4: =AVERAGE(D28:D32) -> 0.9951219512
A5: 3 | B5: ='!M323A0D.UST'!B2:C2 -> <date> | C5: =('!M323A0D.UST'!F48/60)/'!M323A0D.UST'!Q3 -> 2.257539683 | D5: ='!M323A0D.UST'!N20/'!M323A0D.UST'!Q3 -> 0.9523809524 | E5: =SUM('!M323A0D.UST'!L20:Q20)/'!M323A0D.UST'!Q3 -> 6.571428571 | F5: ='!M323A0D.UST'!Q16 -> 0.06005107821 | J5: CCRF | K5: =AVERAGE(E3:E7) -> 5.262621192 | L5: =AVERAGE(E8:E12) -> 6.157855559 | M5: =AVERAGE(E13:E17) -> 6.756968641 | N5: =AVERAGE(E18:E22) -> 6.726403857 | O5: =AVERAGE(E23:E27) -> 5.864819724 | P5: =AVERAGE(E28:E32) -> 6.846341463
A6: 4 | B6: ='!M324B5D.UST'!B2:C2 -> <date> | C6: =('!M324B5D.UST'!F49/60)/'!M324B5D.UST'!Q3 -> 5.179069767 | D6: ='!M324B5D.UST'!N20/'!M324B5D.UST'!Q3 -> 0.9302325581 | E6: =SUM('!M324B5D.UST'!L20:Q20)/'!M324B5D.UST'!Q3 -> 6.418604651 | F6: ='!M324B5D.UST'!Q16 -> 0.07908245547 | J6: U Value | K6: =AVERAGE(F3:F7) -> 0.1355963329 | L6: =AVERAGE(F8:F12) -> 0.04663709528 | M6: =AVERAGE(F13:F17) -> 0.02436115755 | N6: =AVERAGE(F18:F22) -> 0.0258060609 | O6: =AVERAGE(F23:F27) -> 0.0484874239 | P6: =AVERAGE(F28:F32) -> 0.006175470956
A7: 5 | B7: ='!M325B1D.UST'!B2:C2 -> <date> | C7: =('!M325B1D.UST'!F46/60)/'!M325B1D.UST'!Q3 -> 2.770416667 | D7: ='!M325B1D.UST'!N20/'!M325B1D.UST'!Q3 -> 1 | E7: =SUM('!M325B1D.UST'!L20:Q20)/'!M325B1D.UST'!Q3 -> 6.875 | F7: ='!M325B1D.UST'!Q16 -> 0
A8: 6 | B8: ='!M326B4D.UST'!B2:C2 -> <date> | C8: =('!M326B4D.UST'!F48/60)/'!M326B4D.UST'!Q3 -> 2.876190476 | D8: ='!M326B4D.UST'!N20/'!M326B4D.UST'!Q3 -> 0.9523809524 | E8: =SUM('!M326B4D.UST'!L20:Q20)/'!M326B4D.UST'!Q3 -> 6.571428571 | F8: ='!M326B4D.UST'!Q16 -> 0.06005107821
A9: 7 | B9: ='!M327A5D.UST'!B2:C2 -> <date> | C9: =('!M327A5D.UST'!F47/60)/'!M327A5D.UST'!Q3 -> 3.429674797 | D9: ='!M327A5D.UST'!N20/'!M327A5D.UST'!Q3 -> 0.9756097561 | E9: =SUM('!M327A5D.UST'!L20:Q20)/'!M327A5D.UST'!Q3 -> 6.731707317 | F9: ='!M327A5D.UST'!Q16 -> 0.03087735478 | G9: =K3 -> 3.074638672 | H9: =L3 -> 3.052540386 | I9: 2.972056523 | J9: 3.310472065 | K9: 3.282886532 | L9: 3.61225813 | M9: =K4 -> 0.7752677399 | N9: =L4 -> 0.957660226 | O9: 0.9807200929 | P9: 0.9762904141 | Q9: 0.8799045599 | R9: 0.9951219512 | S9: =K6 -> 0.1355963329 | T9: =L6 -> 0.04663709528 | U9: 0.02436115755 | V9: 0.0258060609 | W9: 0.0484874239 | X9: 0.006175470956
A10: 8 | B10: ='!M328A5D.UST'!B2:C2 -> <date> | C10: =('!M328A5D.UST'!F50/60)/'!M328A5D.UST'!Q3 -> 3.062121212 | D10: ='!M328A5D.UST'!N20/'!M328A5D.UST'!Q3 -> 0.9090909091 | E10: =SUM('!M328A5D.UST'!L20:Q20)/'!M328A5D.UST'!Q3 -> 4.022727273 | F10: ='!M328A5D.UST'!Q16 -> 0.08050233387
A11: 9 | B11: ='!M32995D.UST'!B2:C2 -> <date> | C11: =('!M32995D.UST'!F47/60)/'!M32995D.UST'!Q3 -> 2.780081301 | D11: ='!M32995D.UST'!N20/'!M32995D.UST'!Q3 -> 0.9756097561 | E11: =SUM('!M32995D.UST'!L20:Q20)/'!M32995D.UST'!Q3 -> 6.731707317 | F11: ='!M32995D.UST'!Q16 -> 0.03087735478
A12: 10 | B12: ='!M330A2D.UST'!B2:C2 -> <date> | C12: =('!M330A2D.UST'!F47/60)/'!M330A2D.UST'!Q3 -> 3.114634146 | D12: ='!M330A2D.UST'!N20/'!M330A2D.UST'!Q3 -> 0.9756097561 | E12: =SUM('!M330A2D.UST'!L20:Q20)/'!M330A2D.UST'!Q3 -> 6.731707317 | F12: ='!M330A2D.UST'!Q16 -> 0.03087735478
A13: 11 | B13: ='!M331A4D.UST'!B2:C2 -> <date> | C13: =('!M331A4D.UST'!F46/60)/'!M331A4D.UST'!Q3 -> 2.889166667 | D13: ='!M331A4D.UST'!N20/'!M331A4D.UST'!Q3 -> 1 | E13: =SUM('!M331A4D.UST'!L20:Q20)/'!M331A4D.UST'!Q3 -> 6.875 | F13: ='!M331A4D.UST'!Q16 -> 0
A14: 12 | B14: ='!M40195D.UST'!B2:C2 -> <date> | C14: =('!M40195D.UST'!F48/60)/'!M40195D.UST'!Q3 -> 2.906746032 | D14: ='!M40195D.UST'!N20/'!M40195D.UST'!Q3 -> 0.9523809524 | E14: =SUM('!M40195D.UST'!L20:Q20)/'!M40195D.UST'!Q3 -> 6.571428571 | F14: ='!M40195D.UST'!Q16 -> 0.06005107821
A15: 13 | B15: ='!M402B3D.UST'!B2:C2 -> <date> | C15: =('!M402B3D.UST'!F47/60)/'!M402B3D.UST'!Q3 -> 3.332520325 | D15: ='!M402B3D.UST'!N20/'!M402B3D.UST'!Q3 -> 0.9756097561 | E15: =SUM('!M402B3D.UST'!L20:Q20)/'!M402B3D.UST'!Q3 -> 6.731707317 | F15: ='!M402B3D.UST'!Q16 -> 0.03087735478
A16: 14 | B16: ='!M40394D.UST'!B2:C2 -> <date> | C16: =('!M40394D.UST'!F46/60)/'!M40394D.UST'!Q3 -> 2.789166667 | D16: ='!M40394D.UST'!N20/'!M40394D.UST'!Q3 -> 1 | E16: =SUM('!M40394D.UST'!L20:Q20)/'!M40394D.UST'!Q3 -> 6.875 | F16: ='!M40394D.UST'!Q16 -> 0
A17: 15 | B17: ='!M404A0D.UST'!B2:C2 -> <date> | C17: =('!M404A0D.UST'!F47/60)/'!M404A0D.UST'!Q3 -> 2.942682927 | D17: ='!M404A0D.UST'!N20/'!M404A0D.UST'!Q3 -> 0.9756097561 | E17: =SUM('!M404A0D.UST'!L20:Q20)/'!M404A0D.UST'!Q3 -> 6.731707317 | F17: ='!M404A0D.UST'!Q16 -> 0.03087735478
A18: 16 | B18: ='!M40592D.UST'!B2:C2 -> <date> | C18: =('!M40592D.UST'!F46/60)/'!M40592D.UST'!Q3 -> 3.3675 | D18: ='!M40592D.UST'!N20/'!M40592D.UST'!Q3 -> 1 | E18: =SUM('!M40592D.UST'!L20:Q20)/'!M40592D.UST'!Q3 -> 6.875 | F18: ='!M40592D.UST'!Q16 -> 0
A19: 17 | B19: ='!M410A3D.UST'!B2:C2 -> <date> | C19: =('!M410A3D.UST'!F49/60)/'!M410A3D.UST'!Q3 -> 2.653488372 | D19: ='!M410A3D.UST'!N20/'!M410A3D.UST'!Q3 -> 0.9302325581 | E19: =SUM('!M410A3D.UST'!L20:Q20)/'!M410A3D.UST'!Q3 -> 6.418604651 | F19: ='!M410A3D.UST'!Q16 -> 0.06727559493
A20: 18 | B20: ='!M411B2D.UST'!B2:C2 -> <date> | C20: =('!M411B2D.UST'!F46/60)/'!M411B2D.UST'!Q3 -> 4.03625 | D20: ='!M411B2D.UST'!N20/'!M411B2D.UST'!Q3 -> 1 | E20: =SUM('!M411B2D.UST'!L20:Q20)/'!M411B2D.UST'!Q3 -> 6.875 | F20: ='!M411B2D.UST'!Q16 -> 0
A21: 19 | B21: ='!M412A4D.UST'!B2:C2 -> <date> | C21: =('!M412A4D.UST'!F47/60)/'!M412A4D.UST'!Q3 -> 3.195934959 | D21: ='!M412A4D.UST'!N20/'!M412A4D.UST'!Q3 -> 0.9756097561 | E21: =SUM('!M412A4D.UST'!L20:Q20)/'!M412A4D.UST'!Q3 -> 6.731707317 | F21: ='!M412A4D.UST'!Q16 -> 0.03087735478
A22: 20 | B22: ='!M413A3D.UST'!B2:C2 -> <date> | C22: =('!M413A3D.UST'!F47/60)/'!M413A3D.UST'!Q3 -> 3.299186992 | D22: ='!M413A3D.UST'!N20/'!M413A3D.UST'!Q3 -> 0.9756097561 | E22: =SUM('!M413A3D.UST'!L20:Q20)/'!M413A3D.UST'!Q3 -> 6.731707317 | F22: ='!M413A3D.UST'!Q16 -> 0.03087735478
A23: 21 | B23: ='!M414A0D.UST'!B2:C2 -> <date> | C23: =('!M414A0D.UST'!F98/60)/'!M414A0D.UST'!Q3 -> 4.320652174 | D23: ='!M414A0D.UST'!N20/'!M414A0D.UST'!Q3 -> 0.4239130435 | E23: =SUM('!M414A0D.UST'!L20:Q20)/'!M414A0D.UST'!Q3 -> 1.967391304 | F23: ='!M414A0D.UST'!Q16 -> 0.2115597647
A24: 22 | B24: ='!M415A3D.UST'!B2:C2 -> <date> | C24: =('!M415A3D.UST'!F46/60)/'!M415A3D.UST'!Q3 -> 2.879583333 | D24: ='!M415A3D.UST'!N20/'!M415A3D.UST'!Q3 -> 1 | E24: =SUM('!M415A3D.UST'!L20:Q20)/'!M415A3D.UST'!Q3 -> 6.875 | F24: ='!M415A3D.UST'!Q16 -> 0
A25: 23 | B25: ='!M416B2D.UST'!B2:C2 -> <date> | C25: =('!M416B2D.UST'!F46/60)/'!M416B2D.UST'!Q3 -> 3.832083333 | D25: ='!M416B2D.UST'!N20/'!M416B2D.UST'!Q3 -> 1 | E25: =SUM('!M416B2D.UST'!L20:Q20)/'!M416B2D.UST'!Q3 -> 6.875 | F25: ='!M416B2D.UST'!Q16 -> 0
A26: 24 | B26: ='!M417A4D.UST'!B2:C2 -> <date> | C26: =('!M417A4D.UST'!F47/60)/'!M417A4D.UST'!Q3 -> 2.732113821 | D26: ='!M417A4D.UST'!N20/'!M417A4D.UST'!Q3 -> 0.9756097561 | E26: =SUM('!M417A4D.UST'!L20:Q20)/'!M417A4D.UST'!Q3 -> 6.731707317 | F26: ='!M417A4D.UST'!Q16 -> 0.03087735478
A27: 25 | B27: ='!M418A2D.UST'!B2:C2 -> <date> | C27: =('!M418A2D.UST'!F46/60)/'!M418A2D.UST'!Q3 -> 2.65 | D27: ='!M418A2D.UST'!N20/'!M418A2D.UST'!Q3 -> 1 | E27: =SUM('!M418A2D.UST'!L20:Q20)/'!M418A2D.UST'!Q3 -> 6.875 | F27: ='!M418A2D.UST'!Q16 -> 0
A28: 26 | B28: ='!M419B3D.UST'!B2:C2 -> <date> | C28: =('!M419B3D.UST'!F46/60)/'!M419B3D.UST'!Q3 -> 3.2 | D28: ='!M419B3D.UST'!N20/'!M419B3D.UST'!Q3 -> 1 | E28: =SUM('!M419B3D.UST'!L20:Q20)/'!M419B3D.UST'!Q3 -> 6.875 | F28: ='!M419B3D.UST'!Q16 -> 0
A29: 27 | B29: ='!M420B1D.UST'!B2:C2 -> <date> | C29: =('!M420B1D.UST'!F47/60)/'!M420B1D.UST'!Q3 -> 5.381707317 | D29: ='!M420B1D.UST'!N20/'!M420B1D.UST'!Q3 -> 0.9756097561 | E29: =SUM('!M420B1D.UST'!L20:Q20)/'!M420B1D.UST'!Q3 -> 6.731707317 | F29: ='!M420B1D.UST'!Q16 -> 0.03087735478
A30: 28 | B30: ='!M421A3D.UST'!B2:C2 -> <date> | C30: =('!M421A3D.UST'!F46/60)/'!M421A3D.UST'!Q3 -> 3.09375 | D30: ='!M421A3D.UST'!N20/'!M421A3D.UST'!Q3 -> 1 | E30: =SUM('!M421A3D.UST'!L20:Q20)/'!M421A3D.UST'!Q3 -> 6.875 | F30: ='!M421A3D.UST'!Q16 -> 0
A31: 29 | B31: ='!M422B5D.UST'!B2:C2 -> <date> | C31: =('!M422B5D.UST'!F46/60)/'!M422B5D.UST'!Q3 -> 3.16875 | D31: ='!M422B5D.UST'!N20/'!M422B5D.UST'!Q3 -> 1 | E31: =SUM('!M422B5D.UST'!L20:Q20)/'!M422B5D.UST'!Q3 -> 6.875 | F31: ='!M422B5D.UST'!Q16 -> 0
A32: 30 | B32: ='!M423B4D.UST'!B2:C2 -> <date> | C32: =('!M423B4D.UST'!F46/60)/'!M423B4D.UST'!Q3 -> 3.217083333 | D32: ='!M423B4D.UST'!N20/'!M423B4D.UST'!Q3 -> 1 | E32: =SUM('!M423B4D.UST'!L20:Q20)/'!M423B4D.UST'!Q3 -> 6.875 | F32: ='!M423B4D.UST'!Q16 -> 0
B33: ='!M424A1D.UST'!B2:C2 -> <date> | C33: =('!M424A1D.UST'!F46/60)/'!M424A1D.UST'!Q3 -> 2.603333333 | D33: ='!M424A1D.UST'!N20/'!M424A1D.UST'!Q3 -> 1 | E33: =SUM('!M424A1D.UST'!L20:Q20)/'!M424A1D.UST'!Q3 -> 6.875 | F33: ='!M424A1D.UST'!Q16 -> 0

Sheet Start
F1: Use Folder 51 | H1: Auto Clean Up | J1: Correct sequence
F2: FALSE | H2: TRUE | J2: 222
A4: Working with Folder | G4: Process All/Or Pick A number: ALL or an integer
A5: F:\Possum Chapter\Raw Data\Dusti\New RRR Con\ | G5: ALL
A6: Filenames:
A7: !M420B1D.UST | G7: Paint Cells
A8: !M421A3D.UST | G8: FALSE
A9: !M422B5D.UST
A10: !M423B4D.UST
A11: !M424A1D.UST
A12: !M321A3D.UST
A13: !M322B2D.UST
A14: !M323A0D.UST
A15: !M324B5D.UST
A16: !M325B1D.UST
A17: !M326B4D.UST
A18: !M327A5D.UST
A19: !M328A5D.UST
A20: !M330A2D.UST
A21: !M331A4D.UST
A22: !M402B3D.UST
A23: !M404A0D.UST
A24: !M410A3D.UST
A25: !M411B2D.UST
A26: !M412A4D.UST
A27: !M413A3D.UST
A28: !M414A0D.UST
A29: !M415A3D.UST
A30: !M416B2D.UST
A31: !M417A4D.UST
A32: !M418A2D.UST
A33: !M419B3D.UST
A34: !M32995D.UST
A35: !M40195D.UST
A36: !M40394D.UST
A37: !M40592D.UST

Sheet !M321A3D.UST
A1: Report for:!M321A3D.UST
A2: Date: | B2: <date>
A3: Hen: | B3: <hen> | F3: Correct Sequence | G3: =Start!J2 -> 222 | P3: Total Sequences in Data | Q3: =4994-COUNTBLANK(L7:L5000) -> 137 | V3: Total Sequences in Block Data | W3: =COUNTA(L7:L29) -> 23 | AA3: Total Sequences in Block Data | AB3: =COUNTA(L30:L52) -> 23 | AF3: Total Sequences in Block Data | AG3: =COUNTA(L53:L74) -> 22 | AK3: Total Sequences in Block Data | AL3: =COUNTA(L75:L97) -> 23 | AP3: Total Sequences in Block Data | AQ3: =COUNTA(L98:L120) -> 23 | AU3: Total Sequences in Block Data | AV3: =COUNTA(L121:L143) -> 23
P4: Total Sequences in Summary | Q4: =SUM(O7:O14) -> 137 | V4: Total Sequences in Block Summary | W4: =SUM(U7:U14) -> 23 | AA4: Total Sequences in Block Summary | AB4: =SUM(Z7:Z14) -> 23 | AF4: Total Sequences in Block Summary | AG4: =SUM(AE7:AE14) -> 22 | AK4: Total Sequences in Block Summary | AL4: =SUM(AJ7:AJ14) -> 23 | AP4: Total Sequences in Block Summary | AQ4: =SUM(AO7:AO14) -> 23 | AU4: Total Sequences in Block Summary | AV4: =SUM(AT7:AT14) -> 23
T5: Block 1 | Y5: Block 2 | AD5: Block 3 | AI5: Block 4 | AN5: Block 5 | AS5: Block 6
A6: Sequence Component 1 | B6: Time 1 | C6: Sequence Component 2 | D6: Time 2 | E6: Sequence Component 3 | F6: Time 3 | G6: Sequence Component 4 | H6: Time 4 | I6: Sequence Component 5 | J6: Time 5 | K6: Correct? 0=No 1=Yes | L6: Sequence | N6: Frequency | P6: Relative Frequency | Q6: Variability | T6: Frequency | V6: Relative Frequency | W6: Variability | Y6: Frequency | AA6: Relative Frequency | AB6: Variability | AD6: Frequency | AF6: Relative Frequency | AG6: Variability | AI6: Frequency | AK6: Relative Frequency | AL6: Variability | AN6: Frequency | AP6: Relative Frequency | AQ6: Variability | AS6: Frequency | AU6: Relative Frequency | AV6: Variability
A7: 21 | B7: 28 | C7: 21 | D7: 33 | E7: 21 | F7: 41 | K7: 0 | L7: 222 | N7: 111 | O7: =COUNTIF($L$7:$L$500,N7) -> 2 | P7: =O7/$Q$4 -> 0.01459854015 | Q7: =IF(P7=0,0,(P7*((LOG(P7))/LOG(2)))) -> -0.08902236617 | T7: =N7 -> 111 | U7: =COUNTIF(L7:L29,T7) -> 0 | V7: =U7/(W4-U14) -> 0 | W7: =IF(V7=0,0,(V7*((LOG(V7))/LOG(2)))) -> 0 | Y7: =N7 -> 111 | Z7: =COUNTIF(L30:L52,Y7) -> 1 | AA7: =Z7/(AB4-Z14) -> 0.04761904762 | AB7: =IF(AA7=0,0,(AA7*((LOG(AA7))/LOG(2)))) -> -0.2091579725 | AD7: =N7 -> 111 | AE7: =COUNTIF(L53:L74,AD7) -> 1 | AF7: =AE7/(AG4-AE14) -> 0.05555555556 | AG7: =IF(AF7=0,0,(AF7*((LOG(AF7))/LOG(2)))) -> -0.2316625001 | AI7: =N7 -> 111 | AJ7: =COUNTIF(L75:L97,AI7) -> 0 | AK7: =AJ7/(AL4-AJ14) -> 0 | AL7: =IF(AK7=0,0,(AK7*((LOG(AK7))/LOG(2)))) -> 0 | AN7: =N7 -> 111 | AO7: =COUNTIF(L98:L120,AN7) -> 0 | AP7: =AO7/(AQ4-AO14) -> 0 | AQ7: =IF(AP7=0,0,(AP7*((LOG(AP7))/LOG(2)))) -> 0 | AS7: =N7 -> 111 | AT7: =COUNTIF(L121:L143,AS7) -> 0 | AU7: =AT7/(AV4-AT14) -> 0 | AV7: =IF(AU7=0,0,(AU7*((LOG(AU7))/LOG(2)))) -> 0
A8: 12 | B8: 217 | C8: 23 | D8: 224 | E8: 23 | F8: 229 | K8: 0 | L8: 122 | N8: 112 | O8: =COUNTIF($L$7:$L$500,N8) -> 6 | P8: =O8/$Q$4 -> 0.04379562044 | Q8: =IF(P8=0,0,(P8*((LOG(P8))/LOG(2)))) -> -0.1976526824 | T8: =N8 -> 112 | U8: =COUNTIF(L7:L29,T8) -> 1 | V8: =U8/(W4-U14) -> 0.04545454545 | W8: =IF(V8=0,0,(V8*((LOG(V8))/LOG(2)))) -> -0.2027014372 | Y8: =N8 -> 112 | Z8: =COUNTIF(L30:L52,Y8) -> 4 | AA8: =Z8/(AB4-Z14) -> 0.1904761905 | AB8: =IF(AA8=0,0,(AA8*((LOG(AA8))/LOG(2)))) -> -0.4556795091 | AD8: =N8 -> 112 | AE8: =COUNTIF(L53:L74,AD8) -> 0 | AF8: =AE8/(AG4-AE14) -> 0 | AG8: =IF(AF8=0,0,(AF8*((LOG(AF8))/LOG(2)))) -> 0 | AI8: =N8 -> 112 | AJ8: =COUNTIF(L75:L97,AI8) -> 1 | AK8: =AJ8/(AL4-AJ14) -> 0.06666666667 | AL8: =IF(AK8=0,0,(AK8*((LOG(AK8))/LOG(2)))) -> -0.260459373 | AN8: =N8 -> 112 | AO8: =COUNTIF(L98:L120,AN8) -> 0 | AP8: =AO8/(AQ4-AO14) -> 0 | AQ8: =IF(AP8=0,0,(AP8*((LOG(AP8))/LOG(2)))) -> 0 | AS8: =N8 -> 112 | AT8: =COUNTIF(L121:L143,AS8) -> 0 | AU8: =AT8/(AV4-AT14) -> 0 | AV8: =IF(AU8=0,0,(AU8*((LOG(AU8))/LOG(2)))) -> 0
A9: 21 | B9: 336 | C9: 12 | D9: 356 | E9: 23 | F9: 379 | K9: 0 | L9: 212 | N9: 121 | O9: =COUNTIF($L$7:$L$500,N9) -> 32 | P9: =O9/$Q$4 -> 0.2335766423 | Q9: =IF(P9=0,0,(P9*((LOG(P9))/LOG(2)))) -> -0.4900512895 | T9: =N9 -> 121 | U9: =COUNTIF(L7:L29,T9) -> 12 | V9: =U9/(W4-U14) -> 0.5454545455 | W9: =IF(V9=0,0,(V9*((LOG(V9))/LOG(2)))) -> -0.4769831552 | Y9: =N9 -> 121 | Z9: =COUNTIF(L30:L52,Y9) -> 8 | AA9: =Z9/(AB4-Z14) -> 0.380952381 | AB9: =IF(AA9=0,0,(AA9*((LOG(AA9))/LOG(2)))) -> -0.5304066372 | AD9: =N9 -> 121 | AE9: =COUNTIF(L53:L74,AD9) -> 8 | AF9: =AE9/(AG4-AE14) -> 0.4444444444 | AG9: =IF(AF9=0,0,(AF9*((LOG(AF9))/LOG(2)))) -> -0.5199666673 | AI9: =N9 -> 121 | AJ9: =COUNTIF(L75:L97,AI9) -> 1 | AK9: =AJ9/(AL4-AJ14) -> 0.06666666667 | AL9: =IF(AK9=0,0,(AK9*((LOG(AK9))/LOG(2)))) -> -0.260459373 | AN9: =N9 -> 121 | AO9: =COUNTIF(L98:L120,AN9) -> 2 | AP9: =AO9/(AQ4-AO14) -> 0.1538461538 | AQ9: =IF(AP9=0,0,(AP9*((LOG(AP9))/LOG(2)))) -> -0.4154522643 | AS9: =N9 -> 121 | AT9: =COUNTIF(L121:L143,AS9) -> 1 | AU9: =AT9/(AV4-AT14) -> 0.125 | AV9: =IF(AU9=0,0,(AU9*((LOG(AU9))/LOG(2)))) -> -0.375
A10: 12 | B10: 478 | C10: 23 | D10: 486 | E10: 14 | F10: 500 | K10: 0 | L10: 121 | N10: 122 | O10: =COUNTIF($L$7:$L$500,N10) -> 51 | P10: =O10/$Q$4 -> 0.3722627737 | Q10: =IF(P10=0,0,(P10*((LOG(P10))/LOG(2)))) -> -0.5307003196 | T10: =N10 -> 122 | U10: =COUNTIF(L7:L29,T10) -> 6 | V10: =U10/(W4-U14) -> 0.2727272727 | W10: =IF(V10=0,0,(V10*((LOG(V10))/LOG(2)))) -> -0.5112188503 | Y10: =N10 -> 122 | Z10: =COUNTIF(L30:L52,Y10) -> 6 | AA10: =Z10/(AB4-Z14) -> 0.2857142857 | AB10: =IF(AA10=0,0,(AA10*((LOG(AA10))/LOG(2)))) -> -0.5163871206 | AD10: =N10 -> 122 | AE10: =COUNTIF(L53:L74,AD10) -> 9 | AF10: =AE10/(AG4-AE14) -> 0.5 | AG10: =IF(AF10=0,0,(AF10*((LOG(AF10))/LOG(2)))) -> -0.5 | AI10: =N10 -> 122 | AJ10: =COUNTIF(L75:L97,AI10) -> 12 | AK10: =AJ10/(AL4-AJ14) -> 0.8 | AL10: =IF(AK10=0,0,(AK10*((LOG(AK10))/LOG(2)))) -> -0.2575424759 | AN10: =N10 -> 122 | AO10: =COUNTIF(L98:L120,AN10) -> 11 | AP10: =AO10/(AQ4-AO14) -> 0.8461538462 | AQ10: =IF(AP10=0,0,(AP10*((LOG(AP10))/LOG(2)))) -> -0.2039299303 | AS10: =N10 -> 122 | AT10: =COUNTIF(L121:L143,AS10) -> 7 | AU10: =AT10/(AV4-AT14) -> 0.875 | AV10: =IF(AU10=0,0,(AU10*((LOG(AU10))/LOG(2)))) -> -0.1685644432
A11: 12 | B11: 600 | C11: 23 | D11: 607 | E11: 14 | F11: 618 | K11: 0 | L11: 121 | N11: 211 | O11: =COUNTIF($L$7:$L$500,N11) -> 3 | P11: =O11/$Q$4 -> 0.02189781022 | Q11: =IF(P11=0,0,(P11*((LOG(P11))/LOG(2)))) -> -0.1207241514 | T11: =N11 -> 211 | U11: =COUNTIF(L7:L29,T11) -> 0 | V11: =U11/(W4-U14) -> 0 | W11: =IF(V11=0,0,(V11*((LOG(V11))/LOG(2)))) -> 0 | Y11: =N11 -> 211 | Z11: =COUNTIF(L30:L52,Y11) -> 2 | AA11: =Z11/(AB4-Z14) -> 0.09523809524 | AB11: =IF(AA11=0,0,(AA11*((LOG(AA11))/LOG(2)))) -> -0.3230778498 | AD11: =N11 -> 211 | AE11: =COUNTIF(L53:L74,AD11) -> 0 | AF11: =AE11/(AG4-AE14) -> 0 | AG11: =IF(AF11=0,0,(AF11*((LOG(AF11))/LOG(2)))) -> 0 | AI11: =N11 -> 211 | AJ11: =COUNTIF(L75:L97,AI11) -> 1 | AK11: =AJ11/(AL4-AJ14) -> 0.06666666667 | AL11: =IF(AK11=0,0,(AK11*((LOG(AK11))/LOG(2)))) -> -0.260459373 | AN11: =N11 -> 211 | AO11: =COUNTIF(L98:L120,AN11) -> 0 | AP11: =AO11/(AQ4-AO14) -> 0 | AQ11: =IF(AP11=0,0,(AP11*((LOG(AP11))/LOG(2)))) -> 0 | AS11: =N11 -> 211 | AT11: =COUNTIF(L121:L143,AS11) -> 0 | AU11: =AT11/(AV4-AT14) -> 0 | AV11: =IF(AU11=0,0,(AU11*((LOG(AU11))/LOG(2)))) -> 0
A12: 12 | B12: 712 | C12: 23 | D12: 722 | E12: 14 | F12: 731 | K12: 0 | L12: 121 | N12: 212 | O12: =COUNTIF($L$7:$L$500,N12) -> 3 | P12: =O12/$Q$4 -> 0.02189781022 | Q12: =IF(P12=0,0,(P12*((LOG(P12))/LOG(2)))) -> -0.1207241514 | T12: =N12 -> 212 | U12: =COUNTIF(L7:L29,T12) -> 3 | V12: =U12/(W4-U14) -> 0.1363636364 | W12: =IF(V12=0,0,(V12*((LOG(V12))/LOG(2)))) -> -0.3919730615 | Y12: =N12 -> 212 | Z12: =COUNTIF(L30:L52,Y12) -> 0 | AA12: =Z12/(AB4-Z14) -> 0 | AB12: =IF(AA12=0,0,(AA12*((LOG(AA12))/LOG(2)))) -> 0 | AD12: =N12 -> 212 | AE12: =COUNTIF(L53:L74,AD12) -> 0 | AF12: =AE12/(AG4-AE14) -> 0 | AG12: =IF(AF12=0,0,(AF12*((LOG(AF12))/LOG(2)))) -> 0 | AI12: =N12 -> 212 | AJ12: =COUNTIF(L75:L97,AI12) -> 0 | AK12: =AJ12/(AL4-AJ14) -> 0 | AL12: =IF(AK12=0,0,(AK12*((LOG(AK12))/LOG(2)))) -> 0 | AN12: =N12 -> 212 | AO12: =COUNTIF(L98:L120,AN12) -> 0 | AP12: =AO12/(AQ4-AO14) -> 0 | AQ12: =IF(AP12=0,0,(AP12*((LOG(AP12))/LOG(2)))) -> 0 | AS12: =N12 -> 212 | AT12: =COUNTIF(L121:L143,AS12) -> 0 | AU12: =AT12/(AV4-AT14) -> 0 | AV12: =IF(AU12=0,0,(AU12*((LOG(AU12))/LOG(2)))) -> 0
A13: 12 | B13: 825 | C13: 23 | D13: 834 | E13: 23 | F13: 842 | K13: 0 | L13: 122 | N13: 221 | O13: =COUNTIF($L$7:$L$500,N13) -> 0 | P13: =O13/$Q$4 -> 0 | Q13: =IF(P13=0,0,(P13*((LOG(P13))/LOG(2)))) -> 0 | T13: =N13 -> 221 | U13: =COUNTIF(L7:L29,T13) -> 0 | V13: =U13/(W4-U14) -> 0 | W13: =IF(V13=0,0,(V13*((LOG(V13))/LOG(2)))) -> 0 | Y13: =N13 -> 221 | Z13: =COUNTIF(L30:L52,Y13) -> 0 | AA13: =Z13/(AB4-Z14) -> 0 | AB13: =IF(AA13=0,0,(AA13*((LOG(AA13))/LOG(2)))) -> 0 | AD13: =N13 -> 221 | AE13: =COUNTIF(L53:L74,AD13) -> 0 | AF13: =AE13/(AG4-AE14) -> 0 | AG13: =IF(AF13=0,0,(AF13*((LOG(AF13))/LOG(2)))) -> 0 | AI13: =N13 -> 221 | AJ13: =COUNTIF(L75:L97,AI13) -> 0 | AK13: =AJ13/(AL4-AJ14) -> 0 | AL13: =IF(AK13=0,0,(AK13*((LOG(AK13))/LOG(2)))) -> 0 | AN13: =N13 -> 221 | AO13: =COUNTIF(L98:L120,AN13) -> 0 | AP13: =AO13/(AQ4-AO14) -> 0 | AQ13: =IF(AP13=0,0,(AP13*((LOG(AP13))/LOG(2)))) -> 0 | AS13: =N13 -> 221 | AT13: =COUNTIF(L121:L143,AS13) -> 0 | AU13: =AT13/(AV4-AT14) -> 0 | AV13: =IF(AU13=0,0,(AU13*((LOG(AU13))/LOG(2)))) -> 0
A14: 12 | B14: 939 | C14: 23 | D14: 946 | E14: 14 | F14: 961 | K14: 0 | L14: 121 | N14: 222 | O14: =COUNTIF($L$7:$L$500,N14) -> 40 | P14: =O14/$Q$4 -> 0.2919708029 | Q14: =IF(P14=0,0,(P14*((LOG(P14))/LOG(2)))) -> -0.5185705075 | T14: =N14 -> 222 | U14: =COUNTIF(L7:L29,T14) -> 1 | Y14: =N14 -> 222 | Z14: =COUNTIF(L30:L52,Y14) -> 2 | AD14: =N14 -> 222 | AE14: =COUNTIF(L53:L74,AD14) -> 4 | AI14: =N14 -> 222 | AJ14: =COUNTIF(L75:L97,AI14) -> 8 | AN14: =N14 -> 222 | AO14: =COUNTIF(L98:L120,AN14) -> 10 | AS14: =N14 -> 222 | AT14: =COUNTIF(L121:L143,AS14) -> 15
A15: 12 | B15: 1063 | C15: 23 | D15: 1089 | E15: 14 | F15: 1119 | K15: 0 | L15: 121 | P15: =SUM(P7:P14) -> 1 | Q15: =-SUM(Q7:Q14) -> 2.067445468 | V15: =SUM(V7:V14) -> 1 | W15: =-SUM(W7:W14) -> 1.582876504 | AA15: =SUM(AA7:AA14) -> 1 | AB15: =-SUM(AB7:AB14) -> 2.034709089 | AF15: =SUM(AF7:AF14) -> 1 | AG15: =-SUM(AG7:AG14) -> 1.251629167 | AK15: =SUM(AK7:AK14) -> 1 | AL15: =-SUM(AL7:AL14) -> 1.038920595 | AP15: =SUM(AP7:AP14) -> 1 | AQ15: =-SUM(AQ7:AQ14) -> 0.6193821947 | AU15: =SUM(AU7:AU14) -> 1 | AV15: =-SUM(AV7:AV14) -> 0.5435644432
A16: 21 | B16: 1224 | C16: 12 | D16: 1234 | E16: 23 | F16: 1245 | K16: 0 | L16: 212 | P16: U= | Q16: =Q15/(LOG(Q4)/LOG(2)) -> 0.2912702343 | V16: U1= | W16: =W15/(LOG(W4)/LOG(2)) -> 0.3499181662 | AA16: U2= | AB16: =AB15/(LOG(AB4)/LOG(2)) -> 0.4498024143 | AF16: U3= | AG16: =AG15/(LOG(AG4)/LOG(2)) -> 0.280670111 | AK16: U4= | AL16: =AL15/(LOG(AL4)/LOG(2)) -> 0.2296687003 | AP16: U5= | AQ16: =AQ15/(LOG(AQ4)/LOG(2)) -> 0.1369235573 | AU16: U6= | AV16: =AV15/(LOG(AV4)/LOG(2)) -> 0.1201629266
A17: 12 | B17: 1343 | C17: 23 | D17: 1349 | E17: 14 | F17: 1360 | K17: 0 | L17: 121
A18: 12 | B18: 1460 | C18: 23 | D18: 1467 | E18: 23 | F18: 1472 | K18: 0 | L18: 122
A19: 21 | B19: 1575 | C19: 12 | D19: 1593 | E19: 23 | F19: 1609 | K19: 0 | L19: 212 | N19: Total Target Seq
A20: 12 | B20: 1707 | C20: 23 | D20: 1712 | E20: 23 | F20: 1718 | K20: 0 | L20: 122 | N20: =COUNTIF(L7:L143,G3) -> 40 | P20: 23 | Q20: 23 | R20: 22 | S20: 23 | T20: 23 | U20: 23
A21: 12 | B21: 1818 | C21: 23 | D21: 1825 | E21: 14 | F21: 1836 | K21: 0 | L21: 121 | P21: % of reinforcement given in 6 equal intervals based on number of trials
A22: 12 | B22: 1935 | C22: 23 | D22: 1943 | E22: 14 | F22: 1954 | K22: 0 | L22: 121 | P22: %_1 | Q22: %_2 | R22: %_3 | S22: %_4 | T22: %_5 | U22: %_6
A23: 12 | B23: 2060 | C23: 23 | D23: 2067 | E23: 23 | F23: 2070 | K23: 0 | L23: 122 | O23: target sequence | P23: =$G$3 -> 222 | Q23: =$G$3 -> 222 | R23: =$G$3 -> 222 | S23: =$G$3 -> 222 | T23: =$G$3 -> 222 | U23: =$G$3 -> 222
A24: 12 | B24: 2167 | C24: 23 | D24: 2174 | E24: 14 | F24: 2188 | K24: 0 | L24: 121 | O24: total reinforcement | P24: =U14 -> 1 | Q24: =Z14 -> 2 | R24: =AE14 -> 4 | S24: =AJ14 -> 8 | T24: =AO14 -> 10 | U24: =AT14 -> 15
A25: 12 | B25: 2288 | C25: 23 | D25: 2295 | E25: 14 | F25: 2311 | K25: 0 | L25: 121 | O25: % target
A26: 12 | B26: 2408 | C26: 23 | D26: 2416 | E26: 23 | F26: 2421 | K26: 0 | L26: 122 | O26: CCRF
A27: 12 | B27: 2513 | C27: 14 | D27: 2518 | E27: 23 | F27: 2525 | K27: 0 | L27: 112 | O27: % CCRf
A28: 12 | B28: 2633 | C28: 23 | D28: 2642 | E28: 14 | F28: 2657 | K28: 0 | L28: 121 | O28: average response rate | P28: =F29/P20 -> 121.1304348 | Q28: =(F52-F29)/Q20 -> 120.1304348 | R28: =(F74-F52)/R20 -> 133.7727273 | S28: =(F97-F74)/S20 -> 133.8695652 | T28: =(F120-F97)/T20 -> 140 | U28: =(F143-F120)/U20 -> 187.826087
A29: 12 | B29: 2766 | C29: 23 | D29: 2773 | E29: 14 | F29: 2786 | K29: 0 | L29: 121
A30: 12 | B30: 2896 | C30: 23 | D30: 2910 | E30: 14 | F30: 2926 | K30: 0 | L30: 121
A31: 21 | B31: 3033 | C31: 12 | D31: 3048 | E31: 14 | F31: 3057 | K31: 0 | L31: 211
A32: 21 | B32: 3165 | C32: 12 | D32: 3178 | E32: 14 | F32: 3187 | K32: 0 | L32: 211
A33: 12 | B33: 3285 | C33: 23 | D33: 3293 | E33: 23 | F33: 3296 | K33: 0 | L33: 122
A34: 12 | B34: 3398 | C34: 23 | D34: 3406 | E34: 14 | F34: 3418 | K34: 0 | L34: 121
A35: 12 | B35: 3516 | C35: 23 | D35: 3527 | E35: 14 | F35: 3540 | K35: 0 | L35: 121
A36: 12 | B36: 3634 | C36: 14 | D36: 3639 | E36: 23 | F36: 3648 | K36: 0 | L36: 112
A37: 12 | B37: 3752 | C37: 23 | D37: 3758 | E37: 14 | F37: 3771 | K37: 0 | L37: 121
A38: 12 | B38: 3868 | C38: 23 | D38: 3877 | E38: 23 | F38: 3883 | K38: 0 | L38: 122
A39: 12 | B39: 3983 | C39: 23 | D39: 3991 | E39: 14 | F39: 4002 | K39: 0 | L39: 121
A40: 12 | B40: 4102 | C40: 23 | D40: 4109 | E40: 14 | F40: 4120 | K40: 0 | L40: 121
A41: 12 | B41: 4220 | C41: 23 | D41: 4228 | E41: 23 | F41: 4233 | K41: 0 | L41: 122
A42: 12 | B42: 4333 | C42: 14 | D42: 4339 | E42: 14 | F42: 4345 | K42: 0 | L42: 111
A43: 12 | B43: 4448 | C43: 23 | D43: 4455 | E43: 23 | F43: 4460 | K43: 0 | L43: 122
A44: 21 | B44: 4551 | C44: 21 | D44: 4558 | E44: 21 | F44: 4565 | K44: 0 | L44: 222
A45: 12 | B45: 4705 | C45: 14 | D45: 4711 | E45: 23 | F45: 4723 | K45: 0 | L45: 112
A46: 12 | B46: 4829 | C46: 23 | D46: 4835 | E46: 23 | F46: 4842 | K46: 0 | L46: 122
A47: 12 | B47: 4934 | C47: 14 | D47: 4937 | E47: 23 | F47: 4945 | K47: 0 | L47: 112
A48: 12 | B48: 5042 | C48: 23 | D48: 5051 | E48: 14 | F48: 5066 | K48: 0 | L48: 121
A49: 12 | B49: 5169 | C49: 23 | D49: 5177 | E49: 23 | F49: 5184 | K49: 0 | L49: 122
A50: 12 | B50: 5280 | C50: 14 | D50: 5283 | E50: 23 | F50: 5292 | K50: 0 | L50: 112
A51: 12 | B51: 5392 | C51: 23 | D51: 5398 | E51: 14 | F51: 5415 | K51: 0 | L51: 121
A52: 21 | B52: 5525 | C52: 21 | D52: 5540 | E52: 21 | F52: 5549 | K52: 0 | L52: 222
A53: 12 | B53: 5739 | C53: 23 | D53: 5747 | E53: 23 | F53: 5758 | K53: 0 | L53: 122
A54: 21 | B54: 5861 | C54: 21 | D54: 5866 | E54: 21 | F54: 5874 | K54: 0 | L54: 222
A55: 12 | B55: 6060 | C55: 23 | D55: 6072 | E55: 23 | F55: 6089 | K55: 0 | L55: 122
A56: 12 | B56: 6193 | C56: 23 | D56: 6199 | E56: 14 | F56: 6214 | K56: 0 | L56: 121
A57: 12 | B57: 6310 | C57: 23 | D57: 6317 | E57: 23 | F57: 6322 | K57: 0 | L57: 122
A58: 12 | B58: 6426 | C58: 23 | D58: 6436 | E58: 14 | F58: 6451 | K58: 0 | L58: 121
A59: 12 | B59: 6546 | C59: 23 | D59: 6554 | E59: 14 | F59: 6567 | K59: 0 | L59: 121
A60: 12 | B60: 6665 | C60: 23 | D60: 6674 | E60: 23 | F60: 6684 | K60: 0 | L60: 122
A61: 12 | B61: 6780 | C61: 23 | D61: 6787 | E61: 14 | F61: 6800 | K61: 0 | L61: 121
A62: 12 | B62: 6899 | C62: 23 | D62: 6905 | E62: 23 | F62: 6910 | K62: 0 | L62: 122
A63: 12 | B63: 7017 | C63: 23 | D63: 7032 | E63: 14 | F63: 7046 | K63: 0 | L63: 121
A64: 12 | B64: 7157 | C64: 23 | D64: 7169 | E64: 14 | F64: 7181 | K64: 0 | L64: 121
A65: 21 | B65: 7276 | C65: 21 | D65: 7282 | E65: 21 | F65: 7302 | K65: 0 | L65: 222
A66: 12 | B66: 7467 | C66: 23 | D66: 7474 | E66: 23 | F66: 7480 | K66: 0 | L66: 122
A67: 12 | B67: 7574 | C67: 23 | D67: 7583 | E67: 23 | F67: 7587 | K67: 0 | L67: 122
A68: 12 | B68: 7689 | C68: 23 | D68: 7698 | E68: 14 | F68: 7708 | K68: 0 | L68: 121
A69: 12 | B69: 7801 | C69: 23 | D69: 7810 | E69: 23 | F69: 7815 | K69: 0 | L69: 122
A70: 12 | B70: 7920 | C70: 23 | D70: 7928 | E70: 23 | F70: 7933 | K70: 0 | L70: 122
A71: 12 | B71: 8027 | C71: 23 | D71: 8034 | E71: 14 | F71: 8050 | K71: 0 | L71: 121
A72: 12 | B72: 8149 | C72: 14 | D72: 8157 | E72: 14 | F72: 8172 | K72: 0 | L72: 111
A73: 21 | B73: 8289 | C73: 21 | D73: 8302 | E73: 21 | F73: 8310 | K73: 0 | L73: 222
A74: 21 | B74: 8474 | C74: 21 | D74: 8483 | E74: 21 | F74: 8492 | K74: 0 | L74: 222
A75: 12 | B75: 8698 | C75: 23 | D75: 8706 | E75: 23 | F75: 8718 | K75: 0 | L75: 122
A76: 12 | B76: 8818 | C76: 23 | D76: 8826 | E76: 23 | F76: 8832 | K76: 0 | L76: 122
A77: 21 | B77: 8940 | C77: 21 | D77: 8948 | E77: 21 | F77: 8953 | K77: 0 | L77: 222
A78: 12 | B78: 9065 | C78: 14 | D78: 9068 | E78: 23 | F78: 9074 | K78: 0 | L78: 112
A79: 21 | B79: 9169 | C79: 21 | D79: 9175 | E79: 21 | F79: 9182 | K79: 0 | L79: 222
A80: 12 | B80: 9306 | C80: 23 | D80: 9313 | E80: 23 | F80: 9324 | K80: 0 | L80: 122
A81: 12 | B81: 9424 | C81: 23 | D81: 9431 | E81: 23 | F81: 9436 | K81: 0 | L81: 122
A82: 12 | B82: 9537 | C82: 23 | D82: 9544 | E82: 23 | F82: 9551 | K82: 0 | L82: 122
A83: 12 | B83: 9651 | C83: 23 | D83: 9662 | E83: 23 | F83: 9667 | K83: 0 | L83: 122
A84: 21 | B84: 9793 | C84: 21 | D84: 9799 | E84: 21 | F84: 9806 | K84: 0 | L84: 222
A85: 12 | B85: 9936 | C85: 23 | D85: 9950 | E85: 14 | F85: 9969 | K85: 0 | L85: 121
A86: 21 | B86: 10073 | C86: 21 | D86: 10079 | E86: 21 | F86: 10085 | K86: 0 | L86: 222
A87: 12 | B87: 10225 | C87: 23 | D87: 10233 | E87: 23 | F87: 10240 | K87: 0 | L87: 122
A88: 12 | B88: 10336 | C88: 23 | D88: 10350 | E88: 23 | F88: 10355 | K88: 0 | L88: 122
A89: 21 | B89: 10460 | C89: 12 | D89: 10476 | E89: 14 | F89: 10491 | K89: 0 | L89: 211
A90: 12 | B90: 10592 | C90: 23 | D90: 10601 | E90: 23 | F90: 10607 | K90: 0 | L90: 122
A91: 21 | B91: 10712 | C91: 21 | D91: 10716 | E91: 21 | F91: 10721 | K91: 0 | L91: 222
A92: 12 | B92: 10838 | C92: 23 | D92: 10844 | E92: 23 | F92: 10852 | K92: 0 | L92: 122
A93: 21 | B93: 10954 | C93: 21 | D93: 10960 | E93: 21 | F93: 10969 | K93: 0 | L93: 222
A94: 12 | B94: 11161 | C94: 23 | D94: 11167 | E94: 23 | F94: 11178 | K94: 0 | L94: 122
A95: 21 | B95: 11276 | C95: 21 | D95: 11299 | E95: 21 | F95: 11319 | K95: 0 | L95: 222
A96: 12 | B96: 11439 | C96: 23 | D96: 11445 | E96: 23 | F96: 11450 | K96: 0 | L96: 122
A97: 21 | B97: 11559 | C97: 21 | D97: 11564 | E97: 21 | F97: 11571 | K97: 0 | L97: 222
A98: 12 | B98: 11703 | C98: 23 | D98: 11709 | E98: 23 | F98: 11719 | K98: 0 | L98: 122
A99: 21 | B99: 11814 | C99: 21 | D99: 11819 | E99: 21 | F99: 11826 | K99: 0 | L99: 222
A100: 12 | B100: 12005 | C100: 23 | D100: 12013 | E100: 23 | F100: 12026 | K100: 0 | L100: 122
A101: 12 | B101: 12135 | C101: 23 | D101: 12144 | E101: 23 | F101: 12153 | K101: 0 | L101: 122
A102: 21 | B102: 12251 | C102: 21 | D102: 12258 | E102: 21 | F102: 12265 | K102: 0 | L102: 222
A103: 12 | B103: 12399 | C103: 23 | D103: 12405 | E103: 23 | F103: 12413 | K103: 0 | L103: 122
A104: 21 | B104: 12505 | C104: 21 | D104: 12509 | E104: 21 | F104: 12516 | K104: 0 | L104: 222
A105: 12 | B105: 12684 | C105: 23 | D105: 12690 | E105: 23 | F105: 12700 | K105: 0 | L105: 122
A106: 21 | B106: 12797 | C106: 21 | D106: 12804 | E106: 21 | F106: 12810 | K106: 0 | L106: 222
A107: 21 | B107: 12975 | C107: 21 | D107: 12986 | E107: 21 | F107: 12993 | K107: 0 | L107: 222
A108: 12 | B108: 13169 | C108: 23 | D108: 13176 | E108: 14 | F108: 13204 | K108: 0 | L108: 121
A109: 21 | B109: 13298 | C109: 21 | D109: 13307 | E109: 21 | F109: 13313 | K109: 0 | L109: 222
A110: 12 | B110: 13423 | C110: 23 | D110: 13429 | E110: 23 | F110: 13438 | K110: 0 | L110: 122
A111: 12 | B111: 13539 | C111: 23 | D111: 13546 | E111: 23 | F111: 13550 | K111: 0 | L111: 122
A112: 21 | B112: 13648 | C112: 21 | D112: 13654 | E112: 21 | F112: 13660 | K112: 0 | L112: 222
A113: 12 | B113: 13812 | C113: 23 | D113: 13818 | E113: 14 | F113: 13837 | K113: 0 | L113: 121
A114: 21 | B114: 13929 | C114: 21 | D114: 13935 | E114: 21 | F114: 13943 | K114: 0 | L114: 222
A115: 12 | B115: 14053 | C115: 23 | D115: 14058 | E115: 23 | F115: 14079 | K115: 0 | L115: 122
A116: 21 | B116: 14175 | C116: 21 | D116: 14181 | E116: 21 | F116: 14187 | K116: 0 | L116: 222
A117: 12 | B117: 14336 | C117: 23 | D117: 14342 | E117: 23 | F117: 14348 | K117: 0 | L117: 122
A118: 21 | B118: 14472 | C118: 21 | D118: 14478 | E118: 21 | F118: 14485 | K118: 0 | L118: 222
A119: 12 | B119: 14656 | C119: 23 | D119: 14666 | E119: 23 | F119: 14672 | K119: 0 | L119: 122
A120: 12 | B120: 14775 | C120: 23 | D120: 14784 | E120: 23 | F120: 14791 | K120: 0 | L120: 122
A121: 21 | B121: 14892 | C121: 21 | D121: 14897 | E121: 21 | F121: 14903 | K121: 0 | L121: 222
A122: 12 | B122: 15042 | C122: 23 | D122: 15047 | E122: 23 | F122: 15052 | K122: 0 | L122: 122
A123: 21 | B123: 15152 | C123: 21 | D123: 15157 | E123: 21 | F123: 15164 | K123: 0 | L123: 222
A124: 12 | B124: 15368 | C124: 23 | D124: 15374 | E124: 23 | F124: 15382 | K124: 0 | L124: 122
A125: 21 | B125: 15474 | C125: 21 | D125: 15479 | E125: 21 | F125: 15484 | K125: 0 | L125: 222
A126: 12 | B126: 15804 | C126: 23 | D126: 15812 | E126: 23 | F126: 15817 | K126: 0 | L126: 122
A127: 21 | B127: 15916 | C127: 21 | D127: 15922 | E127: 21 | F127: 15928 | K127: 0 | L127: 222
A128: 21 | B128: 16270 | C128: 21 | D128: 16274 | E128: 21 | F128: 16279 | K128: 0 | L128: 222
A129: 12 | B129: 16460 | C129: 23 | D129: 16467 | E129: 23 | F129: 16477 | K129: 0 | L129: 122
A130: 12 | B130: 16585 | C130: 23 | D130: 16592 | E130: 23 | F130: 16598 | K130: 0 | L130: 122
A131: 21 | B131: 16694 | C131: 21 | D131: 16699 | E131: 21 | F131: 16706 | K131: 0 | L131: 222
A132: 21 | B132: 16871 | C132: 21 | D132: 16876 | E132: 21 | F132: 16882 | K132: 0 | L132: 222
A133: 21 | B133: 17146 | C133: 21 | D133: 17155 | E133: 21 | F133: 17162 | K133: 0 | L133: 222
A134: 12 | B134: 17457 | C134: 23 | D134: 17463 | E134: 14 | F134: 17478 | K134: 0 | L134: 121
A135: 21 | B135: 17573 | C135: 21 | D135: 17580 | E135: 21 | F135: 17588 | K135: 0 | L135: 222
A136: 21 | B136: 17808 | C136: 21 | D136: 17817 | E136: 21 | F136: 17823 | K136: 0 | L136: 222
A137: 12 | B137: 18107 | C137: 23 | D137: 18114 | E137: 23 | F137: 18120 | K137: 0 | L137: 122
A138: 21 | B138: 18212 | C138: 21 | D138: 18216 | E138: 21 | F138: 18223 | K138: 0 | L138: 222
A139: 12 | B139: 18428 | C139: 23 | D139: 18434 | E139: 23 | F139: 18443 | K139: 0 | L139: 122
A140: 21 | B140: 18541 | C140: 21 | D140: 18547 | E140: 21 | F140: 18554 | K140: 0 | L140: 222
A141: 21 | B141: 18683 | C141: 21 | D141: 18689 | E141: 21 | F141: 18694 | K141: 0 | L141: 222
A142: 21 | B142: 18856 | C142: 21 | D142: 18871 | E142: 21 | F142: 18877 | K142: 0 | L142: 222
A143: 21 | B143: 19099 | C143: 21 | D143: 19106 | E143: 21 | F143: 19111 | K143: 1 | L143: 222

Sheet !M322B2D.UST
A1: Report for:!M322B2D.UST
A2: Date: | B2: <date>
A3: Hen: | B3: <hen> | F3: Correct Sequence | G3: =Start!J2 -> 222 | P3: Total Sequences in Data | Q3: =4994-COUNTBLANK(L7:L5000) -> 57 | V3: Total Sequences in Block Data | W3: =COUNTA(L7:L16) -> 10 | AA3: Total Sequences in Block Data | AB3: =COUNTA(L17:L25) -> 9 | AF3: Total Sequences in Block Data | AG3: =COUNTA(L26:L35) -> 10 | AK3: Total Sequences in Block Data | AL3: =COUNTA(L36:L44) -> 9 | AP3: Total Sequences in Block Data | AQ3: =COUNTA(L45:L54) -> 10 | AU3: Total Sequences in Block Data | AV3: =COUNTA(L55:L63) -> 9
P4: Total Sequences in Summary | Q4: =SUM(O7:O14) -> 57 | V4: Total Sequences in Block Summary | W4: =SUM(U7:U14) -> 10 | AA4: Total Sequences in Block Summary | AB4: =SUM(Z7:Z14) -> 9 | AF4: Total Sequences in Block Summary | AG4: =SUM(AE7:AE14) -> 10 | AK4: Total Sequences in Block Summary | AL4: =SUM(AJ7:AJ14) -> 9 | AP4: Total Sequences in Block Summary | AQ4: =SUM(AO7:AO14) -> 10 | AU4: Total Sequences in Block Summary | AV4: =SUM(AT7:AT14) -> 9
T5: Block 1 | Y5: Block 2 | AD5: Block 3 | AI5: Block 4 | AN5: Block 5 | AS5: Block 6
A6: Sequence Component 1 | B6: Time 1 | C6: Sequence Component 2 | D6: Time 2 | E6: Sequence Component 3 | F6: Time 3 | G6: Sequence Component 4 | H6: Time 4 | I6: Sequence Component 5 | J6: Time 5 | K6: Correct? 0=No 1=Yes | L6: Sequence | N6: Frequency | P6: Relative Frequency | Q6: Variability | T6: Frequency | V6: Relative Frequency | W6: Variability | Y6: Frequency | AA6: Relative Frequency | AB6: Variability | AD6: Frequency | AF6: Relative Frequency | AG6: Variability | AI6: Frequency | AK6: Relative Frequency | AL6: Variability | AN6: Frequency | AP6: Relative Frequency | AQ6: Variability | AS6: Frequency | AU6: Relative Frequency | AV6: Variability
A7: 12 | B7: 30 | C7: 14 | D7: 35 | E7: 23 | F7: 43 | K7: 0 | L7: 112 | N7: 111 | O7: =COUNTIF($L$7:$L$500,N7) -> 1 | P7: =O7/$Q$4 -> 0.01754385965 | Q7: =IF(P7=0,0,(P7*((LOG(P7))/LOG(2)))) -> -0.1023314038 | T7: =N7 -> 111 | U7: =COUNTIF(L7:L16,T7) -> 0 | V7: =U7/(W4-U14) -> 0 | W7: =IF(V7=0,0,(V7*((LOG(V7))/LOG(2)))) -> 0 | Y7: =N7 -> 111 | Z7: =COUNTIF(L17:L25,Y7) -> 0 | AA7: =Z7/(AB4-Z14) -> 0 | AB7: =IF(AA7=0,0,(AA7*((LOG(AA7))/LOG(2)))) -> 0 | AD7: =N7 -> 111 | AE7: =COUNTIF(L26:L35,AD7) -> 0 | AF7: =AE7/(AG4-AE14) -> 0 | AG7: =IF(AF7=0,0,(AF7*((LOG(AF7))/LOG(2)))) -> 0 | AI7: =N7 -> 111 | AJ7: =COUNTIF(L36:L44,AI7) -> 1 | AK7: =AJ7/(AL4-AJ14) -> 0.3333333333 | AL7: =IF(AK7=0,0,(AK7*((LOG(AK7))/LOG(2)))) -> -0.5283208336 | AN7: =N7 -> 111 | AO7: =COUNTIF(L45:L54,AN7) -> 0 | AP7: =AO7/(AQ4-AO14) -> 0 | AQ7: =IF(AP7=0,0,(AP7*((LOG(AP7))/LOG(2)))) -> 0 | AS7: =N7 -> 111 | AT7: =COUNTIF(L55:L63,AS7) -> 0 | AU7: =AT7/(AV4-AT14) -> 0 | AV7: =IF(AU7=0,0,(AU7*((LOG(AU7))/LOG(2)))) -> 0
A8: 21 | B8: 140 | C8: 21 | D8: 155 | E8: 21 | F8: 164 | K8: 0 | L8: 222 | N8: 112 | O8: =COUNTIF($L$7:$L$500,N8) -> 2 | P8: =O8/$Q$4 -> 0.0350877193 | Q8: =IF(P8=0,0,(P8*((LOG(P8))/LOG(2)))) -> -0.1695750882 | T8: =N8 -> 112 | U8: =COUNTIF(L7:L16,T8) -> 2 | V8: =U8/(W4-U14) -> 0.3333333333 | W8: =IF(V8=0,0,(V8*((LOG(V8))/LOG(2)))) -> -0.5283208336 | Y8: =N8 -> 112 | Z8: =COUNTIF(L17:L25,Y8) -> 0 | AA8: =Z8/(AB4-Z14) -> 0 | AB8: =IF(AA8=0,0,(AA8*((LOG(AA8))/LOG(2)))) -> 0 | AD8: =N8 -> 112 | AE8: =COUNTIF(L26:L35,AD8) -> 0 | AF8: =AE8/(AG4-AE14) -> 0 | AG8: =IF(AF8=0,0,(AF8*((LOG(AF8))/LOG(2)))) -> 0 | AI8: =N8 -> 112 | AJ8: =COUNTIF(L36:L44,AI8) -> 0 | AK8: =AJ8/(AL4-AJ14) -> 0 | AL8: =IF(AK8=0,0,(AK8*((LOG(AK8))/LOG(2)))) -> 0 | AN8: =N8 -> 112 | AO8: =COUNTIF(L45:L54,AN8) -> 0 | AP8: =AO8/(AQ4-AO14) -> 0 | AQ8: =IF(AP8=0,0,(AP8*((LOG(AP8))/LOG(2)))) -> 0 | AS8: =N8 -> 112 | AT8: =COUNTIF(L55:L63,AS8) -> 0 | AU8: =AT8/(AV4-AT14) -> 0 | AV8: =IF(AU8=0,0,(AU8*((LOG(AU8))/LOG(2)))) -> 0
A9: 12 | B9: 353 | C9: 23 | D9: 360 | E9: 23 | F9: 365 | K9: 0 | L9: 122 | N9: 121 | O9: =COUNTIF($L$7:$L$500,N9) -> 3 | P9: =O9/$Q$4 -> 0.05263157895 | Q9: =IF(P9=0,0,(P9*((LOG(P9))/LOG(2)))) -> -0.2235751323 | T9: =N9 -> 121 | U9: =COUNTIF(L7:L16,T9) -> 1 | V9: =U9/(W4-U14) -> 0.1666666667 | W9: =IF(V9=0,0,(V9*((LOG(V9))/LOG(2)))) -> -0.4308270835 | Y9: =N9 -> 121 | Z9: =COUNTIF(L17:L25,Y9) -> 0 | AA9: =Z9/(AB4-Z14) -> 0 | AB9: =IF(AA9=0,0,(AA9*((LOG(AA9))/LOG(2)))) -> 0 | AD9: =N9 -> 121 | AE9: =COUNTIF(L26:L35,AD9) -> 0 | AF9: =AE9/(AG4-AE14) -> 0 | AG9: =IF(AF9=0,0,(AF9*((LOG(AF9))/LOG(2)))) -> 0 | AI9: =N9 -> 121 | AJ9: =COUNTIF(L36:L44,AI9) -> 0 | AK9: =AJ9/(AL4-AJ14) -> 0 | AL9: =IF(AK9=0,0,(AK9*((LOG(AK9))/LOG(2)))) -> 0 | AN9: =N9 -> 121 | AO9: =COUNTIF(L45:L54,AN9) -> 1 | AP9: =AO9/(AQ4-AO14) -> 1 | AQ9: =IF(AP9=0,0,(AP9*((LOG(AP9))/LOG(2)))) -> 0 | AS9: =N9 -> 121 | AT9: =COUNTIF(L55:L63,AS9) -> 1 | AU9: =AT9/(AV4-AT14) -> 0.3333333333 | AV9: =IF(AU9=0,0,(AU9*((LOG(AU9))/LOG(2)))) -> -0.5283208336
A10: 12 | B10: 462 | C10: 23 | D10: 468 | E10: 23 | F10: 473 | K10: 0 | L10: 122 | N10: 122 | O10: =COUNTIF($L$7:$L$500,N10) -> 9 | P10: =O10/$Q$4 -> 0.1578947368 | Q10: =IF(P10=0,0,(P10*((LOG(P10))/LOG(2)))) -> -0.4204681599 | T10: =N10 -> 122 | U10: =COUNTIF(L7:L16,T10) -> 3 | V10: =U10/(W4-U14) -> 0.5 | W10: =IF(V10=0,0,(V10*((LOG(V10))/LOG(2)))) -> -0.5 | Y10: =N10 -> 122 | Z10: =COUNTIF(L17:L25,Y10) -> 3 | AA10: =Z10/(AB4-Z14) -> 1 | AB10: =IF(AA10=0,0,(AA10*((LOG(AA10))/LOG(2)))) -> 0 | AD10: =N10 -> 122 | AE10: =COUNTIF(L26:L35,AD10) -> 1 | AF10: =AE10/(AG4-AE14) -> 1 | AG10: =IF(AF10=0,0,(AF10*((LOG(AF10))/LOG(2)))) -> 0 | AI10: =N10 -> 122 | AJ10: =COUNTIF(L36:L44,AI10) -> 1 | AK10: =AJ10/(AL4-AJ14) -> 0.3333333333 | AL10: =IF(AK10=0,0,(AK10*((LOG(AK10))/LOG(2)))) -> -0.5283208336 | AN10: =N10 -> 122 | AO10: =COUNTIF(L45:L54,AN10) -> 0 | AP10: =AO10/(AQ4-AO14) -> 0 | AQ10: =IF(AP10=0,0,(AP10*((LOG(AP10))/LOG(2)))) -> 0 | AS10: =N10 -> 122 | AT10: =COUNTIF(L55:L63,AS10) -> 1 | AU10: =AT10/(AV4-AT14) -> 0.3333333333 | AV10: =IF(AU10=0,0,(AU10*((LOG(AU10))/LOG(2)))) -> -0.5283208336
A11: 12 | B11: 575 | C11: 23 | D11: 581 | E11: 23 | F11: 586 | K11: 0 | L11: 122 | N11: 211 | O11: =COUNTIF($L$7:$L$500,N11) -> 0 | P11: =O11/$Q$4 -> 0 | Q11: =IF(P11=0,0,(P11*((LOG(P11))/LOG(2)))) -> 0 | T11: =N11 -> 211 | U11: =COUNTIF(L7:L16,T11) -> 0 | V11: =U11/(W4-U14) -> 0 | W11: =IF(V11=0,0,(V11*((LOG(V11))/LOG(2)))) -> 0 | Y11: =N11 -> 211 | Z11: =COUNTIF(L17:L25,Y11) -> 0 | AA11: =Z11/(AB4-Z14) -> 0 | AB11: =IF(AA11=0,0,(AA11*((LOG(AA11))/LOG(2)))) -> 0 | AD11: =N11 -> 211 | AE11: =COUNTIF(L26:L35,AD11) -> 0 | AF11: =AE11/(AG4-AE14) -> 0 | AG11: =IF(AF11=0,0,(AF11*((LOG(AF11))/LOG(2)))) -> 0 | AI11: =N11 -> 211 | AJ11: =COUNTIF(L36:L44,AI11) -> 0 | AK11: =AJ11/(AL4-AJ14) -> 0 | AL11: =IF(AK11=0,0,(AK11*((LOG(AK11))/LOG(2)))) -> 0 | AN11: =N11 -> 211 | AO11: =COUNTIF(L45:L54,AN11) -> 0 | AP11: =AO11/(AQ4-AO14) -> 0 | AQ11: =IF(AP11=0,0,(AP11*((LOG(AP11))/LOG(2)))) -> 0 | AS11: =N11 -> 211 | AT11: =COUNTIF(L55:L63,AS11) -> 0 | AU11: =AT11/(AV4-AT14) -> 0 | AV11: =IF(AU11=0,0,(AU11*((LOG(AU11))/LOG(2)))) -> 0
A12: 21 | B12: 689 | C12: 21 | D12: 695 | E12: 21 | F12: 701 | K12: 0 | L12: 222 | N12: 212 | O12: =COUNTIF($L$7:$L$500,N12) -> 0 | P12: =O12/$Q$4 -> 0 | Q12: =IF(P12=0,0,(P12*((LOG(P12))/LOG(2)))) -> 0 | T12: =N12 -> 212 | U12: =COUNTIF(L7:L16,T12) -> 0 | V12: =U12/(W4-U14) -> 0 | W12: =IF(V12=0,0,(V12*((LOG(V12))/LOG(2)))) -> 0 | Y12: =N12 -> 212 | Z12: =COUNTIF(L17:L25,Y12) -> 0 | AA12: =Z12/(AB4-Z14) -> 0 | AB12: =IF(AA12=0,0,(AA12*((LOG(AA12))/LOG(2)))) -> 0 | AD12: =N12 -> 212 | AE12: =COUNTIF(L26:L35,AD12) -> 0 | AF12: =AE12/(AG4-AE14) -> 0 | AG12: =IF(AF12=0,0,(AF12*((LOG(AF12))/LOG(2)))) -> 0 | AI12: =N12 -> 212 | AJ12: =COUNTIF(L36:L44,AI12) -> 0 | AK12: =AJ12/(AL4-AJ14) -> 0 | AL12: =IF(AK12=0,0,(AK12*((LOG(AK12))/LOG(2)))) -> 0 | AN12: =N12 -> 212 | AO12: =COUNTIF(L45:L54,AN12) -> 0 | AP12: =AO12/(AQ4-AO14) -> 0 | AQ12: =IF(AP12=0,0,(AP12*((LOG(AP12))/LOG(2)))) -> 0 | AS12: =N12 -> 212 | AT12: =COUNTIF(L55:L63,AS12) -> 0 | AU12: =AT12/(AV4-AT14) -> 0 | AV12: =IF(AU12=0,0,(AU12*((LOG(AU12))/LOG(2)))) -> 0
A13: 12 | B13: 842 | C13: 14 | D13: 847 | E13: 23 | F13: 854 | K13: 0 | L13: 112 | N13: 221 | O13: =COUNTIF($L$7:$L$500,N13) -> 2 | P13: =O13/$Q$4 -> 0.0350877193 | Q13: =IF(P13=0,0,(P13*((LOG(P13))/LOG(2)))) -> -0.1695750882 | T13: =N13 -> 221 | U13: =COUNTIF(L7:L16,T13) -> 0 | V13: =U13/(W4-U14) -> 0 | W13: =IF(V13=0,0,(V13*((LOG(V13))/LOG(2)))) -> 0 | Y13: =N13 -> 221 | Z13: =COUNTIF(L17:L25,Y13) -> 0 | AA13: =Z13/(AB4-Z14) -> 0 | AB13: =IF(AA13=0,0,(AA13*((LOG(AA13))/LOG(2)))) -> 0 | AD13: =N13 -> 221 | AE13: =COUNTIF(L26:L35,AD13) -> 0 | AF13: =AE13/(AG4-AE14) -> 0 | AG13: =IF(AF13=0,0,(AF13*((LOG(AF13))/LOG(2)))) -> 0 | AI13: =N13 -> 221 | AJ13: =COUNTIF(L36:L44,AI13) -> 1 | AK13: =AJ13/(AL4-AJ14) -> 0.3333333333 | AL13: =IF(AK13=0,0,(AK13*((LOG(AK13))/LOG(2)))) -> -0.5283208336 | AN13: =N13 -> 221 | AO13: =COUNTIF(L45:L54,AN13) -> 0 | AP13: =AO13/(AQ4-AO14) -> 0 | AQ13: =IF(AP13=0,0,(AP13*((LOG(AP13))/LOG(2)))) -> 0 | AS13: =N13 -> 221 | AT13: =COUNTIF(L55:L63,AS13) -> 1 | AU13: =AT13/(AV4-AT14) -> 0.3333333333 | AV13: =IF(AU13=0,0,(AU13*((LOG(AU13))/LOG(2)))) -> -0.5283208336
A14: 12 | B14: 954 | C14: 23 | D14: 960 | E14: 14 | F14: 970 | K14: 0 | L14: 121 | N14: 222 | O14: =COUNTIF($L$7:$L$500,N14) -> 40 | P14: =O14/$Q$4 -> 0.701754386 | Q14: =IF(P14=0,0,(P14*((LOG(P14))/LOG(2)))) -> -0.3585697679 | T14: =N14 -> 222 | U14: =COUNTIF(L7:L16,T14) -> 4 | Y14: =N14 -> 222 | Z14: =COUNTIF(L17:L25,Y14) -> 6 | AD14: =N14 -> 222 | AE14: =COUNTIF(L26:L35,AD14) -> 9 | AI14: =N14 -> 222 | AJ14: =COUNTIF(L36:L44,AI14) -> 6 | AN14: =N14 -> 222 | AO14: =COUNTIF(L45:L54,AN14) -> 9 | AS14: =N14 -> 222 | AT14: =COUNTIF(L55:L63,AS14) -> 6
A15: 21 | B15: 1066 | C15: 21 | D15: 1072 | E15: 21 | F15: 1077 | K15: 0 | L15: 222 | P15: =SUM(P7:P14) -> 1 | Q15: =-SUM(Q7:Q14) -> 1.44409464 | V15: =SUM(V7:V14) -> 1 | W15: =-SUM(W7:W14) -> 1.459147917 | AA15: =SUM(AA7:AA14) -> 1 | AB15: =-SUM(AB7:AB14) -> 0 | AF15: =SUM(AF7:AF14) -> 1 | AG15: =-SUM(AG7:AG14) -> 0 | AK15: =SUM(AK7:AK14) -> 1 | AL15: =-SUM(AL7:AL14) -> 1.584962501 | AP15: =SUM(AP7:AP14) -> 1 | AQ15: =-SUM(AQ7:AQ14) -> 0 | AU15: =SUM(AU7:AU14) -> 1 | AV15: =-SUM(AV7:AV14) -> 1.584962501
A16: 21 | B16: 1234 | C16: 21 | D16: 1245 | E16: 21 | F16: 1251 | K16: 0 | L16: 222 | P16: U= | Q16: =Q15/(LOG(Q4)/LOG(2)) -> 0.2475778965 | V16: U1= | W16: =W15/(LOG(W4)/LOG(2)) -> 0.4392472911 | AA16: U2= | AB16: =AB15/(LOG(AB4)/LOG(2)) -> 0 | AF16: U3= | AG16: =AG15/(LOG(AG4)/LOG(2)) -> 0 | AK16: U4= | AL16: =AL15/(LOG(AL4)/LOG(2)) -> 0.5 | AP16: U5= | AQ16: =AQ15/(LOG(AQ4)/LOG(2)) -> 0 | AU16: U6= | AV16: =AV15/(LOG(AV4)/LOG(2)) -> 0.5
A17: 12 | B17: 1409 | C17: 23 | D17: 1415 | E17: 23 | F17: 1420 | K17: 0 | L17: 122
A18: 21 | B18: 1518 | C18: 21 | D18: 1525 | E18: 21 | F18: 1531 | K18: 0 | L18: 222
A19: 12 | B19: 1698 | C19: 23 | D19: 1704 | E19: 23 | F19: 1715 | K19: 0 | L19: 122 | N19: Total Target Seq
A20: 21 | B20: 1810 | C20: 21 | D20: 1817 | E20: 21 | F20: 1827 | K20: 0 | L20: 222 | N20: =COUNTIF(L7:L63,G3) -> 40 | P20: 10 | Q20: 9 | R20: 10 | S20: 9 | T20: 10 | U20: 9
A21: 12 | B21: 1971 | C21: 23 | D21: 1979 | E21: 23 | F21: 1984 | K21: 0 | L21: 122 | P21: % of reinforcement given in 6 equal intervals based on number of trials
A22: 21 | B22: 2077 | C22: 21 | D22: 2083 | E22: 21 | F22: 2090 | K22: 0 | L22: 222 | P22: %_1 | Q22: %_2 | R22: %_3 | S22: %_4 | T22: %_5 | U22: %_6
A23: 21 | B23: 2310 | C23: 21 | D23: 2321 | E23: 21 | F23: 2328 | K23: 0 | L23: 222 | O23: target sequence | P23: =$G$3 -> 222 | Q23: =$G$3 -> 222 | R23: =$G$3 -> 222 | S23: =$G$3 -> 222 | T23: =$G$3 -> 222 | U23: =$G$3 -> 222
A24: 21 | B24: 2574 | C24: 21 | D24: 2578 | E24: 21 | F24: 2592 | K24: 0 | L24: 222 | O24: total reinforcement | P24: =U14 -> 4 | Q24: =Z14 -> 6 | R24: =AE14 -> 9 | S24: =AJ14 -> 6 | T24: =AO14 -> 9 | U24: =AT14 -> 6
A25: 21 | B25: 2778 | C25: 21 | D25: 2781 | E25: 21 | F25: 2793 | K25: 0 | L25: 222 | O25: % target
A26: 12 | B26: 3008 | C26: 23 | D26: 3015 | E26: 23 | F26: 3020 | K26: 0 | L26: 122 | O26: CCRF
A27: 21 | B27: 3115 | C27: 21 | D27: 3121 | E27: 21 | F27: 3132 | K27: 0 | L27: 222 | O27: % CCRf
A28: 21 | B28: 3256 | C28: 21 | D28: 3264 | E28: 21 | F28: 3269 | K28: 0 | L28: 222 | O28: average response rate | P28: =F16/P20 -> 125.1 | Q28: =(F25-F16)/Q20 -> 171.3333333 | R28: =(F35-F25)/R20 -> 184 | S28: =(F44-F35)/S20 -> 196.7777778 | T28: =(F54-F44)/T20 -> 164.8 | U28: =(F63-F54)/U20 -> 185
A29: 21 | B29: 3494 | C29: 21 | D29: 3498 | E29: 21 | F29: 3511 | K29: 0 | L29: 222
A30: 21 | B30: 3696 | C30: 21 | D30: 3705 | E30: 21 | F30: 3711 | K30: 0 | L30: 222
A31: 21 | B31: 3907 | C31: 21 | D31: 3919 | E31: 21 | F31: 3932 | K31: 0 | L31: 222
A32: 21 | B32: 4091 | C32: 21 | D32: 4095 | E32: 21 | F32: 4097 | K32: 0 | L32: 222
A33: 21 | B33: 4226 | C33: 21 | D33: 4248 | E33: 21 | F33: 4263 | K33: 0 | L33: 222
A34: 21 | B34: 4418 | C34: 21 | D34: 4427 | E34: 21 | F34: 4433 | K34: 0 | L34: 222
A35: 21 | B35: 4615 | C35: 21 | D35: 4626 | E35: 21 | F35: 4633 | K35: 0 | L35: 222
A36: 21 | B36: 4793 | C36: 21 | D36: 4804 | E36: 21 | F36: 4811 | K36: 0 | L36: 222
A37: 21 | B37: 4973 | C37: 21 | D37: 4980 | E37: 21 | F37: 4998 | K37: 0 | L37: 222
A38: 12 | B38: 5149 | C38: 23 | D38: 5156 | E38: 23 | F38: 5160 | K38: 0 | L38: 122
A39: 21 | B39: 5264 | C39: 21 | D39: 5273 | E39: 21 | F39: 5280 | K39: 0 | L39: 222
A40: 21 | B40: 5414 | C40: 21 | D40: 5420 | E40: 12 | F40: 5448 | K40: 0 | L40: 221
A41: 21 | B41: 5665 | C41: 21 | D41: 5669 | E41: 21 | F41: 5674 | K41: 0 | L41: 222
A42: 12 | B42: 6166 | C42: 14 | D42: 6174 | E42: 14 | F42: 6181 | K42: 0 | L42: 111
A43: 21 | B43: 6273 | C43: 21 | D43: 6280 | E43: 21 | F43: 6286 | K43: 0 | L43: 222
A44: 21 | B44: 6392 | C44: 21 | D44: 6395 | E44: 21 | F44: 6404 | K44: 0 | L44: 222
A45: 21 | B45: 6513 | C45: 21 | D45: 6515 | E45: 21 | F45: 6524 | K45: 0 | L45: 222
A46: 21 | B46: 6653 | C46: 21 | D46: 6668 | E46: 21 | F46: 6680 | K46: 0 | L46: 222
A47: 12 | B47: 6825 | C47: 23 | D47: 6837 | E47: 14 | F47: 6848 | K47: 0 | L47: 121
A48: 21 | B48: 6953 | C48: 21 | D48: 6961 | E48: 21 | F48: 6967 | K48: 0 | L48: 222
A49: 21 | B49: 7132 | C49: 21 | D49: 7135 | E49: 21 | F49: 7140 | K49: 0 | L49: 222
A50: 21 | B50: 7299 | C50: 21 | D50: 7303 | E50: 21 | F50: 7309 | K50: 0 | L50: 222
A51: 21 | B51: 7449 | C51: 21 | D51: 7452 | E51: 21 | F51: 7456 | K51: 0 | L51: 222
A52: 21 | B52: 7607 | C52: 21 | D52: 7612 | E52: 21 | F52: 7628 | K52: 0 | L52: 222
A53: 21 | B53: 7882 | C53: 21 | D53: 7890 | E53: 21 | F53: 7895 | K53: 0 | L53: 222
A54: 21 | B54: 8039 | C54: 21 | D54: 8045 | E54: 21 | F54: 8052 | K54: 0 | L54: 222
A55: 21 | B55: 8302 | C55: 21 | D55: 8308 | E55: 21 | F55: 8316 | K55: 0 | L55: 222
A56: 21 | B56: 8526 | C56: 21 | D56: 8533 | E56: 21 | F56: 8539 | K56: 0 | L56: 222
A57: 12 | B57: 8835 | C57: 23 | D57: 8846 | E57: 23 | F57: 8855 | K57: 0 | L57: 122
A58: 21 | B58: 8953 | C58: 21 | D58: 8961 | E58: 12 | F58: 8975 | K58: 0 | L58: 221
A59: 12 | B59: 9078 | C59: 23 | D59: 9086 | E59: 14 | F59: 9103 | K59: 0 | L59: 121
A60: 21 | B60: 9202 | C60: 21 | D60: 9208 | E60: 21 | F60: 9217 | K60: 0 | L60: 222
A61: 21 | B61: 9346 | C61: 21 | D61: 9358 | E61: 21 | F61: 9364 | K61: 0 | L61: 222
A62: 21 | B62: 9556 | C62: 21 | D62: 9564 | E62: 21 | F62: 9571 | K62: 0 | L62: 222
A63: 21 | B63: 9704 | C63: 21 | D63: 9710 | E63: 21 | F63: 9717 | K63: 1 | L63: 222

Sheet !M323A0D.UST
A1: Report for:!M323A0D.UST
A2: Date: | B2: <date>
A3: Hen: | B3: <hen> | F3: Correct Sequence | G3: =Start!J2 -> 222 | P3: Total Sequences in Data | Q3: =4994-COUNTBLANK(L7:L5000) -> 42 | V3: Total Sequences in Block Data | W3: =COUNTA(L7:L13) -> 7 | AA3: Total Sequences in Block Data | AB3: =COUNTA(L14:L20) -> 7 | AF3: Total Sequences in Block Data | AG3: =COUNTA(L21:L27) -> 7 | AK3: Total Sequences in Block Data | AL3: =COUNTA(L28:L34) -> 7 | AP3: Total Sequences in Block Data | AQ3: =COUNTA(L35:L41) -> 7 | AU3: Total Sequences in Block Data | AV3: =COUNTA(L42:L48) -> 7
P4: Total Sequences in Summary | Q4: =SUM(O7:O14) -> 42 | V4: Total Sequences in Block Summary | W4: =SUM(U7:U14) -> 7 | AA4: Total Sequences in Block Summary | AB4: =SUM(Z7:Z14) -> 7 | AF4: Total Sequences in Block Summary | AG4: =SUM(AE7:AE14) -> 7 | AK4: Total Sequences in Block Summary | AL4: =SUM(AJ7:AJ14) -> 7 | AP4: Total Sequences in Block Summary | AQ4: =SUM(AO7:AO14) -> 7 | AU4: Total Sequences in Block Summary | AV4: =SUM(AT7:AT14) -> 7
T5: Block 1 | Y5: Block 2 | AD5: Block 3 | AI5: Block 4 | AN5: Block 5 | AS5: Block 6
A6: Sequence Component 1 | B6: Time 1 | C6: Sequence Component 2 | D6: Time 2 | E6: Sequence Component 3 | F6: Time 3 | G6: Sequence Component 4 | H6: Time 4 | I6: Sequence Component 5 | J6: Time 5 | K6: Correct? 0=No 1=Yes | L6: Sequence | N6: Frequency | P6: Relative Frequency | Q6: Variability | T6: Frequency | V6: Relative Frequency | W6: Variability | Y6: Frequency | AA6: Relative Frequency | AB6: Variability | AD6: Frequency | AF6: Relative Frequency | AG6: Variability | AI6: Frequency | AK6: Relative Frequency | AL6: Variability | AN6: Frequency | AP6: Relative Frequency | AQ6: Variability | AS6: Frequency | AU6: Relative Frequency | AV6: Variability
A7: 21 | B7: 17 | C7: 21 | D7: 23 | E7: 21 | F7: 29 | K7: 0 | L7: 222 | N7: 111 | O7: =COUNTIF($L$7:$L$500,N7) -> 0 | P7: =O7/$Q$4 -> 0 | Q7: =IF(P7=0,0,(P7*((LOG(P7))/LOG(2)))) -> 0 | T7: =N7 -> 111 | U7: =COUNTIF(L7:L13,T7) -> 0 | V7: =U7/(W4-U14) ->  | W7: =IF(V7=0,0,(V7*((LOG(V7))/LOG(2)))) ->  | Y7: =N7 -> 111 | Z7: =COUNTIF(L14:L20,Y7) -> 0 | AA7: =Z7/(AB4-Z14) -> 0 | AB7: =IF(AA7=0,0,(AA7*((LOG(AA7))/LOG(2)))) -> 0 | AD7: =N7 -> 111 | AE7: =COUNTIF(L21:L27,AD7) -> 0 | AF7: =AE7/(AG4-AE14) ->  | AG7: =IF(AF7=0,0,(AF7*((LOG(AF7))/LOG(2)))) ->  | AI7: =N7 -> 111 | AJ7: =COUNTIF(L28:L34,AI7) -> 0 | AK7: =AJ7/(AL4-AJ14) -> 0 | AL7: =IF(AK7=0,0,(AK7*((LOG(AK7))/LOG(2)))) -> 0 | AN7: =N7 -> 111 | AO7: =COUNTIF(L35:L41,AN7) -> 0 | AP7: =AO7/(AQ4-AO14) ->  | AQ7: =IF(AP7=0,0,(AP7*((LOG(AP7))/LOG(2)))) ->  | AS7: =N7 -> 111 | AT7: =COUNTIF(L42:L48,AS7) -> 0 | AU7: =AT7/(AV4-AT14) ->  | AV7: =IF(AU7=0,0,(AU7*((LOG(AU7))/LOG(2)))) -> 
A8: 21 | B8: 166 | C8: 21 | D8: 168 | E8: 21 | F8: 180 | K8: 0 | L8: 222 | N8: 112 | O8: =COUNTIF($L$7:$L$500,N8) -> 0 | P8: =O8/$Q$4 -> 0 | Q8: =IF(P8=0,0,(P8*((LOG(P8))/LOG(2)))) -> 0 | T8: =N8 -> 112 | U8: =COUNTIF(L7:L13,T8) -> 0 | V8: =U8/(W4-U14) ->  | W8: =IF(V8=0,0,(V8*((LOG(V8))/LOG(2)))) ->  | Y8: =N8 -> 112 | Z8: =COUNTIF(L14:L20,Y8) -> 0 | AA8: =Z8/(AB4-Z14) -> 0 | AB8: =IF(AA8=0,0,(AA8*((LOG(AA8))/LOG(2)))) -> 0 | AD8: =N8 -> 112 | AE8: =COUNTIF(L21:L27,AD8) -> 0 | AF8: =AE8/(AG4-AE14) ->  | AG8: =IF(AF8=0,0,(AF8*((LOG(AF8))/LOG(2)))) ->  | AI8: =N8 -> 112 | AJ8: =COUNTIF(L28:L34,AI8) -> 0 | AK8: =AJ8/(AL4-AJ14) -> 0 | AL8: =IF(AK8=0,0,(AK8*((LOG(AK8))/LOG(2)))) -> 0 | AN8: =N8 -> 112 | AO8: =COUNTIF(L35:L41,AN8) -> 0 | AP8: =AO8/(AQ4-AO14) ->  | AQ8: =IF(AP8=0,0,(AP8*((LOG(AP8))/LOG(2)))) ->  | AS8: =N8 -> 112 | AT8: =COUNTIF(L42:L48,AS8) -> 0 | AU8: =AT8/(AV4-AT14) ->  | AV8: =IF(AU8=0,0,(AU8*((LOG(AU8))/LOG(2)))) -> 
A9: 21 | B9: 290 | C9: 21 | D9: 295 | E9: 21 | F9: 303 | K9: 0 | L9: 222 | N9: 121 | O9: =COUNTIF($L$7:$L$500,N9) -> 1 | P9: =O9/$Q$4 -> 0.02380952381 | Q9: =IF(P9=0,0,(P9*((LOG(P9))/LOG(2)))) -> -0.1283885101 | T9: =N9 -> 121 | U9: =COUNTIF(L7:L13,T9) -> 0 | V9: =U9/(W4-U14) ->  | W9: =IF(V9=0,0,(V9*((LOG(V9))/LOG(2)))) ->  | Y9: =N9 -> 121 | Z9: =COUNTIF(L14:L20,Y9) -> 1 | AA9: =Z9/(AB4-Z14) -> 1 | AB9: =IF(AA9=0,0,(AA9*((LOG(AA9))/LOG(2)))) -> 0 | AD9: =N9 -> 121 | AE9: =COUNTIF(L21:L27,AD9) -> 0 | AF9: =AE9/(AG4-AE14) ->  | AG9: =IF(AF9=0,0,(AF9*((LOG(AF9))/LOG(2)))) ->  | AI9: =N9 -> 121 | AJ9: =COUNTIF(L28:L34,AI9) -> 0 | AK9: =AJ9/(AL4-AJ14) -> 0 | AL9: =IF(AK9=0,0,(AK9*((LOG(AK9))/LOG(2)))) -> 0 | AN9: =N9 -> 121 | AO9: =COUNTIF(L35:L41,AN9) -> 0 | AP9: =AO9/(AQ4-AO14) ->  | AQ9: =IF(AP9=0,0,(AP9*((LOG(AP9))/LOG(2)))) ->  | AS9: =N9 -> 121 | AT9: =COUNTIF(L42:L48,AS9) -> 0 | AU9: =AT9/(AV4-AT14) ->  | AV9: =IF(AU9=0,0,(AU9*((LOG(AU9))/LOG(2)))) -> 
A10: 21 | B10: 425 | C10: 21 | D10: 436 | E10: 21 | F10: 443 | K10: 0 | L10: 222 | N10: 122 | O10: =COUNTIF($L$7:$L$500,N10) -> 0 | P10: =O10/$Q$4 -> 0 | Q10: =IF(P10=0,0,(P10*((LOG(P10))/LOG(2)))) -> 0 | T10: =N10 -> 122 | U10: =COUNTIF(L7:L13,T10) -> 0 | V10: =U10/(W4-U14) ->  | W10: =IF(V10=0,0,(V10*((LOG(V10))/LOG(2)))) ->  | Y10: =N10 -> 122 | Z10: =COUNTIF(L14:L20,Y10) -> 0 | AA10: =Z10/(AB4-Z14) -> 0 | AB10: =IF(AA10=0,0,(AA10*((LOG(AA10))/LOG(2)))) -> 0 | AD10: =N10 -> 122 | AE10: =COUNTIF(L21:L27,AD10) -> 0 | AF10: =AE10/(AG4-AE14) ->  | AG10: =IF(AF10=0,0,(AF10*((LOG(AF10))/LOG(2)))) ->  | AI10: =N10 -> 122 | AJ10: =COUNTIF(L28:L34,AI10) -> 0 | AK10: =AJ10/(AL4-AJ14) -> 0 | AL10: =IF(AK10=0,0,(AK10*((LOG(AK10))/LOG(2)))) -> 0 | AN10: =N10 -> 122 | AO10: =COUNTIF(L35:L41,AN10) -> 0 | AP10: =AO10/(AQ4-AO14) ->  | AQ10: =IF(AP10=0,0,(AP10*((LOG(AP10))/LOG(2)))) ->  | AS10: =N10 -> 122 | AT10: =COUNTIF(L42:L48,AS10) -> 0 | AU10: =AT10/(AV4-AT14) ->  | AV10: =IF(AU10=0,0,(AU10*((LOG(AU10))/LOG(2)))) -> 
A11: 21 | B11: 561 | C11: 21 | D11: 571 | E11: 21 | F11: 577 | K11: 0 | L11: 222 | N11: 211 | O11: =COUNTIF($L$7:$L$500,N11) -> 0 | P11: =O11/$Q$4 -> 0 | Q11: =IF(P11=0,0,(P11*((LOG(P11))/LOG(2)))) -> 0 | T11: =N11 -> 211 | U11: =COUNTIF(L7:L13,T11) -> 0 | V11: =U11/(W4-U14) ->  | W11: =IF(V11=0,0,(V11*((LOG(V11))/LOG(2)))) ->  | Y11: =N11 -> 211 | Z11: =COUNTIF(L14:L20,Y11) -> 0 | AA11: =Z11/(AB4-Z14) -> 0 | AB11: =IF(AA11=0,0,(AA11*((LOG(AA11))/LOG(2)))) -> 0 | AD11: =N11 -> 211 | AE11: =COUNTIF(L21:L27,AD11) -> 0 | AF11: =AE11/(AG4-AE14) ->  | AG11: =IF(AF11=0,0,(AF11*((LOG(AF11))/LOG(2)))) ->  | AI11: =N11 -> 211 | AJ11: =COUNTIF(L28:L34,AI11) -> 0 | AK11: =AJ11/(AL4-AJ14) -> 0 | AL11: =IF(AK11=0,0,(AK11*((LOG(AK11))/LOG(2)))) -> 0 | AN11: =N11 -> 211 | AO11: =COUNTIF(L35:L41,AN11) -> 0 | AP11: =AO11/(AQ4-AO14) ->  | AQ11: =IF(AP11=0,0,(AP11*((LOG(AP11))/LOG(2)))) ->  | AS11: =N11 -> 211 | AT11: =COUNTIF(L42:L48,AS11) -> 0 | AU11: =AT11/(AV4-AT14) ->  | AV11: =IF(AU11=0,0,(AU11*((LOG(AU11))/LOG(2)))) -> 
A12: 21 | B12: 715 | C12: 21 | D12: 722 | E12: 21 | F12: 729 | K12: 0 | L12: 222 | N12: 212 | O12: =COUNTIF($L$7:$L$500,N12) -> 1 | P12: =O12/$Q$4 -> 0.02380952381 | Q12: =IF(P12=0,0,(P12*((LOG(P12))/LOG(2)))) -> -0.1283885101 | T12: =N12 -> 212 | U12: =COUNTIF(L7:L13,T12) -> 0 | V12: =U12/(W4-U14) ->  | W12: =IF(V12=0,0,(V12*((LOG(V12))/LOG(2)))) ->  | Y12: =N12 -> 212 | Z12: =COUNTIF(L14:L20,Y12) -> 0 | AA12: =Z12/(AB4-Z14) -> 0 | AB12: =IF(AA12=0,0,(AA12*((LOG(AA12))/LOG(2)))) -> 0 | AD12: =N12 -> 212 | AE12: =COUNTIF(L21:L27,AD12) -> 0 | AF12: =AE12/(AG4-AE14) ->  | AG12: =IF(AF12=0,0,(AF12*((LOG(AF12))/LOG(2)))) ->  | AI12: =N12 -> 212 | AJ12: =COUNTIF(L28:L34,AI12) -> 1 | AK12: =AJ12/(AL4-AJ14) -> 1 | AL12: =IF(AK12=0,0,(AK12*((LOG(AK12))/LOG(2)))) -> 0 | AN12: =N12 -> 212 | AO12: =COUNTIF(L35:L41,AN12) -> 0 | AP12: =AO12/(AQ4-AO14) ->  | AQ12: =IF(AP12=0,0,(AP12*((LOG(AP12))/LOG(2)))) ->  | AS12: =N12 -> 212 | AT12: =COUNTIF(L42:L48,AS12) -> 0 | AU12: =AT12/(AV4-AT14) ->  | AV12: =IF(AU12=0,0,(AU12*((LOG(AU12))/LOG(2)))) -> 
A13: 21 | B13: 846 | C13: 21 | D13: 850 | E13: 21 | F13: 853 | K13: 0 | L13: 222 | N13: 221 | O13: =COUNTIF($L$7:$L$500,N13) -> 0 | P13: =O13/$Q$4 -> 0 | Q13: =IF(P13=0,0,(P13*((LOG(P13))/LOG(2)))) -> 0 | T13: =N13 -> 221 | U13: =COUNTIF(L7:L13,T13) -> 0 | V13: =U13/(W4-U14) ->  | W13: =IF(V13=0,0,(V13*((LOG(V13))/LOG(2)))) ->  | Y13: =N13 -> 221 | Z13: =COUNTIF(L14:L20,Y13) -> 0 | AA13: =Z13/(AB4-Z14) -> 0 | AB13: =IF(AA13=0,0,(AA13*((LOG(AA13))/LOG(2)))) -> 0 | AD13: =N13 -> 221 | AE13: =COUNTIF(L21:L27,AD13) -> 0 | AF13: =AE13/(AG4-AE14) ->  | AG13: =IF(AF13=0,0,(AF13*((LOG(AF13))/LOG(2)))) ->  | AI13: =N13 -> 221 | AJ13: =COUNTIF(L28:L34,AI13) -> 0 | AK13: =AJ13/(AL4-AJ14) -> 0 | AL13: =IF(AK13=0,0,(AK13*((LOG(AK13))/LOG(2)))) -> 0 | AN13: =N13 -> 221 | AO13: =COUNTIF(L35:L41,AN13) -> 0 | AP13: =AO13/(AQ4-AO14) ->  | AQ13: =IF(AP13=0,0,(AP13*((LOG(AP13))/LOG(2)))) ->  | AS13: =N13 -> 221 | AT13: =COUNTIF(L42:L48,AS13) -> 0 | AU13: =AT13/(AV4-AT14) ->  | AV13: =IF(AU13=0,0,(AU13*((LOG(AU13))/LOG(2)))) -> 
A14: 21 | B14: 949 | C14: 21 | D14: 953 | E14: 21 | F14: 963 | K14: 0 | L14: 222 | N14: 222 | O14: =COUNTIF($L$7:$L$500,N14) -> 40 | P14: =O14/$Q$4 -> 0.9523809524 | Q14: =IF(P14=0,0,(P14*((LOG(P14))/LOG(2)))) -> -0.06703745513 | T14: =N14 -> 222 | U14: =COUNTIF(L7:L13,T14) -> 7 | Y14: =N14 -> 222 | Z14: =COUNTIF(L14:L20,Y14) -> 6 | AD14: =N14 -> 222 | AE14: =COUNTIF(L21:L27,AD14) -> 7 | AI14: =N14 -> 222 | AJ14: =COUNTIF(L28:L34,AI14) -> 6 | AN14: =N14 -> 222 | AO14: =COUNTIF(L35:L41,AN14) -> 7 | AS14: =N14 -> 222 | AT14: =COUNTIF(L42:L48,AS14) -> 7
A15: 21 | B15: 1087 | C15: 21 | D15: 1092 | E15: 21 | F15: 1108 | K15: 0 | L15: 222 | P15: =SUM(P7:P14) -> 1 | Q15: =-SUM(Q7:Q14) -> 0.3238144753 | V15: =SUM(V7:V14) ->  | W15: =-SUM(W7:W14) ->  | AA15: =SUM(AA7:AA14) -> 1 | AB15: =-SUM(AB7:AB14) -> 0 | AF15: =SUM(AF7:AF14) ->  | AG15: =-SUM(AG7:AG14) ->  | AK15: =SUM(AK7:AK14) -> 1 | AL15: =-SUM(AL7:AL14) -> 0 | AP15: =SUM(AP7:AP14) ->  | AQ15: =-SUM(AQ7:AQ14) ->  | AU15: =SUM(AU7:AU14) ->  | AV15: =-SUM(AV7:AV14) -> 
A16: 21 | B16: 1308 | C16: 21 | D16: 1316 | E16: 21 | F16: 1329 | K16: 0 | L16: 222 | P16: U= | Q16: =Q15/(LOG(Q4)/LOG(2)) -> 0.06005107821 | V16: U1= | W16: =W15/(LOG(W4)/LOG(2)) ->  | AA16: U2= | AB16: =AB15/(LOG(AB4)/LOG(2)) -> 0 | AF16: U3= | AG16: =AG15/(LOG(AG4)/LOG(2)) ->  | AK16: U4= | AL16: =AL15/(LOG(AL4)/LOG(2)) -> 0 | AP16: U5= | AQ16: =AQ15/(LOG(AQ4)/LOG(2)) ->  | AU16: U6= | AV16: =AV15/(LOG(AV4)/LOG(2)) -> 
A17: 21 | B17: 1473 | C17: 21 | D17: 1486 | E17: 21 | F17: 1496 | K17: 0 | L17: 222
A18: 12 | B18: 1599 | C18: 23 | D18: 1612 | E18: 14 | F18: 1623 | K18: 0 | L18: 121
A19: 21 | B19: 1726 | C19: 21 | D19: 1731 | E19: 21 | F19: 1737 | K19: 0 | L19: 222 | N19: Total Target Seq
A20: 21 | B20: 1836 | C20: 21 | D20: 1848 | E20: 21 | F20: 1861 | K20: 0 | L20: 222 | N20: =COUNTIF(L7:L48,G3) -> 40 | P20: 7 | Q20: 7 | R20: 7 | S20: 7 | T20: 7 | U20: 7
A21: 21 | B21: 1981 | C21: 21 | D21: 1988 | E21: 21 | F21: 1993 | K21: 0 | L21: 222 | P21: % of reinforcement given in 6 equal intervals based on number of trials
A22: 21 | B22: 2095 | C22: 21 | D22: 2098 | E22: 21 | F22: 2105 | K22: 0 | L22: 222 | P22: %_1 | Q22: %_2 | R22: %_3 | S22: %_4 | T22: %_5 | U22: %_6
A23: 21 | B23: 2198 | C23: 21 | D23: 2204 | E23: 21 | F23: 2209 | K23: 0 | L23: 222 | O23: target sequence | P23: =$G$3 -> 222 | Q23: =$G$3 -> 222 | R23: =$G$3 -> 222 | S23: =$G$3 -> 222 | T23: =$G$3 -> 222 | U23: =$G$3 -> 222
A24: 21 | B24: 2366 | C24: 21 | D24: 2372 | E24: 21 | F24: 2387 | K24: 0 | L24: 222 | O24: total reinforcement | P24: =U14 -> 7 | Q24: =Z14 -> 6 | R24: =AE14 -> 7 | S24: =AJ14 -> 6 | T24: =AO14 -> 7 | U24: =AT14 -> 7
A25: 21 | B25: 2568 | C25: 21 | D25: 2574 | E25: 21 | F25: 2580 | K25: 0 | L25: 222 | O25: % target
A26: 21 | B26: 2728 | C26: 21 | D26: 2734 | E26: 21 | F26: 2740 | K26: 0 | L26: 222 | O26: CCRF
A27: 21 | B27: 2856 | C27: 21 | D27: 2861 | E27: 21 | F27: 2867 | K27: 0 | L27: 222 | O27: % CCRf
A28: 21 | B28: 2980 | C28: 21 | D28: 2985 | E28: 21 | F28: 2992 | K28: 0 | L28: 222 | O28: average response rate | P28: =F13/P20 -> 121.8571429 | Q28: =(F20-F13)/Q20 -> 144 | R28: =(F27-F20)/R20 -> 143.7142857 | S28: =(F34-F27)/S20 -> 141.7142857 | T28: =(F41-F34)/T20 -> 132.8571429 | U28: =(F48-F41)/U20 -> 128.5714286
A29: 21 | B29: 3100 | C29: 21 | D29: 3103 | E29: 21 | F29: 3111 | K29: 0 | L29: 222
A30: 21 | B30: 3212 | C30: 21 | D30: 3222 | E30: 21 | F30: 3230 | K30: 0 | L30: 222
A31: 21 | B31: 3341 | C31: 21 | D31: 3347 | E31: 21 | F31: 3353 | K31: 0 | L31: 222
A32: 21 | B32: 3477 | C32: 21 | D32: 3483 | E32: 21 | F32: 3496 | K32: 0 | L32: 222
A33: 21 | B33: 3709 | C33: 12 | D33: 3725 | E33: 23 | F33: 3741 | K33: 0 | L33: 212
A34: 21 | B34: 3847 | C34: 21 | D34: 3854 | E34: 21 | F34: 3859 | K34: 0 | L34: 222
A35: 21 | B35: 3950 | C35: 21 | D35: 3958 | E35: 21 | F35: 3964 | K35: 0 | L35: 222
A36: 21 | B36: 4060 | C36: 21 | D36: 4067 | E36: 21 | F36: 4074 | K36: 0 | L36: 222
A37: 21 | B37: 4251 | C37: 21 | D37: 4258 | E37: 21 | F37: 4265 | K37: 0 | L37: 222
A38: 21 | B38: 4356 | C38: 21 | D38: 4364 | E38: 21 | F38: 4374 | K38: 0 | L38: 222
A39: 21 | B39: 4490 | C39: 21 | D39: 4509 | E39: 21 | F39: 4528 | K39: 0 | L39: 222
A40: 21 | B40: 4628 | C40: 21 | D40: 4634 | E40: 21 | F40: 4636 | K40: 0 | L40: 222
A41: 21 | B41: 4783 | C41: 21 | D41: 4788 | E41: 21 | F41: 4789 | K41: 0 | L41: 222
A42: 21 | B42: 4894 | C42: 21 | D42: 4901 | E42: 21 | F42: 4907 | K42: 0 | L42: 222
A43: 21 | B43: 5003 | C43: 21 | D43: 5010 | E43: 21 | F43: 5023 | K43: 0 | L43: 222
A44: 21 | B44: 5141 | C44: 21 | D44: 5148 | E44: 21 | F44: 5155 | K44: 0 | L44: 222
A45: 21 | B45: 5308 | C45: 21 | D45: 5314 | E45: 21 | F45: 5319 | K45: 0 | L45: 222
A46: 21 | B46: 5420 | C46: 21 | D46: 5426 | E46: 21 | F46: 5431 | K46: 0 | L46: 222
A47: 21 | B47: 5551 | C47: 21 | D47: 5558 | E47: 21 | F47: 5564 | K47: 0 | L47: 222
A48: 21 | B48: 5677 | C48: 21 | D48: 5683 | E48: 21 | F48: 5689 | K48: 1 | L48: 222

Sheet !M324B5D.UST
A1: Report for:!M324B5D.UST
A2: Date: | B2: <date>
A3: Hen: | B3: <hen> | F3: Correct Sequence | G3: =Start!J2 -> 222 | P3: Total Sequences in Data | Q3: =4994-COUNTBLANK(L7:L5000) -> 43 | V3: Total Sequences in Block Data | W3: =COUNTA(L7:L13) -> 7 | AA3: Total Sequences in Block Data | AB3: =COUNTA(L14:L20) -> 7 | AF3: Total Sequences in Block Data | AG3: =COUNTA(L21:L28) -> 8 | AK3: Total Sequences in Block Data | AL3: =COUNTA(L29:L35) -> 7 | AP3: Total Sequences in Block Data | AQ3: =COUNTA(L36:L42) -> 7 | AU3: Total Sequences in Block Data | AV3: =COUNTA(L43:L49) -> 7
P4: Total Sequences in Summary | Q4: =SUM(O7:O14) -> 43 | V4: Total Sequences in Block Summary | W4: =SUM(U7:U14) -> 7 | AA4: Total Sequences in Block Summary | AB4: =SUM(Z7:Z14) -> 7 | AF4: Total Sequences in Block Summary | AG4: =SUM(AE7:AE14) -> 8 | AK4: Total Sequences in Block Summary | AL4: =SUM(AJ7:AJ14) -> 7 | AP4: Total Sequences in Block Summary | AQ4: =SUM(AO7:AO14) -> 7 | AU4: Total Sequences in Block Summary | AV4: =SUM(AT7:AT14) -> 7
T5: Block 1 | Y5: Block 2 | AD5: Block 3 | AI5: Block 4 | AN5: Block 5 | AS5: Block 6
A6: Sequence Component 1 | B6: Time 1 | C6: Sequence Component 2 | D6: Time 2 | E6: Sequence Component 3 | F6: Time 3 | G6: Sequence Component 4 | H6: Time 4 | I6: Sequence Component 5 | J6: Time 5 | K6: Correct? 0=No 1=Yes | L6: Sequence | N6: Frequency | P6: Relative Frequency | Q6: Variability | T6: Frequency | V6: Relative Frequency | W6: Variability | Y6: Frequency | AA6: Relative Frequency | AB6: Variability | AD6: Frequency | AF6: Relative Frequency | AG6: Variability | AI6: Frequency | AK6: Relative Frequency | AL6: Variability | AN6: Frequency | AP6: Relative Frequency | AQ6: Variability | AS6: Frequency | AU6: Relative Frequency | AV6: Variability
A7: 21 | B7: 128 | C7: 21 | D7: 133 | E7: 21 | F7: 140 | K7: 0 | L7: 222 | N7: 111 | O7: =COUNTIF($L$7:$L$500,N7) -> 0 | P7: =O7/$Q$4 -> 0 | Q7: =IF(P7=0,0,(P7*((LOG(P7))/LOG(2)))) -> 0 | T7: =N7 -> 111 | U7: =COUNTIF(L7:L13,T7) -> 0 | V7: =U7/(W4-U14) ->  | W7: =IF(V7=0,0,(V7*((LOG(V7))/LOG(2)))) ->  | Y7: =N7 -> 111 | Z7: =COUNTIF(L14:L20,Y7) -> 0 | AA7: =Z7/(AB4-Z14) ->  | AB7: =IF(AA7=0,0,(AA7*((LOG(AA7))/LOG(2)))) ->  | AD7: =N7 -> 111 | AE7: =COUNTIF(L21:L28,AD7) -> 0 | AF7: =AE7/(AG4-AE14) -> 0 | AG7: =IF(AF7=0,0,(AF7*((LOG(AF7))/LOG(2)))) -> 0 | AI7: =N7 -> 111 | AJ7: =COUNTIF(L29:L35,AI7) -> 0 | AK7: =AJ7/(AL4-AJ14) -> 0 | AL7: =IF(AK7=0,0,(AK7*((LOG(AK7))/LOG(2)))) -> 0 | AN7: =N7 -> 111 | AO7: =COUNTIF(L36:L42,AN7) -> 0 | AP7: =AO7/(AQ4-AO14) ->  | AQ7: =IF(AP7=0,0,(AP7*((LOG(AP7))/LOG(2)))) ->  | AS7: =N7 -> 111 | AT7: =COUNTIF(L43:L49,AS7) -> 0 | AU7: =AT7/(AV4-AT14) ->  | AV7: =IF(AU7=0,0,(AU7*((LOG(AU7))/LOG(2)))) -> 
A8: 21 | B8: 325 | C8: 21 | D8: 330 | E8: 21 | F8: 336 | K8: 0 | L8: 222 | N8: 112 | O8: =COUNTIF($L$7:$L$500,N8) -> 0 | P8: =O8/$Q$4 -> 0 | Q8: =IF(P8=0,0,(P8*((LOG(P8))/LOG(2)))) -> 0 | T8: =N8 -> 112 | U8: =COUNTIF(L7:L13,T8) -> 0 | V8: =U8/(W4-U14) ->  | W8: =IF(V8=0,0,(V8*((LOG(V8))/LOG(2)))) ->  | Y8: =N8 -> 112 | Z8: =COUNTIF(L14:L20,Y8) -> 0 | AA8: =Z8/(AB4-Z14) ->  | AB8: =IF(AA8=0,0,(AA8*((LOG(AA8))/LOG(2)))) ->  | AD8: =N8 -> 112 | AE8: =COUNTIF(L21:L28,AD8) -> 0 | AF8: =AE8/(AG4-AE14) -> 0 | AG8: =IF(AF8=0,0,(AF8*((LOG(AF8))/LOG(2)))) -> 0 | AI8: =N8 -> 112 | AJ8: =COUNTIF(L29:L35,AI8) -> 0 | AK8: =AJ8/(AL4-AJ14) -> 0 | AL8: =IF(AK8=0,0,(AK8*((LOG(AK8))/LOG(2)))) -> 0 | AN8: =N8 -> 112 | AO8: =COUNTIF(L36:L42,AN8) -> 0 | AP8: =AO8/(AQ4-AO14) ->  | AQ8: =IF(AP8=0,0,(AP8*((LOG(AP8))/LOG(2)))) ->  | AS8: =N8 -> 112 | AT8: =COUNTIF(L43:L49,AS8) -> 0 | AU8: =AT8/(AV4-AT14) ->  | AV8: =IF(AU8=0,0,(AU8*((LOG(AU8))/LOG(2)))) -> 
A9: 21 | B9: 494 | C9: 21 | D9: 513 | E9: 21 | F9: 524 | K9: 0 | L9: 222 | N9: 121 | O9: =COUNTIF($L$7:$L$500,N9) -> 1 | P9: =O9/$Q$4 -> 0.02325581395 | Q9: =IF(P9=0,0,(P9*((LOG(P9))/LOG(2)))) -> -0.1261922036 | T9: =N9 -> 121 | U9: =COUNTIF(L7:L13,T9) -> 0 | V9: =U9/(W4-U14) ->  | W9: =IF(V9=0,0,(V9*((LOG(V9))/LOG(2)))) ->  | Y9: =N9 -> 121 | Z9: =COUNTIF(L14:L20,Y9) -> 0 | AA9: =Z9/(AB4-Z14) ->  | AB9: =IF(AA9=0,0,(AA9*((LOG(AA9))/LOG(2)))) ->  | AD9: =N9 -> 121 | AE9: =COUNTIF(L21:L28,AD9) -> 0 | AF9: =AE9/(AG4-AE14) -> 0 | AG9: =IF(AF9=0,0,(AF9*((LOG(AF9))/LOG(2)))) -> 0 | AI9: =N9 -> 121 | AJ9: =COUNTIF(L29:L35,AI9) -> 1 | AK9: =AJ9/(AL4-AJ14) -> 0.5 | AL9: =IF(AK9=0,0,(AK9*((LOG(AK9))/LOG(2)))) -> -0.5 | AN9: =N9 -> 121 | AO9: =COUNTIF(L36:L42,AN9) -> 0 | AP9: =AO9/(AQ4-AO14) ->  | AQ9: =IF(AP9=0,0,(AP9*((LOG(AP9))/LOG(2)))) ->  | AS9: =N9 -> 121 | AT9: =COUNTIF(L43:L49,AS9) -> 0 | AU9: =AT9/(AV4-AT14) ->  | AV9: =IF(AU9=0,0,(AU9*((LOG(AU9))/LOG(2)))) -> 
A10: 21 | B10: 707 | C10: 21 | D10: 715 | E10: 21 | F10: 727 | K10: 0 | L10: 222 | N10: 122 | O10: =COUNTIF($L$7:$L$500,N10) -> 2 | P10: =O10/$Q$4 -> 0.04651162791 | Q10: =IF(P10=0,0,(P10*((LOG(P10))/LOG(2)))) -> -0.2058727793 | T10: =N10 -> 122 | U10: =COUNTIF(L7:L13,T10) -> 0 | V10: =U10/(W4-U14) ->  | W10: =IF(V10=0,0,(V10*((LOG(V10))/LOG(2)))) ->  | Y10: =N10 -> 122 | Z10: =COUNTIF(L14:L20,Y10) -> 0 | AA10: =Z10/(AB4-Z14) ->  | AB10: =IF(AA10=0,0,(AA10*((LOG(AA10))/LOG(2)))) ->  | AD10: =N10 -> 122 | AE10: =COUNTIF(L21:L28,AD10) -> 1 | AF10: =AE10/(AG4-AE14) -> 1 | AG10: =IF(AF10=0,0,(AF10*((LOG(AF10))/LOG(2)))) -> 0 | AI10: =N10 -> 122 | AJ10: =COUNTIF(L29:L35,AI10) -> 1 | AK10: =AJ10/(AL4-AJ14) -> 0.5 | AL10: =IF(AK10=0,0,(AK10*((LOG(AK10))/LOG(2)))) -> -0.5 | AN10: =N10 -> 122 | AO10: =COUNTIF(L36:L42,AN10) -> 0 | AP10: =AO10/(AQ4-AO14) ->  | AQ10: =IF(AP10=0,0,(AP10*((LOG(AP10))/LOG(2)))) ->  | AS10: =N10 -> 122 | AT10: =COUNTIF(L43:L49,AS10) -> 0 | AU10: =AT10/(AV4-AT14) ->  | AV10: =IF(AU10=0,0,(AU10*((LOG(AU10))/LOG(2)))) -> 
A11: 21 | B11: 941 | C11: 21 | D11: 947 | E11: 21 | F11: 960 | K11: 0 | L11: 222 | N11: 211 | O11: =COUNTIF($L$7:$L$500,N11) -> 0 | P11: =O11/$Q$4 -> 0 | Q11: =IF(P11=0,0,(P11*((LOG(P11))/LOG(2)))) -> 0 | T11: =N11 -> 211 | U11: =COUNTIF(L7:L13,T11) -> 0 | V11: =U11/(W4-U14) ->  | W11: =IF(V11=0,0,(V11*((LOG(V11))/LOG(2)))) ->  | Y11: =N11 -> 211 | Z11: =COUNTIF(L14:L20,Y11) -> 0 | AA11: =Z11/(AB4-Z14) ->  | AB11: =IF(AA11=0,0,(AA11*((LOG(AA11))/LOG(2)))) ->  | AD11: =N11 -> 211 | AE11: =COUNTIF(L21:L28,AD11) -> 0 | AF11: =AE11/(AG4-AE14) -> 0 | AG11: =IF(AF11=0,0,(AF11*((LOG(AF11))/LOG(2)))) -> 0 | AI11: =N11 -> 211 | AJ11: =COUNTIF(L29:L35,AI11) -> 0 | AK11: =AJ11/(AL4-AJ14) -> 0 | AL11: =IF(AK11=0,0,(AK11*((LOG(AK11))/LOG(2)))) -> 0 | AN11: =N11 -> 211 | AO11: =COUNTIF(L36:L42,AN11) -> 0 | AP11: =AO11/(AQ4-AO14) ->  | AQ11: =IF(AP11=0,0,(AP11*((LOG(AP11))/LOG(2)))) ->  | AS11: =N11 -> 211 | AT11: =COUNTIF(L43:L49,AS11) -> 0 | AU11: =AT11/(AV4-AT14) ->  | AV11: =IF(AU11=0,0,(AU11*((LOG(AU11))/LOG(2)))) -> 
A12: 21 | B12: 1299 | C12: 21 | D12: 1312 | E12: 21 | F12: 1345 | K12: 0 | L12: 222 | N12: 212 | O12: =COUNTIF($L$7:$L$500,N12) -> 0 | P12: =O12/$Q$4 -> 0 | Q12: =IF(P12=0,0,(P12*((LOG(P12))/LOG(2)))) -> 0 | T12: =N12 -> 212 | U12: =COUNTIF(L7:L13,T12) -> 0 | V12: =U12/(W4-U14) ->  | W12: =IF(V12=0,0,(V12*((LOG(V12))/LOG(2)))) ->  | Y12: =N12 -> 212 | Z12: =COUNTIF(L14:L20,Y12) -> 0 | AA12: =Z12/(AB4-Z14) ->  | AB12: =IF(AA12=0,0,(AA12*((LOG(AA12))/LOG(2)))) ->  | AD12: =N12 -> 212 | AE12: =COUNTIF(L21:L28,AD12) -> 0 | AF12: =AE12/(AG4-AE14) -> 0 | AG12: =IF(AF12=0,0,(AF12*((LOG(AF12))/LOG(2)))) -> 0 | AI12: =N12 -> 212 | AJ12: =COUNTIF(L29:L35,AI12) -> 0 | AK12: =AJ12/(AL4-AJ14) -> 0 | AL12: =IF(AK12=0,0,(AK12*((LOG(AK12))/LOG(2)))) -> 0 | AN12: =N12 -> 212 | AO12: =COUNTIF(L36:L42,AN12) -> 0 | AP12: =AO12/(AQ4-AO14) ->  | AQ12: =IF(AP12=0,0,(AP12*((LOG(AP12))/LOG(2)))) ->  | AS12: =N12 -> 212 | AT12: =COUNTIF(L43:L49,AS12) -> 0 | AU12: =AT12/(AV4-AT14) ->  | AV12: =IF(AU12=0,0,(AU12*((LOG(AU12))/LOG(2)))) -> 
A13: 21 | B13: 1707 | C13: 21 | D13: 1712 | E13: 21 | F13: 1720 | K13: 0 | L13: 222 | N13: 221 | O13: =COUNTIF($L$7:$L$500,N13) -> 0 | P13: =O13/$Q$4 -> 0 | Q13: =IF(P13=0,0,(P13*((LOG(P13))/LOG(2)))) -> 0 | T13: =N13 -> 221 | U13: =COUNTIF(L7:L13,T13) -> 0 | V13: =U13/(W4-U14) ->  | W13: =IF(V13=0,0,(V13*((LOG(V13))/LOG(2)))) ->  | Y13: =N13 -> 221 | Z13: =COUNTIF(L14:L20,Y13) -> 0 | AA13: =Z13/(AB4-Z14) ->  | AB13: =IF(AA13=0,0,(AA13*((LOG(AA13))/LOG(2)))) ->  | AD13: =N13 -> 221 | AE13: =COUNTIF(L21:L28,AD13) -> 0 | AF13: =AE13/(AG4-AE14) -> 0 | AG13: =IF(AF13=0,0,(AF13*((LOG(AF13))/LOG(2)))) -> 0 | AI13: =N13 -> 221 | AJ13: =COUNTIF(L29:L35,AI13) -> 0 | AK13: =AJ13/(AL4-AJ14) -> 0 | AL13: =IF(AK13=0,0,(AK13*((LOG(AK13))/LOG(2)))) -> 0 | AN13: =N13 -> 221 | AO13: =COUNTIF(L36:L42,AN13) -> 0 | AP13: =AO13/(AQ4-AO14) ->  | AQ13: =IF(AP13=0,0,(AP13*((LOG(AP13))/LOG(2)))) ->  | AS13: =N13 -> 221 | AT13: =COUNTIF(L43:L49,AS13) -> 0 | AU13: =AT13/(AV4-AT14) ->  | AV13: =IF(AU13=0,0,(AU13*((LOG(AU13))/LOG(2)))) -> 
A14: 21 | B14: 1896 | C14: 21 | D14: 1909 | E14: 21 | F14: 1923 | K14: 0 | L14: 222 | N14: 222 | O14: =COUNTIF($L$7:$L$500,N14) -> 40 | P14: =O14/$Q$4 -> 0.9302325581 | Q14: =IF(P14=0,0,(P14*((LOG(P14))/LOG(2)))) -> -0.09705735797 | T14: =N14 -> 222 | U14: =COUNTIF(L7:L13,T14) -> 7 | Y14: =N14 -> 222 | Z14: =COUNTIF(L14:L20,Y14) -> 7 | AD14: =N14 -> 222 | AE14: =COUNTIF(L21:L28,AD14) -> 7 | AI14: =N14 -> 222 | AJ14: =COUNTIF(L29:L35,AI14) -> 5 | AN14: =N14 -> 222 | AO14: =COUNTIF(L36:L42,AN14) -> 7 | AS14: =N14 -> 222 | AT14: =COUNTIF(L43:L49,AS14) -> 7
A15: 21 | B15: 2178 | C15: 21 | D15: 2190 | E15: 21 | F15: 2197 | K15: 0 | L15: 222 | P15: =SUM(P7:P14) -> 1 | Q15: =-SUM(Q7:Q14) -> 0.4291223409 | V15: =SUM(V7:V14) ->  | W15: =-SUM(W7:W14) ->  | AA15: =SUM(AA7:AA14) ->  | AB15: =-SUM(AB7:AB14) ->  | AF15: =SUM(AF7:AF14) -> 1 | AG15: =-SUM(AG7:AG14) -> 0 | AK15: =SUM(AK7:AK14) -> 1 | AL15: =-SUM(AL7:AL14) -> 1 | AP15: =SUM(AP7:AP14) ->  | AQ15: =-SUM(AQ7:AQ14) ->  | AU15: =SUM(AU7:AU14) ->  | AV15: =-SUM(AV7:AV14) -> 
A16: 21 | B16: 2415 | C16: 21 | D16: 2426 | E16: 21 | F16: 2432 | K16: 0 | L16: 222 | P16: U= | Q16: =Q15/(LOG(Q4)/LOG(2)) -> 0.07908245547 | V16: U1= | W16: =W15/(LOG(W4)/LOG(2)) ->  | AA16: U2= | AB16: =AB15/(LOG(AB4)/LOG(2)) ->  | AF16: U3= | AG16: =AG15/(LOG(AG4)/LOG(2)) -> 0 | AK16: U4= | AL16: =AL15/(LOG(AL4)/LOG(2)) -> 0.3562071871 | AP16: U5= | AQ16: =AQ15/(LOG(AQ4)/LOG(2)) ->  | AU16: U6= | AV16: =AV15/(LOG(AV4)/LOG(2)) -> 
A17: 21 | B17: 2990 | C17: 21 | D17: 2993 | E17: 21 | F17: 3000 | K17: 0 | L17: 222
A18: 21 | B18: 4188 | C18: 21 | D18: 4193 | E18: 21 | F18: 4199 | K18: 0 | L18: 222
A19: 21 | B19: 4345 | C19: 21 | D19: 4355 | E19: 21 | F19: 4372 | K19: 0 | L19: 222 | N19: Total Target Seq
A20: 21 | B20: 4586 | C20: 21 | D20: 4598 | E20: 21 | F20: 4610 | K20: 0 | L20: 222 | N20: =COUNTIF(L7:L49,G3) -> 40 | P20: 7 | Q20: 7 | R20: 8 | S20: 7 | T20: 7 | U20: 7
A21: 21 | B21: 4723 | C21: 21 | D21: 4727 | E21: 21 | F21: 4732 | K21: 0 | L21: 222 | P21: % of reinforcement given in 6 equal intervals based on number of trials
A22: 21 | B22: 5049 | C22: 21 | D22: 5055 | E22: 21 | F22: 5065 | K22: 0 | L22: 222 | P22: %_1 | Q22: %_2 | R22: %_3 | S22: %_4 | T22: %_5 | U22: %_6
A23: 21 | B23: 5853 | C23: 21 | D23: 5861 | E23: 21 | F23: 5868 | K23: 0 | L23: 222 | O23: target sequence | P23: =$G$3 -> 222 | Q23: =$G$3 -> 222 | R23: =$G$3 -> 222 | S23: =$G$3 -> 222 | T23: =$G$3 -> 222 | U23: =$G$3 -> 222
A24: 21 | B24: 6135 | C24: 21 | D24: 6520 | E24: 21 | F24: 6549 | K24: 0 | L24: 222 | O24: total reinforcement | P24: =U14 -> 7 | Q24: =Z14 -> 7 | R24: =AE14 -> 7 | S24: =AJ14 -> 5 | T24: =AO14 -> 7 | U24: =AT14 -> 7
A25: 21 | B25: 6856 | C25: 21 | D25: 6862 | E25: 21 | F25: 6867 | K25: 0 | L25: 222 | O25: % target
A26: 12 | B26: 7441 | C26: 23 | D26: 7454 | E26: 23 | F26: 7462 | K26: 0 | L26: 122 | O26: CCRF
A27: 21 | B27: 7561 | C27: 21 | D27: 7568 | E27: 21 | F27: 7577 | K27: 0 | L27: 222 | O27: % CCRf
A28: 21 | B28: 7895 | C28: 21 | D28: 7899 | E28: 21 | F28: 7911 | K28: 0 | L28: 222 | O28: average response rate | P28: =F13/P20 -> 245.7142857 | Q28: =(F20-F13)/Q20 -> 412.8571429 | R28: =(F28-F20)/R20 -> 412.625 | S28: =(F35-F28)/S20 -> 276 | T28: =(F42-F35)/T20 -> 283.7142857 | U28: =(F49-F42)/U20 -> 219
A29: 12 | B29: 8114 | C29: 23 | D29: 8123 | E29: 14 | F29: 8135 | K29: 0 | L29: 121
A30: 21 | B30: 8239 | C30: 21 | D30: 8244 | E30: 21 | F30: 8252 | K30: 0 | L30: 222
A31: 12 | B31: 8801 | C31: 23 | D31: 8813 | E31: 23 | F31: 8818 | K31: 0 | L31: 122
A32: 21 | B32: 8921 | C32: 21 | D32: 8932 | E32: 21 | F32: 8946 | K32: 0 | L32: 222
A33: 21 | B33: 9216 | C33: 21 | D33: 9227 | E33: 21 | F33: 9239 | K33: 0 | L33: 222
A34: 21 | B34: 9586 | C34: 21 | D34: 9591 | E34: 21 | F34: 9597 | K34: 0 | L34: 222
A35: 21 | B35: 9830 | C35: 21 | D35: 9837 | E35: 21 | F35: 9843 | K35: 0 | L35: 222
A36: 21 | B36: 10296 | C36: 21 | D36: 10301 | E36: 21 | F36: 10309 | K36: 0 | L36: 222
A37: 21 | B37: 10567 | C37: 21 | D37: 10574 | E37: 21 | F37: 10583 | K37: 0 | L37: 222
A38: 21 | B38: 10712 | C38: 21 | D38: 10719 | E38: 21 | F38: 10725 | K38: 0 | L38: 222
A39: 21 | B39: 10881 | C39: 21 | D39: 10885 | E39: 21 | F39: 10890 | K39: 0 | L39: 222
A40: 21 | B40: 11352 | C40: 21 | D40: 11361 | E40: 21 | F40: 11368 | K40: 0 | L40: 222
A41: 21 | B41: 11568 | C41: 21 | D41: 11574 | E41: 21 | F41: 11587 | K41: 0 | L41: 222
A42: 21 | B42: 11816 | C42: 21 | D42: 11822 | E42: 21 | F42: 11829 | K42: 0 | L42: 222
A43: 21 | B43: 11935 | C43: 21 | D43: 11939 | E43: 21 | F43: 11945 | K43: 0 | L43: 222
A44: 21 | B44: 12178 | C44: 21 | D44: 12183 | E44: 21 | F44: 12198 | K44: 0 | L44: 222
A45: 21 | B45: 12503 | C45: 21 | D45: 12506 | E45: 21 | F45: 12521 | K45: 0 | L45: 222
A46: 21 | B46: 12671 | C46: 21 | D46: 12677 | E46: 21 | F46: 12689 | K46: 0 | L46: 222
A47: 21 | B47: 12851 | C47: 21 | D47: 12857 | E47: 21 | F47: 12863 | K47: 0 | L47: 222
A48: 21 | B48: 13098 | C48: 21 | D48: 13104 | E48: 21 | F48: 13109 | K48: 0 | L48: 222
A49: 21 | B49: 13346 | C49: 21 | D49: 13355 | E49: 21 | F49: 13362 | K49: 1 | L49: 222

Sheet !M325B1D.UST
A1: Report for:!M325B1D.UST
A2: Date: | B2: <date>
A3: Hen: | B3: <hen> | F3: Correct Sequence | G3: =Start!J2 -> 222 | P3: Total Sequences in Data | Q3: =4994-COUNTBLANK(L7:L5000) -> 40 | V3: Total Sequences in Block Data | W3: =COUNTA(L7:L13) -> 7 | AA3: Total Sequences in Block Data | AB3: =COUNTA(L14:L19) -> 6 | AF3: Total Sequences in Block Data | AG3: =COUNTA(L20:L26) -> 7 | AK3: Total Sequences in Block Data | AL3: =COUNTA(L27:L33) -> 7 | AP3: Total Sequences in Block Data | AQ3: =COUNTA(L34:L39) -> 6 | AU3: Total Sequences in Block Data | AV3: =COUNTA(L40:L46) -> 7
P4: Total Sequences in Summary | Q4: =SUM(O7:O14) -> 40 | V4: Total Sequences in Block Summary | W4: =SUM(U7:U14) -> 7 | AA4: Total Sequences in Block Summary | AB4: =SUM(Z7:Z14) -> 6 | AF4: Total Sequences in Block Summary | AG4: =SUM(AE7:AE14) -> 7 | AK4: Total Sequences in Block Summary | AL4: =SUM(AJ7:AJ14) -> 7 | AP4: Total Sequences in Block Summary | AQ4: =SUM(AO7:AO14) -> 6 | AU4: Total Sequences in Block Summary | AV4: =SUM(AT7:AT14) -> 7
T5: Block 1 | Y5: Block 2 | AD5: Block 3 | AI5: Block 4 | AN5: Block 5 | AS5: Block 6
A6: Sequence Component 1 | B6: Time 1 | C6: Sequence Component 2 | D6: Time 2 | E6: Sequence Component 3 | F6: Time 3 | G6: Sequence Component 4 | H6: Time 4 | I6: Sequence Component 5 | J6: Time 5 | K6: Correct? 0=No 1=Yes | L6: Sequence | N6: Frequency | P6: Relative Frequency | Q6: Variability | T6: Frequency | V6: Relative Frequency | W6: Variability | Y6: Frequency | AA6: Relative Frequency | AB6: Variability | AD6: Frequency | AF6: Relative Frequency | AG6: Variability | AI6: Frequency | AK6: Relative Frequency | AL6: Variability | AN6: Frequency | AP6: Relative Frequency | AQ6: Variability | AS6: Frequency | AU6: Relative Frequency | AV6: Variability
A7: 21 | B7: 35 | C7: 21 | D7: 40 | E7: 21 | F7: 46 | K7: 0 | L7: 222 | N7: 111 | O7: =COUNTIF($L$7:$L$500,N7) -> 0 | P7: =O7/$Q$4 -> 0 | Q7: =IF(P7=0,0,(P7*((LOG(P7))/LOG(2)))) -> 0 | T7: =N7 -> 111 | U7: =COUNTIF(L7:L13,T7) -> 0 | V7: =U7/(W4-U14) ->  | W7: =IF(V7=0,0,(V7*((LOG(V7))/LOG(2)))) ->  | Y7: =N7 -> 111 | Z7: =COUNTIF(L14:L19,Y7) -> 0 | AA7: =Z7/(AB4-Z14) ->  | AB7: =IF(AA7=0,0,(AA7*((LOG(AA7))/LOG(2)))) ->  | AD7: =N7 -> 111 | AE7: =COUNTIF(L20:L26,AD7) -> 0 | AF7: =AE7/(AG4-AE14) ->  | AG7: =IF(AF7=0,0,(AF7*((LOG(AF7))/LOG(2)))) ->  | AI7: =N7 -> 111 | AJ7: =COUNTIF(L27:L33,AI7) -> 0 | AK7: =AJ7/(AL4-AJ14) ->  | AL7: =IF(AK7=0,0,(AK7*((LOG(AK7))/LOG(2)))) ->  | AN7: =N7 -> 111 | AO7: =COUNTIF(L34:L39,AN7) -> 0 | AP7: =AO7/(AQ4-AO14) ->  | AQ7: =IF(AP7=0,0,(AP7*((LOG(AP7))/LOG(2)))) ->  | AS7: =N7 -> 111 | AT7: =COUNTIF(L40:L46,AS7) -> 0 | AU7: =AT7/(AV4-AT14) ->  | AV7: =IF(AU7=0,0,(AU7*((LOG(AU7))/LOG(2)))) -> 
A8: 21 | B8: 185 | C8: 21 | D8: 191 | E8: 21 | F8: 196 | K8: 0 | L8: 222 | N8: 112 | O8: =COUNTIF($L$7:$L$500,N8) -> 0 | P8: =O8/$Q$4 -> 0 | Q8: =IF(P8=0,0,(P8*((LOG(P8))/LOG(2)))) -> 0 | T8: =N8 -> 112 | U8: =COUNTIF(L7:L13,T8) -> 0 | V8: =U8/(W4-U14) ->  | W8: =IF(V8=0,0,(V8*((LOG(V8))/LOG(2)))) ->  | Y8: =N8 -> 112 | Z8: =COUNTIF(L14:L19,Y8) -> 0 | AA8: =Z8/(AB4-Z14) ->  | AB8: =IF(AA8=0,0,(AA8*((LOG(AA8))/LOG(2)))) ->  | AD8: =N8 -> 112 | AE8: =COUNTIF(L20:L26,AD8) -> 0 | AF8: =AE8/(AG4-AE14) ->  | AG8: =IF(AF8=0,0,(AF8*((LOG(AF8))/LOG(2)))) ->  | AI8: =N8 -> 112 | AJ8: =COUNTIF(L27:L33,AI8) -> 0 | AK8: =AJ8/(AL4-AJ14) ->  | AL8: =IF(AK8=0,0,(AK8*((LOG(AK8))/LOG(2)))) ->  | AN8: =N8 -> 112 | AO8: =COUNTIF(L34:L39,AN8) -> 0 | AP8: =AO8/(AQ4-AO14) ->  | AQ8: =IF(AP8=0,0,(AP8*((LOG(AP8))/LOG(2)))) ->  | AS8: =N8 -> 112 | AT8: =COUNTIF(L40:L46,AS8) -> 0 | AU8: =AT8/(AV4-AT14) ->  | AV8: =IF(AU8=0,0,(AU8*((LOG(AU8))/LOG(2)))) -> 
A9: 21 | B9: 323 | C9: 21 | D9: 325 | E9: 21 | F9: 331 | K9: 0 | L9: 222 | N9: 121 | O9: =COUNTIF($L$7:$L$500,N9) -> 0 | P9: =O9/$Q$4 -> 0 | Q9: =IF(P9=0,0,(P9*((LOG(P9))/LOG(2)))) -> 0 | T9: =N9 -> 121 | U9: =COUNTIF(L7:L13,T9) -> 0 | V9: =U9/(W4-U14) ->  | W9: =IF(V9=0,0,(V9*((LOG(V9))/LOG(2)))) ->  | Y9: =N9 -> 121 | Z9: =COUNTIF(L14:L19,Y9) -> 0 | AA9: =Z9/(AB4-Z14) ->  | AB9: =IF(AA9=0,0,(AA9*((LOG(AA9))/LOG(2)))) ->  | AD9: =N9 -> 121 | AE9: =COUNTIF(L20:L26,AD9) -> 0 | AF9: =AE9/(AG4-AE14) ->  | AG9: =IF(AF9=0,0,(AF9*((LOG(AF9))/LOG(2)))) ->  | AI9: =N9 -> 121 | AJ9: =COUNTIF(L27:L33,AI9) -> 0 | AK9: =AJ9/(AL4-AJ14) ->  | AL9: =IF(AK9=0,0,(AK9*((LOG(AK9))/LOG(2)))) ->  | AN9: =N9 -> 121 | AO9: =COUNTIF(L34:L39,AN9) -> 0 | AP9: =AO9/(AQ4-AO14) ->  | AQ9: =IF(AP9=0,0,(AP9*((LOG(AP9))/LOG(2)))) ->  | AS9: =N9 -> 121 | AT9: =COUNTIF(L40:L46,AS9) -> 0 | AU9: =AT9/(AV4-AT14) ->  | AV9: =IF(AU9=0,0,(AU9*((LOG(AU9))/LOG(2)))) -> 
A10: 21 | B10: 447 | C10: 21 | D10: 450 | E10: 21 | F10: 457 | K10: 0 | L10: 222 | N10: 122 | O10: =COUNTIF($L$7:$L$500,N10) -> 0 | P10: =O10/$Q$4 -> 0 | Q10: =IF(P10=0,0,(P10*((LOG(P10))/LOG(2)))) -> 0 | T10: =N10 -> 122 | U10: =COUNTIF(L7:L13,T10) -> 0 | V10: =U10/(W4-U14) ->  | W10: =IF(V10=0,0,(V10*((LOG(V10))/LOG(2)))) ->  | Y10: =N10 -> 122 | Z10: =COUNTIF(L14:L19,Y10) -> 0 | AA10: =Z10/(AB4-Z14) ->  | AB10: =IF(AA10=0,0,(AA10*((LOG(AA10))/LOG(2)))) ->  | AD10: =N10 -> 122 | AE10: =COUNTIF(L20:L26,AD10) -> 0 | AF10: =AE10/(AG4-AE14) ->  | AG10: =IF(AF10=0,0,(AF10*((LOG(AF10))/LOG(2)))) ->  | AI10: =N10 -> 122 | AJ10: =COUNTIF(L27:L33,AI10) -> 0 | AK10: =AJ10/(AL4-AJ14) ->  | AL10: =IF(AK10=0,0,(AK10*((LOG(AK10))/LOG(2)))) ->  | AN10: =N10 -> 122 | AO10: =COUNTIF(L34:L39,AN10) -> 0 | AP10: =AO10/(AQ4-AO14) ->  | AQ10: =IF(AP10=0,0,(AP10*((LOG(AP10))/LOG(2)))) ->  | AS10: =N10 -> 122 | AT10: =COUNTIF(L40:L46,AS10) -> 0 | AU10: =AT10/(AV4-AT14) ->  | AV10: =IF(AU10=0,0,(AU10*((LOG(AU10))/LOG(2)))) -> 
A11: 21 | B11: 650 | C11: 21 | D11: 662 | E11: 21 | F11: 667 | K11: 0 | L11: 222 | N11: 211 | O11: =COUNTIF($L$7:$L$500,N11) -> 0 | P11: =O11/$Q$4 -> 0 | Q11: =IF(P11=0,0,(P11*((LOG(P11))/LOG(2)))) -> 0 | T11: =N11 -> 211 | U11: =COUNTIF(L7:L13,T11) -> 0 | V11: =U11/(W4-U14) ->  | W11: =IF(V11=0,0,(V11*((LOG(V11))/LOG(2)))) ->  | Y11: =N11 -> 211 | Z11: =COUNTIF(L14:L19,Y11) -> 0 | AA11: =Z11/(AB4-Z14) ->  | AB11: =IF(AA11=0,0,(AA11*((LOG(AA11))/LOG(2)))) ->  | AD11: =N11 -> 211 | AE11: =COUNTIF(L20:L26,AD11) -> 0 | AF11: =AE11/(AG4-AE14) ->  | AG11: =IF(AF11=0,0,(AF11*((LOG(AF11))/LOG(2)))) ->  | AI11: =N11 -> 211 | AJ11: =COUNTIF(L27:L33,AI11) -> 0 | AK11: =AJ11/(AL4-AJ14) ->  | AL11: =IF(AK11=0,0,(AK11*((LOG(AK11))/LOG(2)))) ->  | AN11: =N11 -> 211 | AO11: =COUNTIF(L34:L39,AN11) -> 0 | AP11: =AO11/(AQ4-AO14) ->  | AQ11: =IF(AP11=0,0,(AP11*((LOG(AP11))/LOG(2)))) ->  | AS11: =N11 -> 211 | AT11: =COUNTIF(L40:L46,AS11) -> 0 | AU11: =AT11/(AV4-AT14) ->  | AV11: =IF(AU11=0,0,(AU11*((LOG(AU11))/LOG(2)))) -> 
A12: 21 | B12: 801 | C12: 21 | D12: 802 | E12: 21 | F12: 808 | K12: 0 | L12: 222 | N12: 212 | O12: =COUNTIF($L$7:$L$500,N12) -> 0 | P12: =O12/$Q$4 -> 0 | Q12: =IF(P12=0,0,(P12*((LOG(P12))/LOG(2)))) -> 0 | T12: =N12 -> 212 | U12: =COUNTIF(L7:L13,T12) -> 0 | V12: =U12/(W4-U14) ->  | W12: =IF(V12=0,0,(V12*((LOG(V12))/LOG(2)))) ->  | Y12: =N12 -> 212 | Z12: =COUNTIF(L14:L19,Y12) -> 0 | AA12: =Z12/(AB4-Z14) ->  | AB12: =IF(AA12=0,0,(AA12*((LOG(AA12))/LOG(2)))) ->  | AD12: =N12 -> 212 | AE12: =COUNTIF(L20:L26,AD12) -> 0 | AF12: =AE12/(AG4-AE14) ->  | AG12: =IF(AF12=0,0,(AF12*((LOG(AF12))/LOG(2)))) ->  | AI12: =N12 -> 212 | AJ12: =COUNTIF(L27:L33,AI12) -> 0 | AK12: =AJ12/(AL4-AJ14) ->  | AL12: =IF(AK12=0,0,(AK12*((LOG(AK12))/LOG(2)))) ->  | AN12: =N12 -> 212 | AO12: =COUNTIF(L34:L39,AN12) -> 0 | AP12: =AO12/(AQ4-AO14) ->  | AQ12: =IF(AP12=0,0,(AP12*((LOG(AP12))/LOG(2)))) ->  | AS12: =N12 -> 212 | AT12: =COUNTIF(L40:L46,AS12) -> 0 | AU12: =AT12/(AV4-AT14) ->  | AV12: =IF(AU12=0,0,(AU12*((LOG(AU12))/LOG(2)))) -> 
A13: 21 | B13: 928 | C13: 21 | D13: 939 | E13: 21 | F13: 945 | K13: 0 | L13: 222 | N13: 221 | O13: =COUNTIF($L$7:$L$500,N13) -> 0 | P13: =O13/$Q$4 -> 0 | Q13: =IF(P13=0,0,(P13*((LOG(P13))/LOG(2)))) -> 0 | T13: =N13 -> 221 | U13: =COUNTIF(L7:L13,T13) -> 0 | V13: =U13/(W4-U14) ->  | W13: =IF(V13=0,0,(V13*((LOG(V13))/LOG(2)))) ->  | Y13: =N13 -> 221 | Z13: =COUNTIF(L14:L19,Y13) -> 0 | AA13: =Z13/(AB4-Z14) ->  | AB13: =IF(AA13=0,0,(AA13*((LOG(AA13))/LOG(2)))) ->  | AD13: =N13 -> 221 | AE13: =COUNTIF(L20:L26,AD13) -> 0 | AF13: =AE13/(AG4-AE14) ->  | AG13: =IF(AF13=0,0,(AF13*((LOG(AF13))/LOG(2)))) ->  | AI13: =N13 -> 221 | AJ13: =COUNTIF(L27:L33,AI13) -> 0 | AK13: =AJ13/(AL4-AJ14) ->  | AL13: =IF(AK13=0,0,(AK13*((LOG(AK13))/LOG(2)))) ->  | AN13: =N13 -> 221 | AO13: =COUNTIF(L34:L39,AN13) -> 0 | AP13: =AO13/(AQ4-AO14) ->  | AQ13: =IF(AP13=0,0,(AP13*((LOG(AP13))/LOG(2)))) ->  | AS13: =N13 -> 221 | AT13: =COUNTIF(L40:L46,AS13) -> 0 | AU13: =AT13/(AV4-AT14) ->  | AV13: =IF(AU13=0,0,(AU13*((LOG(AU13))/LOG(2)))) -> 
A14: 21 | B14: 1112 | C14: 21 | D14: 1117 | E14: 21 | F14: 1124 | K14: 0 | L14: 222 | N14: 222 | O14: =COUNTIF($L$7:$L$500,N14) -> 40 | P14: =O14/$Q$4 -> 1 | Q14: =IF(P14=0,0,(P14*((LOG(P14))/LOG(2)))) -> 0 | T14: =N14 -> 222 | U14: =COUNTIF(L7:L13,T14) -> 7 | Y14: =N14 -> 222 | Z14: =COUNTIF(L14:L19,Y14) -> 6 | AD14: =N14 -> 222 | AE14: =COUNTIF(L20:L26,AD14) -> 7 | AI14: =N14 -> 222 | AJ14: =COUNTIF(L27:L33,AI14) -> 7 | AN14: =N14 -> 222 | AO14: =COUNTIF(L34:L39,AN14) -> 6 | AS14: =N14 -> 222 | AT14: =COUNTIF(L40:L46,AS14) -> 7
A15: 21 | B15: 1241 | C15: 21 | D15: 1247 | E15: 21 | F15: 1254 | K15: 0 | L15: 222 | P15: =SUM(P7:P14) -> 1 | Q15: =-SUM(Q7:Q14) -> 0 | V15: =SUM(V7:V14) ->  | W15: =-SUM(W7:W14) ->  | AA15: =SUM(AA7:AA14) ->  | AB15: =-SUM(AB7:AB14) ->  | AF15: =SUM(AF7:AF14) ->  | AG15: =-SUM(AG7:AG14) ->  | AK15: =SUM(AK7:AK14) ->  | AL15: =-SUM(AL7:AL14) ->  | AP15: =SUM(AP7:AP14) ->  | AQ15: =-SUM(AQ7:AQ14) ->  | AU15: =SUM(AU7:AU14) ->  | AV15: =-SUM(AV7:AV14) -> 
A16: 21 | B16: 1398 | C16: 21 | D16: 1405 | E16: 21 | F16: 1411 | K16: 0 | L16: 222 | P16: U= | Q16: =Q15/(LOG(Q4)/LOG(2)) -> 0 | V16: U1= | W16: =W15/(LOG(W4)/LOG(2)) ->  | AA16: U2= | AB16: =AB15/(LOG(AB4)/LOG(2)) ->  | AF16: U3= | AG16: =AG15/(LOG(AG4)/LOG(2)) ->  | AK16: U4= | AL16: =AL15/(LOG(AL4)/LOG(2)) ->  | AP16: U5= | AQ16: =AQ15/(LOG(AQ4)/LOG(2)) ->  | AU16: U6= | AV16: =AV15/(LOG(AV4)/LOG(2)) -> 
A17: 21 | B17: 1609 | C17: 21 | D17: 1615 | E17: 21 | F17: 1624 | K17: 0 | L17: 222
A18: 21 | B18: 1834 | C18: 21 | D18: 1839 | E18: 21 | F18: 1846 | K18: 0 | L18: 222
A19: 21 | B19: 1987 | C19: 21 | D19: 1992 | E19: 21 | F19: 1995 | K19: 0 | L19: 222 | N19: Total Target Seq
A20: 21 | B20: 2166 | C20: 21 | D20: 2171 | E20: 21 | F20: 2177 | K20: 0 | L20: 222 | N20: =COUNTIF(L7:L46,G3) -> 40 | P20: 7 | Q20: 6 | R20: 7 | S20: 7 | T20: 6 | U20: 7
A21: 21 | B21: 2294 | C21: 21 | D21: 2300 | E21: 21 | F21: 2306 | K21: 0 | L21: 222 | P21: % of reinforcement given in 6 equal intervals based on number of trials
A22: 21 | B22: 2455 | C22: 21 | D22: 2460 | E22: 21 | F22: 2475 | K22: 0 | L22: 222 | P22: %_1 | Q22: %_2 | R22: %_3 | S22: %_4 | T22: %_5 | U22: %_6
A23: 21 | B23: 2581 | C23: 21 | D23: 2590 | E23: 21 | F23: 2602 | K23: 0 | L23: 222 | O23: target sequence | P23: =$G$3 -> 222 | Q23: =$G$3 -> 222 | R23: =$G$3 -> 222 | S23: =$G$3 -> 222 | T23: =$G$3 -> 222 | U23: =$G$3 -> 222
A24: 21 | B24: 2777 | C24: 21 | D24: 2782 | E24: 21 | F24: 2791 | K24: 0 | L24: 222 | O24: total reinforcement | P24: =U14 -> 7 | Q24: =Z14 -> 6 | R24: =AE14 -> 7 | S24: =AJ14 -> 7 | T24: =AO14 -> 6 | U24: =AT14 -> 7
A25: 21 | B25: 2931 | C25: 21 | D25: 2936 | E25: 21 | F25: 2943 | K25: 0 | L25: 222 | O25: % target
A26: 21 | B26: 3122 | C26: 21 | D26: 3130 | E26: 21 | F26: 3136 | K26: 0 | L26: 222 | O26: CCRF
A27: 21 | B27: 3456 | C27: 21 | D27: 3465 | E27: 21 | F27: 3471 | K27: 0 | L27: 222 | O27: % CCRf
A28: 21 | B28: 3604 | C28: 21 | D28: 3609 | E28: 21 | F28: 3615 | K28: 0 | L28: 222 | O28: average response rate | P28: =F13/P20 -> 135 | Q28: =(F19-F13)/Q20 -> 175 | R28: =(F26-F19)/R20 -> 163 | S28: =(F33-F26)/S20 -> 189.4285714 | T28: =(F39-F33)/T20 -> 169.5 | U28: =(F46-F39)/U20 -> 167.1428571
A29: 21 | B29: 3751 | C29: 21 | D29: 3754 | E29: 21 | F29: 3760 | K29: 0 | L29: 222
A30: 21 | B30: 3951 | C30: 21 | D30: 3953 | E30: 21 | F30: 3963 | K30: 0 | L30: 222
A31: 21 | B31: 4092 | C31: 21 | D31: 4099 | E31: 21 | F31: 4105 | K31: 0 | L31: 222
A32: 21 | B32: 4280 | C32: 21 | D32: 4286 | E32: 21 | F32: 4292 | K32: 0 | L32: 222
A33: 21 | B33: 4449 | C33: 21 | D33: 4456 | E33: 21 | F33: 4462 | K33: 0 | L33: 222
A34: 21 | B34: 4620 | C34: 21 | D34: 4622 | E34: 21 | F34: 4628 | K34: 0 | L34: 222
A35: 21 | B35: 4777 | C35: 21 | D35: 4783 | E35: 21 | F35: 4788 | K35: 0 | L35: 222
A36: 21 | B36: 4898 | C36: 21 | D36: 4910 | E36: 21 | F36: 4917 | K36: 0 | L36: 222
A37: 21 | B37: 5115 | C37: 21 | D37: 5128 | E37: 21 | F37: 5135 | K37: 0 | L37: 222
A38: 21 | B38: 5310 | C38: 21 | D38: 5312 | E38: 21 | F38: 5323 | K38: 0 | L38: 222
A39: 21 | B39: 5468 | C39: 21 | D39: 5473 | E39: 21 | F39: 5479 | K39: 0 | L39: 222
A40: 21 | B40: 5708 | C40: 21 | D40: 5715 | E40: 21 | F40: 5721 | K40: 0 | L40: 222
A41: 21 | B41: 5864 | C41: 21 | D41: 5869 | E41: 21 | F41: 5875 | K41: 0 | L41: 222
A42: 21 | B42: 5998 | C42: 21 | D42: 6005 | E42: 21 | F42: 6012 | K42: 0 | L42: 222
A43: 21 | B43: 6174 | C43: 21 | D43: 6178 | E43: 21 | F43: 6180 | K43: 0 | L43: 222
A44: 21 | B44: 6293 | C44: 21 | D44: 6299 | E44: 21 | F44: 6305 | K44: 0 | L44: 222
A45: 21 | B45: 6484 | C45: 21 | D45: 6499 | E45: 21 | F45: 6504 | K45: 0 | L45: 222
A46: 21 | B46: 6640 | C46: 21 | D46: 6643 | E46: 21 | F46: 6649 | K46: 1 | L46: 222

Sheet !M326B4D.UST
A1: Report for:!M326B4D.UST
A2: Date: | B2: <date>
A3: Hen: | B3: <hen> | F3: Correct Sequence | G3: =Start!J2 -> 222 | P3: Total Sequences in Data | Q3: =4994-COUNTBLANK(L7:L5000) -> 42 | V3: Total Sequences in Block Data | W3: =COUNTA(L7:L13) -> 7 | AA3: Total Sequences in Block Data | AB3: =COUNTA(L14:L20) -> 7 | AF3: Total Sequences in Block Data | AG3: =COUNTA(L21:L27) -> 7 | AK3: Total Sequences in Block Data | AL3: =COUNTA(L28:L34) -> 7 | AP3: Total Sequences in Block Data | AQ3: =COUNTA(L35:L41) -> 7 | AU3: Total Sequences in Block Data | AV3: =COUNTA(L42:L48) -> 7
P4: Total Sequences in Summary | Q4: =SUM(O7:O14) -> 42 | V4: Total Sequences in Block Summary | W4: =SUM(U7:U14) -> 7 | AA4: Total Sequences in Block Summary | AB4: =SUM(Z7:Z14) -> 7 | AF4: Total Sequences in Block Summary | AG4: =SUM(AE7:AE14) -> 7 | AK4: Total Sequences in Block Summary | AL4: =SUM(AJ7:AJ14) -> 7 | AP4: Total Sequences in Block Summary | AQ4: =SUM(AO7:AO14) -> 7 | AU4: Total Sequences in Block Summary | AV4: =SUM(AT7:AT14) -> 7
T5: Block 1 | Y5: Block 2 | AD5: Block 3 | AI5: Block 4 | AN5: Block 5 | AS5: Block 6
A6: Sequence Component 1 | B6: Time 1 | C6: Sequence Component 2 | D6: Time 2 | E6: Sequence Component 3 | F6: Time 3 | G6: Sequence Component 4 | H6: Time 4 | I6: Sequence Component 5 | J6: Time 5 | K6: Correct? 0=No 1=Yes | L6: Sequence | N6: Frequency | P6: Relative Frequency | Q6: Variability | T6: Frequency | V6: Relative Frequency | W6: Variability | Y6: Frequency | AA6: Relative Frequency | AB6: Variability | AD6: Frequency | AF6: Relative Frequency | AG6: Variability | AI6: Frequency | AK6: Relative Frequency | AL6: Variability | AN6: Frequency | AP6: Relative Frequency | AQ6: Variability | AS6: Frequency | AU6: Relative Frequency | AV6: Variability
A7: 21 | B7: 86 | C7: 21 | D7: 90 | E7: 21 | F7: 95 | K7: 0 | L7: 222 | N7: 111 | O7: =COUNTIF($L$7:$L$500,N7) -> 1 | P7: =O7/$Q$4 -> 0.02380952381 | Q7: =IF(P7=0,0,(P7*((LOG(P7))/LOG(2)))) -> -0.1283885101 | T7: =N7 -> 111 | U7: =COUNTIF(L7:L13,T7) -> 0 | V7: =U7/(W4-U14) ->  | W7: =IF(V7=0,0,(V7*((LOG(V7))/LOG(2)))) ->  | Y7: =N7 -> 111 | Z7: =COUNTIF(L14:L20,Y7) -> 0 | AA7: =Z7/(AB4-Z14) ->  | AB7: =IF(AA7=0,0,(AA7*((LOG(AA7))/LOG(2)))) ->  | AD7: =N7 -> 111 | AE7: =COUNTIF(L21:L27,AD7) -> 1 | AF7: =AE7/(AG4-AE14) -> 1 | AG7: =IF(AF7=0,0,(AF7*((LOG(AF7))/LOG(2)))) -> 0 | AI7: =N7 -> 111 | AJ7: =COUNTIF(L28:L34,AI7) -> 0 | AK7: =AJ7/(AL4-AJ14) ->  | AL7: =IF(AK7=0,0,(AK7*((LOG(AK7))/LOG(2)))) ->  | AN7: =N7 -> 111 | AO7: =COUNTIF(L35:L41,AN7) -> 0 | AP7: =AO7/(AQ4-AO14) -> 0 | AQ7: =IF(AP7=0,0,(AP7*((LOG(AP7))/LOG(2)))) -> 0 | AS7: =N7 -> 111 | AT7: =COUNTIF(L42:L48,AS7) -> 0 | AU7: =AT7/(AV4-AT14) ->  | AV7: =IF(AU7=0,0,(AU7*((LOG(AU7))/LOG(2)))) -> 
A8: 21 | B8: 260 | C8: 21 | D8: 263 | E8: 21 | F8: 269 | K8: 0 | L8: 222 | N8: 112 | O8: =COUNTIF($L$7:$L$500,N8) -> 0 | P8: =O8/$Q$4 -> 0 | Q8: =IF(P8=0,0,(P8*((LOG(P8))/LOG(2)))) -> 0 | T8: =N8 -> 112 | U8: =COUNTIF(L7:L13,T8) -> 0 | V8: =U8/(W4-U14) ->  | W8: =IF(V8=0,0,(V8*((LOG(V8))/LOG(2)))) ->  | Y8: =N8 -> 112 | Z8: =COUNTIF(L14:L20,Y8) -> 0 | AA8: =Z8/(AB4-Z14) ->  | AB8: =IF(AA8=0,0,(AA8*((LOG(AA8))/LOG(2)))) ->  | AD8: =N8 -> 112 | AE8: =COUNTIF(L21:L27,AD8) -> 0 | AF8: =AE8/(AG4-AE14) -> 0 | AG8: =IF(AF8=0,0,(AF8*((LOG(AF8))/LOG(2)))) -> 0 | AI8: =N8 -> 112 | AJ8: =COUNTIF(L28:L34,AI8) -> 0 | AK8: =AJ8/(AL4-AJ14) ->  | AL8: =IF(AK8=0,0,(AK8*((LOG(AK8))/LOG(2)))) ->  | AN8: =N8 -> 112 | AO8: =COUNTIF(L35:L41,AN8) -> 0 | AP8: =AO8/(AQ4-AO14) -> 0 | AQ8: =IF(AP8=0,0,(AP8*((LOG(AP8))/LOG(2)))) -> 0 | AS8: =N8 -> 112 | AT8: =COUNTIF(L42:L48,AS8) -> 0 | AU8: =AT8/(AV4-AT14) ->  | AV8: =IF(AU8=0,0,(AU8*((LOG(AU8))/LOG(2)))) -> 
A9: 21 | B9: 402 | C9: 21 | D9: 407 | E9: 21 | F9: 414 | K9: 0 | L9: 222 | N9: 121 | O9: =COUNTIF($L$7:$L$500,N9) -> 0 | P9: =O9/$Q$4 -> 0 | Q9: =IF(P9=0,0,(P9*((LOG(P9))/LOG(2)))) -> 0 | T9: =N9 -> 121 | U9: =COUNTIF(L7:L13,T9) -> 0 | V9: =U9/(W4-U14) ->  | W9: =IF(V9=0,0,(V9*((LOG(V9))/LOG(2)))) ->  | Y9: =N9 -> 121 | Z9: =COUNTIF(L14:L20,Y9) -> 0 | AA9: =Z9/(AB4-Z14) ->  | AB9: =IF(AA9=0,0,(AA9*((LOG(AA9))/LOG(2)))) ->  | AD9: =N9 -> 121 | AE9: =COUNTIF(L21:L27,AD9) -> 0 | AF9: =AE9/(AG4-AE14) -> 0 | AG9: =IF(AF9=0,0,(AF9*((LOG(AF9))/LOG(2)))) -> 0 | AI9: =N9 -> 121 | AJ9: =COUNTIF(L28:L34,AI9) -> 0 | AK9: =AJ9/(AL4-AJ14) ->  | AL9: =IF(AK9=0,0,(AK9*((LOG(AK9))/LOG(2)))) ->  | AN9: =N9 -> 121 | AO9: =COUNTIF(L35:L41,AN9) -> 0 | AP9: =AO9/(AQ4-AO14) -> 0 | AQ9: =IF(AP9=0,0,(AP9*((LOG(AP9))/LOG(2)))) -> 0 | AS9: =N9 -> 121 | AT9: =COUNTIF(L42:L48,AS9) -> 0 | AU9: =AT9/(AV4-AT14) ->  | AV9: =IF(AU9=0,0,(AU9*((LOG(AU9))/LOG(2)))) -> 
A10: 21 | B10: 582 | C10: 21 | D10: 586 | E10: 21 | F10: 592 | K10: 0 | L10: 222 | N10: 122 | O10: =COUNTIF($L$7:$L$500,N10) -> 0 | P10: =O10/$Q$4 -> 0 | Q10: =IF(P10=0,0,(P10*((LOG(P10))/LOG(2)))) -> 0 | T10: =N10 -> 122 | U10: =COUNTIF(L7:L13,T10) -> 0 | V10: =U10/(W4-U14) ->  | W10: =IF(V10=0,0,(V10*((LOG(V10))/LOG(2)))) ->  | Y10: =N10 -> 122 | Z10: =COUNTIF(L14:L20,Y10) -> 0 | AA10: =Z10/(AB4-Z14) ->  | AB10: =IF(AA10=0,0,(AA10*((LOG(AA10))/LOG(2)))) ->  | AD10: =N10 -> 122 | AE10: =COUNTIF(L21:L27,AD10) -> 0 | AF10: =AE10/(AG4-AE14) -> 0 | AG10: =IF(AF10=0,0,(AF10*((LOG(AF10))/LOG(2)))) -> 0 | AI10: =N10 -> 122 | AJ10: =COUNTIF(L28:L34,AI10) -> 0 | AK10: =AJ10/(AL4-AJ14) ->  | AL10: =IF(AK10=0,0,(AK10*((LOG(AK10))/LOG(2)))) ->  | AN10: =N10 -> 122 | AO10: =COUNTIF(L35:L41,AN10) -> 0 | AP10: =AO10/(AQ4-AO14) -> 0 | AQ10: =IF(AP10=0,0,(AP10*((LOG(AP10))/LOG(2)))) -> 0 | AS10: =N10 -> 122 | AT10: =COUNTIF(L42:L48,AS10) -> 0 | AU10: =AT10/(AV4-AT14) ->  | AV10: =IF(AU10=0,0,(AU10*((LOG(AU10))/LOG(2)))) -> 
A11: 21 | B11: 735 | C11: 21 | D11: 743 | E11: 21 | F11: 749 | K11: 0 | L11: 222 | N11: 211 | O11: =COUNTIF($L$7:$L$500,N11) -> 0 | P11: =O11/$Q$4 -> 0 | Q11: =IF(P11=0,0,(P11*((LOG(P11))/LOG(2)))) -> 0 | T11: =N11 -> 211 | U11: =COUNTIF(L7:L13,T11) -> 0 | V11: =U11/(W4-U14) ->  | W11: =IF(V11=0,0,(V11*((LOG(V11))/LOG(2)))) ->  | Y11: =N11 -> 211 | Z11: =COUNTIF(L14:L20,Y11) -> 0 | AA11: =Z11/(AB4-Z14) ->  | AB11: =IF(AA11=0,0,(AA11*((LOG(AA11))/LOG(2)))) ->  | AD11: =N11 -> 211 | AE11: =COUNTIF(L21:L27,AD11) -> 0 | AF11: =AE11/(AG4-AE14) -> 0 | AG11: =IF(AF11=0,0,(AF11*((LOG(AF11))/LOG(2)))) -> 0 | AI11: =N11 -> 211 | AJ11: =COUNTIF(L28:L34,AI11) -> 0 | AK11: =AJ11/(AL4-AJ14) ->  | AL11: =IF(AK11=0,0,(AK11*((LOG(AK11))/LOG(2)))) ->  | AN11: =N11 -> 211 | AO11: =COUNTIF(L35:L41,AN11) -> 0 | AP11: =AO11/(AQ4-AO14) -> 0 | AQ11: =IF(AP11=0,0,(AP11*((LOG(AP11))/LOG(2)))) -> 0 | AS11: =N11 -> 211 | AT11: =COUNTIF(L42:L48,AS11) -> 0 | AU11: =AT11/(AV4-AT14) ->  | AV11: =IF(AU11=0,0,(AU11*((LOG(AU11))/LOG(2)))) -> 
A12: 21 | B12: 953 | C12: 21 | D12: 957 | E12: 21 | F12: 963 | K12: 0 | L12: 222 | N12: 212 | O12: =COUNTIF($L$7:$L$500,N12) -> 0 | P12: =O12/$Q$4 -> 0 | Q12: =IF(P12=0,0,(P12*((LOG(P12))/LOG(2)))) -> 0 | T12: =N12 -> 212 | U12: =COUNTIF(L7:L13,T12) -> 0 | V12: =U12/(W4-U14) ->  | W12: =IF(V12=0,0,(V12*((LOG(V12))/LOG(2)))) ->  | Y12: =N12 -> 212 | Z12: =COUNTIF(L14:L20,Y12) -> 0 | AA12: =Z12/(AB4-Z14) ->  | AB12: =IF(AA12=0,0,(AA12*((LOG(AA12))/LOG(2)))) ->  | AD12: =N12 -> 212 | AE12: =COUNTIF(L21:L27,AD12) -> 0 | AF12: =AE12/(AG4-AE14) -> 0 | AG12: =IF(AF12=0,0,(AF12*((LOG(AF12))/LOG(2)))) -> 0 | AI12: =N12 -> 212 | AJ12: =COUNTIF(L28:L34,AI12) -> 0 | AK12: =AJ12/(AL4-AJ14) ->  | AL12: =IF(AK12=0,0,(AK12*((LOG(AK12))/LOG(2)))) ->  | AN12: =N12 -> 212 | AO12: =COUNTIF(L35:L41,AN12) -> 0 | AP12: =AO12/(AQ4-AO14) -> 0 | AQ12: =IF(AP12=0,0,(AP12*((LOG(AP12))/LOG(2)))) -> 0 | AS12: =N12 -> 212 | AT12: =COUNTIF(L42:L48,AS12) -> 0 | AU12: =AT12/(AV4-AT14) ->  | AV12: =IF(AU12=0,0,(AU12*((LOG(AU12))/LOG(2)))) -> 
A13: 21 | B13: 1078 | C13: 21 | D13: 1084 | E13: 21 | F13: 1093 | K13: 0 | L13: 222 | N13: 221 | O13: =COUNTIF($L$7:$L$500,N13) -> 1 | P13: =O13/$Q$4 -> 0.02380952381 | Q13: =IF(P13=0,0,(P13*((LOG(P13))/LOG(2)))) -> -0.1283885101 | T13: =N13 -> 221 | U13: =COUNTIF(L7:L13,T13) -> 0 | V13: =U13/(W4-U14) ->  | W13: =IF(V13=0,0,(V13*((LOG(V13))/LOG(2)))) ->  | Y13: =N13 -> 221 | Z13: =COUNTIF(L14:L20,Y13) -> 0 | AA13: =Z13/(AB4-Z14) ->  | AB13: =IF(AA13=0,0,(AA13*((LOG(AA13))/LOG(2)))) ->  | AD13: =N13 -> 221 | AE13: =COUNTIF(L21:L27,AD13) -> 0 | AF13: =AE13/(AG4-AE14) -> 0 | AG13: =IF(AF13=0,0,(AF13*((LOG(AF13))/LOG(2)))) -> 0 | AI13: =N13 -> 221 | AJ13: =COUNTIF(L28:L34,AI13) -> 0 | AK13: =AJ13/(AL4-AJ14) ->  | AL13: =IF(AK13=0,0,(AK13*((LOG(AK13))/LOG(2)))) ->  | AN13: =N13 -> 221 | AO13: =COUNTIF(L35:L41,AN13) -> 1 | AP13: =AO13/(AQ4-AO14) -> 1 | AQ13: =IF(AP13=0,0,(AP13*((LOG(AP13))/LOG(2)))) -> 0 | AS13: =N13 -> 221 | AT13: =COUNTIF(L42:L48,AS13) -> 0 | AU13: =AT13/(AV4-AT14) ->  | AV13: =IF(AU13=0,0,(AU13*((LOG(AU13))/LOG(2)))) -> 
A14: 21 | B14: 1315 | C14: 21 | D14: 1321 | E14: 21 | F14: 1327 | K14: 0 | L14: 222 | N14: 222 | O14: =COUNTIF($L$7:$L$500,N14) -> 40 | P14: =O14/$Q$4 -> 0.9523809524 | Q14: =IF(P14=0,0,(P14*((LOG(P14))/LOG(2)))) -> -0.06703745513 | T14: =N14 -> 222 | U14: =COUNTIF(L7:L13,T14) -> 7 | Y14: =N14 -> 222 | Z14: =COUNTIF(L14:L20,Y14) -> 7 | AD14: =N14 -> 222 | AE14: =COUNTIF(L21:L27,AD14) -> 6 | AI14: =N14 -> 222 | AJ14: =COUNTIF(L28:L34,AI14) -> 7 | AN14: =N14 -> 222 | AO14: =COUNTIF(L35:L41,AN14) -> 6 | AS14: =N14 -> 222 | AT14: =COUNTIF(L42:L48,AS14) -> 7
A15: 21 | B15: 1424 | C15: 21 | D15: 1433 | E15: 21 | F15: 1448 | K15: 0 | L15: 222 | P15: =SUM(P7:P14) -> 1 | Q15: =-SUM(Q7:Q14) -> 0.3238144753 | V15: =SUM(V7:V14) ->  | W15: =-SUM(W7:W14) ->  | AA15: =SUM(AA7:AA14) ->  | AB15: =-SUM(AB7:AB14) ->  | AF15: =SUM(AF7:AF14) -> 1 | AG15: =-SUM(AG7:AG14) -> 0 | AK15: =SUM(AK7:AK14) ->  | AL15: =-SUM(AL7:AL14) ->  | AP15: =SUM(AP7:AP14) -> 1 | AQ15: =-SUM(AQ7:AQ14) -> 0 | AU15: =SUM(AU7:AU14) ->  | AV15: =-SUM(AV7:AV14) -> 
A16: 21 | B16: 1555 | C16: 21 | D16: 1562 | E16: 21 | F16: 1570 | K16: 0 | L16: 222 | P16: U= | Q16: =Q15/(LOG(Q4)/LOG(2)) -> 0.06005107821 | V16: U1= | W16: =W15/(LOG(W4)/LOG(2)) ->  | AA16: U2= | AB16: =AB15/(LOG(AB4)/LOG(2)) ->  | AF16: U3= | AG16: =AG15/(LOG(AG4)/LOG(2)) -> 0 | AK16: U4= | AL16: =AL15/(LOG(AL4)/LOG(2)) ->  | AP16: U5= | AQ16: =AQ15/(LOG(AQ4)/LOG(2)) -> 0 | AU16: U6= | AV16: =AV15/(LOG(AV4)/LOG(2)) -> 
A17: 21 | B17: 1836 | C17: 21 | D17: 1845 | E17: 21 | F17: 1851 | K17: 0 | L17: 222
A18: 21 | B18: 1977 | C18: 21 | D18: 1982 | E18: 21 | F18: 1988 | K18: 0 | L18: 222
A19: 21 | B19: 2322 | C19: 21 | D19: 2327 | E19: 21 | F19: 2332 | K19: 0 | L19: 222 | N19: Total Target Seq
A20: 21 | B20: 2419 | C20: 21 | D20: 2438 | E20: 21 | F20: 2444 | K20: 0 | L20: 222 | N20: =COUNTIF(L7:L48,G3) -> 40 | P20: 7 | Q20: 7 | R20: 7 | S20: 7 | T20: 7 | U20: 7
A21: 21 | B21: 2562 | C21: 21 | D21: 2570 | E21: 21 | F21: 2575 | K21: 0 | L21: 222 | P21: % of reinforcement given in 6 equal intervals based on number of trials
A22: 21 | B22: 2681 | C22: 21 | D22: 2687 | E22: 21 | F22: 2692 | K22: 0 | L22: 222 | P22: %_1 | Q22: %_2 | R22: %_3 | S22: %_4 | T22: %_5 | U22: %_6
A23: 21 | B23: 2823 | C23: 21 | D23: 2825 | E23: 21 | F23: 2829 | K23: 0 | L23: 222 | O23: target sequence | P23: =$G$3 -> 222 | Q23: =$G$3 -> 222 | R23: =$G$3 -> 222 | S23: =$G$3 -> 222 | T23: =$G$3 -> 222 | U23: =$G$3 -> 222
A24: 21 | B24: 2944 | C24: 21 | D24: 2950 | E24: 21 | F24: 2956 | K24: 0 | L24: 222 | O24: total reinforcement | P24: =U14 -> 7 | Q24: =Z14 -> 7 | R24: =AE14 -> 6 | S24: =AJ14 -> 7 | T24: =AO14 -> 6 | U24: =AT14 -> 7
A25: 21 | B25: 3156 | C25: 21 | D25: 3169 | E25: 21 | F25: 3171 | K25: 0 | L25: 222 | O25: % target
A26: 12 | B26: 3366 | C26: 14 | D26: 3372 | E26: 14 | F26: 3382 | K26: 0 | L26: 111 | O26: CCRF
A27: 21 | B27: 3479 | C27: 21 | D27: 3499 | E27: 21 | F27: 3504 | K27: 0 | L27: 222 | O27: % CCRf
A28: 21 | B28: 3607 | C28: 21 | D28: 3612 | E28: 21 | F28: 3621 | K28: 0 | L28: 222 | O28: average response rate | P28: =F13/P20 -> 156.1428571 | Q28: =(F20-F13)/Q20 -> 193 | R28: =(F27-F20)/R20 -> 151.4285714 | S28: =(F34-F27)/S20 -> 174.8571429 | T28: =(F41-F34)/T20 -> 152.7142857 | U28: =(F48-F41)/U20 -> 207.2857143
A29: 21 | B29: 3783 | C29: 21 | D29: 3798 | E29: 21 | F29: 3806 | K29: 0 | L29: 222
A30: 21 | B30: 3912 | C30: 21 | D30: 3920 | E30: 21 | F30: 3931 | K30: 0 | L30: 222
A31: 21 | B31: 4079 | C31: 21 | D31: 4087 | E31: 21 | F31: 4092 | K31: 0 | L31: 222
A32: 21 | B32: 4192 | C32: 21 | D32: 4206 | E32: 21 | F32: 4220 | K32: 0 | L32: 222
A33: 21 | B33: 4442 | C33: 21 | D33: 4447 | E33: 21 | F33: 4452 | K33: 0 | L33: 222
A34: 21 | B34: 4719 | C34: 21 | D34: 4723 | E34: 21 | F34: 4728 | K34: 0 | L34: 222
A35: 21 | B35: 4856 | C35: 21 | D35: 4861 | E35: 21 | F35: 4866 | K35: 0 | L35: 222
A36: 21 | B36: 5009 | C36: 21 | D36: 5015 | E36: 21 | F36: 5020 | K36: 0 | L36: 222
A37: 21 | B37: 5205 | C37: 21 | D37: 5208 | E37: 12 | F37: 5223 | K37: 0 | L37: 221
A38: 21 | B38: 5319 | C38: 21 | D38: 5338 | E38: 21 | F38: 5346 | K38: 0 | L38: 222
A39: 21 | B39: 5455 | C39: 21 | D39: 5461 | E39: 21 | F39: 5466 | K39: 0 | L39: 222
A40: 21 | B40: 5617 | C40: 21 | D40: 5623 | E40: 21 | F40: 5628 | K40: 0 | L40: 222
A41: 21 | B41: 5787 | C41: 21 | D41: 5791 | E41: 21 | F41: 5797 | K41: 0 | L41: 222
A42: 21 | B42: 5985 | C42: 21 | D42: 5990 | E42: 21 | F42: 6001 | K42: 0 | L42: 222
A43: 21 | B43: 6123 | C43: 21 | D43: 6135 | E43: 21 | F43: 6142 | K43: 0 | L43: 222
A44: 21 | B44: 6301 | C44: 21 | D44: 6306 | E44: 21 | F44: 6313 | K44: 0 | L44: 222
A45: 21 | B45: 6536 | C45: 21 | D45: 6539 | E45: 21 | F45: 6549 | K45: 0 | L45: 222
A46: 21 | B46: 6772 | C46: 21 | D46: 6775 | E46: 21 | F46: 6780 | K46: 0 | L46: 222
A47: 21 | B47: 6894 | C47: 21 | D47: 6901 | E47: 21 | F47: 6907 | K47: 0 | L47: 222
A48: 21 | B48: 7239 | C48: 21 | D48: 7242 | E48: 21 | F48: 7248 | K48: 1 | L48: 222

Sheet !M327A5D.UST
A1: Report for:!M327A5D.UST
A2: Date: | B2: <date>
A3: Hen: | B3: <hen> | F3: Correct Sequence | G3: =Start!J2 -> 222 | P3: Total Sequences in Data | Q3: =4994-COUNTBLANK(L7:L5000) -> 41 | V3: Total Sequences in Block Data | W3: =COUNTA(L7:L13) -> 7 | AA3: Total Sequences in Block Data | AB3: =COUNTA(L14:L20) -> 7 | AF3: Total Sequences in Block Data | AG3: =COUNTA(L21:L26) -> 6 | AK3: Total Sequences in Block Data | AL3: =COUNTA(L27:L33) -> 7 | AP3: Total Sequences in Block Data | AQ3: =COUNTA(L34:L40) -> 7 | AU3: Total Sequences in Block Data | AV3: =COUNTA(L41:L47) -> 7
P4: Total Sequences in Summary | Q4: =SUM(O7:O14) -> 41 | V4: Total Sequences in Block Summary | W4: =SUM(U7:U14) -> 7 | AA4: Total Sequences in Block Summary | AB4: =SUM(Z7:Z14) -> 7 | AF4: Total Sequences in Block Summary | AG4: =SUM(AE7:AE14) -> 6 | AK4: Total Sequences in Block Summary | AL4: =SUM(AJ7:AJ14) -> 7 | AP4: Total Sequences in Block Summary | AQ4: =SUM(AO7:AO14) -> 7 | AU4: Total Sequences in Block Summary | AV4: =SUM(AT7:AT14) -> 7
T5: Block 1 | Y5: Block 2 | AD5: Block 3 | AI5: Block 4 | AN5: Block 5 | AS5: Block 6
A6: Sequence Component 1 | B6: Time 1 | C6: Sequence Component 2 | D6: Time 2 | E6: Sequence Component 3 | F6: Time 3 | G6: Sequence Component 4 | H6: Time 4 | I6: Sequence Component 5 | J6: Time 5 | K6: Correct? 0=No 1=Yes | L6: Sequence | N6: Frequency | P6: Relative Frequency | Q6: Variability | T6: Frequency | V6: Relative Frequency | W6: Variability | Y6: Frequency | AA6: Relative Frequency | AB6: Variability | AD6: Frequency | AF6: Relative Frequency | AG6: Variability | AI6: Frequency | AK6: Relative Frequency | AL6: Variability | AN6: Frequency | AP6: Relative Frequency | AQ6: Variability | AS6: Frequency | AU6: Relative Frequency | AV6: Variability
A7: 21 | B7: 21 | C7: 21 | D7: 27 | E7: 21 | F7: 32 | K7: 0 | L7: 222 | N7: 111 | O7: =COUNTIF($L$7:$L$500,N7) -> 0 | P7: =O7/$Q$4 -> 0 | Q7: =IF(P7=0,0,(P7*((LOG(P7))/LOG(2)))) -> 0 | T7: =N7 -> 111 | U7: =COUNTIF(L7:L13,T7) -> 0 | V7: =U7/(W4-U14) -> 0 | W7: =IF(V7=0,0,(V7*((LOG(V7))/LOG(2)))) -> 0 | Y7: =N7 -> 111 | Z7: =COUNTIF(L14:L20,Y7) -> 0 | AA7: =Z7/(AB4-Z14) ->  | AB7: =IF(AA7=0,0,(AA7*((LOG(AA7))/LOG(2)))) ->  | AD7: =N7 -> 111 | AE7: =COUNTIF(L21:L26,AD7) -> 0 | AF7: =AE7/(AG4-AE14) ->  | AG7: =IF(AF7=0,0,(AF7*((LOG(AF7))/LOG(2)))) ->  | AI7: =N7 -> 111 | AJ7: =COUNTIF(L27:L33,AI7) -> 0 | AK7: =AJ7/(AL4-AJ14) ->  | AL7: =IF(AK7=0,0,(AK7*((LOG(AK7))/LOG(2)))) ->  | AN7: =N7 -> 111 | AO7: =COUNTIF(L34:L40,AN7) -> 0 | AP7: =AO7/(AQ4-AO14) ->  | AQ7: =IF(AP7=0,0,(AP7*((LOG(AP7))/LOG(2)))) ->  | AS7: =N7 -> 111 | AT7: =COUNTIF(L41:L47,AS7) -> 0 | AU7: =AT7/(AV4-AT14) ->  | AV7: =IF(AU7=0,0,(AU7*((LOG(AU7))/LOG(2)))) -> 
A8: 21 | B8: 151 | C8: 21 | D8: 159 | E8: 21 | F8: 178 | K8: 0 | L8: 222 | N8: 112 | O8: =COUNTIF($L$7:$L$500,N8) -> 0 | P8: =O8/$Q$4 -> 0 | Q8: =IF(P8=0,0,(P8*((LOG(P8))/LOG(2)))) -> 0 | T8: =N8 -> 112 | U8: =COUNTIF(L7:L13,T8) -> 0 | V8: =U8/(W4-U14) -> 0 | W8: =IF(V8=0,0,(V8*((LOG(V8))/LOG(2)))) -> 0 | Y8: =N8 -> 112 | Z8: =COUNTIF(L14:L20,Y8) -> 0 | AA8: =Z8/(AB4-Z14) ->  | AB8: =IF(AA8=0,0,(AA8*((LOG(AA8))/LOG(2)))) ->  | AD8: =N8 -> 112 | AE8: =COUNTIF(L21:L26,AD8) -> 0 | AF8: =AE8/(AG4-AE14) ->  | AG8: =IF(AF8=0,0,(AF8*((LOG(AF8))/LOG(2)))) ->  | AI8: =N8 -> 112 | AJ8: =COUNTIF(L27:L33,AI8) -> 0 | AK8: =AJ8/(AL4-AJ14) ->  | AL8: =IF(AK8=0,0,(AK8*((LOG(AK8))/LOG(2)))) ->  | AN8: =N8 -> 112 | AO8: =COUNTIF(L34:L40,AN8) -> 0 | AP8: =AO8/(AQ4-AO14) ->  | AQ8: =IF(AP8=0,0,(AP8*((LOG(AP8))/LOG(2)))) ->  | AS8: =N8 -> 112 | AT8: =COUNTIF(L41:L47,AS8) -> 0 | AU8: =AT8/(AV4-AT14) ->  | AV8: =IF(AU8=0,0,(AU8*((LOG(AU8))/LOG(2)))) -> 
A9: 12 | B9: 318 | C9: 23 | D9: 328 | E9: 23 | F9: 339 | K9: 0 | L9: 122 | N9: 121 | O9: =COUNTIF($L$7:$L$500,N9) -> 0 | P9: =O9/$Q$4 -> 0 | Q9: =IF(P9=0,0,(P9*((LOG(P9))/LOG(2)))) -> 0 | T9: =N9 -> 121 | U9: =COUNTIF(L7:L13,T9) -> 0 | V9: =U9/(W4-U14) -> 0 | W9: =IF(V9=0,0,(V9*((LOG(V9))/LOG(2)))) -> 0 | Y9: =N9 -> 121 | Z9: =COUNTIF(L14:L20,Y9) -> 0 | AA9: =Z9/(AB4-Z14) ->  | AB9: =IF(AA9=0,0,(AA9*((LOG(AA9))/LOG(2)))) ->  | AD9: =N9 -> 121 | AE9: =COUNTIF(L21:L26,AD9) -> 0 | AF9: =AE9/(AG4-AE14) ->  | AG9: =IF(AF9=0,0,(AF9*((LOG(AF9))/LOG(2)))) ->  | AI9: =N9 -> 121 | AJ9: =COUNTIF(L27:L33,AI9) -> 0 | AK9: =AJ9/(AL4-AJ14) ->  | AL9: =IF(AK9=0,0,(AK9*((LOG(AK9))/LOG(2)))) ->  | AN9: =N9 -> 121 | AO9: =COUNTIF(L34:L40,AN9) -> 0 | AP9: =AO9/(AQ4-AO14) ->  | AQ9: =IF(AP9=0,0,(AP9*((LOG(AP9))/LOG(2)))) ->  | AS9: =N9 -> 121 | AT9: =COUNTIF(L41:L47,AS9) -> 0 | AU9: =AT9/(AV4-AT14) ->  | AV9: =IF(AU9=0,0,(AU9*((LOG(AU9))/LOG(2)))) -> 
A10: 21 | B10: 434 | C10: 21 | D10: 440 | E10: 21 | F10: 447 | K10: 0 | L10: 222 | N10: 122 | O10: =COUNTIF($L$7:$L$500,N10) -> 1 | P10: =O10/$Q$4 -> 0.0243902439 | Q10: =IF(P10=0,0,(P10*((LOG(P10))/LOG(2)))) -> -0.1306720001 | T10: =N10 -> 122 | U10: =COUNTIF(L7:L13,T10) -> 1 | V10: =U10/(W4-U14) -> 1 | W10: =IF(V10=0,0,(V10*((LOG(V10))/LOG(2)))) -> 0 | Y10: =N10 -> 122 | Z10: =COUNTIF(L14:L20,Y10) -> 0 | AA10: =Z10/(AB4-Z14) ->  | AB10: =IF(AA10=0,0,(AA10*((LOG(AA10))/LOG(2)))) ->  | AD10: =N10 -> 122 | AE10: =COUNTIF(L21:L26,AD10) -> 0 | AF10: =AE10/(AG4-AE14) ->  | AG10: =IF(AF10=0,0,(AF10*((LOG(AF10))/LOG(2)))) ->  | AI10: =N10 -> 122 | AJ10: =COUNTIF(L27:L33,AI10) -> 0 | AK10: =AJ10/(AL4-AJ14) ->  | AL10: =IF(AK10=0,0,(AK10*((LOG(AK10))/LOG(2)))) ->  | AN10: =N10 -> 122 | AO10: =COUNTIF(L34:L40,AN10) -> 0 | AP10: =AO10/(AQ4-AO14) ->  | AQ10: =IF(AP10=0,0,(AP10*((LOG(AP10))/LOG(2)))) ->  | AS10: =N10 -> 122 | AT10: =COUNTIF(L41:L47,AS10) -> 0 | AU10: =AT10/(AV4-AT14) ->  | AV10: =IF(AU10=0,0,(AU10*((LOG(AU10))/LOG(2)))) -> 
A11: 21 | B11: 572 | C11: 21 | D11: 581 | E11: 21 | F11: 595 | K11: 0 | L11: 222 | N11: 211 | O11: =COUNTIF($L$7:$L$500,N11) -> 0 | P11: =O11/$Q$4 -> 0 | Q11: =IF(P11=0,0,(P11*((LOG(P11))/LOG(2)))) -> 0 | T11: =N11 -> 211 | U11: =COUNTIF(L7:L13,T11) -> 0 | V11: =U11/(W4-U14) -> 0 | W11: =IF(V11=0,0,(V11*((LOG(V11))/LOG(2)))) -> 0 | Y11: =N11 -> 211 | Z11: =COUNTIF(L14:L20,Y11) -> 0 | AA11: =Z11/(AB4-Z14) ->  | AB11: =IF(AA11=0,0,(AA11*((LOG(AA11))/LOG(2)))) ->  | AD11: =N11 -> 211 | AE11: =COUNTIF(L21:L26,AD11) -> 0 | AF11: =AE11/(AG4-AE14) ->  | AG11: =IF(AF11=0,0,(AF11*((LOG(AF11))/LOG(2)))) ->  | AI11: =N11 -> 211 | AJ11: =COUNTIF(L27:L33,AI11) -> 0 | AK11: =AJ11/(AL4-AJ14) ->  | AL11: =IF(AK11=0,0,(AK11*((LOG(AK11))/LOG(2)))) ->  | AN11: =N11 -> 211 | AO11: =COUNTIF(L34:L40,AN11) -> 0 | AP11: =AO11/(AQ4-AO14) ->  | AQ11: =IF(AP11=0,0,(AP11*((LOG(AP11))/LOG(2)))) ->  | AS11: =N11 -> 211 | AT11: =COUNTIF(L41:L47,AS11) -> 0 | AU11: =AT11/(AV4-AT14) ->  | AV11: =IF(AU11=0,0,(AU11*((LOG(AU11))/LOG(2)))) -> 
A12: 21 | B12: 743 | C12: 21 | D12: 759 | E12: 21 | F12: 765 | K12: 0 | L12: 222 | N12: 212 | O12: =COUNTIF($L$7:$L$500,N12) -> 0 | P12: =O12/$Q$4 -> 0 | Q12: =IF(P12=0,0,(P12*((LOG(P12))/LOG(2)))) -> 0 | T12: =N12 -> 212 | U12: =COUNTIF(L7:L13,T12) -> 0 | V12: =U12/(W4-U14) -> 0 | W12: =IF(V12=0,0,(V12*((LOG(V12))/LOG(2)))) -> 0 | Y12: =N12 -> 212 | Z12: =COUNTIF(L14:L20,Y12) -> 0 | AA12: =Z12/(AB4-Z14) ->  | AB12: =IF(AA12=0,0,(AA12*((LOG(AA12))/LOG(2)))) ->  | AD12: =N12 -> 212 | AE12: =COUNTIF(L21:L26,AD12) -> 0 | AF12: =AE12/(AG4-AE14) ->  | AG12: =IF(AF12=0,0,(AF12*((LOG(AF12))/LOG(2)))) ->  | AI12: =N12 -> 212 | AJ12: =COUNTIF(L27:L33,AI12) -> 0 | AK12: =AJ12/(AL4-AJ14) ->  | AL12: =IF(AK12=0,0,(AK12*((LOG(AK12))/LOG(2)))) ->  | AN12: =N12 -> 212 | AO12: =COUNTIF(L34:L40,AN12) -> 0 | AP12: =AO12/(AQ4-AO14) ->  | AQ12: =IF(AP12=0,0,(AP12*((LOG(AP12))/LOG(2)))) ->  | AS12: =N12 -> 212 | AT12: =COUNTIF(L41:L47,AS12) -> 0 | AU12: =AT12/(AV4-AT14) ->  | AV12: =IF(AU12=0,0,(AU12*((LOG(AU12))/LOG(2)))) -> 
A13: 21 | B13: 986 | C13: 21 | D13: 989 | E13: 21 | F13: 997 | K13: 0 | L13: 222 | N13: 221 | O13: =COUNTIF($L$7:$L$500,N13) -> 0 | P13: =O13/$Q$4 -> 0 | Q13: =IF(P13=0,0,(P13*((LOG(P13))/LOG(2)))) -> 0 | T13: =N13 -> 221 | U13: =COUNTIF(L7:L13,T13) -> 0 | V13: =U13/(W4-U14) -> 0 | W13: =IF(V13=0,0,(V13*((LOG(V13))/LOG(2)))) -> 0 | Y13: =N13 -> 221 | Z13: =COUNTIF(L14:L20,Y13) -> 0 | AA13: =Z13/(AB4-Z14) ->  | AB13: =IF(AA13=0,0,(AA13*((LOG(AA13))/LOG(2)))) ->  | AD13: =N13 -> 221 | AE13: =COUNTIF(L21:L26,AD13) -> 0 | AF13: =AE13/(AG4-AE14) ->  | AG13: =IF(AF13=0,0,(AF13*((LOG(AF13))/LOG(2)))) ->  | AI13: =N13 -> 221 | AJ13: =COUNTIF(L27:L33,AI13) -> 0 | AK13: =AJ13/(AL4-AJ14) ->  | AL13: =IF(AK13=0,0,(AK13*((LOG(AK13))/LOG(2)))) ->  | AN13: =N13 -> 221 | AO13: =COUNTIF(L34:L40,AN13) -> 0 | AP13: =AO13/(AQ4-AO14) ->  | AQ13: =IF(AP13=0,0,(AP13*((LOG(AP13))/LOG(2)))) ->  | AS13: =N13 -> 221 | AT13: =COUNTIF(L41:L47,AS13) -> 0 | AU13: =AT13/(AV4-AT14) ->  | AV13: =IF(AU13=0,0,(AU13*((LOG(AU13))/LOG(2)))) -> 
A14: 21 | B14: 1198 | C14: 21 | D14: 1202 | E14: 21 | F14: 1219 | K14: 0 | L14: 222 | N14: 222 | O14: =COUNTIF($L$7:$L$500,N14) -> 40 | P14: =O14/$Q$4 -> 0.9756097561 | Q14: =IF(P14=0,0,(P14*((LOG(P14))/LOG(2)))) -> -0.03475503388 | T14: =N14 -> 222 | U14: =COUNTIF(L7:L13,T14) -> 6 | Y14: =N14 -> 222 | Z14: =COUNTIF(L14:L20,Y14) -> 7 | AD14: =N14 -> 222 | AE14: =COUNTIF(L21:L26,AD14) -> 6 | AI14: =N14 -> 222 | AJ14: =COUNTIF(L27:L33,AI14) -> 7 | AN14: =N14 -> 222 | AO14: =COUNTIF(L34:L40,AN14) -> 7 | AS14: =N14 -> 222 | AT14: =COUNTIF(L41:L47,AS14) -> 7
A15: 21 | B15: 1418 | C15: 21 | D15: 1426 | E15: 21 | F15: 1454 | K15: 0 | L15: 222 | P15: =SUM(P7:P14) -> 1 | Q15: =-SUM(Q7:Q14) -> 0.165427034 | V15: =SUM(V7:V14) -> 1 | W15: =-SUM(W7:W14) -> 0 | AA15: =SUM(AA7:AA14) ->  | AB15: =-SUM(AB7:AB14) ->  | AF15: =SUM(AF7:AF14) ->  | AG15: =-SUM(AG7:AG14) ->  | AK15: =SUM(AK7:AK14) ->  | AL15: =-SUM(AL7:AL14) ->  | AP15: =SUM(AP7:AP14) ->  | AQ15: =-SUM(AQ7:AQ14) ->  | AU15: =SUM(AU7:AU14) ->  | AV15: =-SUM(AV7:AV14) -> 
A16: 21 | B16: 1609 | C16: 21 | D16: 1612 | E16: 21 | F16: 1619 | K16: 0 | L16: 222 | P16: U= | Q16: =Q15/(LOG(Q4)/LOG(2)) -> 0.03087735478 | V16: U1= | W16: =W15/(LOG(W4)/LOG(2)) -> 0 | AA16: U2= | AB16: =AB15/(LOG(AB4)/LOG(2)) ->  | AF16: U3= | AG16: =AG15/(LOG(AG4)/LOG(2)) ->  | AK16: U4= | AL16: =AL15/(LOG(AL4)/LOG(2)) ->  | AP16: U5= | AQ16: =AQ15/(LOG(AQ4)/LOG(2)) ->  | AU16: U6= | AV16: =AV15/(LOG(AV4)/LOG(2)) -> 
A17: 21 | B17: 1856 | C17: 21 | D17: 1862 | E17: 21 | F17: 1868 | K17: 0 | L17: 222
A18: 21 | B18: 2074 | C18: 21 | D18: 2079 | E18: 21 | F18: 2087 | K18: 0 | L18: 222
A19: 21 | B19: 2321 | C19: 21 | D19: 2325 | E19: 21 | F19: 2329 | K19: 0 | L19: 222 | N19: Total Target Seq
A20: 21 | B20: 2510 | C20: 21 | D20: 2517 | E20: 21 | F20: 2525 | K20: 0 | L20: 222 | N20: =COUNTIF(L7:L47,G3) -> 40 | P20: 7 | Q20: 7 | R20: 6 | S20: 7 | T20: 7 | U20: 7
A21: 21 | B21: 2670 | C21: 21 | D21: 2675 | E21: 21 | F21: 2688 | K21: 0 | L21: 222 | P21: % of reinforcement given in 6 equal intervals based on number of trials
A22: 21 | B22: 2988 | C22: 21 | D22: 2997 | E22: 21 | F22: 3009 | K22: 0 | L22: 222 | P22: %_1 | Q22: %_2 | R22: %_3 | S22: %_4 | T22: %_5 | U22: %_6
A23: 21 | B23: 3154 | C23: 21 | D23: 3162 | E23: 21 | F23: 3170 | K23: 0 | L23: 222 | O23: target sequence | P23: =$G$3 -> 222 | Q23: =$G$3 -> 222 | R23: =$G$3 -> 222 | S23: =$G$3 -> 222 | T23: =$G$3 -> 222 | U23: =$G$3 -> 222
A24: 21 | B24: 3444 | C24: 21 | D24: 3450 | E24: 21 | F24: 3456 | K24: 0 | L24: 222 | O24: total reinforcement | P24: =U14 -> 6 | Q24: =Z14 -> 7 | R24: =AE14 -> 6 | S24: =AJ14 -> 7 | T24: =AO14 -> 7 | U24: =AT14 -> 7
A25: 21 | B25: 3604 | C25: 21 | D25: 3609 | E25: 21 | F25: 3618 | K25: 0 | L25: 222 | O25: % target
A26: 21 | B26: 3812 | C26: 21 | D26: 3823 | E26: 21 | F26: 3840 | K26: 0 | L26: 222 | O26: CCRF
A27: 21 | B27: 4027 | C27: 21 | D27: 4036 | E27: 21 | F27: 4042 | K27: 0 | L27: 222 | O27: % CCRf
A28: 21 | B28: 4289 | C28: 21 | D28: 4294 | E28: 21 | F28: 4300 | K28: 0 | L28: 222 | O28: average response rate | P28: =F13/P20 -> 142.4285714 | Q28: =(F20-F13)/Q20 -> 218.2857143 | R28: =(F26-F20)/R20 -> 219.1666667 | S28: =(F33-F26)/S20 -> 217.7142857 | T28: =(F40-F33)/T20 -> 223.4285714 | U28: =(F47-F40)/U20 -> 215.5714286
A29: 21 | B29: 4526 | C29: 21 | D29: 4537 | E29: 21 | F29: 4543 | K29: 0 | L29: 222
A30: 21 | B30: 4748 | C30: 21 | D30: 4756 | E30: 21 | F30: 4762 | K30: 0 | L30: 222
A31: 21 | B31: 4959 | C31: 21 | D31: 4967 | E31: 21 | F31: 4975 | K31: 0 | L31: 222
A32: 21 | B32: 5125 | C32: 21 | D32: 5134 | E32: 21 | F32: 5140 | K32: 0 | L32: 222
A33: 21 | B33: 5351 | C33: 21 | D33: 5359 | E33: 21 | F33: 5364 | K33: 0 | L33: 222
A34: 21 | B34: 5566 | C34: 21 | D34: 5572 | E34: 21 | F34: 5582 | K34: 0 | L34: 222
A35: 21 | B35: 5785 | C35: 21 | D35: 5791 | E35: 21 | F35: 5802 | K35: 0 | L35: 222
A36: 21 | B36: 6007 | C36: 21 | D36: 6010 | E36: 21 | F36: 6018 | K36: 0 | L36: 222
A37: 21 | B37: 6213 | C37: 21 | D37: 6221 | E37: 21 | F37: 6234 | K37: 0 | L37: 222
A38: 21 | B38: 6420 | C38: 21 | D38: 6430 | E38: 21 | F38: 6436 | K38: 0 | L38: 222
A39: 21 | B39: 6647 | C39: 21 | D39: 6656 | E39: 21 | F39: 6662 | K39: 0 | L39: 222
A40: 21 | B40: 6917 | C40: 21 | D40: 6923 | E40: 21 | F40: 6928 | K40: 0 | L40: 222
A41: 21 | B41: 7109 | C41: 21 | D41: 7115 | E41: 21 | F41: 7121 | K41: 0 | L41: 222
A42: 21 | B42: 7370 | C42: 21 | D42: 7378 | E42: 21 | F42: 7384 | K42: 0 | L42: 222
A43: 21 | B43: 7526 | C43: 21 | D43: 7534 | E43: 21 | F43: 7539 | K43: 0 | L43: 222
A44: 21 | B44: 7808 | C44: 21 | D44: 7815 | E44: 21 | F44: 7821 | K44: 0 | L44: 222
A45: 21 | B45: 7991 | C45: 21 | D45: 8002 | E45: 21 | F45: 8008 | K45: 0 | L45: 222
A46: 21 | B46: 8176 | C46: 21 | D46: 8187 | E46: 21 | F46: 8193 | K46: 0 | L46: 222
A47: 21 | B47: 8426 | C47: 21 | D47: 8432 | E47: 21 | F47: 8437 | K47: 1 | L47: 222

Sheet !M328A5D.UST
A1: Report for:!M328A5D.UST
A2: Date: | B2: <date>
A3: Hen: | B3: <hen> | F3: Correct Sequence | G3: =Start!J2 -> 222 | P3: Total Sequences in Data | Q3: =4994-COUNTBLANK(L7:L5000) -> 44 | V3: Total Sequences in Block Data | W3: =COUNTA(L7:L13) -> 7 | AA3: Total Sequences in Block Data | AB3: =COUNTA(L14:L21) -> 8 | AF3: Total Sequences in Block Data | AG3: =COUNTA(L22:L28) -> 7 | AK3: Total Sequences in Block Data | AL3: =COUNTA(L29:L35) -> 7 | AP3: Total Sequences in Block Data | AQ3: =COUNTA(L36:L43) -> 8 | AU3: Total Sequences in Block Data | AV3: =COUNTA(L44:L50) -> 7
P4: Total Sequences in Summary | Q4: =SUM(O7:O14) -> 44 | V4: Total Sequences in Block Summary | W4: =SUM(U7:U14) -> 7 | AA4: Total Sequences in Block Summary | AB4: =SUM(Z7:Z14) -> 8 | AF4: Total Sequences in Block Summary | AG4: =SUM(AE7:AE14) -> 7 | AK4: Total Sequences in Block Summary | AL4: =SUM(AJ7:AJ14) -> 7 | AP4: Total Sequences in Block Summary | AQ4: =SUM(AO7:AO14) -> 8 | AU4: Total Sequences in Block Summary | AV4: =SUM(AT7:AT14) -> 7
T5: Block 1 | Y5: Block 2 | AD5: Block 3 | AI5: Block 4 | AN5: Block 5 | AS5: Block 6
A6: Sequence Component 1 | B6: Time 1 | C6: Sequence Component 2 | D6: Time 2 | E6: Sequence Component 3 | F6: Time 3 | G6: Sequence Component 4 | H6: Time 4 | I6: Sequence Component 5 | J6: Time 5 | K6: Correct? 0=No 1=Yes | L6: Sequence | N6: Frequency | P6: Relative Frequency | Q6: Variability | T6: Frequency | V6: Relative Frequency | W6: Variability | Y6: Frequency | AA6: Relative Frequency | AB6: Variability | AD6: Frequency | AF6: Relative Frequency | AG6: Variability | AI6: Frequency | AK6: Relative Frequency | AL6: Variability | AN6: Frequency | AP6: Relative Frequency | AQ6: Variability | AS6: Frequency | AU6: Relative Frequency | AV6: Variability
A7: 12 | B7: 17 | C7: 23 | D7: 27 | E7: 23 | F7: 32 | K7: 0 | L7: 122 | N7: 111 | O7: =COUNTIF($L$7:$L$500,N7) -> 0 | P7: =O7/$Q$4 -> 0 | Q7: =IF(P7=0,0,(P7*((LOG(P7))/LOG(2)))) -> 0 | T7: =N7 -> 111 | U7: =COUNTIF(L7:L13,T7) -> 0 | V7: =U7/(W4-U14) -> 0 | W7: =IF(V7=0,0,(V7*((LOG(V7))/LOG(2)))) -> 0 | Y7: =N7 -> 111 | Z7: =COUNTIF(L14:L21,Y7) -> 0 | AA7: =Z7/(AB4-Z14) -> 0 | AB7: =IF(AA7=0,0,(AA7*((LOG(AA7))/LOG(2)))) -> 0 | AD7: =N7 -> 111 | AE7: =COUNTIF(L22:L28,AD7) -> 0 | AF7: =AE7/(AG4-AE14) ->  | AG7: =IF(AF7=0,0,(AF7*((LOG(AF7))/LOG(2)))) ->  | AI7: =N7 -> 111 | AJ7: =COUNTIF(L29:L35,AI7) -> 0 | AK7: =AJ7/(AL4-AJ14) ->  | AL7: =IF(AK7=0,0,(AK7*((LOG(AK7))/LOG(2)))) ->  | AN7: =N7 -> 111 | AO7: =COUNTIF(L36:L43,AN7) -> 0 | AP7: =AO7/(AQ4-AO14) ->  | AQ7: =IF(AP7=0,0,(AP7*((LOG(AP7))/LOG(2)))) ->  | AS7: =N7 -> 111 | AT7: =COUNTIF(L44:L50,AS7) -> 0 | AU7: =AT7/(AV4-AT14) -> 0 | AV7: =IF(AU7=0,0,(AU7*((LOG(AU7))/LOG(2)))) -> 0
A8: 21 | B8: 157 | C8: 21 | D8: 165 | E8: 21 | F8: 170 | K8: 0 | L8: 222 | N8: 112 | O8: =COUNTIF($L$7:$L$500,N8) -> 0 | P8: =O8/$Q$4 -> 0 | Q8: =IF(P8=0,0,(P8*((LOG(P8))/LOG(2)))) -> 0 | T8: =N8 -> 112 | U8: =COUNTIF(L7:L13,T8) -> 0 | V8: =U8/(W4-U14) -> 0 | W8: =IF(V8=0,0,(V8*((LOG(V8))/LOG(2)))) -> 0 | Y8: =N8 -> 112 | Z8: =COUNTIF(L14:L21,Y8) -> 0 | AA8: =Z8/(AB4-Z14) -> 0 | AB8: =IF(AA8=0,0,(AA8*((LOG(AA8))/LOG(2)))) -> 0 | AD8: =N8 -> 112 | AE8: =COUNTIF(L22:L28,AD8) -> 0 | AF8: =AE8/(AG4-AE14) ->  | AG8: =IF(AF8=0,0,(AF8*((LOG(AF8))/LOG(2)))) ->  | AI8: =N8 -> 112 | AJ8: =COUNTIF(L29:L35,AI8) -> 0 | AK8: =AJ8/(AL4-AJ14) ->  | AL8: =IF(AK8=0,0,(AK8*((LOG(AK8))/LOG(2)))) ->  | AN8: =N8 -> 112 | AO8: =COUNTIF(L36:L43,AN8) -> 0 | AP8: =AO8/(AQ4-AO14) ->  | AQ8: =IF(AP8=0,0,(AP8*((LOG(AP8))/LOG(2)))) ->  | AS8: =N8 -> 112 | AT8: =COUNTIF(L44:L50,AS8) -> 0 | AU8: =AT8/(AV4-AT14) -> 0 | AV8: =IF(AU8=0,0,(AU8*((LOG(AU8))/LOG(2)))) -> 0
A9: 21 | B9: 277 | C9: 21 | D9: 281 | E9: 21 | F9: 291 | K9: 0 | L9: 222 | N9: 121 | O9: =COUNTIF($L$7:$L$500,N9) -> 0 | P9: =O9/$Q$4 -> 0 | Q9: =IF(P9=0,0,(P9*((LOG(P9))/LOG(2)))) -> 0 | T9: =N9 -> 121 | U9: =COUNTIF(L7:L13,T9) -> 0 | V9: =U9/(W4-U14) -> 0 | W9: =IF(V9=0,0,(V9*((LOG(V9))/LOG(2)))) -> 0 | Y9: =N9 -> 121 | Z9: =COUNTIF(L14:L21,Y9) -> 0 | AA9: =Z9/(AB4-Z14) -> 0 | AB9: =IF(AA9=0,0,(AA9*((LOG(AA9))/LOG(2)))) -> 0 | AD9: =N9 -> 121 | AE9: =COUNTIF(L22:L28,AD9) -> 0 | AF9: =AE9/(AG4-AE14) ->  | AG9: =IF(AF9=0,0,(AF9*((LOG(AF9))/LOG(2)))) ->  | AI9: =N9 -> 121 | AJ9: =COUNTIF(L29:L35,AI9) -> 0 | AK9: =AJ9/(AL4-AJ14) ->  | AL9: =IF(AK9=0,0,(AK9*((LOG(AK9))/LOG(2)))) ->  | AN9: =N9 -> 121 | AO9: =COUNTIF(L36:L43,AN9) -> 0 | AP9: =AO9/(AQ4-AO14) ->  | AQ9: =IF(AP9=0,0,(AP9*((LOG(AP9))/LOG(2)))) ->  | AS9: =N9 -> 121 | AT9: =COUNTIF(L44:L50,AS9) -> 0 | AU9: =AT9/(AV4-AT14) -> 0 | AV9: =IF(AU9=0,0,(AU9*((LOG(AU9))/LOG(2)))) -> 0
A10: 21 | B10: 387 | C10: 21 | D10: 395 | E10: 21 | F10: 408 | K10: 0 | L10: 222 | N10: 122 | O10: =COUNTIF($L$7:$L$500,N10) -> 4 | P10: =O10/$Q$4 -> 0.09090909091 | Q10: =IF(P10=0,0,(P10*((LOG(P10))/LOG(2)))) -> -0.3144937835 | T10: =N10 -> 122 | U10: =COUNTIF(L7:L13,T10) -> 1 | V10: =U10/(W4-U14) -> 1 | W10: =IF(V10=0,0,(V10*((LOG(V10))/LOG(2)))) -> 0 | Y10: =N10 -> 122 | Z10: =COUNTIF(L14:L21,Y10) -> 2 | AA10: =Z10/(AB4-Z14) -> 1 | AB10: =IF(AA10=0,0,(AA10*((LOG(AA10))/LOG(2)))) -> 0 | AD10: =N10 -> 122 | AE10: =COUNTIF(L22:L28,AD10) -> 0 | AF10: =AE10/(AG4-AE14) ->  | AG10: =IF(AF10=0,0,(AF10*((LOG(AF10))/LOG(2)))) ->  | AI10: =N10 -> 122 | AJ10: =COUNTIF(L29:L35,AI10) -> 0 | AK10: =AJ10/(AL4-AJ14) ->  | AL10: =IF(AK10=0,0,(AK10*((LOG(AK10))/LOG(2)))) ->  | AN10: =N10 -> 122 | AO10: =COUNTIF(L36:L43,AN10) -> 0 | AP10: =AO10/(AQ4-AO14) ->  | AQ10: =IF(AP10=0,0,(AP10*((LOG(AP10))/LOG(2)))) ->  | AS10: =N10 -> 122 | AT10: =COUNTIF(L44:L50,AS10) -> 1 | AU10: =AT10/(AV4-AT14) -> 1 | AV10: =IF(AU10=0,0,(AU10*((LOG(AU10))/LOG(2)))) -> 0
A11: 21 | B11: 549 | C11: 21 | D11: 570 | E11: 21 | F11: 577 | K11: 0 | L11: 222 | N11: 211 | O11: =COUNTIF($L$7:$L$500,N11) -> 0 | P11: =O11/$Q$4 -> 0 | Q11: =IF(P11=0,0,(P11*((LOG(P11))/LOG(2)))) -> 0 | T11: =N11 -> 211 | U11: =COUNTIF(L7:L13,T11) -> 0 | V11: =U11/(W4-U14) -> 0 | W11: =IF(V11=0,0,(V11*((LOG(V11))/LOG(2)))) -> 0 | Y11: =N11 -> 211 | Z11: =COUNTIF(L14:L21,Y11) -> 0 | AA11: =Z11/(AB4-Z14) -> 0 | AB11: =IF(AA11=0,0,(AA11*((LOG(AA11))/LOG(2)))) -> 0 | AD11: =N11 -> 211 | AE11: =COUNTIF(L22:L28,AD11) -> 0 | AF11: =AE11/(AG4-AE14) ->  | AG11: =IF(AF11=0,0,(AF11*((LOG(AF11))/LOG(2)))) ->  | AI11: =N11 -> 211 | AJ11: =COUNTIF(L29:L35,AI11) -> 0 | AK11: =AJ11/(AL4-AJ14) ->  | AL11: =IF(AK11=0,0,(AK11*((LOG(AK11))/LOG(2)))) ->  | AN11: =N11 -> 211 | AO11: =COUNTIF(L36:L43,AN11) -> 0 | AP11: =AO11/(AQ4-AO14) ->  | AQ11: =IF(AP11=0,0,(AP11*((LOG(AP11))/LOG(2)))) ->  | AS11: =N11 -> 211 | AT11: =COUNTIF(L44:L50,AS11) -> 0 | AU11: =AT11/(AV4-AT14) -> 0 | AV11: =IF(AU11=0,0,(AU11*((LOG(AU11))/LOG(2)))) -> 0
A12: 21 | B12: 747 | C12: 21 | D12: 749 | E12: 21 | F12: 752 | K12: 0 | L12: 222 | N12: 212 | O12: =COUNTIF($L$7:$L$500,N12) -> 0 | P12: =O12/$Q$4 -> 0 | Q12: =IF(P12=0,0,(P12*((LOG(P12))/LOG(2)))) -> 0 | T12: =N12 -> 212 | U12: =COUNTIF(L7:L13,T12) -> 0 | V12: =U12/(W4-U14) -> 0 | W12: =IF(V12=0,0,(V12*((LOG(V12))/LOG(2)))) -> 0 | Y12: =N12 -> 212 | Z12: =COUNTIF(L14:L21,Y12) -> 0 | AA12: =Z12/(AB4-Z14) -> 0 | AB12: =IF(AA12=0,0,(AA12*((LOG(AA12))/LOG(2)))) -> 0 | AD12: =N12 -> 212 | AE12: =COUNTIF(L22:L28,AD12) -> 0 | AF12: =AE12/(AG4-AE14) ->  | AG12: =IF(AF12=0,0,(AF12*((LOG(AF12))/LOG(2)))) ->  | AI12: =N12 -> 212 | AJ12: =COUNTIF(L29:L35,AI12) -> 0 | AK12: =AJ12/(AL4-AJ14) ->  | AL12: =IF(AK12=0,0,(AK12*((LOG(AK12))/LOG(2)))) ->  | AN12: =N12 -> 212 | AO12: =COUNTIF(L36:L43,AN12) -> 0 | AP12: =AO12/(AQ4-AO14) ->  | AQ12: =IF(AP12=0,0,(AP12*((LOG(AP12))/LOG(2)))) ->  | AS12: =N12 -> 212 | AT12: =COUNTIF(L44:L50,AS12) -> 0 | AU12: =AT12/(AV4-AT14) -> 0 | AV12: =IF(AU12=0,0,(AU12*((LOG(AU12))/LOG(2)))) -> 0
A13: 21 | B13: 951 | C13: 21 | D13: 960 | E13: 21 | F13: 970 | K13: 0 | L13: 222 | N13: 221 | O13: =COUNTIF($L$7:$L$500,N13) -> 0 | P13: =O13/$Q$4 -> 0 | Q13: =IF(P13=0,0,(P13*((LOG(P13))/LOG(2)))) -> 0 | T13: =N13 -> 221 | U13: =COUNTIF(L7:L13,T13) -> 0 | V13: =U13/(W4-U14) -> 0 | W13: =IF(V13=0,0,(V13*((LOG(V13))/LOG(2)))) -> 0 | Y13: =N13 -> 221 | Z13: =COUNTIF(L14:L21,Y13) -> 0 | AA13: =Z13/(AB4-Z14) -> 0 | AB13: =IF(AA13=0,0,(AA13*((LOG(AA13))/LOG(2)))) -> 0 | AD13: =N13 -> 221 | AE13: =COUNTIF(L22:L28,AD13) -> 0 | AF13: =AE13/(AG4-AE14) ->  | AG13: =IF(AF13=0,0,(AF13*((LOG(AF13))/LOG(2)))) ->  | AI13: =N13 -> 221 | AJ13: =COUNTIF(L29:L35,AI13) -> 0 | AK13: =AJ13/(AL4-AJ14) ->  | AL13: =IF(AK13=0,0,(AK13*((LOG(AK13))/LOG(2)))) ->  | AN13: =N13 -> 221 | AO13: =COUNTIF(L36:L43,AN13) -> 0 | AP13: =AO13/(AQ4-AO14) ->  | AQ13: =IF(AP13=0,0,(AP13*((LOG(AP13))/LOG(2)))) ->  | AS13: =N13 -> 221 | AT13: =COUNTIF(L44:L50,AS13) -> 0 | AU13: =AT13/(AV4-AT14) -> 0 | AV13: =IF(AU13=0,0,(AU13*((LOG(AU13))/LOG(2)))) -> 0
A14: 21 | B14: 1124 | C14: 21 | D14: 1131 | E14: 21 | F14: 1139 | K14: 0 | L14: 222 | N14: 222 | O14: =COUNTIF($L$7:$L$500,N14) -> 40 | P14: =O14/$Q$4 -> 0.9090909091 | Q14: =IF(P14=0,0,(P14*((LOG(P14))/LOG(2)))) -> -0.1250032034 | T14: =N14 -> 222 | U14: =COUNTIF(L7:L13,T14) -> 6 | Y14: =N14 -> 222 | Z14: =COUNTIF(L14:L21,Y14) -> 6 | AD14: =N14 -> 222 | AE14: =COUNTIF(L22:L28,AD14) -> 7 | AI14: =N14 -> 222 | AJ14: =COUNTIF(L29:L35,AI14) -> 7 | AN14: =N14 -> 222 | AO14: =COUNTIF(L36:L43,AN14) -> 8 | AS14: =N14 -> 222 | AT14: =COUNTIF(L44:L50,AS14) -> 6
A15: 21 | B15: 1285 | C15: 21 | D15: 1293 | E15: 21 | F15: 1300 | K15: 0 | L15: 222 | P15: =SUM(P7:P14) -> 1 | Q15: =-SUM(Q7:Q14) -> 0.4394969869 | V15: =SUM(V7:V14) -> 1 | W15: =-SUM(W7:W14) -> 0 | AA15: =SUM(AA7:AA14) -> 1 | AB15: =-SUM(AB7:AB14) -> 0 | AF15: =SUM(AF7:AF14) ->  | AG15: =-SUM(AG7:AG14) ->  | AK15: =SUM(AK7:AK14) ->  | AL15: =-SUM(AL7:AL14) ->  | AP15: =SUM(AP7:AP14) ->  | AQ15: =-SUM(AQ7:AQ14) ->  | AU15: =SUM(AU7:AU14) -> 1 | AV15: =-SUM(AV7:AV14) -> 0
A16: 21 | B16: 1446 | C16: 21 | D16: 1457 | E16: 21 | F16: 1464 | K16: 0 | L16: 222 | P16: U= | Q16: =Q15/(LOG(Q4)/LOG(2)) -> 0.08050233387 | V16: U1= | W16: =W15/(LOG(W4)/LOG(2)) -> 0 | AA16: U2= | AB16: =AB15/(LOG(AB4)/LOG(2)) -> 0 | AF16: U3= | AG16: =AG15/(LOG(AG4)/LOG(2)) ->  | AK16: U4= | AL16: =AL15/(LOG(AL4)/LOG(2)) ->  | AP16: U5= | AQ16: =AQ15/(LOG(AQ4)/LOG(2)) ->  | AU16: U6= | AV16: =AV15/(LOG(AV4)/LOG(2)) -> 0
A17: 21 | B17: 1610 | C17: 21 | D17: 1654 | E17: 21 | F17: 1663 | K17: 0 | L17: 222
A18: 21 | B18: 1784 | C18: 21 | D18: 1791 | E18: 21 | F18: 1800 | K18: 0 | L18: 222
A19: 12 | B19: 1989 | C19: 23 | D19: 1995 | E19: 23 | F19: 2000 | K19: 0 | L19: 122 | N19: Total Target Seq
A20: 12 | B20: 2106 | C20: 23 | D20: 2112 | E20: 23 | F20: 2116 | K20: 0 | L20: 122 | N20: =COUNTIF(L7:L50,G3) -> 40 | P20: 7 | Q20: 8 | R20: 7 | S20: 7 | T20: 8 | U20: 7
A21: 21 | B21: 2217 | C21: 21 | D21: 2225 | E21: 21 | F21: 2230 | K21: 0 | L21: 222 | P21: % of reinforcement given in 6 equal intervals based on number of trials
A22: 21 | B22: 2342 | C22: 21 | D22: 2356 | E22: 21 | F22: 2363 | K22: 0 | L22: 222 | P22: %_1 | Q22: %_2 | R22: %_3 | S22: %_4 | T22: %_5 | U22: %_6
A23: 21 | B23: 2484 | C23: 21 | D23: 2489 | E23: 21 | F23: 2496 | K23: 0 | L23: 222 | O23: target sequence | P23: =$G$3 -> 222 | Q23: =$G$3 -> 222 | R23: =$G$3 -> 222 | S23: =$G$3 -> 222 | T23: =$G$3 -> 222 | U23: =$G$3 -> 222
A24: 21 | B24: 2704 | C24: 21 | D24: 2710 | E24: 21 | F24: 2715 | K24: 0 | L24: 222 | O24: total reinforcement | P24: =U14 -> 6 | Q24: =Z14 -> 6 | R24: =AE14 -> 7 | S24: =AJ14 -> 7 | T24: =AO14 -> 8 | U24: =AT14 -> 6
A25: 21 | B25: 2860 | C25: 21 | D25: 2866 | E25: 21 | F25: 2873 | K25: 0 | L25: 222 | O25: % target
A26: 21 | B26: 3039 | C26: 21 | D26: 3043 | E26: 21 | F26: 3050 | K26: 0 | L26: 222 | O26: CCRF
A27: 21 | B27: 3252 | C27: 21 | D27: 3259 | E27: 21 | F27: 3265 | K27: 0 | L27: 222 | O27: % CCRf
A28: 21 | B28: 3375 | C28: 21 | D28: 3385 | E28: 21 | F28: 3391 | K28: 0 | L28: 222 | O28: average response rate | P28: =F13/P20 -> 138.5714286 | Q28: =(F21-F13)/Q20 -> 157.5 | R28: =(F28-F21)/R20 -> 165.8571429 | S28: =(F35-F28)/S20 -> 202.7142857 | T28: =(F43-F35)/T20 -> 212.375 | U28: =(F50-F43)/U20 -> 225
A29: 21 | B29: 3555 | C29: 21 | D29: 3566 | E29: 21 | F29: 3579 | K29: 0 | L29: 222
A30: 21 | B30: 3740 | C30: 21 | D30: 3748 | E30: 21 | F30: 3756 | K30: 0 | L30: 222
A31: 21 | B31: 3941 | C31: 21 | D31: 3944 | E31: 21 | F31: 3951 | K31: 0 | L31: 222
A32: 21 | B32: 4103 | C32: 21 | D32: 4117 | E32: 21 | F32: 4128 | K32: 0 | L32: 222
A33: 21 | B33: 4245 | C33: 21 | D33: 4249 | E33: 21 | F33: 4257 | K33: 0 | L33: 222
A34: 21 | B34: 4529 | C34: 21 | D34: 4538 | E34: 21 | F34: 4544 | K34: 0 | L34: 222
A35: 21 | B35: 4800 | C35: 21 | D35: 4804 | E35: 21 | F35: 4810 | K35: 0 | L35: 222
A36: 21 | B36: 4906 | C36: 21 | D36: 4911 | E36: 21 | F36: 4914 | K36: 0 | L36: 222
A37: 21 | B37: 5107 | C37: 21 | D37: 5113 | E37: 21 | F37: 5130 | K37: 0 | L37: 222
A38: 21 | B38: 5386 | C38: 21 | D38: 5393 | E38: 21 | F38: 5412 | K38: 0 | L38: 222
A39: 21 | B39: 5649 | C39: 21 | D39: 5654 | E39: 21 | F39: 5660 | K39: 0 | L39: 222
A40: 21 | B40: 5761 | C40: 21 | D40: 5766 | E40: 21 | F40: 5778 | K40: 0 | L40: 222
A41: 21 | B41: 6129 | C41: 21 | D41: 6133 | E41: 21 | F41: 6138 | K41: 0 | L41: 222
A42: 21 | B42: 6329 | C42: 21 | D42: 6333 | E42: 21 | F42: 6339 | K42: 0 | L42: 222
A43: 21 | B43: 6499 | C43: 21 | D43: 6503 | E43: 21 | F43: 6509 | K43: 0 | L43: 222
A44: 21 | B44: 6764 | C44: 21 | D44: 6770 | E44: 21 | F44: 6779 | K44: 0 | L44: 222
A45: 12 | B45: 6995 | C45: 23 | D45: 7003 | E45: 23 | F45: 7006 | K45: 0 | L45: 122
A46: 21 | B46: 7196 | C46: 21 | D46: 7202 | E46: 21 | F46: 7207 | K46: 0 | L46: 222
A47: 21 | B47: 7322 | C47: 21 | D47: 7329 | E47: 21 | F47: 7350 | K47: 0 | L47: 222
A48: 21 | B48: 7657 | C48: 21 | D48: 7663 | E48: 21 | F48: 7669 | K48: 0 | L48: 222
A49: 21 | B49: 7935 | C49: 21 | D49: 7941 | E49: 21 | F49: 7946 | K49: 0 | L49: 222
A50: 21 | B50: 8071 | C50: 21 | D50: 8077 | E50: 21 | F50: 8084 | K50: 1 | L50: 222

Sheet !M32995D.UST
A1: Report for:!M32995D.UST
A2: Date: | B2: <date>
A3: Hen: | B3: <hen> | F3: Correct Sequence | G3: =Start!J2 -> 222 | P3: Total Sequences in Data | Q3: =4994-COUNTBLANK(L7:L5000) -> 41 | V3: Total Sequences in Block Data | W3: =COUNTA(L7:L13) -> 7 | AA3: Total Sequences in Block Data | AB3: =COUNTA(L14:L20) -> 7 | AF3: Total Sequences in Block Data | AG3: =COUNTA(L21:L26) -> 6 | AK3: Total Sequences in Block Data | AL3: =COUNTA(L27:L33) -> 7 | AP3: Total Sequences in Block Data | AQ3: =COUNTA(L34:L40) -> 7 | AU3: Total Sequences in Block Data | AV3: =COUNTA(L41:L47) -> 7
P4: Total Sequences in Summary | Q4: =SUM(O7:O14) -> 41 | V4: Total Sequences in Block Summary | W4: =SUM(U7:U14) -> 7 | AA4: Total Sequences in Block Summary | AB4: =SUM(Z7:Z14) -> 7 | AF4: Total Sequences in Block Summary | AG4: =SUM(AE7:AE14) -> 6 | AK4: Total Sequences in Block Summary | AL4: =SUM(AJ7:AJ14) -> 7 | AP4: Total Sequences in Block Summary | AQ4: =SUM(AO7:AO14) -> 7 | AU4: Total Sequences in Block Summary | AV4: =SUM(AT7:AT14) -> 7
T5: Block 1 | Y5: Block 2 | AD5: Block 3 | AI5: Block 4 | AN5: Block 5 | AS5: Block 6
A6: Sequence Component 1 | B6: Time 1 | C6: Sequence Component 2 | D6: Time 2 | E6: Sequence Component 3 | F6: Time 3 | G6: Sequence Component 4 | H6: Time 4 | I6: Sequence Component 5 | J6: Time 5 | K6: Correct? 0=No 1=Yes | L6: Sequence | N6: Frequency | P6: Relative Frequency | Q6: Variability | T6: Frequency | V6: Relative Frequency | W6: Variability | Y6: Frequency | AA6: Relative Frequency | AB6: Variability | AD6: Frequency | AF6: Relative Frequency | AG6: Variability | AI6: Frequency | AK6: Relative Frequency | AL6: Variability | AN6: Frequency | AP6: Relative Frequency | AQ6: Variability | AS6: Frequency | AU6: Relative Frequency | AV6: Variability
A7: 12 | B7: 113 | C7: 14 | D7: 115 | E7: 14 | F7: 119 | K7: 0 | L7: 111 | N7: 111 | O7: =COUNTIF($L$7:$L$500,N7) -> 1 | P7: =O7/$Q$4 -> 0.0243902439 | Q7: =IF(P7=0,0,(P7*((LOG(P7))/LOG(2)))) -> -0.1306720001 | T7: =N7 -> 111 | U7: =COUNTIF(L7:L13,T7) -> 1 | V7: =U7/(W4-U14) -> 1 | W7: =IF(V7=0,0,(V7*((LOG(V7))/LOG(2)))) -> 0 | Y7: =N7 -> 111 | Z7: =COUNTIF(L14:L20,Y7) -> 0 | AA7: =Z7/(AB4-Z14) ->  | AB7: =IF(AA7=0,0,(AA7*((LOG(AA7))/LOG(2)))) ->  | AD7: =N7 -> 111 | AE7: =COUNTIF(L21:L26,AD7) -> 0 | AF7: =AE7/(AG4-AE14) ->  | AG7: =IF(AF7=0,0,(AF7*((LOG(AF7))/LOG(2)))) ->  | AI7: =N7 -> 111 | AJ7: =COUNTIF(L27:L33,AI7) -> 0 | AK7: =AJ7/(AL4-AJ14) ->  | AL7: =IF(AK7=0,0,(AK7*((LOG(AK7))/LOG(2)))) ->  | AN7: =N7 -> 111 | AO7: =COUNTIF(L34:L40,AN7) -> 0 | AP7: =AO7/(AQ4-AO14) ->  | AQ7: =IF(AP7=0,0,(AP7*((LOG(AP7))/LOG(2)))) ->  | AS7: =N7 -> 111 | AT7: =COUNTIF(L41:L47,AS7) -> 0 | AU7: =AT7/(AV4-AT14) ->  | AV7: =IF(AU7=0,0,(AU7*((LOG(AU7))/LOG(2)))) -> 
A8: 21 | B8: 222 | C8: 21 | D8: 230 | E8: 21 | F8: 237 | K8: 0 | L8: 222 | N8: 112 | O8: =COUNTIF($L$7:$L$500,N8) -> 0 | P8: =O8/$Q$4 -> 0 | Q8: =IF(P8=0,0,(P8*((LOG(P8))/LOG(2)))) -> 0 | T8: =N8 -> 112 | U8: =COUNTIF(L7:L13,T8) -> 0 | V8: =U8/(W4-U14) -> 0 | W8: =IF(V8=0,0,(V8*((LOG(V8))/LOG(2)))) -> 0 | Y8: =N8 -> 112 | Z8: =COUNTIF(L14:L20,Y8) -> 0 | AA8: =Z8/(AB4-Z14) ->  | AB8: =IF(AA8=0,0,(AA8*((LOG(AA8))/LOG(2)))) ->  | AD8: =N8 -> 112 | AE8: =COUNTIF(L21:L26,AD8) -> 0 | AF8: =AE8/(AG4-AE14) ->  | AG8: =IF(AF8=0,0,(AF8*((LOG(AF8))/LOG(2)))) ->  | AI8: =N8 -> 112 | AJ8: =COUNTIF(L27:L33,AI8) -> 0 | AK8: =AJ8/(AL4-AJ14) ->  | AL8: =IF(AK8=0,0,(AK8*((LOG(AK8))/LOG(2)))) ->  | AN8: =N8 -> 112 | AO8: =COUNTIF(L34:L40,AN8) -> 0 | AP8: =AO8/(AQ4-AO14) ->  | AQ8: =IF(AP8=0,0,(AP8*((LOG(AP8))/LOG(2)))) ->  | AS8: =N8 -> 112 | AT8: =COUNTIF(L41:L47,AS8) -> 0 | AU8: =AT8/(AV4-AT14) ->  | AV8: =IF(AU8=0,0,(AU8*((LOG(AU8))/LOG(2)))) -> 
A9: 21 | B9: 351 | C9: 21 | D9: 356 | E9: 21 | F9: 362 | K9: 0 | L9: 222 | N9: 121 | O9: =COUNTIF($L$7:$L$500,N9) -> 0 | P9: =O9/$Q$4 -> 0 | Q9: =IF(P9=0,0,(P9*((LOG(P9))/LOG(2)))) -> 0 | T9: =N9 -> 121 | U9: =COUNTIF(L7:L13,T9) -> 0 | V9: =U9/(W4-U14) -> 0 | W9: =IF(V9=0,0,(V9*((LOG(V9))/LOG(2)))) -> 0 | Y9: =N9 -> 121 | Z9: =COUNTIF(L14:L20,Y9) -> 0 | AA9: =Z9/(AB4-Z14) ->  | AB9: =IF(AA9=0,0,(AA9*((LOG(AA9))/LOG(2)))) ->  | AD9: =N9 -> 121 | AE9: =COUNTIF(L21:L26,AD9) -> 0 | AF9: =AE9/(AG4-AE14) ->  | AG9: =IF(AF9=0,0,(AF9*((LOG(AF9))/LOG(2)))) ->  | AI9: =N9 -> 121 | AJ9: =COUNTIF(L27:L33,AI9) -> 0 | AK9: =AJ9/(AL4-AJ14) ->  | AL9: =IF(AK9=0,0,(AK9*((LOG(AK9))/LOG(2)))) ->  | AN9: =N9 -> 121 | AO9: =COUNTIF(L34:L40,AN9) -> 0 | AP9: =AO9/(AQ4-AO14) ->  | AQ9: =IF(AP9=0,0,(AP9*((LOG(AP9))/LOG(2)))) ->  | AS9: =N9 -> 121 | AT9: =COUNTIF(L41:L47,AS9) -> 0 | AU9: =AT9/(AV4-AT14) ->  | AV9: =IF(AU9=0,0,(AU9*((LOG(AU9))/LOG(2)))) -> 
A10: 21 | B10: 464 | C10: 21 | D10: 475 | E10: 21 | F10: 507 | K10: 0 | L10: 222 | N10: 122 | O10: =COUNTIF($L$7:$L$500,N10) -> 0 | P10: =O10/$Q$4 -> 0 | Q10: =IF(P10=0,0,(P10*((LOG(P10))/LOG(2)))) -> 0 | T10: =N10 -> 122 | U10: =COUNTIF(L7:L13,T10) -> 0 | V10: =U10/(W4-U14) -> 0 | W10: =IF(V10=0,0,(V10*((LOG(V10))/LOG(2)))) -> 0 | Y10: =N10 -> 122 | Z10: =COUNTIF(L14:L20,Y10) -> 0 | AA10: =Z10/(AB4-Z14) ->  | AB10: =IF(AA10=0,0,(AA10*((LOG(AA10))/LOG(2)))) ->  | AD10: =N10 -> 122 | AE10: =COUNTIF(L21:L26,AD10) -> 0 | AF10: =AE10/(AG4-AE14) ->  | AG10: =IF(AF10=0,0,(AF10*((LOG(AF10))/LOG(2)))) ->  | AI10: =N10 -> 122 | AJ10: =COUNTIF(L27:L33,AI10) -> 0 | AK10: =AJ10/(AL4-AJ14) ->  | AL10: =IF(AK10=0,0,(AK10*((LOG(AK10))/LOG(2)))) ->  | AN10: =N10 -> 122 | AO10: =COUNTIF(L34:L40,AN10) -> 0 | AP10: =AO10/(AQ4-AO14) ->  | AQ10: =IF(AP10=0,0,(AP10*((LOG(AP10))/LOG(2)))) ->  | AS10: =N10 -> 122 | AT10: =COUNTIF(L41:L47,AS10) -> 0 | AU10: =AT10/(AV4-AT14) ->  | AV10: =IF(AU10=0,0,(AU10*((LOG(AU10))/LOG(2)))) -> 
A11: 21 | B11: 610 | C11: 21 | D11: 614 | E11: 21 | F11: 620 | K11: 0 | L11: 222 | N11: 211 | O11: =COUNTIF($L$7:$L$500,N11) -> 0 | P11: =O11/$Q$4 -> 0 | Q11: =IF(P11=0,0,(P11*((LOG(P11))/LOG(2)))) -> 0 | T11: =N11 -> 211 | U11: =COUNTIF(L7:L13,T11) -> 0 | V11: =U11/(W4-U14) -> 0 | W11: =IF(V11=0,0,(V11*((LOG(V11))/LOG(2)))) -> 0 | Y11: =N11 -> 211 | Z11: =COUNTIF(L14:L20,Y11) -> 0 | AA11: =Z11/(AB4-Z14) ->  | AB11: =IF(AA11=0,0,(AA11*((LOG(AA11))/LOG(2)))) ->  | AD11: =N11 -> 211 | AE11: =COUNTIF(L21:L26,AD11) -> 0 | AF11: =AE11/(AG4-AE14) ->  | AG11: =IF(AF11=0,0,(AF11*((LOG(AF11))/LOG(2)))) ->  | AI11: =N11 -> 211 | AJ11: =COUNTIF(L27:L33,AI11) -> 0 | AK11: =AJ11/(AL4-AJ14) ->  | AL11: =IF(AK11=0,0,(AK11*((LOG(AK11))/LOG(2)))) ->  | AN11: =N11 -> 211 | AO11: =COUNTIF(L34:L40,AN11) -> 0 | AP11: =AO11/(AQ4-AO14) ->  | AQ11: =IF(AP11=0,0,(AP11*((LOG(AP11))/LOG(2)))) ->  | AS11: =N11 -> 211 | AT11: =COUNTIF(L41:L47,AS11) -> 0 | AU11: =AT11/(AV4-AT14) ->  | AV11: =IF(AU11=0,0,(AU11*((LOG(AU11))/LOG(2)))) -> 
A12: 21 | B12: 745 | C12: 21 | D12: 753 | E12: 21 | F12: 760 | K12: 0 | L12: 222 | N12: 212 | O12: =COUNTIF($L$7:$L$500,N12) -> 0 | P12: =O12/$Q$4 -> 0 | Q12: =IF(P12=0,0,(P12*((LOG(P12))/LOG(2)))) -> 0 | T12: =N12 -> 212 | U12: =COUNTIF(L7:L13,T12) -> 0 | V12: =U12/(W4-U14) -> 0 | W12: =IF(V12=0,0,(V12*((LOG(V12))/LOG(2)))) -> 0 | Y12: =N12 -> 212 | Z12: =COUNTIF(L14:L20,Y12) -> 0 | AA12: =Z12/(AB4-Z14) ->  | AB12: =IF(AA12=0,0,(AA12*((LOG(AA12))/LOG(2)))) ->  | AD12: =N12 -> 212 | AE12: =COUNTIF(L21:L26,AD12) -> 0 | AF12: =AE12/(AG4-AE14) ->  | AG12: =IF(AF12=0,0,(AF12*((LOG(AF12))/LOG(2)))) ->  | AI12: =N12 -> 212 | AJ12: =COUNTIF(L27:L33,AI12) -> 0 | AK12: =AJ12/(AL4-AJ14) ->  | AL12: =IF(AK12=0,0,(AK12*((LOG(AK12))/LOG(2)))) ->  | AN12: =N12 -> 212 | AO12: =COUNTIF(L34:L40,AN12) -> 0 | AP12: =AO12/(AQ4-AO14) ->  | AQ12: =IF(AP12=0,0,(AP12*((LOG(AP12))/LOG(2)))) ->  | AS12: =N12 -> 212 | AT12: =COUNTIF(L41:L47,AS12) -> 0 | AU12: =AT12/(AV4-AT14) ->  | AV12: =IF(AU12=0,0,(AU12*((LOG(AU12))/LOG(2)))) -> 
A13: 21 | B13: 932 | C13: 21 | D13: 943 | E13: 21 | F13: 949 | K13: 0 | L13: 222 | N13: 221 | O13: =COUNTIF($L$7:$L$500,N13) -> 0 | P13: =O13/$Q$4 -> 0 | Q13: =IF(P13=0,0,(P13*((LOG(P13))/LOG(2)))) -> 0 | T13: =N13 -> 221 | U13: =COUNTIF(L7:L13,T13) -> 0 | V13: =U13/(W4-U14) -> 0 | W13: =IF(V13=0,0,(V13*((LOG(V13))/LOG(2)))) -> 0 | Y13: =N13 -> 221 | Z13: =COUNTIF(L14:L20,Y13) -> 0 | AA13: =Z13/(AB4-Z14) ->  | AB13: =IF(AA13=0,0,(AA13*((LOG(AA13))/LOG(2)))) ->  | AD13: =N13 -> 221 | AE13: =COUNTIF(L21:L26,AD13) -> 0 | AF13: =AE13/(AG4-AE14) ->  | AG13: =IF(AF13=0,0,(AF13*((LOG(AF13))/LOG(2)))) ->  | AI13: =N13 -> 221 | AJ13: =COUNTIF(L27:L33,AI13) -> 0 | AK13: =AJ13/(AL4-AJ14) ->  | AL13: =IF(AK13=0,0,(AK13*((LOG(AK13))/LOG(2)))) ->  | AN13: =N13 -> 221 | AO13: =COUNTIF(L34:L40,AN13) -> 0 | AP13: =AO13/(AQ4-AO14) ->  | AQ13: =IF(AP13=0,0,(AP13*((LOG(AP13))/LOG(2)))) ->  | AS13: =N13 -> 221 | AT13: =COUNTIF(L41:L47,AS13) -> 0 | AU13: =AT13/(AV4-AT14) ->  | AV13: =IF(AU13=0,0,(AU13*((LOG(AU13))/LOG(2)))) -> 
A14: 21 | B14: 1043 | C14: 21 | D14: 1050 | E14: 21 | F14: 1062 | K14: 0 | L14: 222 | N14: 222 | O14: =COUNTIF($L$7:$L$500,N14) -> 40 | P14: =O14/$Q$4 -> 0.9756097561 | Q14: =IF(P14=0,0,(P14*((LOG(P14))/LOG(2)))) -> -0.03475503388 | T14: =N14 -> 222 | U14: =COUNTIF(L7:L13,T14) -> 6 | Y14: =N14 -> 222 | Z14: =COUNTIF(L14:L20,Y14) -> 7 | AD14: =N14 -> 222 | AE14: =COUNTIF(L21:L26,AD14) -> 6 | AI14: =N14 -> 222 | AJ14: =COUNTIF(L27:L33,AI14) -> 7 | AN14: =N14 -> 222 | AO14: =COUNTIF(L34:L40,AN14) -> 7 | AS14: =N14 -> 222 | AT14: =COUNTIF(L41:L47,AS14) -> 7
A15: 21 | B15: 1216 | C15: 21 | D15: 1232 | E15: 21 | F15: 1238 | K15: 0 | L15: 222 | P15: =SUM(P7:P14) -> 1 | Q15: =-SUM(Q7:Q14) -> 0.165427034 | V15: =SUM(V7:V14) -> 1 | W15: =-SUM(W7:W14) -> 0 | AA15: =SUM(AA7:AA14) ->  | AB15: =-SUM(AB7:AB14) ->  | AF15: =SUM(AF7:AF14) ->  | AG15: =-SUM(AG7:AG14) ->  | AK15: =SUM(AK7:AK14) ->  | AL15: =-SUM(AL7:AL14) ->  | AP15: =SUM(AP7:AP14) ->  | AQ15: =-SUM(AQ7:AQ14) ->  | AU15: =SUM(AU7:AU14) ->  | AV15: =-SUM(AV7:AV14) -> 
A16: 21 | B16: 1350 | C16: 21 | D16: 1356 | E16: 21 | F16: 1362 | K16: 0 | L16: 222 | P16: U= | Q16: =Q15/(LOG(Q4)/LOG(2)) -> 0.03087735478 | V16: U1= | W16: =W15/(LOG(W4)/LOG(2)) -> 0 | AA16: U2= | AB16: =AB15/(LOG(AB4)/LOG(2)) ->  | AF16: U3= | AG16: =AG15/(LOG(AG4)/LOG(2)) ->  | AK16: U4= | AL16: =AL15/(LOG(AL4)/LOG(2)) ->  | AP16: U5= | AQ16: =AQ15/(LOG(AQ4)/LOG(2)) ->  | AU16: U6= | AV16: =AV15/(LOG(AV4)/LOG(2)) -> 
A17: 21 | B17: 1582 | C17: 21 | D17: 1591 | E17: 21 | F17: 1593 | K17: 0 | L17: 222
A18: 21 | B18: 1699 | C18: 21 | D18: 1704 | E18: 21 | F18: 1707 | K18: 0 | L18: 222
A19: 21 | B19: 1835 | C19: 21 | D19: 1843 | E19: 21 | F19: 1849 | K19: 0 | L19: 222 | N19: Total Target Seq
A20: 21 | B20: 1990 | C20: 21 | D20: 1995 | E20: 21 | F20: 2001 | K20: 0 | L20: 222 | N20: =COUNTIF(L7:L47,G3) -> 40 | P20: 7 | Q20: 7 | R20: 6 | S20: 7 | T20: 7 | U20: 7
A21: 21 | B21: 2106 | C21: 21 | D21: 2117 | E21: 21 | F21: 2122 | K21: 0 | L21: 222 | P21: % of reinforcement given in 6 equal intervals based on number of trials
A22: 21 | B22: 2243 | C22: 21 | D22: 2245 | E22: 21 | F22: 2253 | K22: 0 | L22: 222 | P22: %_1 | Q22: %_2 | R22: %_3 | S22: %_4 | T22: %_5 | U22: %_6
A23: 21 | B23: 2384 | C23: 21 | D23: 2387 | E23: 21 | F23: 2401 | K23: 0 | L23: 222 | O23: target sequence | P23: =$G$3 -> 222 | Q23: =$G$3 -> 222 | R23: =$G$3 -> 222 | S23: =$G$3 -> 222 | T23: =$G$3 -> 222 | U23: =$G$3 -> 222
A24: 21 | B24: 2544 | C24: 21 | D24: 2547 | E24: 21 | F24: 2553 | K24: 0 | L24: 222 | O24: total reinforcement | P24: =U14 -> 6 | Q24: =Z14 -> 7 | R24: =AE14 -> 6 | S24: =AJ14 -> 7 | T24: =AO14 -> 7 | U24: =AT14 -> 7
A25: 21 | B25: 2712 | C25: 21 | D25: 2723 | E25: 21 | F25: 2737 | K25: 0 | L25: 222 | O25: % target
A26: 21 | B26: 2878 | C26: 21 | D26: 2882 | E26: 21 | F26: 2892 | K26: 0 | L26: 222 | O26: CCRF
A27: 21 | B27: 3037 | C27: 21 | D27: 3039 | E27: 21 | F27: 3046 | K27: 0 | L27: 222 | O27: % CCRf
A28: 21 | B28: 3234 | C28: 21 | D28: 3240 | E28: 21 | F28: 3246 | K28: 0 | L28: 222 | O28: average response rate | P28: =F13/P20 -> 135.5714286 | Q28: =(F20-F13)/Q20 -> 150.2857143 | R28: =(F26-F20)/R20 -> 148.5 | S28: =(F33-F26)/S20 -> 181.8571429 | T28: =(F40-F33)/T20 -> 201.8571429 | U28: =(F47-F40)/U20 -> 180.1428571
A29: 21 | B29: 3475 | C29: 21 | D29: 3478 | E29: 21 | F29: 3488 | K29: 0 | L29: 222
A30: 21 | B30: 3641 | C30: 21 | D30: 3651 | E30: 21 | F30: 3656 | K30: 0 | L30: 222
A31: 21 | B31: 3794 | C31: 21 | D31: 3799 | E31: 21 | F31: 3809 | K31: 0 | L31: 222
A32: 21 | B32: 3983 | C32: 21 | D32: 3993 | E32: 21 | F32: 3999 | K32: 0 | L32: 222
A33: 21 | B33: 4151 | C33: 21 | D33: 4156 | E33: 21 | F33: 4165 | K33: 0 | L33: 222
A34: 21 | B34: 4436 | C34: 21 | D34: 4441 | E34: 21 | F34: 4446 | K34: 0 | L34: 222
A35: 21 | B35: 4581 | C35: 21 | D35: 4593 | E35: 21 | F35: 4598 | K35: 0 | L35: 222
A36: 21 | B36: 4884 | C36: 21 | D36: 4888 | E36: 21 | F36: 4893 | K36: 0 | L36: 222
A37: 21 | B37: 5036 | C37: 21 | D37: 5042 | E37: 21 | F37: 5048 | K37: 0 | L37: 222
A38: 21 | B38: 5205 | C38: 21 | D38: 5211 | E38: 21 | F38: 5216 | K38: 0 | L38: 222
A39: 21 | B39: 5382 | C39: 21 | D39: 5387 | E39: 21 | F39: 5394 | K39: 0 | L39: 222
A40: 21 | B40: 5564 | C40: 21 | D40: 5571 | E40: 21 | F40: 5578 | K40: 0 | L40: 222
A41: 21 | B41: 5819 | C41: 21 | D41: 5824 | E41: 21 | F41: 5829 | K41: 0 | L41: 222
A42: 21 | B42: 5950 | C42: 21 | D42: 5955 | E42: 21 | F42: 5961 | K42: 0 | L42: 222
A43: 21 | B43: 6127 | C43: 21 | D43: 6132 | E43: 21 | F43: 6137 | K43: 0 | L43: 222
A44: 21 | B44: 6349 | C44: 21 | D44: 6356 | E44: 21 | F44: 6369 | K44: 0 | L44: 222
A45: 21 | B45: 6540 | C45: 21 | D45: 6547 | E45: 21 | F45: 6549 | K45: 0 | L45: 222
A46: 21 | B46: 6670 | C46: 21 | D46: 6673 | E46: 21 | F46: 6680 | K46: 0 | L46: 222
A47: 21 | B47: 6829 | C47: 21 | D47: 6834 | E47: 21 | F47: 6839 | K47: 1 | L47: 222

Sheet !M330A2D.UST
A1: Report for:!M330A2D.UST
A2: Date: | B2: <date>
A3: Hen: | B3: <hen> | F3: Correct Sequence | G3: =Start!J2 -> 222 | P3: Total Sequences in Data | Q3: =4994-COUNTBLANK(L7:L5000) -> 41 | V3: Total Sequences in Block Data | W3: =COUNTA(L7:L13) -> 7 | AA3: Total Sequences in Block Data | AB3: =COUNTA(L14:L20) -> 7 | AF3: Total Sequences in Block Data | AG3: =COUNTA(L21:L26) -> 6 | AK3: Total Sequences in Block Data | AL3: =COUNTA(L27:L33) -> 7 | AP3: Total Sequences in Block Data | AQ3: =COUNTA(L34:L40) -> 7 | AU3: Total Sequences in Block Data | AV3: =COUNTA(L41:L47) -> 7
P4: Total Sequences in Summary | Q4: =SUM(O7:O14) -> 41 | V4: Total Sequences in Block Summary | W4: =SUM(U7:U14) -> 7 | AA4: Total Sequences in Block Summary | AB4: =SUM(Z7:Z14) -> 7 | AF4: Total Sequences in Block Summary | AG4: =SUM(AE7:AE14) -> 6 | AK4: Total Sequences in Block Summary | AL4: =SUM(AJ7:AJ14) -> 7 | AP4: Total Sequences in Block Summary | AQ4: =SUM(AO7:AO14) -> 7 | AU4: Total Sequences in Block Summary | AV4: =SUM(AT7:AT14) -> 7
T5: Block 1 | Y5: Block 2 | AD5: Block 3 | AI5: Block 4 | AN5: Block 5 | AS5: Block 6
A6: Sequence Component 1 | B6: Time 1 | C6: Sequence Component 2 | D6: Time 2 | E6: Sequence Component 3 | F6: Time 3 | G6: Sequence Component 4 | H6: Time 4 | I6: Sequence Component 5 | J6: Time 5 | K6: Correct? 0=No 1=Yes | L6: Sequence | N6: Frequency | P6: Relative Frequency | Q6: Variability | T6: Frequency | V6: Relative Frequency | W6: Variability | Y6: Frequency | AA6: Relative Frequency | AB6: Variability | AD6: Frequency | AF6: Relative Frequency | AG6: Variability | AI6: Frequency | AK6: Relative Frequency | AL6: Variability | AN6: Frequency | AP6: Relative Frequency | AQ6: Variability | AS6: Frequency | AU6: Relative Frequency | AV6: Variability
A7: 21 | B7: 48 | C7: 21 | D7: 53 | E7: 21 | F7: 59 | K7: 0 | L7: 222 | N7: 111 | O7: =COUNTIF($L$7:$L$500,N7) -> 1 | P7: =O7/$Q$4 -> 0.0243902439 | Q7: =IF(P7=0,0,(P7*((LOG(P7))/LOG(2)))) -> -0.1306720001 | T7: =N7 -> 111 | U7: =COUNTIF(L7:L13,T7) -> 0 | V7: =U7/(W4-U14) ->  | W7: =IF(V7=0,0,(V7*((LOG(V7))/LOG(2)))) ->  | Y7: =N7 -> 111 | Z7: =COUNTIF(L14:L20,Y7) -> 0 | AA7: =Z7/(AB4-Z14) ->  | AB7: =IF(AA7=0,0,(AA7*((LOG(AA7))/LOG(2)))) ->  | AD7: =N7 -> 111 | AE7: =COUNTIF(L21:L26,AD7) -> 0 | AF7: =AE7/(AG4-AE14) ->  | AG7: =IF(AF7=0,0,(AF7*((LOG(AF7))/LOG(2)))) ->  | AI7: =N7 -> 111 | AJ7: =COUNTIF(L27:L33,AI7) -> 0 | AK7: =AJ7/(AL4-AJ14) ->  | AL7: =IF(AK7=0,0,(AK7*((LOG(AK7))/LOG(2)))) ->  | AN7: =N7 -> 111 | AO7: =COUNTIF(L34:L40,AN7) -> 1 | AP7: =AO7/(AQ4-AO14) -> 1 | AQ7: =IF(AP7=0,0,(AP7*((LOG(AP7))/LOG(2)))) -> 0 | AS7: =N7 -> 111 | AT7: =COUNTIF(L41:L47,AS7) -> 0 | AU7: =AT7/(AV4-AT14) ->  | AV7: =IF(AU7=0,0,(AU7*((LOG(AU7))/LOG(2)))) -> 
A8: 21 | B8: 182 | C8: 21 | D8: 190 | E8: 21 | F8: 198 | K8: 0 | L8: 222 | N8: 112 | O8: =COUNTIF($L$7:$L$500,N8) -> 0 | P8: =O8/$Q$4 -> 0 | Q8: =IF(P8=0,0,(P8*((LOG(P8))/LOG(2)))) -> 0 | T8: =N8 -> 112 | U8: =COUNTIF(L7:L13,T8) -> 0 | V8: =U8/(W4-U14) ->  | W8: =IF(V8=0,0,(V8*((LOG(V8))/LOG(2)))) ->  | Y8: =N8 -> 112 | Z8: =COUNTIF(L14:L20,Y8) -> 0 | AA8: =Z8/(AB4-Z14) ->  | AB8: =IF(AA8=0,0,(AA8*((LOG(AA8))/LOG(2)))) ->  | AD8: =N8 -> 112 | AE8: =COUNTIF(L21:L26,AD8) -> 0 | AF8: =AE8/(AG4-AE14) ->  | AG8: =IF(AF8=0,0,(AF8*((LOG(AF8))/LOG(2)))) ->  | AI8: =N8 -> 112 | AJ8: =COUNTIF(L27:L33,AI8) -> 0 | AK8: =AJ8/(AL4-AJ14) ->  | AL8: =IF(AK8=0,0,(AK8*((LOG(AK8))/LOG(2)))) ->  | AN8: =N8 -> 112 | AO8: =COUNTIF(L34:L40,AN8) -> 0 | AP8: =AO8/(AQ4-AO14) -> 0 | AQ8: =IF(AP8=0,0,(AP8*((LOG(AP8))/LOG(2)))) -> 0 | AS8: =N8 -> 112 | AT8: =COUNTIF(L41:L47,AS8) -> 0 | AU8: =AT8/(AV4-AT14) ->  | AV8: =IF(AU8=0,0,(AU8*((LOG(AU8))/LOG(2)))) -> 
A9: 21 | B9: 318 | C9: 21 | D9: 324 | E9: 21 | F9: 330 | K9: 0 | L9: 222 | N9: 121 | O9: =COUNTIF($L$7:$L$500,N9) -> 0 | P9: =O9/$Q$4 -> 0 | Q9: =IF(P9=0,0,(P9*((LOG(P9))/LOG(2)))) -> 0 | T9: =N9 -> 121 | U9: =COUNTIF(L7:L13,T9) -> 0 | V9: =U9/(W4-U14) ->  | W9: =IF(V9=0,0,(V9*((LOG(V9))/LOG(2)))) ->  | Y9: =N9 -> 121 | Z9: =COUNTIF(L14:L20,Y9) -> 0 | AA9: =Z9/(AB4-Z14) ->  | AB9: =IF(AA9=0,0,(AA9*((LOG(AA9))/LOG(2)))) ->  | AD9: =N9 -> 121 | AE9: =COUNTIF(L21:L26,AD9) -> 0 | AF9: =AE9/(AG4-AE14) ->  | AG9: =IF(AF9=0,0,(AF9*((LOG(AF9))/LOG(2)))) ->  | AI9: =N9 -> 121 | AJ9: =COUNTIF(L27:L33,AI9) -> 0 | AK9: =AJ9/(AL4-AJ14) ->  | AL9: =IF(AK9=0,0,(AK9*((LOG(AK9))/LOG(2)))) ->  | AN9: =N9 -> 121 | AO9: =COUNTIF(L34:L40,AN9) -> 0 | AP9: =AO9/(AQ4-AO14) -> 0 | AQ9: =IF(AP9=0,0,(AP9*((LOG(AP9))/LOG(2)))) -> 0 | AS9: =N9 -> 121 | AT9: =COUNTIF(L41:L47,AS9) -> 0 | AU9: =AT9/(AV4-AT14) ->  | AV9: =IF(AU9=0,0,(AU9*((LOG(AU9))/LOG(2)))) -> 
A10: 21 | B10: 435 | C10: 21 | D10: 439 | E10: 21 | F10: 447 | K10: 0 | L10: 222 | N10: 122 | O10: =COUNTIF($L$7:$L$500,N10) -> 0 | P10: =O10/$Q$4 -> 0 | Q10: =IF(P10=0,0,(P10*((LOG(P10))/LOG(2)))) -> 0 | T10: =N10 -> 122 | U10: =COUNTIF(L7:L13,T10) -> 0 | V10: =U10/(W4-U14) ->  | W10: =IF(V10=0,0,(V10*((LOG(V10))/LOG(2)))) ->  | Y10: =N10 -> 122 | Z10: =COUNTIF(L14:L20,Y10) -> 0 | AA10: =Z10/(AB4-Z14) ->  | AB10: =IF(AA10=0,0,(AA10*((LOG(AA10))/LOG(2)))) ->  | AD10: =N10 -> 122 | AE10: =COUNTIF(L21:L26,AD10) -> 0 | AF10: =AE10/(AG4-AE14) ->  | AG10: =IF(AF10=0,0,(AF10*((LOG(AF10))/LOG(2)))) ->  | AI10: =N10 -> 122 | AJ10: =COUNTIF(L27:L33,AI10) -> 0 | AK10: =AJ10/(AL4-AJ14) ->  | AL10: =IF(AK10=0,0,(AK10*((LOG(AK10))/LOG(2)))) ->  | AN10: =N10 -> 122 | AO10: =COUNTIF(L34:L40,AN10) -> 0 | AP10: =AO10/(AQ4-AO14) -> 0 | AQ10: =IF(AP10=0,0,(AP10*((LOG(AP10))/LOG(2)))) -> 0 | AS10: =N10 -> 122 | AT10: =COUNTIF(L41:L47,AS10) -> 0 | AU10: =AT10/(AV4-AT14) ->  | AV10: =IF(AU10=0,0,(AU10*((LOG(AU10))/LOG(2)))) -> 
A11: 21 | B11: 686 | C11: 21 | D11: 692 | E11: 21 | F11: 697 | K11: 0 | L11: 222 | N11: 211 | O11: =COUNTIF($L$7:$L$500,N11) -> 0 | P11: =O11/$Q$4 -> 0 | Q11: =IF(P11=0,0,(P11*((LOG(P11))/LOG(2)))) -> 0 | T11: =N11 -> 211 | U11: =COUNTIF(L7:L13,T11) -> 0 | V11: =U11/(W4-U14) ->  | W11: =IF(V11=0,0,(V11*((LOG(V11))/LOG(2)))) ->  | Y11: =N11 -> 211 | Z11: =COUNTIF(L14:L20,Y11) -> 0 | AA11: =Z11/(AB4-Z14) ->  | AB11: =IF(AA11=0,0,(AA11*((LOG(AA11))/LOG(2)))) ->  | AD11: =N11 -> 211 | AE11: =COUNTIF(L21:L26,AD11) -> 0 | AF11: =AE11/(AG4-AE14) ->  | AG11: =IF(AF11=0,0,(AF11*((LOG(AF11))/LOG(2)))) ->  | AI11: =N11 -> 211 | AJ11: =COUNTIF(L27:L33,AI11) -> 0 | AK11: =AJ11/(AL4-AJ14) ->  | AL11: =IF(AK11=0,0,(AK11*((LOG(AK11))/LOG(2)))) ->  | AN11: =N11 -> 211 | AO11: =COUNTIF(L34:L40,AN11) -> 0 | AP11: =AO11/(AQ4-AO14) -> 0 | AQ11: =IF(AP11=0,0,(AP11*((LOG(AP11))/LOG(2)))) -> 0 | AS11: =N11 -> 211 | AT11: =COUNTIF(L41:L47,AS11) -> 0 | AU11: =AT11/(AV4-AT14) ->  | AV11: =IF(AU11=0,0,(AU11*((LOG(AU11))/LOG(2)))) -> 
A12: 21 | B12: 812 | C12: 21 | D12: 819 | E12: 21 | F12: 830 | K12: 0 | L12: 222 | N12: 212 | O12: =COUNTIF($L$7:$L$500,N12) -> 0 | P12: =O12/$Q$4 -> 0 | Q12: =IF(P12=0,0,(P12*((LOG(P12))/LOG(2)))) -> 0 | T12: =N12 -> 212 | U12: =COUNTIF(L7:L13,T12) -> 0 | V12: =U12/(W4-U14) ->  | W12: =IF(V12=0,0,(V12*((LOG(V12))/LOG(2)))) ->  | Y12: =N12 -> 212 | Z12: =COUNTIF(L14:L20,Y12) -> 0 | AA12: =Z12/(AB4-Z14) ->  | AB12: =IF(AA12=0,0,(AA12*((LOG(AA12))/LOG(2)))) ->  | AD12: =N12 -> 212 | AE12: =COUNTIF(L21:L26,AD12) -> 0 | AF12: =AE12/(AG4-AE14) ->  | AG12: =IF(AF12=0,0,(AF12*((LOG(AF12))/LOG(2)))) ->  | AI12: =N12 -> 212 | AJ12: =COUNTIF(L27:L33,AI12) -> 0 | AK12: =AJ12/(AL4-AJ14) ->  | AL12: =IF(AK12=0,0,(AK12*((LOG(AK12))/LOG(2)))) ->  | AN12: =N12 -> 212 | AO12: =COUNTIF(L34:L40,AN12) -> 0 | AP12: =AO12/(AQ4-AO14) -> 0 | AQ12: =IF(AP12=0,0,(AP12*((LOG(AP12))/LOG(2)))) -> 0 | AS12: =N12 -> 212 | AT12: =COUNTIF(L41:L47,AS12) -> 0 | AU12: =AT12/(AV4-AT14) ->  | AV12: =IF(AU12=0,0,(AU12*((LOG(AU12))/LOG(2)))) -> 
A13: 21 | B13: 1052 | C13: 21 | D13: 1059 | E13: 21 | F13: 1064 | K13: 0 | L13: 222 | N13: 221 | O13: =COUNTIF($L$7:$L$500,N13) -> 0 | P13: =O13/$Q$4 -> 0 | Q13: =IF(P13=0,0,(P13*((LOG(P13))/LOG(2)))) -> 0 | T13: =N13 -> 221 | U13: =COUNTIF(L7:L13,T13) -> 0 | V13: =U13/(W4-U14) ->  | W13: =IF(V13=0,0,(V13*((LOG(V13))/LOG(2)))) ->  | Y13: =N13 -> 221 | Z13: =COUNTIF(L14:L20,Y13) -> 0 | AA13: =Z13/(AB4-Z14) ->  | AB13: =IF(AA13=0,0,(AA13*((LOG(AA13))/LOG(2)))) ->  | AD13: =N13 -> 221 | AE13: =COUNTIF(L21:L26,AD13) -> 0 | AF13: =AE13/(AG4-AE14) ->  | AG13: =IF(AF13=0,0,(AF13*((LOG(AF13))/LOG(2)))) ->  | AI13: =N13 -> 221 | AJ13: =COUNTIF(L27:L33,AI13) -> 0 | AK13: =AJ13/(AL4-AJ14) ->  | AL13: =IF(AK13=0,0,(AK13*((LOG(AK13))/LOG(2)))) ->  | AN13: =N13 -> 221 | AO13: =COUNTIF(L34:L40,AN13) -> 0 | AP13: =AO13/(AQ4-AO14) -> 0 | AQ13: =IF(AP13=0,0,(AP13*((LOG(AP13))/LOG(2)))) -> 0 | AS13: =N13 -> 221 | AT13: =COUNTIF(L41:L47,AS13) -> 0 | AU13: =AT13/(AV4-AT14) ->  | AV13: =IF(AU13=0,0,(AU13*((LOG(AU13))/LOG(2)))) -> 
A14: 21 | B14: 1262 | C14: 21 | D14: 1268 | E14: 21 | F14: 1274 | K14: 0 | L14: 222 | N14: 222 | O14: =COUNTIF($L$7:$L$500,N14) -> 40 | P14: =O14/$Q$4 -> 0.9756097561 | Q14: =IF(P14=0,0,(P14*((LOG(P14))/LOG(2)))) -> -0.03475503388 | T14: =N14 -> 222 | U14: =COUNTIF(L7:L13,T14) -> 7 | Y14: =N14 -> 222 | Z14: =COUNTIF(L14:L20,Y14) -> 7 | AD14: =N14 -> 222 | AE14: =COUNTIF(L21:L26,AD14) -> 6 | AI14: =N14 -> 222 | AJ14: =COUNTIF(L27:L33,AI14) -> 7 | AN14: =N14 -> 222 | AO14: =COUNTIF(L34:L40,AN14) -> 6 | AS14: =N14 -> 222 | AT14: =COUNTIF(L41:L47,AS14) -> 7
A15: 21 | B15: 1516 | C15: 21 | D15: 1522 | E15: 21 | F15: 1553 | K15: 0 | L15: 222 | P15: =SUM(P7:P14) -> 1 | Q15: =-SUM(Q7:Q14) -> 0.165427034 | V15: =SUM(V7:V14) ->  | W15: =-SUM(W7:W14) ->  | AA15: =SUM(AA7:AA14) ->  | AB15: =-SUM(AB7:AB14) ->  | AF15: =SUM(AF7:AF14) ->  | AG15: =-SUM(AG7:AG14) ->  | AK15: =SUM(AK7:AK14) ->  | AL15: =-SUM(AL7:AL14) ->  | AP15: =SUM(AP7:AP14) -> 1 | AQ15: =-SUM(AQ7:AQ14) -> 0 | AU15: =SUM(AU7:AU14) ->  | AV15: =-SUM(AV7:AV14) -> 
A16: 21 | B16: 1727 | C16: 21 | D16: 1737 | E16: 21 | F16: 1749 | K16: 0 | L16: 222 | P16: U= | Q16: =Q15/(LOG(Q4)/LOG(2)) -> 0.03087735478 | V16: U1= | W16: =W15/(LOG(W4)/LOG(2)) ->  | AA16: U2= | AB16: =AB15/(LOG(AB4)/LOG(2)) ->  | AF16: U3= | AG16: =AG15/(LOG(AG4)/LOG(2)) ->  | AK16: U4= | AL16: =AL15/(LOG(AL4)/LOG(2)) ->  | AP16: U5= | AQ16: =AQ15/(LOG(AQ4)/LOG(2)) -> 0 | AU16: U6= | AV16: =AV15/(LOG(AV4)/LOG(2)) -> 
A17: 21 | B17: 1899 | C17: 21 | D17: 1903 | E17: 21 | F17: 1909 | K17: 0 | L17: 222
A18: 21 | B18: 2105 | C18: 21 | D18: 2109 | E18: 21 | F18: 2114 | K18: 0 | L18: 222
A19: 21 | B19: 2294 | C19: 21 | D19: 2299 | E19: 21 | F19: 2305 | K19: 0 | L19: 222 | N19: Total Target Seq
A20: 21 | B20: 2520 | C20: 21 | D20: 2528 | E20: 21 | F20: 2533 | K20: 0 | L20: 222 | N20: =COUNTIF(L7:L47,G3) -> 40 | P20: 7 | Q20: 7 | R20: 6 | S20: 7 | T20: 7 | U20: 7
A21: 21 | B21: 2659 | C21: 21 | D21: 2664 | E21: 21 | F21: 2675 | K21: 0 | L21: 222 | P21: % of reinforcement given in 6 equal intervals based on number of trials
A22: 21 | B22: 2855 | C22: 21 | D22: 2864 | E22: 21 | F22: 2869 | K22: 0 | L22: 222 | P22: %_1 | Q22: %_2 | R22: %_3 | S22: %_4 | T22: %_5 | U22: %_6
A23: 21 | B23: 3121 | C23: 21 | D23: 3134 | E23: 21 | F23: 3141 | K23: 0 | L23: 222 | O23: target sequence | P23: =$G$3 -> 222 | Q23: =$G$3 -> 222 | R23: =$G$3 -> 222 | S23: =$G$3 -> 222 | T23: =$G$3 -> 222 | U23: =$G$3 -> 222
A24: 21 | B24: 3350 | C24: 21 | D24: 3354 | E24: 21 | F24: 3365 | K24: 0 | L24: 222 | O24: total reinforcement | P24: =U14 -> 7 | Q24: =Z14 -> 7 | R24: =AE14 -> 6 | S24: =AJ14 -> 7 | T24: =AO14 -> 6 | U24: =AT14 -> 7
A25: 21 | B25: 3520 | C25: 21 | D25: 3526 | E25: 21 | F25: 3555 | K25: 0 | L25: 222 | O25: % target
A26: 21 | B26: 3674 | C26: 21 | D26: 3687 | E26: 21 | F26: 3694 | K26: 0 | L26: 222 | O26: CCRF
A27: 21 | B27: 3804 | C27: 21 | D27: 3811 | E27: 21 | F27: 3817 | K27: 0 | L27: 222 | O27: % CCRf
A28: 21 | B28: 3994 | C28: 21 | D28: 4002 | E28: 21 | F28: 4008 | K28: 0 | L28: 222 | O28: average response rate | P28: =F13/P20 -> 152 | Q28: =(F20-F13)/Q20 -> 209.8571429 | R28: =(F26-F20)/R20 -> 193.5 | S28: =(F33-F26)/S20 -> 191.2857143 | T28: =(F40-F33)/T20 -> 184.2857143 | U28: =(F47-F40)/U20 -> 191.2857143
A29: 21 | B29: 4220 | C29: 21 | D29: 4228 | E29: 21 | F29: 4233 | K29: 0 | L29: 222
A30: 21 | B30: 4418 | C30: 21 | D30: 4429 | E30: 21 | F30: 4435 | K30: 0 | L30: 222
A31: 21 | B31: 4600 | C31: 21 | D31: 4605 | E31: 21 | F31: 4615 | K31: 0 | L31: 222
A32: 21 | B32: 4807 | C32: 21 | D32: 4812 | E32: 21 | F32: 4819 | K32: 0 | L32: 222
A33: 21 | B33: 5021 | C33: 21 | D33: 5027 | E33: 21 | F33: 5033 | K33: 0 | L33: 222
A34: 21 | B34: 5299 | C34: 21 | D34: 5305 | E34: 21 | F34: 5310 | K34: 0 | L34: 222
A35: 21 | B35: 5459 | C35: 21 | D35: 5466 | E35: 21 | F35: 5472 | K35: 0 | L35: 222
A36: 21 | B36: 5686 | C36: 21 | D36: 5694 | E36: 21 | F36: 5701 | K36: 0 | L36: 222
A37: 12 | B37: 5818 | C37: 14 | D37: 5840 | E37: 14 | F37: 5849 | K37: 0 | L37: 111
A38: 21 | B38: 5943 | C38: 21 | D38: 5950 | E38: 21 | F38: 5956 | K38: 0 | L38: 222
A39: 21 | B39: 6093 | C39: 21 | D39: 6100 | E39: 21 | F39: 6108 | K39: 0 | L39: 222
A40: 21 | B40: 6309 | C40: 21 | D40: 6318 | E40: 21 | F40: 6323 | K40: 0 | L40: 222
A41: 21 | B41: 6508 | C41: 21 | D41: 6514 | E41: 21 | F41: 6520 | K41: 0 | L41: 222
A42: 21 | B42: 6659 | C42: 21 | D42: 6668 | E42: 21 | F42: 6674 | K42: 0 | L42: 222
A43: 21 | B43: 6840 | C43: 21 | D43: 6848 | E43: 21 | F43: 6861 | K43: 0 | L43: 222
A44: 21 | B44: 7029 | C44: 21 | D44: 7036 | E44: 21 | F44: 7042 | K44: 0 | L44: 222
A45: 21 | B45: 7229 | C45: 21 | D45: 7241 | E45: 21 | F45: 7247 | K45: 0 | L45: 222
A46: 21 | B46: 7499 | C46: 21 | D46: 7505 | E46: 21 | F46: 7511 | K46: 0 | L46: 222
A47: 21 | B47: 7650 | C47: 21 | D47: 7655 | E47: 21 | F47: 7662 | K47: 1 | L47: 222

Sheet !M331A4D.UST
A1: Report for:!M331A4D.UST
A2: Date: | B2: <date>
A3: Hen: | B3: <hen> | F3: Correct Sequence | G3: =Start!J2 -> 222 | P3: Total Sequences in Data | Q3: =4994-COUNTBLANK(L7:L5000) -> 40 | V3: Total Sequences in Block Data | W3: =COUNTA(L7:L13) -> 7 | AA3: Total Sequences in Block Data | AB3: =COUNTA(L14:L19) -> 6 | AF3: Total Sequences in Block Data | AG3: =COUNTA(L20:L26) -> 7 | AK3: Total Sequences in Block Data | AL3: =COUNTA(L27:L33) -> 7 | AP3: Total Sequences in Block Data | AQ3: =COUNTA(L34:L39) -> 6 | AU3: Total Sequences in Block Data | AV3: =COUNTA(L40:L46) -> 7
P4: Total Sequences in Summary | Q4: =SUM(O7:O14) -> 40 | V4: Total Sequences in Block Summary | W4: =SUM(U7:U14) -> 7 | AA4: Total Sequences in Block Summary | AB4: =SUM(Z7:Z14) -> 6 | AF4: Total Sequences in Block Summary | AG4: =SUM(AE7:AE14) -> 7 | AK4: Total Sequences in Block Summary | AL4: =SUM(AJ7:AJ14) -> 7 | AP4: Total Sequences in Block Summary | AQ4: =SUM(AO7:AO14) -> 6 | AU4: Total Sequences in Block Summary | AV4: =SUM(AT7:AT14) -> 7
T5: Block 1 | Y5: Block 2 | AD5: Block 3 | AI5: Block 4 | AN5: Block 5 | AS5: Block 6
A6: Sequence Component 1 | B6: Time 1 | C6: Sequence Component 2 | D6: Time 2 | E6: Sequence Component 3 | F6: Time 3 | G6: Sequence Component 4 | H6: Time 4 | I6: Sequence Component 5 | J6: Time 5 | K6: Correct? 0=No 1=Yes | L6: Sequence | N6: Frequency | P6: Relative Frequency | Q6: Variability | T6: Frequency | V6: Relative Frequency | W6: Variability | Y6: Frequency | AA6: Relative Frequency | AB6: Variability | AD6: Frequency | AF6: Relative Frequency | AG6: Variability | AI6: Frequency | AK6: Relative Frequency | AL6: Variability | AN6: Frequency | AP6: Relative Frequency | AQ6: Variability | AS6: Frequency | AU6: Relative Frequency | AV6: Variability
A7: 21 | B7: 26 | C7: 21 | D7: 32 | E7: 21 | F7: 39 | K7: 0 | L7: 222 | N7: 111 | O7: =COUNTIF($L$7:$L$500,N7) -> 0 | P7: =O7/$Q$4 -> 0 | Q7: =IF(P7=0,0,(P7*((LOG(P7))/LOG(2)))) -> 0 | T7: =N7 -> 111 | U7: =COUNTIF(L7:L13,T7) -> 0 | V7: =U7/(W4-U14) ->  | W7: =IF(V7=0,0,(V7*((LOG(V7))/LOG(2)))) ->  | Y7: =N7 -> 111 | Z7: =COUNTIF(L14:L19,Y7) -> 0 | AA7: =Z7/(AB4-Z14) ->  | AB7: =IF(AA7=0,0,(AA7*((LOG(AA7))/LOG(2)))) ->  | AD7: =N7 -> 111 | AE7: =COUNTIF(L20:L26,AD7) -> 0 | AF7: =AE7/(AG4-AE14) ->  | AG7: =IF(AF7=0,0,(AF7*((LOG(AF7))/LOG(2)))) ->  | AI7: =N7 -> 111 | AJ7: =COUNTIF(L27:L33,AI7) -> 0 | AK7: =AJ7/(AL4-AJ14) ->  | AL7: =IF(AK7=0,0,(AK7*((LOG(AK7))/LOG(2)))) ->  | AN7: =N7 -> 111 | AO7: =COUNTIF(L34:L39,AN7) -> 0 | AP7: =AO7/(AQ4-AO14) ->  | AQ7: =IF(AP7=0,0,(AP7*((LOG(AP7))/LOG(2)))) ->  | AS7: =N7 -> 111 | AT7: =COUNTIF(L40:L46,AS7) -> 0 | AU7: =AT7/(AV4-AT14) ->  | AV7: =IF(AU7=0,0,(AU7*((LOG(AU7))/LOG(2)))) -> 
A8: 21 | B8: 138 | C8: 21 | D8: 148 | E8: 21 | F8: 178 | K8: 0 | L8: 222 | N8: 112 | O8: =COUNTIF($L$7:$L$500,N8) -> 0 | P8: =O8/$Q$4 -> 0 | Q8: =IF(P8=0,0,(P8*((LOG(P8))/LOG(2)))) -> 0 | T8: =N8 -> 112 | U8: =COUNTIF(L7:L13,T8) -> 0 | V8: =U8/(W4-U14) ->  | W8: =IF(V8=0,0,(V8*((LOG(V8))/LOG(2)))) ->  | Y8: =N8 -> 112 | Z8: =COUNTIF(L14:L19,Y8) -> 0 | AA8: =Z8/(AB4-Z14) ->  | AB8: =IF(AA8=0,0,(AA8*((LOG(AA8))/LOG(2)))) ->  | AD8: =N8 -> 112 | AE8: =COUNTIF(L20:L26,AD8) -> 0 | AF8: =AE8/(AG4-AE14) ->  | AG8: =IF(AF8=0,0,(AF8*((LOG(AF8))/LOG(2)))) ->  | AI8: =N8 -> 112 | AJ8: =COUNTIF(L27:L33,AI8) -> 0 | AK8: =AJ8/(AL4-AJ14) ->  | AL8: =IF(AK8=0,0,(AK8*((LOG(AK8))/LOG(2)))) ->  | AN8: =N8 -> 112 | AO8: =COUNTIF(L34:L39,AN8) -> 0 | AP8: =AO8/(AQ4-AO14) ->  | AQ8: =IF(AP8=0,0,(AP8*((LOG(AP8))/LOG(2)))) ->  | AS8: =N8 -> 112 | AT8: =COUNTIF(L40:L46,AS8) -> 0 | AU8: =AT8/(AV4-AT14) ->  | AV8: =IF(AU8=0,0,(AU8*((LOG(AU8))/LOG(2)))) -> 
A9: 21 | B9: 312 | C9: 21 | D9: 323 | E9: 21 | F9: 329 | K9: 0 | L9: 222 | N9: 121 | O9: =COUNTIF($L$7:$L$500,N9) -> 0 | P9: =O9/$Q$4 -> 0 | Q9: =IF(P9=0,0,(P9*((LOG(P9))/LOG(2)))) -> 0 | T9: =N9 -> 121 | U9: =COUNTIF(L7:L13,T9) -> 0 | V9: =U9/(W4-U14) ->  | W9: =IF(V9=0,0,(V9*((LOG(V9))/LOG(2)))) ->  | Y9: =N9 -> 121 | Z9: =COUNTIF(L14:L19,Y9) -> 0 | AA9: =Z9/(AB4-Z14) ->  | AB9: =IF(AA9=0,0,(AA9*((LOG(AA9))/LOG(2)))) ->  | AD9: =N9 -> 121 | AE9: =COUNTIF(L20:L26,AD9) -> 0 | AF9: =AE9/(AG4-AE14) ->  | AG9: =IF(AF9=0,0,(AF9*((LOG(AF9))/LOG(2)))) ->  | AI9: =N9 -> 121 | AJ9: =COUNTIF(L27:L33,AI9) -> 0 | AK9: =AJ9/(AL4-AJ14) ->  | AL9: =IF(AK9=0,0,(AK9*((LOG(AK9))/LOG(2)))) ->  | AN9: =N9 -> 121 | AO9: =COUNTIF(L34:L39,AN9) -> 0 | AP9: =AO9/(AQ4-AO14) ->  | AQ9: =IF(AP9=0,0,(AP9*((LOG(AP9))/LOG(2)))) ->  | AS9: =N9 -> 121 | AT9: =COUNTIF(L40:L46,AS9) -> 0 | AU9: =AT9/(AV4-AT14) ->  | AV9: =IF(AU9=0,0,(AU9*((LOG(AU9))/LOG(2)))) -> 
A10: 21 | B10: 471 | C10: 21 | D10: 475 | E10: 21 | F10: 482 | K10: 0 | L10: 222 | N10: 122 | O10: =COUNTIF($L$7:$L$500,N10) -> 0 | P10: =O10/$Q$4 -> 0 | Q10: =IF(P10=0,0,(P10*((LOG(P10))/LOG(2)))) -> 0 | T10: =N10 -> 122 | U10: =COUNTIF(L7:L13,T10) -> 0 | V10: =U10/(W4-U14) ->  | W10: =IF(V10=0,0,(V10*((LOG(V10))/LOG(2)))) ->  | Y10: =N10 -> 122 | Z10: =COUNTIF(L14:L19,Y10) -> 0 | AA10: =Z10/(AB4-Z14) ->  | AB10: =IF(AA10=0,0,(AA10*((LOG(AA10))/LOG(2)))) ->  | AD10: =N10 -> 122 | AE10: =COUNTIF(L20:L26,AD10) -> 0 | AF10: =AE10/(AG4-AE14) ->  | AG10: =IF(AF10=0,0,(AF10*((LOG(AF10))/LOG(2)))) ->  | AI10: =N10 -> 122 | AJ10: =COUNTIF(L27:L33,AI10) -> 0 | AK10: =AJ10/(AL4-AJ14) ->  | AL10: =IF(AK10=0,0,(AK10*((LOG(AK10))/LOG(2)))) ->  | AN10: =N10 -> 122 | AO10: =COUNTIF(L34:L39,AN10) -> 0 | AP10: =AO10/(AQ4-AO14) ->  | AQ10: =IF(AP10=0,0,(AP10*((LOG(AP10))/LOG(2)))) ->  | AS10: =N10 -> 122 | AT10: =COUNTIF(L40:L46,AS10) -> 0 | AU10: =AT10/(AV4-AT14) ->  | AV10: =IF(AU10=0,0,(AU10*((LOG(AU10))/LOG(2)))) -> 
A11: 21 | B11: 595 | C11: 21 | D11: 599 | E11: 21 | F11: 608 | K11: 0 | L11: 222 | N11: 211 | O11: =COUNTIF($L$7:$L$500,N11) -> 0 | P11: =O11/$Q$4 -> 0 | Q11: =IF(P11=0,0,(P11*((LOG(P11))/LOG(2)))) -> 0 | T11: =N11 -> 211 | U11: =COUNTIF(L7:L13,T11) -> 0 | V11: =U11/(W4-U14) ->  | W11: =IF(V11=0,0,(V11*((LOG(V11))/LOG(2)))) ->  | Y11: =N11 -> 211 | Z11: =COUNTIF(L14:L19,Y11) -> 0 | AA11: =Z11/(AB4-Z14) ->  | AB11: =IF(AA11=0,0,(AA11*((LOG(AA11))/LOG(2)))) ->  | AD11: =N11 -> 211 | AE11: =COUNTIF(L20:L26,AD11) -> 0 | AF11: =AE11/(AG4-AE14) ->  | AG11: =IF(AF11=0,0,(AF11*((LOG(AF11))/LOG(2)))) ->  | AI11: =N11 -> 211 | AJ11: =COUNTIF(L27:L33,AI11) -> 0 | AK11: =AJ11/(AL4-AJ14) ->  | AL11: =IF(AK11=0,0,(AK11*((LOG(AK11))/LOG(2)))) ->  | AN11: =N11 -> 211 | AO11: =COUNTIF(L34:L39,AN11) -> 0 | AP11: =AO11/(AQ4-AO14) ->  | AQ11: =IF(AP11=0,0,(AP11*((LOG(AP11))/LOG(2)))) ->  | AS11: =N11 -> 211 | AT11: =COUNTIF(L40:L46,AS11) -> 0 | AU11: =AT11/(AV4-AT14) ->  | AV11: =IF(AU11=0,0,(AU11*((LOG(AU11))/LOG(2)))) -> 
A12: 21 | B12: 727 | C12: 21 | D12: 739 | E12: 21 | F12: 746 | K12: 0 | L12: 222 | N12: 212 | O12: =COUNTIF($L$7:$L$500,N12) -> 0 | P12: =O12/$Q$4 -> 0 | Q12: =IF(P12=0,0,(P12*((LOG(P12))/LOG(2)))) -> 0 | T12: =N12 -> 212 | U12: =COUNTIF(L7:L13,T12) -> 0 | V12: =U12/(W4-U14) ->  | W12: =IF(V12=0,0,(V12*((LOG(V12))/LOG(2)))) ->  | Y12: =N12 -> 212 | Z12: =COUNTIF(L14:L19,Y12) -> 0 | AA12: =Z12/(AB4-Z14) ->  | AB12: =IF(AA12=0,0,(AA12*((LOG(AA12))/LOG(2)))) ->  | AD12: =N12 -> 212 | AE12: =COUNTIF(L20:L26,AD12) -> 0 | AF12: =AE12/(AG4-AE14) ->  | AG12: =IF(AF12=0,0,(AF12*((LOG(AF12))/LOG(2)))) ->  | AI12: =N12 -> 212 | AJ12: =COUNTIF(L27:L33,AI12) -> 0 | AK12: =AJ12/(AL4-AJ14) ->  | AL12: =IF(AK12=0,0,(AK12*((LOG(AK12))/LOG(2)))) ->  | AN12: =N12 -> 212 | AO12: =COUNTIF(L34:L39,AN12) -> 0 | AP12: =AO12/(AQ4-AO14) ->  | AQ12: =IF(AP12=0,0,(AP12*((LOG(AP12))/LOG(2)))) ->  | AS12: =N12 -> 212 | AT12: =COUNTIF(L40:L46,AS12) -> 0 | AU12: =AT12/(AV4-AT14) ->  | AV12: =IF(AU12=0,0,(AU12*((LOG(AU12))/LOG(2)))) -> 
A13: 21 | B13: 885 | C13: 21 | D13: 902 | E13: 21 | F13: 917 | K13: 0 | L13: 222 | N13: 221 | O13: =COUNTIF($L$7:$L$500,N13) -> 0 | P13: =O13/$Q$4 -> 0 | Q13: =IF(P13=0,0,(P13*((LOG(P13))/LOG(2)))) -> 0 | T13: =N13 -> 221 | U13: =COUNTIF(L7:L13,T13) -> 0 | V13: =U13/(W4-U14) ->  | W13: =IF(V13=0,0,(V13*((LOG(V13))/LOG(2)))) ->  | Y13: =N13 -> 221 | Z13: =COUNTIF(L14:L19,Y13) -> 0 | AA13: =Z13/(AB4-Z14) ->  | AB13: =IF(AA13=0,0,(AA13*((LOG(AA13))/LOG(2)))) ->  | AD13: =N13 -> 221 | AE13: =COUNTIF(L20:L26,AD13) -> 0 | AF13: =AE13/(AG4-AE14) ->  | AG13: =IF(AF13=0,0,(AF13*((LOG(AF13))/LOG(2)))) ->  | AI13: =N13 -> 221 | AJ13: =COUNTIF(L27:L33,AI13) -> 0 | AK13: =AJ13/(AL4-AJ14) ->  | AL13: =IF(AK13=0,0,(AK13*((LOG(AK13))/LOG(2)))) ->  | AN13: =N13 -> 221 | AO13: =COUNTIF(L34:L39,AN13) -> 0 | AP13: =AO13/(AQ4-AO14) ->  | AQ13: =IF(AP13=0,0,(AP13*((LOG(AP13))/LOG(2)))) ->  | AS13: =N13 -> 221 | AT13: =COUNTIF(L40:L46,AS13) -> 0 | AU13: =AT13/(AV4-AT14) ->  | AV13: =IF(AU13=0,0,(AU13*((LOG(AU13))/LOG(2)))) -> 
A14: 21 | B14: 1083 | C14: 21 | D14: 1090 | E14: 21 | F14: 1097 | K14: 0 | L14: 222 | N14: 222 | O14: =COUNTIF($L$7:$L$500,N14) -> 40 | P14: =O14/$Q$4 -> 1 | Q14: =IF(P14=0,0,(P14*((LOG(P14))/LOG(2)))) -> 0 | T14: =N14 -> 222 | U14: =COUNTIF(L7:L13,T14) -> 7 | Y14: =N14 -> 222 | Z14: =COUNTIF(L14:L19,Y14) -> 6 | AD14: =N14 -> 222 | AE14: =COUNTIF(L20:L26,AD14) -> 7 | AI14: =N14 -> 222 | AJ14: =COUNTIF(L27:L33,AI14) -> 7 | AN14: =N14 -> 222 | AO14: =COUNTIF(L34:L39,AN14) -> 6 | AS14: =N14 -> 222 | AT14: =COUNTIF(L40:L46,AS14) -> 7
A15: 21 | B15: 1297 | C15: 21 | D15: 1303 | E15: 21 | F15: 1309 | K15: 0 | L15: 222 | P15: =SUM(P7:P14) -> 1 | Q15: =-SUM(Q7:Q14) -> 0 | V15: =SUM(V7:V14) ->  | W15: =-SUM(W7:W14) ->  | AA15: =SUM(AA7:AA14) ->  | AB15: =-SUM(AB7:AB14) ->  | AF15: =SUM(AF7:AF14) ->  | AG15: =-SUM(AG7:AG14) ->  | AK15: =SUM(AK7:AK14) ->  | AL15: =-SUM(AL7:AL14) ->  | AP15: =SUM(AP7:AP14) ->  | AQ15: =-SUM(AQ7:AQ14) ->  | AU15: =SUM(AU7:AU14) ->  | AV15: =-SUM(AV7:AV14) -> 
A16: 21 | B16: 1443 | C16: 21 | D16: 1448 | E16: 21 | F16: 1454 | K16: 0 | L16: 222 | P16: U= | Q16: =Q15/(LOG(Q4)/LOG(2)) -> 0 | V16: U1= | W16: =W15/(LOG(W4)/LOG(2)) ->  | AA16: U2= | AB16: =AB15/(LOG(AB4)/LOG(2)) ->  | AF16: U3= | AG16: =AG15/(LOG(AG4)/LOG(2)) ->  | AK16: U4= | AL16: =AL15/(LOG(AL4)/LOG(2)) ->  | AP16: U5= | AQ16: =AQ15/(LOG(AQ4)/LOG(2)) ->  | AU16: U6= | AV16: =AV15/(LOG(AV4)/LOG(2)) -> 
A17: 21 | B17: 1676 | C17: 21 | D17: 1682 | E17: 21 | F17: 1687 | K17: 0 | L17: 222
A18: 21 | B18: 1814 | C18: 21 | D18: 1820 | E18: 21 | F18: 1827 | K18: 0 | L18: 222
A19: 21 | B19: 2004 | C19: 21 | D19: 2007 | E19: 21 | F19: 2011 | K19: 0 | L19: 222 | N19: Total Target Seq
A20: 21 | B20: 2190 | C20: 21 | D20: 2195 | E20: 21 | F20: 2205 | K20: 0 | L20: 222 | N20: =COUNTIF(L7:L46,G3) -> 40 | P20: 7 | Q20: 6 | R20: 7 | S20: 7 | T20: 6 | U20: 7
A21: 21 | B21: 2325 | C21: 21 | D21: 2332 | E21: 21 | F21: 2338 | K21: 0 | L21: 222 | P21: % of reinforcement given in 6 equal intervals based on number of trials
A22: 21 | B22: 2476 | C22: 21 | D22: 2479 | E22: 21 | F22: 2482 | K22: 0 | L22: 222 | P22: %_1 | Q22: %_2 | R22: %_3 | S22: %_4 | T22: %_5 | U22: %_6
A23: 21 | B23: 2688 | C23: 21 | D23: 2691 | E23: 21 | F23: 2697 | K23: 0 | L23: 222 | O23: target sequence | P23: =$G$3 -> 222 | Q23: =$G$3 -> 222 | R23: =$G$3 -> 222 | S23: =$G$3 -> 222 | T23: =$G$3 -> 222 | U23: =$G$3 -> 222
A24: 21 | B24: 2884 | C24: 21 | D24: 2890 | E24: 21 | F24: 2894 | K24: 0 | L24: 222 | O24: total reinforcement | P24: =U14 -> 7 | Q24: =Z14 -> 6 | R24: =AE14 -> 7 | S24: =AJ14 -> 7 | T24: =AO14 -> 6 | U24: =AT14 -> 7
A25: 21 | B25: 3051 | C25: 21 | D25: 3057 | E25: 21 | F25: 3065 | K25: 0 | L25: 222 | O25: % target
A26: 21 | B26: 3195 | C26: 21 | D26: 3204 | E26: 21 | F26: 3211 | K26: 0 | L26: 222 | O26: CCRF
A27: 21 | B27: 3380 | C27: 21 | D27: 3386 | E27: 21 | F27: 3408 | K27: 0 | L27: 222 | O27: % CCRf
A28: 21 | B28: 3568 | C28: 21 | D28: 3571 | E28: 21 | F28: 3575 | K28: 0 | L28: 222 | O28: average response rate | P28: =F13/P20 -> 131 | Q28: =(F19-F13)/Q20 -> 182.3333333 | R28: =(F26-F19)/R20 -> 171.4285714 | S28: =(F33-F26)/S20 -> 189.8571429 | T28: =(F39-F33)/T20 -> 173.8333333 | U28: =(F46-F39)/U20 -> 193
A29: 21 | B29: 3817 | C29: 21 | D29: 3824 | E29: 21 | F29: 3830 | K29: 0 | L29: 222
A30: 21 | B30: 3993 | C30: 21 | D30: 4004 | E30: 21 | F30: 4018 | K30: 0 | L30: 222
A31: 21 | B31: 4123 | C31: 21 | D31: 4134 | E31: 21 | F31: 4140 | K31: 0 | L31: 222
A32: 21 | B32: 4284 | C32: 21 | D32: 4288 | E32: 21 | F32: 4296 | K32: 0 | L32: 222
A33: 21 | B33: 4528 | C33: 21 | D33: 4534 | E33: 21 | F33: 4540 | K33: 0 | L33: 222
A34: 21 | B34: 4690 | C34: 21 | D34: 4694 | E34: 21 | F34: 4700 | K34: 0 | L34: 222
A35: 21 | B35: 4873 | C35: 21 | D35: 4880 | E35: 21 | F35: 4892 | K35: 0 | L35: 222
A36: 21 | B36: 5089 | C36: 21 | D36: 5099 | E36: 21 | F36: 5114 | K36: 0 | L36: 222
A37: 21 | B37: 5227 | C37: 21 | D37: 5229 | E37: 21 | F37: 5233 | K37: 0 | L37: 222
A38: 21 | B38: 5355 | C38: 21 | D38: 5358 | E38: 21 | F38: 5362 | K38: 0 | L38: 222
A39: 21 | B39: 5571 | C39: 21 | D39: 5577 | E39: 21 | F39: 5583 | K39: 0 | L39: 222
A40: 21 | B40: 5731 | C40: 21 | D40: 5742 | E40: 21 | F40: 5750 | K40: 0 | L40: 222
A41: 21 | B41: 5889 | C41: 21 | D41: 5897 | E41: 21 | F41: 5904 | K41: 0 | L41: 222
A42: 21 | B42: 6108 | C42: 21 | D42: 6117 | E42: 21 | F42: 6122 | K42: 0 | L42: 222
A43: 21 | B43: 6251 | C43: 21 | D43: 6253 | E43: 21 | F43: 6263 | K43: 0 | L43: 222
A44: 21 | B44: 6473 | C44: 21 | D44: 6477 | E44: 21 | F44: 6483 | K44: 0 | L44: 222
A45: 21 | B45: 6660 | C45: 21 | D45: 6666 | E45: 21 | F45: 6672 | K45: 0 | L45: 222
A46: 21 | B46: 6892 | C46: 21 | D46: 6908 | E46: 21 | F46: 6934 | K46: 1 | L46: 222

Sheet !M40195D.UST
A1: Report for:!M40195D.UST
A2: Date: | B2: <date>
A3: Hen: | B3: <hen> | F3: Correct Sequence | G3: =Start!J2 -> 222 | P3: Total Sequences in Data | Q3: =4994-COUNTBLANK(L7:L5000) -> 42 | V3: Total Sequences in Block Data | W3: =COUNTA(L7:L13) -> 7 | AA3: Total Sequences in Block Data | AB3: =COUNTA(L14:L20) -> 7 | AF3: Total Sequences in Block Data | AG3: =COUNTA(L21:L27) -> 7 | AK3: Total Sequences in Block Data | AL3: =COUNTA(L28:L34) -> 7 | AP3: Total Sequences in Block Data | AQ3: =COUNTA(L35:L41) -> 7 | AU3: Total Sequences in Block Data | AV3: =COUNTA(L42:L48) -> 7
P4: Total Sequences in Summary | Q4: =SUM(O7:O14) -> 42 | V4: Total Sequences in Block Summary | W4: =SUM(U7:U14) -> 7 | AA4: Total Sequences in Block Summary | AB4: =SUM(Z7:Z14) -> 7 | AF4: Total Sequences in Block Summary | AG4: =SUM(AE7:AE14) -> 7 | AK4: Total Sequences in Block Summary | AL4: =SUM(AJ7:AJ14) -> 7 | AP4: Total Sequences in Block Summary | AQ4: =SUM(AO7:AO14) -> 7 | AU4: Total Sequences in Block Summary | AV4: =SUM(AT7:AT14) -> 7
T5: Block 1 | Y5: Block 2 | AD5: Block 3 | AI5: Block 4 | AN5: Block 5 | AS5: Block 6
A6: Sequence Component 1 | B6: Time 1 | C6: Sequence Component 2 | D6: Time 2 | E6: Sequence Component 3 | F6: Time 3 | G6: Sequence Component 4 | H6: Time 4 | I6: Sequence Component 5 | J6: Time 5 | K6: Correct? 0=No 1=Yes | L6: Sequence | N6: Frequency | P6: Relative Frequency | Q6: Variability | T6: Frequency | V6: Relative Frequency | W6: Variability | Y6: Frequency | AA6: Relative Frequency | AB6: Variability | AD6: Frequency | AF6: Relative Frequency | AG6: Variability | AI6: Frequency | AK6: Relative Frequency | AL6: Variability | AN6: Frequency | AP6: Relative Frequency | AQ6: Variability | AS6: Frequency | AU6: Relative Frequency | AV6: Variability
A7: 12 | B7: 19 | C7: 14 | D7: 25 | E7: 14 | F7: 31 | K7: 0 | L7: 111 | N7: 111 | O7: =COUNTIF($L$7:$L$500,N7) -> 1 | P7: =O7/$Q$4 -> 0.02380952381 | Q7: =IF(P7=0,0,(P7*((LOG(P7))/LOG(2)))) -> -0.1283885101 | T7: =N7 -> 111 | U7: =COUNTIF(L7:L13,T7) -> 1 | V7: =U7/(W4-U14) -> 1 | W7: =IF(V7=0,0,(V7*((LOG(V7))/LOG(2)))) -> 0 | Y7: =N7 -> 111 | Z7: =COUNTIF(L14:L20,Y7) -> 0 | AA7: =Z7/(AB4-Z14) ->  | AB7: =IF(AA7=0,0,(AA7*((LOG(AA7))/LOG(2)))) ->  | AD7: =N7 -> 111 | AE7: =COUNTIF(L21:L27,AD7) -> 0 | AF7: =AE7/(AG4-AE14) ->  | AG7: =IF(AF7=0,0,(AF7*((LOG(AF7))/LOG(2)))) ->  | AI7: =N7 -> 111 | AJ7: =COUNTIF(L28:L34,AI7) -> 0 | AK7: =AJ7/(AL4-AJ14) ->  | AL7: =IF(AK7=0,0,(AK7*((LOG(AK7))/LOG(2)))) ->  | AN7: =N7 -> 111 | AO7: =COUNTIF(L35:L41,AN7) -> 0 | AP7: =AO7/(AQ4-AO14) ->  | AQ7: =IF(AP7=0,0,(AP7*((LOG(AP7))/LOG(2)))) ->  | AS7: =N7 -> 111 | AT7: =COUNTIF(L42:L48,AS7) -> 0 | AU7: =AT7/(AV4-AT14) -> 0 | AV7: =IF(AU7=0,0,(AU7*((LOG(AU7))/LOG(2)))) -> 0
A8: 21 | B8: 133 | C8: 21 | D8: 138 | E8: 21 | F8: 145 | K8: 0 | L8: 222 | N8: 112 | O8: =COUNTIF($L$7:$L$500,N8) -> 0 | P8: =O8/$Q$4 -> 0 | Q8: =IF(P8=0,0,(P8*((LOG(P8))/LOG(2)))) -> 0 | T8: =N8 -> 112 | U8: =COUNTIF(L7:L13,T8) -> 0 | V8: =U8/(W4-U14) -> 0 | W8: =IF(V8=0,0,(V8*((LOG(V8))/LOG(2)))) -> 0 | Y8: =N8 -> 112 | Z8: =COUNTIF(L14:L20,Y8) -> 0 | AA8: =Z8/(AB4-Z14) ->  | AB8: =IF(AA8=0,0,(AA8*((LOG(AA8))/LOG(2)))) ->  | AD8: =N8 -> 112 | AE8: =COUNTIF(L21:L27,AD8) -> 0 | AF8: =AE8/(AG4-AE14) ->  | AG8: =IF(AF8=0,0,(AF8*((LOG(AF8))/LOG(2)))) ->  | AI8: =N8 -> 112 | AJ8: =COUNTIF(L28:L34,AI8) -> 0 | AK8: =AJ8/(AL4-AJ14) ->  | AL8: =IF(AK8=0,0,(AK8*((LOG(AK8))/LOG(2)))) ->  | AN8: =N8 -> 112 | AO8: =COUNTIF(L35:L41,AN8) -> 0 | AP8: =AO8/(AQ4-AO14) ->  | AQ8: =IF(AP8=0,0,(AP8*((LOG(AP8))/LOG(2)))) ->  | AS8: =N8 -> 112 | AT8: =COUNTIF(L42:L48,AS8) -> 0 | AU8: =AT8/(AV4-AT14) -> 0 | AV8: =IF(AU8=0,0,(AU8*((LOG(AU8))/LOG(2)))) -> 0
A9: 21 | B9: 275 | C9: 21 | D9: 281 | E9: 21 | F9: 287 | K9: 0 | L9: 222 | N9: 121 | O9: =COUNTIF($L$7:$L$500,N9) -> 0 | P9: =O9/$Q$4 -> 0 | Q9: =IF(P9=0,0,(P9*((LOG(P9))/LOG(2)))) -> 0 | T9: =N9 -> 121 | U9: =COUNTIF(L7:L13,T9) -> 0 | V9: =U9/(W4-U14) -> 0 | W9: =IF(V9=0,0,(V9*((LOG(V9))/LOG(2)))) -> 0 | Y9: =N9 -> 121 | Z9: =COUNTIF(L14:L20,Y9) -> 0 | AA9: =Z9/(AB4-Z14) ->  | AB9: =IF(AA9=0,0,(AA9*((LOG(AA9))/LOG(2)))) ->  | AD9: =N9 -> 121 | AE9: =COUNTIF(L21:L27,AD9) -> 0 | AF9: =AE9/(AG4-AE14) ->  | AG9: =IF(AF9=0,0,(AF9*((LOG(AF9))/LOG(2)))) ->  | AI9: =N9 -> 121 | AJ9: =COUNTIF(L28:L34,AI9) -> 0 | AK9: =AJ9/(AL4-AJ14) ->  | AL9: =IF(AK9=0,0,(AK9*((LOG(AK9))/LOG(2)))) ->  | AN9: =N9 -> 121 | AO9: =COUNTIF(L35:L41,AN9) -> 0 | AP9: =AO9/(AQ4-AO14) ->  | AQ9: =IF(AP9=0,0,(AP9*((LOG(AP9))/LOG(2)))) ->  | AS9: =N9 -> 121 | AT9: =COUNTIF(L42:L48,AS9) -> 0 | AU9: =AT9/(AV4-AT14) -> 0 | AV9: =IF(AU9=0,0,(AU9*((LOG(AU9))/LOG(2)))) -> 0
A10: 21 | B10: 434 | C10: 21 | D10: 450 | E10: 21 | F10: 480 | K10: 0 | L10: 222 | N10: 122 | O10: =COUNTIF($L$7:$L$500,N10) -> 1 | P10: =O10/$Q$4 -> 0.02380952381 | Q10: =IF(P10=0,0,(P10*((LOG(P10))/LOG(2)))) -> -0.1283885101 | T10: =N10 -> 122 | U10: =COUNTIF(L7:L13,T10) -> 0 | V10: =U10/(W4-U14) -> 0 | W10: =IF(V10=0,0,(V10*((LOG(V10))/LOG(2)))) -> 0 | Y10: =N10 -> 122 | Z10: =COUNTIF(L14:L20,Y10) -> 0 | AA10: =Z10/(AB4-Z14) ->  | AB10: =IF(AA10=0,0,(AA10*((LOG(AA10))/LOG(2)))) ->  | AD10: =N10 -> 122 | AE10: =COUNTIF(L21:L27,AD10) -> 0 | AF10: =AE10/(AG4-AE14) ->  | AG10: =IF(AF10=0,0,(AF10*((LOG(AF10))/LOG(2)))) ->  | AI10: =N10 -> 122 | AJ10: =COUNTIF(L28:L34,AI10) -> 0 | AK10: =AJ10/(AL4-AJ14) ->  | AL10: =IF(AK10=0,0,(AK10*((LOG(AK10))/LOG(2)))) ->  | AN10: =N10 -> 122 | AO10: =COUNTIF(L35:L41,AN10) -> 0 | AP10: =AO10/(AQ4-AO14) ->  | AQ10: =IF(AP10=0,0,(AP10*((LOG(AP10))/LOG(2)))) ->  | AS10: =N10 -> 122 | AT10: =COUNTIF(L42:L48,AS10) -> 1 | AU10: =AT10/(AV4-AT14) -> 1 | AV10: =IF(AU10=0,0,(AU10*((LOG(AU10))/LOG(2)))) -> 0
A11: 21 | B11: 627 | C11: 21 | D11: 634 | E11: 21 | F11: 640 | K11: 0 | L11: 222 | N11: 211 | O11: =COUNTIF($L$7:$L$500,N11) -> 0 | P11: =O11/$Q$4 -> 0 | Q11: =IF(P11=0,0,(P11*((LOG(P11))/LOG(2)))) -> 0 | T11: =N11 -> 211 | U11: =COUNTIF(L7:L13,T11) -> 0 | V11: =U11/(W4-U14) -> 0 | W11: =IF(V11=0,0,(V11*((LOG(V11))/LOG(2)))) -> 0 | Y11: =N11 -> 211 | Z11: =COUNTIF(L14:L20,Y11) -> 0 | AA11: =Z11/(AB4-Z14) ->  | AB11: =IF(AA11=0,0,(AA11*((LOG(AA11))/LOG(2)))) ->  | AD11: =N11 -> 211 | AE11: =COUNTIF(L21:L27,AD11) -> 0 | AF11: =AE11/(AG4-AE14) ->  | AG11: =IF(AF11=0,0,(AF11*((LOG(AF11))/LOG(2)))) ->  | AI11: =N11 -> 211 | AJ11: =COUNTIF(L28:L34,AI11) -> 0 | AK11: =AJ11/(AL4-AJ14) ->  | AL11: =IF(AK11=0,0,(AK11*((LOG(AK11))/LOG(2)))) ->  | AN11: =N11 -> 211 | AO11: =COUNTIF(L35:L41,AN11) -> 0 | AP11: =AO11/(AQ4-AO14) ->  | AQ11: =IF(AP11=0,0,(AP11*((LOG(AP11))/LOG(2)))) ->  | AS11: =N11 -> 211 | AT11: =COUNTIF(L42:L48,AS11) -> 0 | AU11: =AT11/(AV4-AT14) -> 0 | AV11: =IF(AU11=0,0,(AU11*((LOG(AU11))/LOG(2)))) -> 0
A12: 21 | B12: 784 | C12: 21 | D12: 789 | E12: 21 | F12: 795 | K12: 0 | L12: 222 | N12: 212 | O12: =COUNTIF($L$7:$L$500,N12) -> 0 | P12: =O12/$Q$4 -> 0 | Q12: =IF(P12=0,0,(P12*((LOG(P12))/LOG(2)))) -> 0 | T12: =N12 -> 212 | U12: =COUNTIF(L7:L13,T12) -> 0 | V12: =U12/(W4-U14) -> 0 | W12: =IF(V12=0,0,(V12*((LOG(V12))/LOG(2)))) -> 0 | Y12: =N12 -> 212 | Z12: =COUNTIF(L14:L20,Y12) -> 0 | AA12: =Z12/(AB4-Z14) ->  | AB12: =IF(AA12=0,0,(AA12*((LOG(AA12))/LOG(2)))) ->  | AD12: =N12 -> 212 | AE12: =COUNTIF(L21:L27,AD12) -> 0 | AF12: =AE12/(AG4-AE14) ->  | AG12: =IF(AF12=0,0,(AF12*((LOG(AF12))/LOG(2)))) ->  | AI12: =N12 -> 212 | AJ12: =COUNTIF(L28:L34,AI12) -> 0 | AK12: =AJ12/(AL4-AJ14) ->  | AL12: =IF(AK12=0,0,(AK12*((LOG(AK12))/LOG(2)))) ->  | AN12: =N12 -> 212 | AO12: =COUNTIF(L35:L41,AN12) -> 0 | AP12: =AO12/(AQ4-AO14) ->  | AQ12: =IF(AP12=0,0,(AP12*((LOG(AP12))/LOG(2)))) ->  | AS12: =N12 -> 212 | AT12: =COUNTIF(L42:L48,AS12) -> 0 | AU12: =AT12/(AV4-AT14) -> 0 | AV12: =IF(AU12=0,0,(AU12*((LOG(AU12))/LOG(2)))) -> 0
A13: 21 | B13: 923 | C13: 21 | D13: 927 | E13: 21 | F13: 939 | K13: 0 | L13: 222 | N13: 221 | O13: =COUNTIF($L$7:$L$500,N13) -> 0 | P13: =O13/$Q$4 -> 0 | Q13: =IF(P13=0,0,(P13*((LOG(P13))/LOG(2)))) -> 0 | T13: =N13 -> 221 | U13: =COUNTIF(L7:L13,T13) -> 0 | V13: =U13/(W4-U14) -> 0 | W13: =IF(V13=0,0,(V13*((LOG(V13))/LOG(2)))) -> 0 | Y13: =N13 -> 221 | Z13: =COUNTIF(L14:L20,Y13) -> 0 | AA13: =Z13/(AB4-Z14) ->  | AB13: =IF(AA13=0,0,(AA13*((LOG(AA13))/LOG(2)))) ->  | AD13: =N13 -> 221 | AE13: =COUNTIF(L21:L27,AD13) -> 0 | AF13: =AE13/(AG4-AE14) ->  | AG13: =IF(AF13=0,0,(AF13*((LOG(AF13))/LOG(2)))) ->  | AI13: =N13 -> 221 | AJ13: =COUNTIF(L28:L34,AI13) -> 0 | AK13: =AJ13/(AL4-AJ14) ->  | AL13: =IF(AK13=0,0,(AK13*((LOG(AK13))/LOG(2)))) ->  | AN13: =N13 -> 221 | AO13: =COUNTIF(L35:L41,AN13) -> 0 | AP13: =AO13/(AQ4-AO14) ->  | AQ13: =IF(AP13=0,0,(AP13*((LOG(AP13))/LOG(2)))) ->  | AS13: =N13 -> 221 | AT13: =COUNTIF(L42:L48,AS13) -> 0 | AU13: =AT13/(AV4-AT14) -> 0 | AV13: =IF(AU13=0,0,(AU13*((LOG(AU13))/LOG(2)))) -> 0
A14: 21 | B14: 1067 | C14: 21 | D14: 1075 | E14: 21 | F14: 1080 | K14: 0 | L14: 222 | N14: 222 | O14: =COUNTIF($L$7:$L$500,N14) -> 40 | P14: =O14/$Q$4 -> 0.9523809524 | Q14: =IF(P14=0,0,(P14*((LOG(P14))/LOG(2)))) -> -0.06703745513 | T14: =N14 -> 222 | U14: =COUNTIF(L7:L13,T14) -> 6 | Y14: =N14 -> 222 | Z14: =COUNTIF(L14:L20,Y14) -> 7 | AD14: =N14 -> 222 | AE14: =COUNTIF(L21:L27,AD14) -> 7 | AI14: =N14 -> 222 | AJ14: =COUNTIF(L28:L34,AI14) -> 7 | AN14: =N14 -> 222 | AO14: =COUNTIF(L35:L41,AN14) -> 7 | AS14: =N14 -> 222 | AT14: =COUNTIF(L42:L48,AS14) -> 6
A15: 21 | B15: 1337 | C15: 21 | D15: 1344 | E15: 21 | F15: 1347 | K15: 0 | L15: 222 | P15: =SUM(P7:P14) -> 1 | Q15: =-SUM(Q7:Q14) -> 0.3238144753 | V15: =SUM(V7:V14) -> 1 | W15: =-SUM(W7:W14) -> 0 | AA15: =SUM(AA7:AA14) ->  | AB15: =-SUM(AB7:AB14) ->  | AF15: =SUM(AF7:AF14) ->  | AG15: =-SUM(AG7:AG14) ->  | AK15: =SUM(AK7:AK14) ->  | AL15: =-SUM(AL7:AL14) ->  | AP15: =SUM(AP7:AP14) ->  | AQ15: =-SUM(AQ7:AQ14) ->  | AU15: =SUM(AU7:AU14) -> 1 | AV15: =-SUM(AV7:AV14) -> 0
A16: 21 | B16: 1638 | C16: 21 | D16: 1644 | E16: 21 | F16: 1664 | K16: 0 | L16: 222 | P16: U= | Q16: =Q15/(LOG(Q4)/LOG(2)) -> 0.06005107821 | V16: U1= | W16: =W15/(LOG(W4)/LOG(2)) -> 0 | AA16: U2= | AB16: =AB15/(LOG(AB4)/LOG(2)) ->  | AF16: U3= | AG16: =AG15/(LOG(AG4)/LOG(2)) ->  | AK16: U4= | AL16: =AL15/(LOG(AL4)/LOG(2)) ->  | AP16: U5= | AQ16: =AQ15/(LOG(AQ4)/LOG(2)) ->  | AU16: U6= | AV16: =AV15/(LOG(AV4)/LOG(2)) -> 0
A17: 21 | B17: 1822 | C17: 21 | D17: 1830 | E17: 21 | F17: 1836 | K17: 0 | L17: 222
A18: 21 | B18: 1950 | C18: 21 | D18: 1959 | E18: 21 | F18: 1964 | K18: 0 | L18: 222
A19: 21 | B19: 2108 | C19: 21 | D19: 2114 | E19: 21 | F19: 2121 | K19: 0 | L19: 222 | N19: Total Target Seq
A20: 21 | B20: 2271 | C20: 21 | D20: 2274 | E20: 21 | F20: 2277 | K20: 0 | L20: 222 | N20: =COUNTIF(L7:L48,G3) -> 40 | P20: 7 | Q20: 7 | R20: 7 | S20: 7 | T20: 7 | U20: 7
A21: 21 | B21: 2424 | C21: 21 | D21: 2426 | E21: 21 | F21: 2431 | K21: 0 | L21: 222 | P21: % of reinforcement given in 6 equal intervals based on number of trials
A22: 21 | B22: 2567 | C22: 21 | D22: 2574 | E22: 21 | F22: 2581 | K22: 0 | L22: 222 | P22: %_1 | Q22: %_2 | R22: %_3 | S22: %_4 | T22: %_5 | U22: %_6
A23: 21 | B23: 2766 | C23: 21 | D23: 2774 | E23: 21 | F23: 2779 | K23: 0 | L23: 222 | O23: target sequence | P23: =$G$3 -> 222 | Q23: =$G$3 -> 222 | R23: =$G$3 -> 222 | S23: =$G$3 -> 222 | T23: =$G$3 -> 222 | U23: =$G$3 -> 222
A24: 21 | B24: 2879 | C24: 21 | D24: 2886 | E24: 21 | F24: 2895 | K24: 0 | L24: 222 | O24: total reinforcement | P24: =U14 -> 6 | Q24: =Z14 -> 7 | R24: =AE14 -> 7 | S24: =AJ14 -> 7 | T24: =AO14 -> 7 | U24: =AT14 -> 6
A25: 21 | B25: 3015 | C25: 21 | D25: 3019 | E25: 21 | F25: 3032 | K25: 0 | L25: 222 | O25: % target
A26: 21 | B26: 3182 | C26: 21 | D26: 3188 | E26: 21 | F26: 3195 | K26: 0 | L26: 222 | O26: CCRF
A27: 21 | B27: 3354 | C27: 21 | D27: 3355 | E27: 21 | F27: 3369 | K27: 0 | L27: 222 | O27: % CCRf
A28: 21 | B28: 3590 | C28: 21 | D28: 3595 | E28: 21 | F28: 3601 | K28: 0 | L28: 222 | O28: average response rate | P28: =F13/P20 -> 134.1428571 | Q28: =(F20-F13)/Q20 -> 191.1428571 | R28: =(F27-F20)/R20 -> 156 | S28: =(F34-F27)/S20 -> 182.5714286 | T28: =(F41-F34)/T20 -> 203.2857143 | U28: =(F48-F41)/U20 -> 179.2857143
A29: 21 | B29: 3772 | C29: 21 | D29: 3778 | E29: 21 | F29: 3783 | K29: 0 | L29: 222
A30: 21 | B30: 3988 | C30: 21 | D30: 3990 | E30: 21 | F30: 3994 | K30: 0 | L30: 222
A31: 21 | B31: 4179 | C31: 21 | D31: 4188 | E31: 21 | F31: 4196 | K31: 0 | L31: 222
A32: 21 | B32: 4319 | C32: 21 | D32: 4330 | E32: 21 | F32: 4337 | K32: 0 | L32: 222
A33: 21 | B33: 4486 | C33: 21 | D33: 4492 | E33: 21 | F33: 4498 | K33: 0 | L33: 222
A34: 21 | B34: 4631 | C34: 21 | D34: 4637 | E34: 21 | F34: 4647 | K34: 0 | L34: 222
A35: 21 | B35: 4798 | C35: 21 | D35: 4805 | E35: 21 | F35: 4810 | K35: 0 | L35: 222
A36: 21 | B36: 4938 | C36: 21 | D36: 4944 | E36: 21 | F36: 4950 | K36: 0 | L36: 222
A37: 21 | B37: 5123 | C37: 21 | D37: 5127 | E37: 21 | F37: 5133 | K37: 0 | L37: 222
A38: 21 | B38: 5493 | C38: 21 | D38: 5498 | E38: 21 | F38: 5500 | K38: 0 | L38: 222
A39: 21 | B39: 5669 | C39: 21 | D39: 5681 | E39: 21 | F39: 5693 | K39: 0 | L39: 222
A40: 21 | B40: 5859 | C40: 21 | D40: 5870 | E40: 21 | F40: 5876 | K40: 0 | L40: 222
A41: 21 | B41: 6061 | C41: 21 | D41: 6064 | E41: 21 | F41: 6070 | K41: 0 | L41: 222
A42: 21 | B42: 6178 | C42: 21 | D42: 6184 | E42: 21 | F42: 6190 | K42: 0 | L42: 222
A43: 21 | B43: 6354 | C43: 21 | D43: 6360 | E43: 21 | F43: 6373 | K43: 0 | L43: 222
A44: 21 | B44: 6507 | C44: 21 | D44: 6521 | E44: 21 | F44: 6526 | K44: 0 | L44: 222
A45: 21 | B45: 6726 | C45: 21 | D45: 6740 | E45: 21 | F45: 6746 | K45: 0 | L45: 222
A46: 21 | B46: 6929 | C46: 21 | D46: 6938 | E46: 21 | F46: 6941 | K46: 0 | L46: 222
A47: 12 | B47: 7183 | C47: 23 | D47: 7198 | E47: 23 | F47: 7206 | K47: 0 | L47: 122
A48: 21 | B48: 7308 | C48: 21 | D48: 7310 | E48: 21 | F48: 7325 | K48: 1 | L48: 222

Sheet !M402B3D.UST
A1: Report for:!M402B3D.UST
A2: Date: | B2: <date>
A3: Hen: | B3: <hen> | F3: Correct Sequence | G3: =Start!J2 -> 222 | P3: Total Sequences in Data | Q3: =4994-COUNTBLANK(L7:L5000) -> 41 | V3: Total Sequences in Block Data | W3: =COUNTA(L7:L13) -> 7 | AA3: Total Sequences in Block Data | AB3: =COUNTA(L14:L20) -> 7 | AF3: Total Sequences in Block Data | AG3: =COUNTA(L21:L26) -> 6 | AK3: Total Sequences in Block Data | AL3: =COUNTA(L27:L33) -> 7 | AP3: Total Sequences in Block Data | AQ3: =COUNTA(L34:L40) -> 7 | AU3: Total Sequences in Block Data | AV3: =COUNTA(L41:L47) -> 7
P4: Total Sequences in Summary | Q4: =SUM(O7:O14) -> 41 | V4: Total Sequences in Block Summary | W4: =SUM(U7:U14) -> 7 | AA4: Total Sequences in Block Summary | AB4: =SUM(Z7:Z14) -> 7 | AF4: Total Sequences in Block Summary | AG4: =SUM(AE7:AE14) -> 6 | AK4: Total Sequences in Block Summary | AL4: =SUM(AJ7:AJ14) -> 7 | AP4: Total Sequences in Block Summary | AQ4: =SUM(AO7:AO14) -> 7 | AU4: Total Sequences in Block Summary | AV4: =SUM(AT7:AT14) -> 7
T5: Block 1 | Y5: Block 2 | AD5: Block 3 | AI5: Block 4 | AN5: Block 5 | AS5: Block 6
A6: Sequence Component 1 | B6: Time 1 | C6: Sequence Component 2 | D6: Time 2 | E6: Sequence Component 3 | F6: Time 3 | G6: Sequence Component 4 | H6: Time 4 | I6: Sequence Component 5 | J6: Time 5 | K6: Correct? 0=No 1=Yes | L6: Sequence | N6: Frequency | P6: Relative Frequency | Q6: Variability | T6: Frequency | V6: Relative Frequency | W6: Variability | Y6: Frequency | AA6: Relative Frequency | AB6: Variability | AD6: Frequency | AF6: Relative Frequency | AG6: Variability | AI6: Frequency | AK6: Relative Frequency | AL6: Variability | AN6: Frequency | AP6: Relative Frequency | AQ6: Variability | AS6: Frequency | AU6: Relative Frequency | AV6: Variability
A7: 12 | B7: 10 | C7: 23 | D7: 18 | E7: 23 | F7: 26 | K7: 0 | L7: 122 | N7: 111 | O7: =COUNTIF($L$7:$L$500,N7) -> 0 | P7: =O7/$Q$4 -> 0 | Q7: =IF(P7=0,0,(P7*((LOG(P7))/LOG(2)))) -> 0 | T7: =N7 -> 111 | U7: =COUNTIF(L7:L13,T7) -> 0 | V7: =U7/(W4-U14) -> 0 | W7: =IF(V7=0,0,(V7*((LOG(V7))/LOG(2)))) -> 0 | Y7: =N7 -> 111 | Z7: =COUNTIF(L14:L20,Y7) -> 0 | AA7: =Z7/(AB4-Z14) ->  | AB7: =IF(AA7=0,0,(AA7*((LOG(AA7))/LOG(2)))) ->  | AD7: =N7 -> 111 | AE7: =COUNTIF(L21:L26,AD7) -> 0 | AF7: =AE7/(AG4-AE14) ->  | AG7: =IF(AF7=0,0,(AF7*((LOG(AF7))/LOG(2)))) ->  | AI7: =N7 -> 111 | AJ7: =COUNTIF(L27:L33,AI7) -> 0 | AK7: =AJ7/(AL4-AJ14) ->  | AL7: =IF(AK7=0,0,(AK7*((LOG(AK7))/LOG(2)))) ->  | AN7: =N7 -> 111 | AO7: =COUNTIF(L34:L40,AN7) -> 0 | AP7: =AO7/(AQ4-AO14) ->  | AQ7: =IF(AP7=0,0,(AP7*((LOG(AP7))/LOG(2)))) ->  | AS7: =N7 -> 111 | AT7: =COUNTIF(L41:L47,AS7) -> 0 | AU7: =AT7/(AV4-AT14) ->  | AV7: =IF(AU7=0,0,(AU7*((LOG(AU7))/LOG(2)))) -> 
A8: 21 | B8: 121 | C8: 21 | D8: 128 | E8: 21 | F8: 137 | K8: 0 | L8: 222 | N8: 112 | O8: =COUNTIF($L$7:$L$500,N8) -> 0 | P8: =O8/$Q$4 -> 0 | Q8: =IF(P8=0,0,(P8*((LOG(P8))/LOG(2)))) -> 0 | T8: =N8 -> 112 | U8: =COUNTIF(L7:L13,T8) -> 0 | V8: =U8/(W4-U14) -> 0 | W8: =IF(V8=0,0,(V8*((LOG(V8))/LOG(2)))) -> 0 | Y8: =N8 -> 112 | Z8: =COUNTIF(L14:L20,Y8) -> 0 | AA8: =Z8/(AB4-Z14) ->  | AB8: =IF(AA8=0,0,(AA8*((LOG(AA8))/LOG(2)))) ->  | AD8: =N8 -> 112 | AE8: =COUNTIF(L21:L26,AD8) -> 0 | AF8: =AE8/(AG4-AE14) ->  | AG8: =IF(AF8=0,0,(AF8*((LOG(AF8))/LOG(2)))) ->  | AI8: =N8 -> 112 | AJ8: =COUNTIF(L27:L33,AI8) -> 0 | AK8: =AJ8/(AL4-AJ14) ->  | AL8: =IF(AK8=0,0,(AK8*((LOG(AK8))/LOG(2)))) ->  | AN8: =N8 -> 112 | AO8: =COUNTIF(L34:L40,AN8) -> 0 | AP8: =AO8/(AQ4-AO14) ->  | AQ8: =IF(AP8=0,0,(AP8*((LOG(AP8))/LOG(2)))) ->  | AS8: =N8 -> 112 | AT8: =COUNTIF(L41:L47,AS8) -> 0 | AU8: =AT8/(AV4-AT14) ->  | AV8: =IF(AU8=0,0,(AU8*((LOG(AU8))/LOG(2)))) -> 
A9: 21 | B9: 263 | C9: 21 | D9: 266 | E9: 21 | F9: 276 | K9: 0 | L9: 222 | N9: 121 | O9: =COUNTIF($L$7:$L$500,N9) -> 0 | P9: =O9/$Q$4 -> 0 | Q9: =IF(P9=0,0,(P9*((LOG(P9))/LOG(2)))) -> 0 | T9: =N9 -> 121 | U9: =COUNTIF(L7:L13,T9) -> 0 | V9: =U9/(W4-U14) -> 0 | W9: =IF(V9=0,0,(V9*((LOG(V9))/LOG(2)))) -> 0 | Y9: =N9 -> 121 | Z9: =COUNTIF(L14:L20,Y9) -> 0 | AA9: =Z9/(AB4-Z14) ->  | AB9: =IF(AA9=0,0,(AA9*((LOG(AA9))/LOG(2)))) ->  | AD9: =N9 -> 121 | AE9: =COUNTIF(L21:L26,AD9) -> 0 | AF9: =AE9/(AG4-AE14) ->  | AG9: =IF(AF9=0,0,(AF9*((LOG(AF9))/LOG(2)))) ->  | AI9: =N9 -> 121 | AJ9: =COUNTIF(L27:L33,AI9) -> 0 | AK9: =AJ9/(AL4-AJ14) ->  | AL9: =IF(AK9=0,0,(AK9*((LOG(AK9))/LOG(2)))) ->  | AN9: =N9 -> 121 | AO9: =COUNTIF(L34:L40,AN9) -> 0 | AP9: =AO9/(AQ4-AO14) ->  | AQ9: =IF(AP9=0,0,(AP9*((LOG(AP9))/LOG(2)))) ->  | AS9: =N9 -> 121 | AT9: =COUNTIF(L41:L47,AS9) -> 0 | AU9: =AT9/(AV4-AT14) ->  | AV9: =IF(AU9=0,0,(AU9*((LOG(AU9))/LOG(2)))) -> 
A10: 21 | B10: 445 | C10: 21 | D10: 449 | E10: 21 | F10: 453 | K10: 0 | L10: 222 | N10: 122 | O10: =COUNTIF($L$7:$L$500,N10) -> 1 | P10: =O10/$Q$4 -> 0.0243902439 | Q10: =IF(P10=0,0,(P10*((LOG(P10))/LOG(2)))) -> -0.1306720001 | T10: =N10 -> 122 | U10: =COUNTIF(L7:L13,T10) -> 1 | V10: =U10/(W4-U14) -> 1 | W10: =IF(V10=0,0,(V10*((LOG(V10))/LOG(2)))) -> 0 | Y10: =N10 -> 122 | Z10: =COUNTIF(L14:L20,Y10) -> 0 | AA10: =Z10/(AB4-Z14) ->  | AB10: =IF(AA10=0,0,(AA10*((LOG(AA10))/LOG(2)))) ->  | AD10: =N10 -> 122 | AE10: =COUNTIF(L21:L26,AD10) -> 0 | AF10: =AE10/(AG4-AE14) ->  | AG10: =IF(AF10=0,0,(AF10*((LOG(AF10))/LOG(2)))) ->  | AI10: =N10 -> 122 | AJ10: =COUNTIF(L27:L33,AI10) -> 0 | AK10: =AJ10/(AL4-AJ14) ->  | AL10: =IF(AK10=0,0,(AK10*((LOG(AK10))/LOG(2)))) ->  | AN10: =N10 -> 122 | AO10: =COUNTIF(L34:L40,AN10) -> 0 | AP10: =AO10/(AQ4-AO14) ->  | AQ10: =IF(AP10=0,0,(AP10*((LOG(AP10))/LOG(2)))) ->  | AS10: =N10 -> 122 | AT10: =COUNTIF(L41:L47,AS10) -> 0 | AU10: =AT10/(AV4-AT14) ->  | AV10: =IF(AU10=0,0,(AU10*((LOG(AU10))/LOG(2)))) -> 
A11: 21 | B11: 603 | C11: 21 | D11: 611 | E11: 21 | F11: 619 | K11: 0 | L11: 222 | N11: 211 | O11: =COUNTIF($L$7:$L$500,N11) -> 0 | P11: =O11/$Q$4 -> 0 | Q11: =IF(P11=0,0,(P11*((LOG(P11))/LOG(2)))) -> 0 | T11: =N11 -> 211 | U11: =COUNTIF(L7:L13,T11) -> 0 | V11: =U11/(W4-U14) -> 0 | W11: =IF(V11=0,0,(V11*((LOG(V11))/LOG(2)))) -> 0 | Y11: =N11 -> 211 | Z11: =COUNTIF(L14:L20,Y11) -> 0 | AA11: =Z11/(AB4-Z14) ->  | AB11: =IF(AA11=0,0,(AA11*((LOG(AA11))/LOG(2)))) ->  | AD11: =N11 -> 211 | AE11: =COUNTIF(L21:L26,AD11) -> 0 | AF11: =AE11/(AG4-AE14) ->  | AG11: =IF(AF11=0,0,(AF11*((LOG(AF11))/LOG(2)))) ->  | AI11: =N11 -> 211 | AJ11: =COUNTIF(L27:L33,AI11) -> 0 | AK11: =AJ11/(AL4-AJ14) ->  | AL11: =IF(AK11=0,0,(AK11*((LOG(AK11))/LOG(2)))) ->  | AN11: =N11 -> 211 | AO11: =COUNTIF(L34:L40,AN11) -> 0 | AP11: =AO11/(AQ4-AO14) ->  | AQ11: =IF(AP11=0,0,(AP11*((LOG(AP11))/LOG(2)))) ->  | AS11: =N11 -> 211 | AT11: =COUNTIF(L41:L47,AS11) -> 0 | AU11: =AT11/(AV4-AT14) ->  | AV11: =IF(AU11=0,0,(AU11*((LOG(AU11))/LOG(2)))) -> 
A12: 21 | B12: 728 | C12: 21 | D12: 734 | E12: 21 | F12: 739 | K12: 0 | L12: 222 | N12: 212 | O12: =COUNTIF($L$7:$L$500,N12) -> 0 | P12: =O12/$Q$4 -> 0 | Q12: =IF(P12=0,0,(P12*((LOG(P12))/LOG(2)))) -> 0 | T12: =N12 -> 212 | U12: =COUNTIF(L7:L13,T12) -> 0 | V12: =U12/(W4-U14) -> 0 | W12: =IF(V12=0,0,(V12*((LOG(V12))/LOG(2)))) -> 0 | Y12: =N12 -> 212 | Z12: =COUNTIF(L14:L20,Y12) -> 0 | AA12: =Z12/(AB4-Z14) ->  | AB12: =IF(AA12=0,0,(AA12*((LOG(AA12))/LOG(2)))) ->  | AD12: =N12 -> 212 | AE12: =COUNTIF(L21:L26,AD12) -> 0 | AF12: =AE12/(AG4-AE14) ->  | AG12: =IF(AF12=0,0,(AF12*((LOG(AF12))/LOG(2)))) ->  | AI12: =N12 -> 212 | AJ12: =COUNTIF(L27:L33,AI12) -> 0 | AK12: =AJ12/(AL4-AJ14) ->  | AL12: =IF(AK12=0,0,(AK12*((LOG(AK12))/LOG(2)))) ->  | AN12: =N12 -> 212 | AO12: =COUNTIF(L34:L40,AN12) -> 0 | AP12: =AO12/(AQ4-AO14) ->  | AQ12: =IF(AP12=0,0,(AP12*((LOG(AP12))/LOG(2)))) ->  | AS12: =N12 -> 212 | AT12: =COUNTIF(L41:L47,AS12) -> 0 | AU12: =AT12/(AV4-AT14) ->  | AV12: =IF(AU12=0,0,(AU12*((LOG(AU12))/LOG(2)))) -> 
A13: 21 | B13: 906 | C13: 21 | D13: 911 | E13: 21 | F13: 925 | K13: 0 | L13: 222 | N13: 221 | O13: =COUNTIF($L$7:$L$500,N13) -> 0 | P13: =O13/$Q$4 -> 0 | Q13: =IF(P13=0,0,(P13*((LOG(P13))/LOG(2)))) -> 0 | T13: =N13 -> 221 | U13: =COUNTIF(L7:L13,T13) -> 0 | V13: =U13/(W4-U14) -> 0 | W13: =IF(V13=0,0,(V13*((LOG(V13))/LOG(2)))) -> 0 | Y13: =N13 -> 221 | Z13: =COUNTIF(L14:L20,Y13) -> 0 | AA13: =Z13/(AB4-Z14) ->  | AB13: =IF(AA13=0,0,(AA13*((LOG(AA13))/LOG(2)))) ->  | AD13: =N13 -> 221 | AE13: =COUNTIF(L21:L26,AD13) -> 0 | AF13: =AE13/(AG4-AE14) ->  | AG13: =IF(AF13=0,0,(AF13*((LOG(AF13))/LOG(2)))) ->  | AI13: =N13 -> 221 | AJ13: =COUNTIF(L27:L33,AI13) -> 0 | AK13: =AJ13/(AL4-AJ14) ->  | AL13: =IF(AK13=0,0,(AK13*((LOG(AK13))/LOG(2)))) ->  | AN13: =N13 -> 221 | AO13: =COUNTIF(L34:L40,AN13) -> 0 | AP13: =AO13/(AQ4-AO14) ->  | AQ13: =IF(AP13=0,0,(AP13*((LOG(AP13))/LOG(2)))) ->  | AS13: =N13 -> 221 | AT13: =COUNTIF(L41:L47,AS13) -> 0 | AU13: =AT13/(AV4-AT14) ->  | AV13: =IF(AU13=0,0,(AU13*((LOG(AU13))/LOG(2)))) -> 
A14: 21 | B14: 1091 | C14: 21 | D14: 1092 | E14: 21 | F14: 1095 | K14: 0 | L14: 222 | N14: 222 | O14: =COUNTIF($L$7:$L$500,N14) -> 40 | P14: =O14/$Q$4 -> 0.9756097561 | Q14: =IF(P14=0,0,(P14*((LOG(P14))/LOG(2)))) -> -0.03475503388 | T14: =N14 -> 222 | U14: =COUNTIF(L7:L13,T14) -> 6 | Y14: =N14 -> 222 | Z14: =COUNTIF(L14:L20,Y14) -> 7 | AD14: =N14 -> 222 | AE14: =COUNTIF(L21:L26,AD14) -> 6 | AI14: =N14 -> 222 | AJ14: =COUNTIF(L27:L33,AI14) -> 7 | AN14: =N14 -> 222 | AO14: =COUNTIF(L34:L40,AN14) -> 7 | AS14: =N14 -> 222 | AT14: =COUNTIF(L41:L47,AS14) -> 7
A15: 21 | B15: 1260 | C15: 21 | D15: 1272 | E15: 21 | F15: 1277 | K15: 0 | L15: 222 | P15: =SUM(P7:P14) -> 1 | Q15: =-SUM(Q7:Q14) -> 0.165427034 | V15: =SUM(V7:V14) -> 1 | W15: =-SUM(W7:W14) -> 0 | AA15: =SUM(AA7:AA14) ->  | AB15: =-SUM(AB7:AB14) ->  | AF15: =SUM(AF7:AF14) ->  | AG15: =-SUM(AG7:AG14) ->  | AK15: =SUM(AK7:AK14) ->  | AL15: =-SUM(AL7:AL14) ->  | AP15: =SUM(AP7:AP14) ->  | AQ15: =-SUM(AQ7:AQ14) ->  | AU15: =SUM(AU7:AU14) ->  | AV15: =-SUM(AV7:AV14) -> 
A16: 21 | B16: 1428 | C16: 21 | D16: 1432 | E16: 21 | F16: 1437 | K16: 0 | L16: 222 | P16: U= | Q16: =Q15/(LOG(Q4)/LOG(2)) -> 0.03087735478 | V16: U1= | W16: =W15/(LOG(W4)/LOG(2)) -> 0 | AA16: U2= | AB16: =AB15/(LOG(AB4)/LOG(2)) ->  | AF16: U3= | AG16: =AG15/(LOG(AG4)/LOG(2)) ->  | AK16: U4= | AL16: =AL15/(LOG(AL4)/LOG(2)) ->  | AP16: U5= | AQ16: =AQ15/(LOG(AQ4)/LOG(2)) ->  | AU16: U6= | AV16: =AV15/(LOG(AV4)/LOG(2)) -> 
A17: 21 | B17: 1616 | C17: 21 | D17: 1621 | E17: 21 | F17: 1625 | K17: 0 | L17: 222
A18: 21 | B18: 1816 | C18: 21 | D18: 1821 | E18: 21 | F18: 1828 | K18: 0 | L18: 222
A19: 21 | B19: 2033 | C19: 21 | D19: 2036 | E19: 21 | F19: 2044 | K19: 0 | L19: 222 | N19: Total Target Seq
A20: 21 | B20: 2269 | C20: 21 | D20: 2278 | E20: 21 | F20: 2289 | K20: 0 | L20: 222 | N20: =COUNTIF(L7:L47,G3) -> 40 | P20: 7 | Q20: 7 | R20: 6 | S20: 7 | T20: 7 | U20: 7
A21: 21 | B21: 2504 | C21: 21 | D21: 2514 | E21: 21 | F21: 2530 | K21: 0 | L21: 222 | P21: % of reinforcement given in 6 equal intervals based on number of trials
A22: 21 | B22: 2727 | C22: 21 | D22: 2733 | E22: 21 | F22: 2740 | K22: 0 | L22: 222 | P22: %_1 | Q22: %_2 | R22: %_3 | S22: %_4 | T22: %_5 | U22: %_6
A23: 21 | B23: 2903 | C23: 21 | D23: 2909 | E23: 21 | F23: 2915 | K23: 0 | L23: 222 | O23: target sequence | P23: =$G$3 -> 222 | Q23: =$G$3 -> 222 | R23: =$G$3 -> 222 | S23: =$G$3 -> 222 | T23: =$G$3 -> 222 | U23: =$G$3 -> 222
A24: 21 | B24: 3118 | C24: 21 | D24: 3126 | E24: 21 | F24: 3132 | K24: 0 | L24: 222 | O24: total reinforcement | P24: =U14 -> 6 | Q24: =Z14 -> 7 | R24: =AE14 -> 6 | S24: =AJ14 -> 7 | T24: =AO14 -> 7 | U24: =AT14 -> 7
A25: 21 | B25: 3314 | C25: 21 | D25: 3322 | E25: 21 | F25: 3327 | K25: 0 | L25: 222 | O25: % target
A26: 21 | B26: 3548 | C26: 21 | D26: 3551 | E26: 21 | F26: 3556 | K26: 0 | L26: 222 | O26: CCRF
A27: 21 | B27: 3668 | C27: 21 | D27: 3675 | E27: 21 | F27: 3677 | K27: 0 | L27: 222 | O27: % CCRf
A28: 21 | B28: 3832 | C28: 21 | D28: 3841 | E28: 21 | F28: 3851 | K28: 0 | L28: 222 | O28: average response rate | P28: =F13/P20 -> 132.1428571 | Q28: =(F20-F13)/Q20 -> 194.8571429 | R28: =(F26-F20)/R20 -> 211.1666667 | S28: =(F33-F26)/S20 -> 182.4285714 | T28: =(F40-F33)/T20 -> 231.2857143 | U28: =(F47-F40)/U20 -> 249.4285714
A29: 21 | B29: 3970 | C29: 21 | D29: 3976 | E29: 21 | F29: 3987 | K29: 0 | L29: 222
A30: 21 | B30: 4137 | C30: 21 | D30: 4144 | E30: 21 | F30: 4154 | K30: 0 | L30: 222
A31: 21 | B31: 4346 | C31: 21 | D31: 4352 | E31: 21 | F31: 4358 | K31: 0 | L31: 222
A32: 21 | B32: 4623 | C32: 21 | D32: 4629 | E32: 21 | F32: 4635 | K32: 0 | L32: 222
A33: 21 | B33: 4817 | C33: 21 | D33: 4822 | E33: 21 | F33: 4833 | K33: 0 | L33: 222
A34: 21 | B34: 4952 | C34: 21 | D34: 4958 | E34: 21 | F34: 4969 | K34: 0 | L34: 222
A35: 21 | B35: 5250 | C35: 21 | D35: 5256 | E35: 21 | F35: 5260 | K35: 0 | L35: 222
A36: 21 | B36: 5448 | C36: 21 | D36: 5457 | E36: 21 | F36: 5471 | K36: 0 | L36: 222
A37: 21 | B37: 5701 | C37: 21 | D37: 5705 | E37: 21 | F37: 5710 | K37: 0 | L37: 222
A38: 21 | B38: 5989 | C38: 21 | D38: 5994 | E38: 21 | F38: 5999 | K38: 0 | L38: 222
A39: 21 | B39: 6142 | C39: 21 | D39: 6151 | E39: 21 | F39: 6165 | K39: 0 | L39: 222
A40: 21 | B40: 6442 | C40: 21 | D40: 6446 | E40: 21 | F40: 6452 | K40: 0 | L40: 222
A41: 21 | B41: 6599 | C41: 21 | D41: 6605 | E41: 21 | F41: 6611 | K41: 0 | L41: 222
A42: 21 | B42: 6870 | C42: 21 | D42: 6877 | E42: 21 | F42: 6883 | K42: 0 | L42: 222
A43: 21 | B43: 7046 | C43: 21 | D43: 7053 | E43: 21 | F43: 7059 | K43: 0 | L43: 222
A44: 21 | B44: 7310 | C44: 21 | D44: 7318 | E44: 21 | F44: 7324 | K44: 0 | L44: 222
A45: 21 | B45: 7582 | C45: 21 | D45: 7587 | E45: 21 | F45: 7592 | K45: 0 | L45: 222
A46: 21 | B46: 7782 | C46: 21 | D46: 7785 | E46: 21 | F46: 7798 | K46: 0 | L46: 222
A47: 21 | B47: 8187 | C47: 21 | D47: 8191 | E47: 21 | F47: 8198 | K47: 1 | L47: 222

Sheet !M40394D.UST
A1: Report for:!M40394D.UST
A2: Date: | B2: <date>
A3: Hen: | B3: <hen> | F3: Correct Sequence | G3: =Start!J2 -> 222 | P3: Total Sequences in Data | Q3: =4994-COUNTBLANK(L7:L5000) -> 40 | V3: Total Sequences in Block Data | W3: =COUNTA(L7:L13) -> 7 | AA3: Total Sequences in Block Data | AB3: =COUNTA(L14:L19) -> 6 | AF3: Total Sequences in Block Data | AG3: =COUNTA(L20:L26) -> 7 | AK3: Total Sequences in Block Data | AL3: =COUNTA(L27:L33) -> 7 | AP3: Total Sequences in Block Data | AQ3: =COUNTA(L34:L39) -> 6 | AU3: Total Sequences in Block Data | AV3: =COUNTA(L40:L46) -> 7
P4: Total Sequences in Summary | Q4: =SUM(O7:O14) -> 40 | V4: Total Sequences in Block Summary | W4: =SUM(U7:U14) -> 7 | AA4: Total Sequences in Block Summary | AB4: =SUM(Z7:Z14) -> 6 | AF4: Total Sequences in Block Summary | AG4: =SUM(AE7:AE14) -> 7 | AK4: Total Sequences in Block Summary | AL4: =SUM(AJ7:AJ14) -> 7 | AP4: Total Sequences in Block Summary | AQ4: =SUM(AO7:AO14) -> 6 | AU4: Total Sequences in Block Summary | AV4: =SUM(AT7:AT14) -> 7
T5: Block 1 | Y5: Block 2 | AD5: Block 3 | AI5: Block 4 | AN5: Block 5 | AS5: Block 6
A6: Sequence Component 1 | B6: Time 1 | C6: Sequence Component 2 | D6: Time 2 | E6: Sequence Component 3 | F6: Time 3 | G6: Sequence Component 4 | H6: Time 4 | I6: Sequence Component 5 | J6: Time 5 | K6: Correct? 0=No 1=Yes | L6: Sequence | N6: Frequency | P6: Relative Frequency | Q6: Variability | T6: Frequency | V6: Relative Frequency | W6: Variability | Y6: Frequency | AA6: Relative Frequency | AB6: Variability | AD6: Frequency | AF6: Relative Frequency | AG6: Variability | AI6: Frequency | AK6: Relative Frequency | AL6: Variability | AN6: Frequency | AP6: Relative Frequency | AQ6: Variability | AS6: Frequency | AU6: Relative Frequency | AV6: Variability
A7: 21 | B7: 11 | C7: 21 | D7: 20 | E7: 21 | F7: 27 | K7: 0 | L7: 222 | N7: 111 | O7: =COUNTIF($L$7:$L$500,N7) -> 0 | P7: =O7/$Q$4 -> 0 | Q7: =IF(P7=0,0,(P7*((LOG(P7))/LOG(2)))) -> 0 | T7: =N7 -> 111 | U7: =COUNTIF(L7:L13,T7) -> 0 | V7: =U7/(W4-U14) ->  | W7: =IF(V7=0,0,(V7*((LOG(V7))/LOG(2)))) ->  | Y7: =N7 -> 111 | Z7: =COUNTIF(L14:L19,Y7) -> 0 | AA7: =Z7/(AB4-Z14) ->  | AB7: =IF(AA7=0,0,(AA7*((LOG(AA7))/LOG(2)))) ->  | AD7: =N7 -> 111 | AE7: =COUNTIF(L20:L26,AD7) -> 0 | AF7: =AE7/(AG4-AE14) ->  | AG7: =IF(AF7=0,0,(AF7*((LOG(AF7))/LOG(2)))) ->  | AI7: =N7 -> 111 | AJ7: =COUNTIF(L27:L33,AI7) -> 0 | AK7: =AJ7/(AL4-AJ14) ->  | AL7: =IF(AK7=0,0,(AK7*((LOG(AK7))/LOG(2)))) ->  | AN7: =N7 -> 111 | AO7: =COUNTIF(L34:L39,AN7) -> 0 | AP7: =AO7/(AQ4-AO14) ->  | AQ7: =IF(AP7=0,0,(AP7*((LOG(AP7))/LOG(2)))) ->  | AS7: =N7 -> 111 | AT7: =COUNTIF(L40:L46,AS7) -> 0 | AU7: =AT7/(AV4-AT14) ->  | AV7: =IF(AU7=0,0,(AU7*((LOG(AU7))/LOG(2)))) -> 
A8: 21 | B8: 142 | C8: 21 | D8: 152 | E8: 21 | F8: 158 | K8: 0 | L8: 222 | N8: 112 | O8: =COUNTIF($L$7:$L$500,N8) -> 0 | P8: =O8/$Q$4 -> 0 | Q8: =IF(P8=0,0,(P8*((LOG(P8))/LOG(2)))) -> 0 | T8: =N8 -> 112 | U8: =COUNTIF(L7:L13,T8) -> 0 | V8: =U8/(W4-U14) ->  | W8: =IF(V8=0,0,(V8*((LOG(V8))/LOG(2)))) ->  | Y8: =N8 -> 112 | Z8: =COUNTIF(L14:L19,Y8) -> 0 | AA8: =Z8/(AB4-Z14) ->  | AB8: =IF(AA8=0,0,(AA8*((LOG(AA8))/LOG(2)))) ->  | AD8: =N8 -> 112 | AE8: =COUNTIF(L20:L26,AD8) -> 0 | AF8: =AE8/(AG4-AE14) ->  | AG8: =IF(AF8=0,0,(AF8*((LOG(AF8))/LOG(2)))) ->  | AI8: =N8 -> 112 | AJ8: =COUNTIF(L27:L33,AI8) -> 0 | AK8: =AJ8/(AL4-AJ14) ->  | AL8: =IF(AK8=0,0,(AK8*((LOG(AK8))/LOG(2)))) ->  | AN8: =N8 -> 112 | AO8: =COUNTIF(L34:L39,AN8) -> 0 | AP8: =AO8/(AQ4-AO14) ->  | AQ8: =IF(AP8=0,0,(AP8*((LOG(AP8))/LOG(2)))) ->  | AS8: =N8 -> 112 | AT8: =COUNTIF(L40:L46,AS8) -> 0 | AU8: =AT8/(AV4-AT14) ->  | AV8: =IF(AU8=0,0,(AU8*((LOG(AU8))/LOG(2)))) -> 
A9: 21 | B9: 309 | C9: 21 | D9: 315 | E9: 21 | F9: 322 | K9: 0 | L9: 222 | N9: 121 | O9: =COUNTIF($L$7:$L$500,N9) -> 0 | P9: =O9/$Q$4 -> 0 | Q9: =IF(P9=0,0,(P9*((LOG(P9))/LOG(2)))) -> 0 | T9: =N9 -> 121 | U9: =COUNTIF(L7:L13,T9) -> 0 | V9: =U9/(W4-U14) ->  | W9: =IF(V9=0,0,(V9*((LOG(V9))/LOG(2)))) ->  | Y9: =N9 -> 121 | Z9: =COUNTIF(L14:L19,Y9) -> 0 | AA9: =Z9/(AB4-Z14) ->  | AB9: =IF(AA9=0,0,(AA9*((LOG(AA9))/LOG(2)))) ->  | AD9: =N9 -> 121 | AE9: =COUNTIF(L20:L26,AD9) -> 0 | AF9: =AE9/(AG4-AE14) ->  | AG9: =IF(AF9=0,0,(AF9*((LOG(AF9))/LOG(2)))) ->  | AI9: =N9 -> 121 | AJ9: =COUNTIF(L27:L33,AI9) -> 0 | AK9: =AJ9/(AL4-AJ14) ->  | AL9: =IF(AK9=0,0,(AK9*((LOG(AK9))/LOG(2)))) ->  | AN9: =N9 -> 121 | AO9: =COUNTIF(L34:L39,AN9) -> 0 | AP9: =AO9/(AQ4-AO14) ->  | AQ9: =IF(AP9=0,0,(AP9*((LOG(AP9))/LOG(2)))) ->  | AS9: =N9 -> 121 | AT9: =COUNTIF(L40:L46,AS9) -> 0 | AU9: =AT9/(AV4-AT14) ->  | AV9: =IF(AU9=0,0,(AU9*((LOG(AU9))/LOG(2)))) -> 
A10: 21 | B10: 528 | C10: 21 | D10: 539 | E10: 21 | F10: 547 | K10: 0 | L10: 222 | N10: 122 | O10: =COUNTIF($L$7:$L$500,N10) -> 0 | P10: =O10/$Q$4 -> 0 | Q10: =IF(P10=0,0,(P10*((LOG(P10))/LOG(2)))) -> 0 | T10: =N10 -> 122 | U10: =COUNTIF(L7:L13,T10) -> 0 | V10: =U10/(W4-U14) ->  | W10: =IF(V10=0,0,(V10*((LOG(V10))/LOG(2)))) ->  | Y10: =N10 -> 122 | Z10: =COUNTIF(L14:L19,Y10) -> 0 | AA10: =Z10/(AB4-Z14) ->  | AB10: =IF(AA10=0,0,(AA10*((LOG(AA10))/LOG(2)))) ->  | AD10: =N10 -> 122 | AE10: =COUNTIF(L20:L26,AD10) -> 0 | AF10: =AE10/(AG4-AE14) ->  | AG10: =IF(AF10=0,0,(AF10*((LOG(AF10))/LOG(2)))) ->  | AI10: =N10 -> 122 | AJ10: =COUNTIF(L27:L33,AI10) -> 0 | AK10: =AJ10/(AL4-AJ14) ->  | AL10: =IF(AK10=0,0,(AK10*((LOG(AK10))/LOG(2)))) ->  | AN10: =N10 -> 122 | AO10: =COUNTIF(L34:L39,AN10) -> 0 | AP10: =AO10/(AQ4-AO14) ->  | AQ10: =IF(AP10=0,0,(AP10*((LOG(AP10))/LOG(2)))) ->  | AS10: =N10 -> 122 | AT10: =COUNTIF(L40:L46,AS10) -> 0 | AU10: =AT10/(AV4-AT14) ->  | AV10: =IF(AU10=0,0,(AU10*((LOG(AU10))/LOG(2)))) -> 
A11: 21 | B11: 699 | C11: 21 | D11: 703 | E11: 21 | F11: 709 | K11: 0 | L11: 222 | N11: 211 | O11: =COUNTIF($L$7:$L$500,N11) -> 0 | P11: =O11/$Q$4 -> 0 | Q11: =IF(P11=0,0,(P11*((LOG(P11))/LOG(2)))) -> 0 | T11: =N11 -> 211 | U11: =COUNTIF(L7:L13,T11) -> 0 | V11: =U11/(W4-U14) ->  | W11: =IF(V11=0,0,(V11*((LOG(V11))/LOG(2)))) ->  | Y11: =N11 -> 211 | Z11: =COUNTIF(L14:L19,Y11) -> 0 | AA11: =Z11/(AB4-Z14) ->  | AB11: =IF(AA11=0,0,(AA11*((LOG(AA11))/LOG(2)))) ->  | AD11: =N11 -> 211 | AE11: =COUNTIF(L20:L26,AD11) -> 0 | AF11: =AE11/(AG4-AE14) ->  | AG11: =IF(AF11=0,0,(AF11*((LOG(AF11))/LOG(2)))) ->  | AI11: =N11 -> 211 | AJ11: =COUNTIF(L27:L33,AI11) -> 0 | AK11: =AJ11/(AL4-AJ14) ->  | AL11: =IF(AK11=0,0,(AK11*((LOG(AK11))/LOG(2)))) ->  | AN11: =N11 -> 211 | AO11: =COUNTIF(L34:L39,AN11) -> 0 | AP11: =AO11/(AQ4-AO14) ->  | AQ11: =IF(AP11=0,0,(AP11*((LOG(AP11))/LOG(2)))) ->  | AS11: =N11 -> 211 | AT11: =COUNTIF(L40:L46,AS11) -> 0 | AU11: =AT11/(AV4-AT14) ->  | AV11: =IF(AU11=0,0,(AU11*((LOG(AU11))/LOG(2)))) -> 
A12: 21 | B12: 846 | C12: 21 | D12: 853 | E12: 21 | F12: 860 | K12: 0 | L12: 222 | N12: 212 | O12: =COUNTIF($L$7:$L$500,N12) -> 0 | P12: =O12/$Q$4 -> 0 | Q12: =IF(P12=0,0,(P12*((LOG(P12))/LOG(2)))) -> 0 | T12: =N12 -> 212 | U12: =COUNTIF(L7:L13,T12) -> 0 | V12: =U12/(W4-U14) ->  | W12: =IF(V12=0,0,(V12*((LOG(V12))/LOG(2)))) ->  | Y12: =N12 -> 212 | Z12: =COUNTIF(L14:L19,Y12) -> 0 | AA12: =Z12/(AB4-Z14) ->  | AB12: =IF(AA12=0,0,(AA12*((LOG(AA12))/LOG(2)))) ->  | AD12: =N12 -> 212 | AE12: =COUNTIF(L20:L26,AD12) -> 0 | AF12: =AE12/(AG4-AE14) ->  | AG12: =IF(AF12=0,0,(AF12*((LOG(AF12))/LOG(2)))) ->  | AI12: =N12 -> 212 | AJ12: =COUNTIF(L27:L33,AI12) -> 0 | AK12: =AJ12/(AL4-AJ14) ->  | AL12: =IF(AK12=0,0,(AK12*((LOG(AK12))/LOG(2)))) ->  | AN12: =N12 -> 212 | AO12: =COUNTIF(L34:L39,AN12) -> 0 | AP12: =AO12/(AQ4-AO14) ->  | AQ12: =IF(AP12=0,0,(AP12*((LOG(AP12))/LOG(2)))) ->  | AS12: =N12 -> 212 | AT12: =COUNTIF(L40:L46,AS12) -> 0 | AU12: =AT12/(AV4-AT14) ->  | AV12: =IF(AU12=0,0,(AU12*((LOG(AU12))/LOG(2)))) -> 
A13: 21 | B13: 987 | C13: 21 | D13: 992 | E13: 21 | F13: 1000 | K13: 0 | L13: 222 | N13: 221 | O13: =COUNTIF($L$7:$L$500,N13) -> 0 | P13: =O13/$Q$4 -> 0 | Q13: =IF(P13=0,0,(P13*((LOG(P13))/LOG(2)))) -> 0 | T13: =N13 -> 221 | U13: =COUNTIF(L7:L13,T13) -> 0 | V13: =U13/(W4-U14) ->  | W13: =IF(V13=0,0,(V13*((LOG(V13))/LOG(2)))) ->  | Y13: =N13 -> 221 | Z13: =COUNTIF(L14:L19,Y13) -> 0 | AA13: =Z13/(AB4-Z14) ->  | AB13: =IF(AA13=0,0,(AA13*((LOG(AA13))/LOG(2)))) ->  | AD13: =N13 -> 221 | AE13: =COUNTIF(L20:L26,AD13) -> 0 | AF13: =AE13/(AG4-AE14) ->  | AG13: =IF(AF13=0,0,(AF13*((LOG(AF13))/LOG(2)))) ->  | AI13: =N13 -> 221 | AJ13: =COUNTIF(L27:L33,AI13) -> 0 | AK13: =AJ13/(AL4-AJ14) ->  | AL13: =IF(AK13=0,0,(AK13*((LOG(AK13))/LOG(2)))) ->  | AN13: =N13 -> 221 | AO13: =COUNTIF(L34:L39,AN13) -> 0 | AP13: =AO13/(AQ4-AO14) ->  | AQ13: =IF(AP13=0,0,(AP13*((LOG(AP13))/LOG(2)))) ->  | AS13: =N13 -> 221 | AT13: =COUNTIF(L40:L46,AS13) -> 0 | AU13: =AT13/(AV4-AT14) ->  | AV13: =IF(AU13=0,0,(AU13*((LOG(AU13))/LOG(2)))) -> 
A14: 21 | B14: 1184 | C14: 21 | D14: 1189 | E14: 21 | F14: 1199 | K14: 0 | L14: 222 | N14: 222 | O14: =COUNTIF($L$7:$L$500,N14) -> 40 | P14: =O14/$Q$4 -> 1 | Q14: =IF(P14=0,0,(P14*((LOG(P14))/LOG(2)))) -> 0 | T14: =N14 -> 222 | U14: =COUNTIF(L7:L13,T14) -> 7 | Y14: =N14 -> 222 | Z14: =COUNTIF(L14:L19,Y14) -> 6 | AD14: =N14 -> 222 | AE14: =COUNTIF(L20:L26,AD14) -> 7 | AI14: =N14 -> 222 | AJ14: =COUNTIF(L27:L33,AI14) -> 7 | AN14: =N14 -> 222 | AO14: =COUNTIF(L34:L39,AN14) -> 6 | AS14: =N14 -> 222 | AT14: =COUNTIF(L40:L46,AS14) -> 7
A15: 21 | B15: 1309 | C15: 21 | D15: 1314 | E15: 21 | F15: 1320 | K15: 0 | L15: 222 | P15: =SUM(P7:P14) -> 1 | Q15: =-SUM(Q7:Q14) -> 0 | V15: =SUM(V7:V14) ->  | W15: =-SUM(W7:W14) ->  | AA15: =SUM(AA7:AA14) ->  | AB15: =-SUM(AB7:AB14) ->  | AF15: =SUM(AF7:AF14) ->  | AG15: =-SUM(AG7:AG14) ->  | AK15: =SUM(AK7:AK14) ->  | AL15: =-SUM(AL7:AL14) ->  | AP15: =SUM(AP7:AP14) ->  | AQ15: =-SUM(AQ7:AQ14) ->  | AU15: =SUM(AU7:AU14) ->  | AV15: =-SUM(AV7:AV14) -> 
A16: 21 | B16: 1443 | C16: 21 | D16: 1452 | E16: 21 | F16: 1458 | K16: 0 | L16: 222 | P16: U= | Q16: =Q15/(LOG(Q4)/LOG(2)) -> 0 | V16: U1= | W16: =W15/(LOG(W4)/LOG(2)) ->  | AA16: U2= | AB16: =AB15/(LOG(AB4)/LOG(2)) ->  | AF16: U3= | AG16: =AG15/(LOG(AG4)/LOG(2)) ->  | AK16: U4= | AL16: =AL15/(LOG(AL4)/LOG(2)) ->  | AP16: U5= | AQ16: =AQ15/(LOG(AQ4)/LOG(2)) ->  | AU16: U6= | AV16: =AV15/(LOG(AV4)/LOG(2)) -> 
A17: 21 | B17: 1626 | C17: 21 | D17: 1641 | E17: 21 | F17: 1652 | K17: 0 | L17: 222
A18: 21 | B18: 1777 | C18: 21 | D18: 1784 | E18: 21 | F18: 1790 | K18: 0 | L18: 222
A19: 21 | B19: 1963 | C19: 21 | D19: 1967 | E19: 21 | F19: 1977 | K19: 0 | L19: 222 | N19: Total Target Seq
A20: 21 | B20: 2130 | C20: 21 | D20: 2136 | E20: 21 | F20: 2143 | K20: 0 | L20: 222 | N20: =COUNTIF(L7:L46,G3) -> 40 | P20: 7 | Q20: 6 | R20: 7 | S20: 7 | T20: 6 | U20: 7
A21: 21 | B21: 2291 | C21: 21 | D21: 2295 | E21: 21 | F21: 2300 | K21: 0 | L21: 222 | P21: % of reinforcement given in 6 equal intervals based on number of trials
A22: 21 | B22: 2410 | C22: 21 | D22: 2414 | E22: 21 | F22: 2424 | K22: 0 | L22: 222 | P22: %_1 | Q22: %_2 | R22: %_3 | S22: %_4 | T22: %_5 | U22: %_6
A23: 21 | B23: 2543 | C23: 21 | D23: 2548 | E23: 21 | F23: 2554 | K23: 0 | L23: 222 | O23: target sequence | P23: =$G$3 -> 222 | Q23: =$G$3 -> 222 | R23: =$G$3 -> 222 | S23: =$G$3 -> 222 | T23: =$G$3 -> 222 | U23: =$G$3 -> 222
A24: 21 | B24: 2689 | C24: 21 | D24: 2696 | E24: 21 | F24: 2703 | K24: 0 | L24: 222 | O24: total reinforcement | P24: =U14 -> 7 | Q24: =Z14 -> 6 | R24: =AE14 -> 7 | S24: =AJ14 -> 7 | T24: =AO14 -> 6 | U24: =AT14 -> 7
A25: 21 | B25: 2861 | C25: 21 | D25: 2872 | E25: 21 | F25: 2878 | K25: 0 | L25: 222 | O25: % target
A26: 21 | B26: 3009 | C26: 21 | D26: 3012 | E26: 21 | F26: 3019 | K26: 0 | L26: 222 | O26: CCRF
A27: 21 | B27: 3116 | C27: 21 | D27: 3121 | E27: 21 | F27: 3127 | K27: 0 | L27: 222 | O27: % CCRf
A28: 21 | B28: 3303 | C28: 21 | D28: 3307 | E28: 21 | F28: 3312 | K28: 0 | L28: 222 | O28: average response rate | P28: =F13/P20 -> 142.8571429 | Q28: =(F19-F13)/Q20 -> 162.8333333 | R28: =(F26-F19)/R20 -> 148.8571429 | S28: =(F33-F26)/S20 -> 168.4285714 | T28: =(F39-F33)/T20 -> 206 | U28: =(F46-F39)/U20 -> 180
A29: 21 | B29: 3438 | C29: 21 | D29: 3454 | E29: 21 | F29: 3461 | K29: 0 | L29: 222
A30: 21 | B30: 3641 | C30: 21 | D30: 3648 | E30: 21 | F30: 3656 | K30: 0 | L30: 222
A31: 21 | B31: 3888 | C31: 21 | D31: 3898 | E31: 21 | F31: 3904 | K31: 0 | L31: 222
A32: 21 | B32: 4032 | C32: 21 | D32: 4040 | E32: 21 | F32: 4059 | K32: 0 | L32: 222
A33: 21 | B33: 4186 | C33: 21 | D33: 4194 | E33: 21 | F33: 4198 | K33: 0 | L33: 222
A34: 21 | B34: 4388 | C34: 21 | D34: 4392 | E34: 21 | F34: 4394 | K34: 0 | L34: 222
A35: 21 | B35: 4594 | C35: 21 | D35: 4601 | E35: 21 | F35: 4607 | K35: 0 | L35: 222
A36: 21 | B36: 4795 | C36: 21 | D36: 4803 | E36: 21 | F36: 4816 | K36: 0 | L36: 222
A37: 21 | B37: 5001 | C37: 21 | D37: 5009 | E37: 21 | F37: 5015 | K37: 0 | L37: 222
A38: 21 | B38: 5206 | C38: 21 | D38: 5214 | E38: 21 | F38: 5220 | K38: 0 | L38: 222
A39: 21 | B39: 5424 | C39: 21 | D39: 5430 | E39: 21 | F39: 5434 | K39: 0 | L39: 222
A40: 21 | B40: 5586 | C40: 21 | D40: 5591 | E40: 21 | F40: 5597 | K40: 0 | L40: 222
A41: 21 | B41: 5801 | C41: 21 | D41: 5811 | E41: 21 | F41: 5817 | K41: 0 | L41: 222
A42: 21 | B42: 5920 | C42: 21 | D42: 5926 | E42: 21 | F42: 5932 | K42: 0 | L42: 222
A43: 21 | B43: 6137 | C43: 21 | D43: 6140 | E43: 21 | F43: 6144 | K43: 0 | L43: 222
A44: 21 | B44: 6342 | C44: 21 | D44: 6347 | E44: 21 | F44: 6351 | K44: 0 | L44: 222
A45: 21 | B45: 6485 | C45: 21 | D45: 6489 | E45: 21 | F45: 6494 | K45: 0 | L45: 222
A46: 21 | B46: 6678 | C46: 21 | D46: 6686 | E46: 21 | F46: 6694 | K46: 1 | L46: 222

Sheet !M404A0D.UST
A1: Report for:!M404A0D.UST
A2: Date: | B2: <date>
A3: Hen: | B3: <hen> | F3: Correct Sequence | G3: =Start!J2 -> 222 | P3: Total Sequences in Data | Q3: =4994-COUNTBLANK(L7:L5000) -> 41 | V3: Total Sequences in Block Data | W3: =COUNTA(L7:L13) -> 7 | AA3: Total Sequences in Block Data | AB3: =COUNTA(L14:L20) -> 7 | AF3: Total Sequences in Block Data | AG3: =COUNTA(L21:L26) -> 6 | AK3: Total Sequences in Block Data | AL3: =COUNTA(L27:L33) -> 7 | AP3: Total Sequences in Block Data | AQ3: =COUNTA(L34:L40) -> 7 | AU3: Total Sequences in Block Data | AV3: =COUNTA(L41:L47) -> 7
P4: Total Sequences in Summary | Q4: =SUM(O7:O14) -> 41 | V4: Total Sequences in Block Summary | W4: =SUM(U7:U14) -> 7 | AA4: Total Sequences in Block Summary | AB4: =SUM(Z7:Z14) -> 7 | AF4: Total Sequences in Block Summary | AG4: =SUM(AE7:AE14) -> 6 | AK4: Total Sequences in Block Summary | AL4: =SUM(AJ7:AJ14) -> 7 | AP4: Total Sequences in Block Summary | AQ4: =SUM(AO7:AO14) -> 7 | AU4: Total Sequences in Block Summary | AV4: =SUM(AT7:AT14) -> 7
T5: Block 1 | Y5: Block 2 | AD5: Block 3 | AI5: Block 4 | AN5: Block 5 | AS5: Block 6
A6: Sequence Component 1 | B6: Time 1 | C6: Sequence Component 2 | D6: Time 2 | E6: Sequence Component 3 | F6: Time 3 | G6: Sequence Component 4 | H6: Time 4 | I6: Sequence Component 5 | J6: Time 5 | K6: Correct? 0=No 1=Yes | L6: Sequence | N6: Frequency | P6: Relative Frequency | Q6: Variability | T6: Frequency | V6: Relative Frequency | W6: Variability | Y6: Frequency | AA6: Relative Frequency | AB6: Variability | AD6: Frequency | AF6: Relative Frequency | AG6: Variability | AI6: Frequency | AK6: Relative Frequency | AL6: Variability | AN6: Frequency | AP6: Relative Frequency | AQ6: Variability | AS6: Frequency | AU6: Relative Frequency | AV6: Variability
A7: 12 | B7: 19 | C7: 14 | D7: 24 | E7: 14 | F7: 29 | K7: 0 | L7: 111 | N7: 111 | O7: =COUNTIF($L$7:$L$500,N7) -> 1 | P7: =O7/$Q$4 -> 0.0243902439 | Q7: =IF(P7=0,0,(P7*((LOG(P7))/LOG(2)))) -> -0.1306720001 | T7: =N7 -> 111 | U7: =COUNTIF(L7:L13,T7) -> 1 | V7: =U7/(W4-U14) -> 1 | W7: =IF(V7=0,0,(V7*((LOG(V7))/LOG(2)))) -> 0 | Y7: =N7 -> 111 | Z7: =COUNTIF(L14:L20,Y7) -> 0 | AA7: =Z7/(AB4-Z14) ->  | AB7: =IF(AA7=0,0,(AA7*((LOG(AA7))/LOG(2)))) ->  | AD7: =N7 -> 111 | AE7: =COUNTIF(L21:L26,AD7) -> 0 | AF7: =AE7/(AG4-AE14) ->  | AG7: =IF(AF7=0,0,(AF7*((LOG(AF7))/LOG(2)))) ->  | AI7: =N7 -> 111 | AJ7: =COUNTIF(L27:L33,AI7) -> 0 | AK7: =AJ7/(AL4-AJ14) ->  | AL7: =IF(AK7=0,0,(AK7*((LOG(AK7))/LOG(2)))) ->  | AN7: =N7 -> 111 | AO7: =COUNTIF(L34:L40,AN7) -> 0 | AP7: =AO7/(AQ4-AO14) ->  | AQ7: =IF(AP7=0,0,(AP7*((LOG(AP7))/LOG(2)))) ->  | AS7: =N7 -> 111 | AT7: =COUNTIF(L41:L47,AS7) -> 0 | AU7: =AT7/(AV4-AT14) ->  | AV7: =IF(AU7=0,0,(AU7*((LOG(AU7))/LOG(2)))) -> 
A8: 21 | B8: 171 | C8: 21 | D8: 176 | E8: 21 | F8: 182 | K8: 0 | L8: 222 | N8: 112 | O8: =COUNTIF($L$7:$L$500,N8) -> 0 | P8: =O8/$Q$4 -> 0 | Q8: =IF(P8=0,0,(P8*((LOG(P8))/LOG(2)))) -> 0 | T8: =N8 -> 112 | U8: =COUNTIF(L7:L13,T8) -> 0 | V8: =U8/(W4-U14) -> 0 | W8: =IF(V8=0,0,(V8*((LOG(V8))/LOG(2)))) -> 0 | Y8: =N8 -> 112 | Z8: =COUNTIF(L14:L20,Y8) -> 0 | AA8: =Z8/(AB4-Z14) ->  | AB8: =IF(AA8=0,0,(AA8*((LOG(AA8))/LOG(2)))) ->  | AD8: =N8 -> 112 | AE8: =COUNTIF(L21:L26,AD8) -> 0 | AF8: =AE8/(AG4-AE14) ->  | AG8: =IF(AF8=0,0,(AF8*((LOG(AF8))/LOG(2)))) ->  | AI8: =N8 -> 112 | AJ8: =COUNTIF(L27:L33,AI8) -> 0 | AK8: =AJ8/(AL4-AJ14) ->  | AL8: =IF(AK8=0,0,(AK8*((LOG(AK8))/LOG(2)))) ->  | AN8: =N8 -> 112 | AO8: =COUNTIF(L34:L40,AN8) -> 0 | AP8: =AO8/(AQ4-AO14) ->  | AQ8: =IF(AP8=0,0,(AP8*((LOG(AP8))/LOG(2)))) ->  | AS8: =N8 -> 112 | AT8: =COUNTIF(L41:L47,AS8) -> 0 | AU8: =AT8/(AV4-AT14) ->  | AV8: =IF(AU8=0,0,(AU8*((LOG(AU8))/LOG(2)))) -> 
A9: 21 | B9: 438 | C9: 21 | D9: 443 | E9: 21 | F9: 449 | K9: 0 | L9: 222 | N9: 121 | O9: =COUNTIF($L$7:$L$500,N9) -> 0 | P9: =O9/$Q$4 -> 0 | Q9: =IF(P9=0,0,(P9*((LOG(P9))/LOG(2)))) -> 0 | T9: =N9 -> 121 | U9: =COUNTIF(L7:L13,T9) -> 0 | V9: =U9/(W4-U14) -> 0 | W9: =IF(V9=0,0,(V9*((LOG(V9))/LOG(2)))) -> 0 | Y9: =N9 -> 121 | Z9: =COUNTIF(L14:L20,Y9) -> 0 | AA9: =Z9/(AB4-Z14) ->  | AB9: =IF(AA9=0,0,(AA9*((LOG(AA9))/LOG(2)))) ->  | AD9: =N9 -> 121 | AE9: =COUNTIF(L21:L26,AD9) -> 0 | AF9: =AE9/(AG4-AE14) ->  | AG9: =IF(AF9=0,0,(AF9*((LOG(AF9))/LOG(2)))) ->  | AI9: =N9 -> 121 | AJ9: =COUNTIF(L27:L33,AI9) -> 0 | AK9: =AJ9/(AL4-AJ14) ->  | AL9: =IF(AK9=0,0,(AK9*((LOG(AK9))/LOG(2)))) ->  | AN9: =N9 -> 121 | AO9: =COUNTIF(L34:L40,AN9) -> 0 | AP9: =AO9/(AQ4-AO14) ->  | AQ9: =IF(AP9=0,0,(AP9*((LOG(AP9))/LOG(2)))) ->  | AS9: =N9 -> 121 | AT9: =COUNTIF(L41:L47,AS9) -> 0 | AU9: =AT9/(AV4-AT14) ->  | AV9: =IF(AU9=0,0,(AU9*((LOG(AU9))/LOG(2)))) -> 
A10: 21 | B10: 571 | C10: 21 | D10: 576 | E10: 21 | F10: 582 | K10: 0 | L10: 222 | N10: 122 | O10: =COUNTIF($L$7:$L$500,N10) -> 0 | P10: =O10/$Q$4 -> 0 | Q10: =IF(P10=0,0,(P10*((LOG(P10))/LOG(2)))) -> 0 | T10: =N10 -> 122 | U10: =COUNTIF(L7:L13,T10) -> 0 | V10: =U10/(W4-U14) -> 0 | W10: =IF(V10=0,0,(V10*((LOG(V10))/LOG(2)))) -> 0 | Y10: =N10 -> 122 | Z10: =COUNTIF(L14:L20,Y10) -> 0 | AA10: =Z10/(AB4-Z14) ->  | AB10: =IF(AA10=0,0,(AA10*((LOG(AA10))/LOG(2)))) ->  | AD10: =N10 -> 122 | AE10: =COUNTIF(L21:L26,AD10) -> 0 | AF10: =AE10/(AG4-AE14) ->  | AG10: =IF(AF10=0,0,(AF10*((LOG(AF10))/LOG(2)))) ->  | AI10: =N10 -> 122 | AJ10: =COUNTIF(L27:L33,AI10) -> 0 | AK10: =AJ10/(AL4-AJ14) ->  | AL10: =IF(AK10=0,0,(AK10*((LOG(AK10))/LOG(2)))) ->  | AN10: =N10 -> 122 | AO10: =COUNTIF(L34:L40,AN10) -> 0 | AP10: =AO10/(AQ4-AO14) ->  | AQ10: =IF(AP10=0,0,(AP10*((LOG(AP10))/LOG(2)))) ->  | AS10: =N10 -> 122 | AT10: =COUNTIF(L41:L47,AS10) -> 0 | AU10: =AT10/(AV4-AT14) ->  | AV10: =IF(AU10=0,0,(AU10*((LOG(AU10))/LOG(2)))) -> 
A11: 21 | B11: 694 | C11: 21 | D11: 699 | E11: 21 | F11: 705 | K11: 0 | L11: 222 | N11: 211 | O11: =COUNTIF($L$7:$L$500,N11) -> 0 | P11: =O11/$Q$4 -> 0 | Q11: =IF(P11=0,0,(P11*((LOG(P11))/LOG(2)))) -> 0 | T11: =N11 -> 211 | U11: =COUNTIF(L7:L13,T11) -> 0 | V11: =U11/(W4-U14) -> 0 | W11: =IF(V11=0,0,(V11*((LOG(V11))/LOG(2)))) -> 0 | Y11: =N11 -> 211 | Z11: =COUNTIF(L14:L20,Y11) -> 0 | AA11: =Z11/(AB4-Z14) ->  | AB11: =IF(AA11=0,0,(AA11*((LOG(AA11))/LOG(2)))) ->  | AD11: =N11 -> 211 | AE11: =COUNTIF(L21:L26,AD11) -> 0 | AF11: =AE11/(AG4-AE14) ->  | AG11: =IF(AF11=0,0,(AF11*((LOG(AF11))/LOG(2)))) ->  | AI11: =N11 -> 211 | AJ11: =COUNTIF(L27:L33,AI11) -> 0 | AK11: =AJ11/(AL4-AJ14) ->  | AL11: =IF(AK11=0,0,(AK11*((LOG(AK11))/LOG(2)))) ->  | AN11: =N11 -> 211 | AO11: =COUNTIF(L34:L40,AN11) -> 0 | AP11: =AO11/(AQ4-AO14) ->  | AQ11: =IF(AP11=0,0,(AP11*((LOG(AP11))/LOG(2)))) ->  | AS11: =N11 -> 211 | AT11: =COUNTIF(L41:L47,AS11) -> 0 | AU11: =AT11/(AV4-AT14) ->  | AV11: =IF(AU11=0,0,(AU11*((LOG(AU11))/LOG(2)))) -> 
A12: 21 | B12: 882 | C12: 21 | D12: 887 | E12: 21 | F12: 894 | K12: 0 | L12: 222 | N12: 212 | O12: =COUNTIF($L$7:$L$500,N12) -> 0 | P12: =O12/$Q$4 -> 0 | Q12: =IF(P12=0,0,(P12*((LOG(P12))/LOG(2)))) -> 0 | T12: =N12 -> 212 | U12: =COUNTIF(L7:L13,T12) -> 0 | V12: =U12/(W4-U14) -> 0 | W12: =IF(V12=0,0,(V12*((LOG(V12))/LOG(2)))) -> 0 | Y12: =N12 -> 212 | Z12: =COUNTIF(L14:L20,Y12) -> 0 | AA12: =Z12/(AB4-Z14) ->  | AB12: =IF(AA12=0,0,(AA12*((LOG(AA12))/LOG(2)))) ->  | AD12: =N12 -> 212 | AE12: =COUNTIF(L21:L26,AD12) -> 0 | AF12: =AE12/(AG4-AE14) ->  | AG12: =IF(AF12=0,0,(AF12*((LOG(AF12))/LOG(2)))) ->  | AI12: =N12 -> 212 | AJ12: =COUNTIF(L27:L33,AI12) -> 0 | AK12: =AJ12/(AL4-AJ14) ->  | AL12: =IF(AK12=0,0,(AK12*((LOG(AK12))/LOG(2)))) ->  | AN12: =N12 -> 212 | AO12: =COUNTIF(L34:L40,AN12) -> 0 | AP12: =AO12/(AQ4-AO14) ->  | AQ12: =IF(AP12=0,0,(AP12*((LOG(AP12))/LOG(2)))) ->  | AS12: =N12 -> 212 | AT12: =COUNTIF(L41:L47,AS12) -> 0 | AU12: =AT12/(AV4-AT14) ->  | AV12: =IF(AU12=0,0,(AU12*((LOG(AU12))/LOG(2)))) -> 
A13: 21 | B13: 1059 | C13: 21 | D13: 1062 | E13: 21 | F13: 1070 | K13: 0 | L13: 222 | N13: 221 | O13: =COUNTIF($L$7:$L$500,N13) -> 0 | P13: =O13/$Q$4 -> 0 | Q13: =IF(P13=0,0,(P13*((LOG(P13))/LOG(2)))) -> 0 | T13: =N13 -> 221 | U13: =COUNTIF(L7:L13,T13) -> 0 | V13: =U13/(W4-U14) -> 0 | W13: =IF(V13=0,0,(V13*((LOG(V13))/LOG(2)))) -> 0 | Y13: =N13 -> 221 | Z13: =COUNTIF(L14:L20,Y13) -> 0 | AA13: =Z13/(AB4-Z14) ->  | AB13: =IF(AA13=0,0,(AA13*((LOG(AA13))/LOG(2)))) ->  | AD13: =N13 -> 221 | AE13: =COUNTIF(L21:L26,AD13) -> 0 | AF13: =AE13/(AG4-AE14) ->  | AG13: =IF(AF13=0,0,(AF13*((LOG(AF13))/LOG(2)))) ->  | AI13: =N13 -> 221 | AJ13: =COUNTIF(L27:L33,AI13) -> 0 | AK13: =AJ13/(AL4-AJ14) ->  | AL13: =IF(AK13=0,0,(AK13*((LOG(AK13))/LOG(2)))) ->  | AN13: =N13 -> 221 | AO13: =COUNTIF(L34:L40,AN13) -> 0 | AP13: =AO13/(AQ4-AO14) ->  | AQ13: =IF(AP13=0,0,(AP13*((LOG(AP13))/LOG(2)))) ->  | AS13: =N13 -> 221 | AT13: =COUNTIF(L41:L47,AS13) -> 0 | AU13: =AT13/(AV4-AT14) ->  | AV13: =IF(AU13=0,0,(AU13*((LOG(AU13))/LOG(2)))) -> 
A14: 21 | B14: 1199 | C14: 21 | D14: 1201 | E14: 21 | F14: 1213 | K14: 0 | L14: 222 | N14: 222 | O14: =COUNTIF($L$7:$L$500,N14) -> 40 | P14: =O14/$Q$4 -> 0.9756097561 | Q14: =IF(P14=0,0,(P14*((LOG(P14))/LOG(2)))) -> -0.03475503388 | T14: =N14 -> 222 | U14: =COUNTIF(L7:L13,T14) -> 6 | Y14: =N14 -> 222 | Z14: =COUNTIF(L14:L20,Y14) -> 7 | AD14: =N14 -> 222 | AE14: =COUNTIF(L21:L26,AD14) -> 6 | AI14: =N14 -> 222 | AJ14: =COUNTIF(L27:L33,AI14) -> 7 | AN14: =N14 -> 222 | AO14: =COUNTIF(L34:L40,AN14) -> 7 | AS14: =N14 -> 222 | AT14: =COUNTIF(L41:L47,AS14) -> 7
A15: 21 | B15: 1417 | C15: 21 | D15: 1420 | E15: 21 | F15: 1427 | K15: 0 | L15: 222 | P15: =SUM(P7:P14) -> 1 | Q15: =-SUM(Q7:Q14) -> 0.165427034 | V15: =SUM(V7:V14) -> 1 | W15: =-SUM(W7:W14) -> 0 | AA15: =SUM(AA7:AA14) ->  | AB15: =-SUM(AB7:AB14) ->  | AF15: =SUM(AF7:AF14) ->  | AG15: =-SUM(AG7:AG14) ->  | AK15: =SUM(AK7:AK14) ->  | AL15: =-SUM(AL7:AL14) ->  | AP15: =SUM(AP7:AP14) ->  | AQ15: =-SUM(AQ7:AQ14) ->  | AU15: =SUM(AU7:AU14) ->  | AV15: =-SUM(AV7:AV14) -> 
A16: 21 | B16: 1554 | C16: 21 | D16: 1558 | E16: 21 | F16: 1563 | K16: 0 | L16: 222 | P16: U= | Q16: =Q15/(LOG(Q4)/LOG(2)) -> 0.03087735478 | V16: U1= | W16: =W15/(LOG(W4)/LOG(2)) -> 0 | AA16: U2= | AB16: =AB15/(LOG(AB4)/LOG(2)) ->  | AF16: U3= | AG16: =AG15/(LOG(AG4)/LOG(2)) ->  | AK16: U4= | AL16: =AL15/(LOG(AL4)/LOG(2)) ->  | AP16: U5= | AQ16: =AQ15/(LOG(AQ4)/LOG(2)) ->  | AU16: U6= | AV16: =AV15/(LOG(AV4)/LOG(2)) -> 
A17: 21 | B17: 1738 | C17: 21 | D17: 1746 | E17: 21 | F17: 1752 | K17: 0 | L17: 222
A18: 21 | B18: 1878 | C18: 21 | D18: 1887 | E18: 21 | F18: 1893 | K18: 0 | L18: 222
A19: 21 | B19: 2038 | C19: 21 | D19: 2045 | E19: 21 | F19: 2047 | K19: 0 | L19: 222 | N19: Total Target Seq
A20: 21 | B20: 2168 | C20: 21 | D20: 2175 | E20: 21 | F20: 2178 | K20: 0 | L20: 222 | N20: =COUNTIF(L7:L47,G3) -> 40 | P20: 7 | Q20: 7 | R20: 6 | S20: 7 | T20: 7 | U20: 7
A21: 21 | B21: 2352 | C21: 21 | D21: 2367 | E21: 21 | F21: 2378 | K21: 0 | L21: 222 | P21: % of reinforcement given in 6 equal intervals based on number of trials
A22: 21 | B22: 2503 | C22: 21 | D22: 2505 | E22: 21 | F22: 2511 | K22: 0 | L22: 222 | P22: %_1 | Q22: %_2 | R22: %_3 | S22: %_4 | T22: %_5 | U22: %_6
A23: 21 | B23: 2739 | C23: 21 | D23: 2749 | E23: 21 | F23: 2754 | K23: 0 | L23: 222 | O23: target sequence | P23: =$G$3 -> 222 | Q23: =$G$3 -> 222 | R23: =$G$3 -> 222 | S23: =$G$3 -> 222 | T23: =$G$3 -> 222 | U23: =$G$3 -> 222
A24: 21 | B24: 2924 | C24: 21 | D24: 2930 | E24: 21 | F24: 2934 | K24: 0 | L24: 222 | O24: total reinforcement | P24: =U14 -> 6 | Q24: =Z14 -> 7 | R24: =AE14 -> 6 | S24: =AJ14 -> 7 | T24: =AO14 -> 7 | U24: =AT14 -> 7
A25: 21 | B25: 3181 | C25: 21 | D25: 3186 | E25: 21 | F25: 3191 | K25: 0 | L25: 222 | O25: % target
A26: 21 | B26: 3336 | C26: 21 | D26: 3339 | E26: 21 | F26: 3345 | K26: 0 | L26: 222 | O26: CCRF
A27: 21 | B27: 3497 | C27: 21 | D27: 3500 | E27: 21 | F27: 3506 | K27: 0 | L27: 222 | O27: % CCRf
A28: 21 | B28: 3629 | C28: 21 | D28: 3634 | E28: 21 | F28: 3641 | K28: 0 | L28: 222 | O28: average response rate | P28: =F13/P20 -> 152.8571429 | Q28: =(F20-F13)/Q20 -> 158.2857143 | R28: =(F26-F20)/R20 -> 194.5 | S28: =(F33-F26)/S20 -> 168.1428571 | T28: =(F40-F33)/T20 -> 194.2857143 | U28: =(F47-F40)/U20 -> 193.8571429
A29: 21 | B29: 3845 | C29: 21 | D29: 3851 | E29: 21 | F29: 3857 | K29: 0 | L29: 222
A30: 21 | B30: 4041 | C30: 21 | D30: 4047 | E30: 21 | F30: 4054 | K30: 0 | L30: 222
A31: 21 | B31: 4224 | C31: 21 | D31: 4229 | E31: 21 | F31: 4235 | K31: 0 | L31: 222
A32: 21 | B32: 4376 | C32: 21 | D32: 4380 | E32: 21 | F32: 4392 | K32: 0 | L32: 222
A33: 21 | B33: 4513 | C33: 21 | D33: 4517 | E33: 21 | F33: 4522 | K33: 0 | L33: 222
A34: 21 | B34: 4682 | C34: 21 | D34: 4688 | E34: 21 | F34: 4697 | K34: 0 | L34: 222
A35: 21 | B35: 4894 | C35: 21 | D35: 4902 | E35: 21 | F35: 4907 | K35: 0 | L35: 222
A36: 21 | B36: 5115 | C36: 21 | D36: 5119 | E36: 21 | F36: 5123 | K36: 0 | L36: 222
A37: 21 | B37: 5308 | C37: 21 | D37: 5313 | E37: 21 | F37: 5319 | K37: 0 | L37: 222
A38: 21 | B38: 5473 | C38: 21 | D38: 5475 | E38: 21 | F38: 5487 | K38: 0 | L38: 222
A39: 21 | B39: 5726 | C39: 21 | D39: 5735 | E39: 21 | F39: 5741 | K39: 0 | L39: 222
A40: 21 | B40: 5866 | C40: 21 | D40: 5877 | E40: 21 | F40: 5882 | K40: 0 | L40: 222
A41: 21 | B41: 6054 | C41: 21 | D41: 6062 | E41: 21 | F41: 6068 | K41: 0 | L41: 222
A42: 21 | B42: 6323 | C42: 21 | D42: 6328 | E42: 21 | F42: 6339 | K42: 0 | L42: 222
A43: 21 | B43: 6497 | C43: 21 | D43: 6502 | E43: 21 | F43: 6508 | K43: 0 | L43: 222
A44: 21 | B44: 6638 | C44: 21 | D44: 6644 | E44: 21 | F44: 6651 | K44: 0 | L44: 222
A45: 21 | B45: 6843 | C45: 21 | D45: 6845 | E45: 21 | F45: 6850 | K45: 0 | L45: 222
A46: 21 | B46: 7047 | C46: 21 | D46: 7056 | E46: 21 | F46: 7062 | K46: 0 | L46: 222
A47: 21 | B47: 7220 | C47: 21 | D47: 7228 | E47: 21 | F47: 7239 | K47: 1 | L47: 222

Sheet !M40592D.UST
A1: Report for:!M40592D.UST
A2: Date: | B2: <date>
A3: Hen: | B3: <hen> | F3: Correct Sequence | G3: =Start!J2 -> 222 | P3: Total Sequences in Data | Q3: =4994-COUNTBLANK(L7:L5000) -> 40 | V3: Total Sequences in Block Data | W3: =COUNTA(L7:L13) -> 7 | AA3: Total Sequences in Block Data | AB3: =COUNTA(L14:L19) -> 6 | AF3: Total Sequences in Block Data | AG3: =COUNTA(L20:L26) -> 7 | AK3: Total Sequences in Block Data | AL3: =COUNTA(L27:L33) -> 7 | AP3: Total Sequences in Block Data | AQ3: =COUNTA(L34:L39) -> 6 | AU3: Total Sequences in Block Data | AV3: =COUNTA(L40:L46) -> 7
P4: Total Sequences in Summary | Q4: =SUM(O7:O14) -> 40 | V4: Total Sequences in Block Summary | W4: =SUM(U7:U14) -> 7 | AA4: Total Sequences in Block Summary | AB4: =SUM(Z7:Z14) -> 6 | AF4: Total Sequences in Block Summary | AG4: =SUM(AE7:AE14) -> 7 | AK4: Total Sequences in Block Summary | AL4: =SUM(AJ7:AJ14) -> 7 | AP4: Total Sequences in Block Summary | AQ4: =SUM(AO7:AO14) -> 6 | AU4: Total Sequences in Block Summary | AV4: =SUM(AT7:AT14) -> 7
T5: Block 1 | Y5: Block 2 | AD5: Block 3 | AI5: Block 4 | AN5: Block 5 | AS5: Block 6
A6: Sequence Component 1 | B6: Time 1 | C6: Sequence Component 2 | D6: Time 2 | E6: Sequence Component 3 | F6: Time 3 | G6: Sequence Component 4 | H6: Time 4 | I6: Sequence Component 5 | J6: Time 5 | K6: Correct? 0=No 1=Yes | L6: Sequence | N6: Frequency | P6: Relative Frequency | Q6: Variability | T6: Frequency | V6: Relative Frequency | W6: Variability | Y6: Frequency | AA6: Relative Frequency | AB6: Variability | AD6: Frequency | AF6: Relative Frequency | AG6: Variability | AI6: Frequency | AK6: Relative Frequency | AL6: Variability | AN6: Frequency | AP6: Relative Frequency | AQ6: Variability | AS6: Frequency | AU6: Relative Frequency | AV6: Variability
A7: 21 | B7: 17 | C7: 21 | D7: 23 | E7: 21 | F7: 29 | K7: 0 | L7: 222 | N7: 111 | O7: =COUNTIF($L$7:$L$500,N7) -> 0 | P7: =O7/$Q$4 -> 0 | Q7: =IF(P7=0,0,(P7*((LOG(P7))/LOG(2)))) -> 0 | T7: =N7 -> 111 | U7: =COUNTIF(L7:L13,T7) -> 0 | V7: =U7/(W4-U14) ->  | W7: =IF(V7=0,0,(V7*((LOG(V7))/LOG(2)))) ->  | Y7: =N7 -> 111 | Z7: =COUNTIF(L14:L19,Y7) -> 0 | AA7: =Z7/(AB4-Z14) ->  | AB7: =IF(AA7=0,0,(AA7*((LOG(AA7))/LOG(2)))) ->  | AD7: =N7 -> 111 | AE7: =COUNTIF(L20:L26,AD7) -> 0 | AF7: =AE7/(AG4-AE14) ->  | AG7: =IF(AF7=0,0,(AF7*((LOG(AF7))/LOG(2)))) ->  | AI7: =N7 -> 111 | AJ7: =COUNTIF(L27:L33,AI7) -> 0 | AK7: =AJ7/(AL4-AJ14) ->  | AL7: =IF(AK7=0,0,(AK7*((LOG(AK7))/LOG(2)))) ->  | AN7: =N7 -> 111 | AO7: =COUNTIF(L34:L39,AN7) -> 0 | AP7: =AO7/(AQ4-AO14) ->  | AQ7: =IF(AP7=0,0,(AP7*((LOG(AP7))/LOG(2)))) ->  | AS7: =N7 -> 111 | AT7: =COUNTIF(L40:L46,AS7) -> 0 | AU7: =AT7/(AV4-AT14) ->  | AV7: =IF(AU7=0,0,(AU7*((LOG(AU7))/LOG(2)))) -> 
A8: 21 | B8: 182 | C8: 21 | D8: 187 | E8: 21 | F8: 192 | K8: 0 | L8: 222 | N8: 112 | O8: =COUNTIF($L$7:$L$500,N8) -> 0 | P8: =O8/$Q$4 -> 0 | Q8: =IF(P8=0,0,(P8*((LOG(P8))/LOG(2)))) -> 0 | T8: =N8 -> 112 | U8: =COUNTIF(L7:L13,T8) -> 0 | V8: =U8/(W4-U14) ->  | W8: =IF(V8=0,0,(V8*((LOG(V8))/LOG(2)))) ->  | Y8: =N8 -> 112 | Z8: =COUNTIF(L14:L19,Y8) -> 0 | AA8: =Z8/(AB4-Z14) ->  | AB8: =IF(AA8=0,0,(AA8*((LOG(AA8))/LOG(2)))) ->  | AD8: =N8 -> 112 | AE8: =COUNTIF(L20:L26,AD8) -> 0 | AF8: =AE8/(AG4-AE14) ->  | AG8: =IF(AF8=0,0,(AF8*((LOG(AF8))/LOG(2)))) ->  | AI8: =N8 -> 112 | AJ8: =COUNTIF(L27:L33,AI8) -> 0 | AK8: =AJ8/(AL4-AJ14) ->  | AL8: =IF(AK8=0,0,(AK8*((LOG(AK8))/LOG(2)))) ->  | AN8: =N8 -> 112 | AO8: =COUNTIF(L34:L39,AN8) -> 0 | AP8: =AO8/(AQ4-AO14) ->  | AQ8: =IF(AP8=0,0,(AP8*((LOG(AP8))/LOG(2)))) ->  | AS8: =N8 -> 112 | AT8: =COUNTIF(L40:L46,AS8) -> 0 | AU8: =AT8/(AV4-AT14) ->  | AV8: =IF(AU8=0,0,(AU8*((LOG(AU8))/LOG(2)))) -> 
A9: 21 | B9: 393 | C9: 21 | D9: 400 | E9: 21 | F9: 410 | K9: 0 | L9: 222 | N9: 121 | O9: =COUNTIF($L$7:$L$500,N9) -> 0 | P9: =O9/$Q$4 -> 0 | Q9: =IF(P9=0,0,(P9*((LOG(P9))/LOG(2)))) -> 0 | T9: =N9 -> 121 | U9: =COUNTIF(L7:L13,T9) -> 0 | V9: =U9/(W4-U14) ->  | W9: =IF(V9=0,0,(V9*((LOG(V9))/LOG(2)))) ->  | Y9: =N9 -> 121 | Z9: =COUNTIF(L14:L19,Y9) -> 0 | AA9: =Z9/(AB4-Z14) ->  | AB9: =IF(AA9=0,0,(AA9*((LOG(AA9))/LOG(2)))) ->  | AD9: =N9 -> 121 | AE9: =COUNTIF(L20:L26,AD9) -> 0 | AF9: =AE9/(AG4-AE14) ->  | AG9: =IF(AF9=0,0,(AF9*((LOG(AF9))/LOG(2)))) ->  | AI9: =N9 -> 121 | AJ9: =COUNTIF(L27:L33,AI9) -> 0 | AK9: =AJ9/(AL4-AJ14) ->  | AL9: =IF(AK9=0,0,(AK9*((LOG(AK9))/LOG(2)))) ->  | AN9: =N9 -> 121 | AO9: =COUNTIF(L34:L39,AN9) -> 0 | AP9: =AO9/(AQ4-AO14) ->  | AQ9: =IF(AP9=0,0,(AP9*((LOG(AP9))/LOG(2)))) ->  | AS9: =N9 -> 121 | AT9: =COUNTIF(L40:L46,AS9) -> 0 | AU9: =AT9/(AV4-AT14) ->  | AV9: =IF(AU9=0,0,(AU9*((LOG(AU9))/LOG(2)))) -> 
A10: 21 | B10: 648 | C10: 21 | D10: 650 | E10: 21 | F10: 658 | K10: 0 | L10: 222 | N10: 122 | O10: =COUNTIF($L$7:$L$500,N10) -> 0 | P10: =O10/$Q$4 -> 0 | Q10: =IF(P10=0,0,(P10*((LOG(P10))/LOG(2)))) -> 0 | T10: =N10 -> 122 | U10: =COUNTIF(L7:L13,T10) -> 0 | V10: =U10/(W4-U14) ->  | W10: =IF(V10=0,0,(V10*((LOG(V10))/LOG(2)))) ->  | Y10: =N10 -> 122 | Z10: =COUNTIF(L14:L19,Y10) -> 0 | AA10: =Z10/(AB4-Z14) ->  | AB10: =IF(AA10=0,0,(AA10*((LOG(AA10))/LOG(2)))) ->  | AD10: =N10 -> 122 | AE10: =COUNTIF(L20:L26,AD10) -> 0 | AF10: =AE10/(AG4-AE14) ->  | AG10: =IF(AF10=0,0,(AF10*((LOG(AF10))/LOG(2)))) ->  | AI10: =N10 -> 122 | AJ10: =COUNTIF(L27:L33,AI10) -> 0 | AK10: =AJ10/(AL4-AJ14) ->  | AL10: =IF(AK10=0,0,(AK10*((LOG(AK10))/LOG(2)))) ->  | AN10: =N10 -> 122 | AO10: =COUNTIF(L34:L39,AN10) -> 0 | AP10: =AO10/(AQ4-AO14) ->  | AQ10: =IF(AP10=0,0,(AP10*((LOG(AP10))/LOG(2)))) ->  | AS10: =N10 -> 122 | AT10: =COUNTIF(L40:L46,AS10) -> 0 | AU10: =AT10/(AV4-AT14) ->  | AV10: =IF(AU10=0,0,(AU10*((LOG(AU10))/LOG(2)))) -> 
A11: 21 | B11: 856 | C11: 21 | D11: 858 | E11: 21 | F11: 863 | K11: 0 | L11: 222 | N11: 211 | O11: =COUNTIF($L$7:$L$500,N11) -> 0 | P11: =O11/$Q$4 -> 0 | Q11: =IF(P11=0,0,(P11*((LOG(P11))/LOG(2)))) -> 0 | T11: =N11 -> 211 | U11: =COUNTIF(L7:L13,T11) -> 0 | V11: =U11/(W4-U14) ->  | W11: =IF(V11=0,0,(V11*((LOG(V11))/LOG(2)))) ->  | Y11: =N11 -> 211 | Z11: =COUNTIF(L14:L19,Y11) -> 0 | AA11: =Z11/(AB4-Z14) ->  | AB11: =IF(AA11=0,0,(AA11*((LOG(AA11))/LOG(2)))) ->  | AD11: =N11 -> 211 | AE11: =COUNTIF(L20:L26,AD11) -> 0 | AF11: =AE11/(AG4-AE14) ->  | AG11: =IF(AF11=0,0,(AF11*((LOG(AF11))/LOG(2)))) ->  | AI11: =N11 -> 211 | AJ11: =COUNTIF(L27:L33,AI11) -> 0 | AK11: =AJ11/(AL4-AJ14) ->  | AL11: =IF(AK11=0,0,(AK11*((LOG(AK11))/LOG(2)))) ->  | AN11: =N11 -> 211 | AO11: =COUNTIF(L34:L39,AN11) -> 0 | AP11: =AO11/(AQ4-AO14) ->  | AQ11: =IF(AP11=0,0,(AP11*((LOG(AP11))/LOG(2)))) ->  | AS11: =N11 -> 211 | AT11: =COUNTIF(L40:L46,AS11) -> 0 | AU11: =AT11/(AV4-AT14) ->  | AV11: =IF(AU11=0,0,(AU11*((LOG(AU11))/LOG(2)))) -> 
A12: 21 | B12: 1036 | C12: 21 | D12: 1047 | E12: 21 | F12: 1058 | K12: 0 | L12: 222 | N12: 212 | O12: =COUNTIF($L$7:$L$500,N12) -> 0 | P12: =O12/$Q$4 -> 0 | Q12: =IF(P12=0,0,(P12*((LOG(P12))/LOG(2)))) -> 0 | T12: =N12 -> 212 | U12: =COUNTIF(L7:L13,T12) -> 0 | V12: =U12/(W4-U14) ->  | W12: =IF(V12=0,0,(V12*((LOG(V12))/LOG(2)))) ->  | Y12: =N12 -> 212 | Z12: =COUNTIF(L14:L19,Y12) -> 0 | AA12: =Z12/(AB4-Z14) ->  | AB12: =IF(AA12=0,0,(AA12*((LOG(AA12))/LOG(2)))) ->  | AD12: =N12 -> 212 | AE12: =COUNTIF(L20:L26,AD12) -> 0 | AF12: =AE12/(AG4-AE14) ->  | AG12: =IF(AF12=0,0,(AF12*((LOG(AF12))/LOG(2)))) ->  | AI12: =N12 -> 212 | AJ12: =COUNTIF(L27:L33,AI12) -> 0 | AK12: =AJ12/(AL4-AJ14) ->  | AL12: =IF(AK12=0,0,(AK12*((LOG(AK12))/LOG(2)))) ->  | AN12: =N12 -> 212 | AO12: =COUNTIF(L34:L39,AN12) -> 0 | AP12: =AO12/(AQ4-AO14) ->  | AQ12: =IF(AP12=0,0,(AP12*((LOG(AP12))/LOG(2)))) ->  | AS12: =N12 -> 212 | AT12: =COUNTIF(L40:L46,AS12) -> 0 | AU12: =AT12/(AV4-AT14) ->  | AV12: =IF(AU12=0,0,(AU12*((LOG(AU12))/LOG(2)))) -> 
A13: 21 | B13: 1275 | C13: 21 | D13: 1285 | E13: 21 | F13: 1291 | K13: 0 | L13: 222 | N13: 221 | O13: =COUNTIF($L$7:$L$500,N13) -> 0 | P13: =O13/$Q$4 -> 0 | Q13: =IF(P13=0,0,(P13*((LOG(P13))/LOG(2)))) -> 0 | T13: =N13 -> 221 | U13: =COUNTIF(L7:L13,T13) -> 0 | V13: =U13/(W4-U14) ->  | W13: =IF(V13=0,0,(V13*((LOG(V13))/LOG(2)))) ->  | Y13: =N13 -> 221 | Z13: =COUNTIF(L14:L19,Y13) -> 0 | AA13: =Z13/(AB4-Z14) ->  | AB13: =IF(AA13=0,0,(AA13*((LOG(AA13))/LOG(2)))) ->  | AD13: =N13 -> 221 | AE13: =COUNTIF(L20:L26,AD13) -> 0 | AF13: =AE13/(AG4-AE14) ->  | AG13: =IF(AF13=0,0,(AF13*((LOG(AF13))/LOG(2)))) ->  | AI13: =N13 -> 221 | AJ13: =COUNTIF(L27:L33,AI13) -> 0 | AK13: =AJ13/(AL4-AJ14) ->  | AL13: =IF(AK13=0,0,(AK13*((LOG(AK13))/LOG(2)))) ->  | AN13: =N13 -> 221 | AO13: =COUNTIF(L34:L39,AN13) -> 0 | AP13: =AO13/(AQ4-AO14) ->  | AQ13: =IF(AP13=0,0,(AP13*((LOG(AP13))/LOG(2)))) ->  | AS13: =N13 -> 221 | AT13: =COUNTIF(L40:L46,AS13) -> 0 | AU13: =AT13/(AV4-AT14) ->  | AV13: =IF(AU13=0,0,(AU13*((LOG(AU13))/LOG(2)))) -> 
A14: 21 | B14: 1437 | C14: 21 | D14: 1447 | E14: 21 | F14: 1454 | K14: 0 | L14: 222 | N14: 222 | O14: =COUNTIF($L$7:$L$500,N14) -> 40 | P14: =O14/$Q$4 -> 1 | Q14: =IF(P14=0,0,(P14*((LOG(P14))/LOG(2)))) -> 0 | T14: =N14 -> 222 | U14: =COUNTIF(L7:L13,T14) -> 7 | Y14: =N14 -> 222 | Z14: =COUNTIF(L14:L19,Y14) -> 6 | AD14: =N14 -> 222 | AE14: =COUNTIF(L20:L26,AD14) -> 7 | AI14: =N14 -> 222 | AJ14: =COUNTIF(L27:L33,AI14) -> 7 | AN14: =N14 -> 222 | AO14: =COUNTIF(L34:L39,AN14) -> 6 | AS14: =N14 -> 222 | AT14: =COUNTIF(L40:L46,AS14) -> 7
A15: 21 | B15: 1670 | C15: 21 | D15: 1676 | E15: 21 | F15: 1682 | K15: 0 | L15: 222 | P15: =SUM(P7:P14) -> 1 | Q15: =-SUM(Q7:Q14) -> 0 | V15: =SUM(V7:V14) ->  | W15: =-SUM(W7:W14) ->  | AA15: =SUM(AA7:AA14) ->  | AB15: =-SUM(AB7:AB14) ->  | AF15: =SUM(AF7:AF14) ->  | AG15: =-SUM(AG7:AG14) ->  | AK15: =SUM(AK7:AK14) ->  | AL15: =-SUM(AL7:AL14) ->  | AP15: =SUM(AP7:AP14) ->  | AQ15: =-SUM(AQ7:AQ14) ->  | AU15: =SUM(AU7:AU14) ->  | AV15: =-SUM(AV7:AV14) -> 
A16: 21 | B16: 1880 | C16: 21 | D16: 1883 | E16: 21 | F16: 1888 | K16: 0 | L16: 222 | P16: U= | Q16: =Q15/(LOG(Q4)/LOG(2)) -> 0 | V16: U1= | W16: =W15/(LOG(W4)/LOG(2)) ->  | AA16: U2= | AB16: =AB15/(LOG(AB4)/LOG(2)) ->  | AF16: U3= | AG16: =AG15/(LOG(AG4)/LOG(2)) ->  | AK16: U4= | AL16: =AL15/(LOG(AL4)/LOG(2)) ->  | AP16: U5= | AQ16: =AQ15/(LOG(AQ4)/LOG(2)) ->  | AU16: U6= | AV16: =AV15/(LOG(AV4)/LOG(2)) -> 
A17: 21 | B17: 2063 | C17: 21 | D17: 2069 | E17: 21 | F17: 2076 | K17: 0 | L17: 222
A18: 21 | B18: 2256 | C18: 21 | D18: 2259 | E18: 21 | F18: 2265 | K18: 0 | L18: 222
A19: 21 | B19: 2423 | C19: 21 | D19: 2429 | E19: 21 | F19: 2437 | K19: 0 | L19: 222 | N19: Total Target Seq
A20: 21 | B20: 2630 | C20: 21 | D20: 2633 | E20: 21 | F20: 2639 | K20: 0 | L20: 222 | N20: =COUNTIF(L7:L46,G3) -> 40 | P20: 7 | Q20: 6 | R20: 7 | S20: 7 | T20: 6 | U20: 7
A21: 21 | B21: 2787 | C21: 21 | D21: 2790 | E21: 21 | F21: 2795 | K21: 0 | L21: 222 | P21: % of reinforcement given in 6 equal intervals based on number of trials
A22: 21 | B22: 2963 | C22: 21 | D22: 2966 | E22: 21 | F22: 2969 | K22: 0 | L22: 222 | P22: %_1 | Q22: %_2 | R22: %_3 | S22: %_4 | T22: %_5 | U22: %_6
A23: 21 | B23: 3115 | C23: 21 | D23: 3121 | E23: 21 | F23: 3128 | K23: 0 | L23: 222 | O23: target sequence | P23: =$G$3 -> 222 | Q23: =$G$3 -> 222 | R23: =$G$3 -> 222 | S23: =$G$3 -> 222 | T23: =$G$3 -> 222 | U23: =$G$3 -> 222
A24: 21 | B24: 3274 | C24: 21 | D24: 3280 | E24: 21 | F24: 3286 | K24: 0 | L24: 222 | O24: total reinforcement | P24: =U14 -> 7 | Q24: =Z14 -> 6 | R24: =AE14 -> 7 | S24: =AJ14 -> 7 | T24: =AO14 -> 6 | U24: =AT14 -> 7
A25: 21 | B25: 3377 | C25: 21 | D25: 3387 | E25: 21 | F25: 3393 | K25: 0 | L25: 222 | O25: % target
A26: 21 | B26: 3529 | C26: 21 | D26: 3530 | E26: 21 | F26: 3537 | K26: 0 | L26: 222 | O26: CCRF
A27: 21 | B27: 3638 | C27: 21 | D27: 3647 | E27: 21 | F27: 3653 | K27: 0 | L27: 222 | O27: % CCRf
A28: 21 | B28: 3838 | C28: 21 | D28: 3847 | E28: 21 | F28: 3852 | K28: 0 | L28: 222 | O28: average response rate | P28: =F13/P20 -> 184.4285714 | Q28: =(F19-F13)/Q20 -> 191 | R28: =(F26-F19)/R20 -> 157.1428571 | S28: =(F33-F26)/S20 -> 206.7142857 | T28: =(F39-F33)/T20 -> 239.6666667 | U28: =(F46-F39)/U20 -> 237.1428571
A29: 21 | B29: 4034 | C29: 21 | D29: 4037 | E29: 21 | F29: 4042 | K29: 0 | L29: 222
A30: 21 | B30: 4315 | C30: 21 | D30: 4325 | E30: 21 | F30: 4331 | K30: 0 | L30: 222
A31: 21 | B31: 4506 | C31: 21 | D31: 4509 | E31: 21 | F31: 4512 | K31: 0 | L31: 222
A32: 21 | B32: 4687 | C32: 21 | D32: 4695 | E32: 21 | F32: 4701 | K32: 0 | L32: 222
A33: 21 | B33: 4963 | C33: 21 | D33: 4967 | E33: 21 | F33: 4984 | K33: 0 | L33: 222
A34: 21 | B34: 5207 | C34: 21 | D34: 5216 | E34: 21 | F34: 5222 | K34: 0 | L34: 222
A35: 21 | B35: 5462 | C35: 21 | D35: 5466 | E35: 21 | F35: 5473 | K35: 0 | L35: 222
A36: 21 | B36: 5657 | C36: 21 | D36: 5658 | E36: 21 | F36: 5664 | K36: 0 | L36: 222
A37: 21 | B37: 5860 | C37: 21 | D37: 5863 | E37: 21 | F37: 5867 | K37: 0 | L37: 222
A38: 21 | B38: 6103 | C38: 21 | D38: 6108 | E38: 21 | F38: 6115 | K38: 0 | L38: 222
A39: 21 | B39: 6409 | C39: 21 | D39: 6416 | E39: 21 | F39: 6422 | K39: 0 | L39: 222
A40: 21 | B40: 6611 | C40: 21 | D40: 6616 | E40: 21 | F40: 6621 | K40: 0 | L40: 222
A41: 21 | B41: 6862 | C41: 21 | D41: 6868 | E41: 21 | F41: 6883 | K41: 0 | L41: 222
A42: 21 | B42: 7129 | C42: 21 | D42: 7133 | E42: 21 | F42: 7138 | K42: 0 | L42: 222
A43: 21 | B43: 7463 | C43: 21 | D43: 7468 | E43: 21 | F43: 7489 | K43: 0 | L43: 222
A44: 21 | B44: 7696 | C44: 21 | D44: 7701 | E44: 21 | F44: 7706 | K44: 0 | L44: 222
A45: 21 | B45: 7864 | C45: 21 | D45: 7867 | E45: 21 | F45: 7884 | K45: 0 | L45: 222
A46: 21 | B46: 8069 | C46: 21 | D46: 8076 | E46: 21 | F46: 8082 | K46: 1 | L46: 222

Sheet !M410A3D.UST
A1: Report for:!M410A3D.UST
A2: Date: | B2: <date>
A3: Hen: | B3: <hen> | F3: Correct Sequence | G3: =Start!J2 -> 222 | P3: Total Sequences in Data | Q3: =4994-COUNTBLANK(L7:L5000) -> 43 | V3: Total Sequences in Block Data | W3: =COUNTA(L7:L13) -> 7 | AA3: Total Sequences in Block Data | AB3: =COUNTA(L14:L20) -> 7 | AF3: Total Sequences in Block Data | AG3: =COUNTA(L21:L28) -> 8 | AK3: Total Sequences in Block Data | AL3: =COUNTA(L29:L35) -> 7 | AP3: Total Sequences in Block Data | AQ3: =COUNTA(L36:L42) -> 7 | AU3: Total Sequences in Block Data | AV3: =COUNTA(L43:L49) -> 7
P4: Total Sequences in Summary | Q4: =SUM(O7:O14) -> 43 | V4: Total Sequences in Block Summary | W4: =SUM(U7:U14) -> 7 | AA4: Total Sequences in Block Summary | AB4: =SUM(Z7:Z14) -> 7 | AF4: Total Sequences in Block Summary | AG4: =SUM(AE7:AE14) -> 8 | AK4: Total Sequences in Block Summary | AL4: =SUM(AJ7:AJ14) -> 7 | AP4: Total Sequences in Block Summary | AQ4: =SUM(AO7:AO14) -> 7 | AU4: Total Sequences in Block Summary | AV4: =SUM(AT7:AT14) -> 7
T5: Block 1 | Y5: Block 2 | AD5: Block 3 | AI5: Block 4 | AN5: Block 5 | AS5: Block 6
A6: Sequence Component 1 | B6: Time 1 | C6: Sequence Component 2 | D6: Time 2 | E6: Sequence Component 3 | F6: Time 3 | G6: Sequence Component 4 | H6: Time 4 | I6: Sequence Component 5 | J6: Time 5 | K6: Correct? 0=No 1=Yes | L6: Sequence | N6: Frequency | P6: Relative Frequency | Q6: Variability | T6: Frequency | V6: Relative Frequency | W6: Variability | Y6: Frequency | AA6: Relative Frequency | AB6: Variability | AD6: Frequency | AF6: Relative Frequency | AG6: Variability | AI6: Frequency | AK6: Relative Frequency | AL6: Variability | AN6: Frequency | AP6: Relative Frequency | AQ6: Variability | AS6: Frequency | AU6: Relative Frequency | AV6: Variability
A7: 21 | B7: 15 | C7: 21 | D7: 21 | E7: 21 | F7: 27 | K7: 0 | L7: 222 | N7: 111 | O7: =COUNTIF($L$7:$L$500,N7) -> 0 | P7: =O7/$Q$4 -> 0 | Q7: =IF(P7=0,0,(P7*((LOG(P7))/LOG(2)))) -> 0 | T7: =N7 -> 111 | U7: =COUNTIF(L7:L13,T7) -> 0 | V7: =U7/(W4-U14) ->  | W7: =IF(V7=0,0,(V7*((LOG(V7))/LOG(2)))) ->  | Y7: =N7 -> 111 | Z7: =COUNTIF(L14:L20,Y7) -> 0 | AA7: =Z7/(AB4-Z14) -> 0 | AB7: =IF(AA7=0,0,(AA7*((LOG(AA7))/LOG(2)))) -> 0 | AD7: =N7 -> 111 | AE7: =COUNTIF(L21:L28,AD7) -> 0 | AF7: =AE7/(AG4-AE14) ->  | AG7: =IF(AF7=0,0,(AF7*((LOG(AF7))/LOG(2)))) ->  | AI7: =N7 -> 111 | AJ7: =COUNTIF(L29:L35,AI7) -> 0 | AK7: =AJ7/(AL4-AJ14) ->  | AL7: =IF(AK7=0,0,(AK7*((LOG(AK7))/LOG(2)))) ->  | AN7: =N7 -> 111 | AO7: =COUNTIF(L36:L42,AN7) -> 0 | AP7: =AO7/(AQ4-AO14) ->  | AQ7: =IF(AP7=0,0,(AP7*((LOG(AP7))/LOG(2)))) ->  | AS7: =N7 -> 111 | AT7: =COUNTIF(L43:L49,AS7) -> 0 | AU7: =AT7/(AV4-AT14) ->  | AV7: =IF(AU7=0,0,(AU7*((LOG(AU7))/LOG(2)))) -> 
A8: 21 | B8: 197 | C8: 21 | D8: 201 | E8: 21 | F8: 207 | K8: 0 | L8: 222 | N8: 112 | O8: =COUNTIF($L$7:$L$500,N8) -> 0 | P8: =O8/$Q$4 -> 0 | Q8: =IF(P8=0,0,(P8*((LOG(P8))/LOG(2)))) -> 0 | T8: =N8 -> 112 | U8: =COUNTIF(L7:L13,T8) -> 0 | V8: =U8/(W4-U14) ->  | W8: =IF(V8=0,0,(V8*((LOG(V8))/LOG(2)))) ->  | Y8: =N8 -> 112 | Z8: =COUNTIF(L14:L20,Y8) -> 0 | AA8: =Z8/(AB4-Z14) -> 0 | AB8: =IF(AA8=0,0,(AA8*((LOG(AA8))/LOG(2)))) -> 0 | AD8: =N8 -> 112 | AE8: =COUNTIF(L21:L28,AD8) -> 0 | AF8: =AE8/(AG4-AE14) ->  | AG8: =IF(AF8=0,0,(AF8*((LOG(AF8))/LOG(2)))) ->  | AI8: =N8 -> 112 | AJ8: =COUNTIF(L29:L35,AI8) -> 0 | AK8: =AJ8/(AL4-AJ14) ->  | AL8: =IF(AK8=0,0,(AK8*((LOG(AK8))/LOG(2)))) ->  | AN8: =N8 -> 112 | AO8: =COUNTIF(L36:L42,AN8) -> 0 | AP8: =AO8/(AQ4-AO14) ->  | AQ8: =IF(AP8=0,0,(AP8*((LOG(AP8))/LOG(2)))) ->  | AS8: =N8 -> 112 | AT8: =COUNTIF(L43:L49,AS8) -> 0 | AU8: =AT8/(AV4-AT14) ->  | AV8: =IF(AU8=0,0,(AU8*((LOG(AU8))/LOG(2)))) -> 
A9: 21 | B9: 308 | C9: 21 | D9: 319 | E9: 21 | F9: 335 | K9: 0 | L9: 222 | N9: 121 | O9: =COUNTIF($L$7:$L$500,N9) -> 0 | P9: =O9/$Q$4 -> 0 | Q9: =IF(P9=0,0,(P9*((LOG(P9))/LOG(2)))) -> 0 | T9: =N9 -> 121 | U9: =COUNTIF(L7:L13,T9) -> 0 | V9: =U9/(W4-U14) ->  | W9: =IF(V9=0,0,(V9*((LOG(V9))/LOG(2)))) ->  | Y9: =N9 -> 121 | Z9: =COUNTIF(L14:L20,Y9) -> 0 | AA9: =Z9/(AB4-Z14) -> 0 | AB9: =IF(AA9=0,0,(AA9*((LOG(AA9))/LOG(2)))) -> 0 | AD9: =N9 -> 121 | AE9: =COUNTIF(L21:L28,AD9) -> 0 | AF9: =AE9/(AG4-AE14) ->  | AG9: =IF(AF9=0,0,(AF9*((LOG(AF9))/LOG(2)))) ->  | AI9: =N9 -> 121 | AJ9: =COUNTIF(L29:L35,AI9) -> 0 | AK9: =AJ9/(AL4-AJ14) ->  | AL9: =IF(AK9=0,0,(AK9*((LOG(AK9))/LOG(2)))) ->  | AN9: =N9 -> 121 | AO9: =COUNTIF(L36:L42,AN9) -> 0 | AP9: =AO9/(AQ4-AO14) ->  | AQ9: =IF(AP9=0,0,(AP9*((LOG(AP9))/LOG(2)))) ->  | AS9: =N9 -> 121 | AT9: =COUNTIF(L43:L49,AS9) -> 0 | AU9: =AT9/(AV4-AT14) ->  | AV9: =IF(AU9=0,0,(AU9*((LOG(AU9))/LOG(2)))) -> 
A10: 21 | B10: 503 | C10: 21 | D10: 507 | E10: 21 | F10: 514 | K10: 0 | L10: 222 | N10: 122 | O10: =COUNTIF($L$7:$L$500,N10) -> 3 | P10: =O10/$Q$4 -> 0.06976744186 | Q10: =IF(P10=0,0,(P10*((LOG(P10))/LOG(2)))) -> -0.2679978317 | T10: =N10 -> 122 | U10: =COUNTIF(L7:L13,T10) -> 0 | V10: =U10/(W4-U14) ->  | W10: =IF(V10=0,0,(V10*((LOG(V10))/LOG(2)))) ->  | Y10: =N10 -> 122 | Z10: =COUNTIF(L14:L20,Y10) -> 3 | AA10: =Z10/(AB4-Z14) -> 1 | AB10: =IF(AA10=0,0,(AA10*((LOG(AA10))/LOG(2)))) -> 0 | AD10: =N10 -> 122 | AE10: =COUNTIF(L21:L28,AD10) -> 0 | AF10: =AE10/(AG4-AE14) ->  | AG10: =IF(AF10=0,0,(AF10*((LOG(AF10))/LOG(2)))) ->  | AI10: =N10 -> 122 | AJ10: =COUNTIF(L29:L35,AI10) -> 0 | AK10: =AJ10/(AL4-AJ14) ->  | AL10: =IF(AK10=0,0,(AK10*((LOG(AK10))/LOG(2)))) ->  | AN10: =N10 -> 122 | AO10: =COUNTIF(L36:L42,AN10) -> 0 | AP10: =AO10/(AQ4-AO14) ->  | AQ10: =IF(AP10=0,0,(AP10*((LOG(AP10))/LOG(2)))) ->  | AS10: =N10 -> 122 | AT10: =COUNTIF(L43:L49,AS10) -> 0 | AU10: =AT10/(AV4-AT14) ->  | AV10: =IF(AU10=0,0,(AU10*((LOG(AU10))/LOG(2)))) -> 
A11: 21 | B11: 634 | C11: 21 | D11: 640 | E11: 21 | F11: 647 | K11: 0 | L11: 222 | N11: 211 | O11: =COUNTIF($L$7:$L$500,N11) -> 0 | P11: =O11/$Q$4 -> 0 | Q11: =IF(P11=0,0,(P11*((LOG(P11))/LOG(2)))) -> 0 | T11: =N11 -> 211 | U11: =COUNTIF(L7:L13,T11) -> 0 | V11: =U11/(W4-U14) ->  | W11: =IF(V11=0,0,(V11*((LOG(V11))/LOG(2)))) ->  | Y11: =N11 -> 211 | Z11: =COUNTIF(L14:L20,Y11) -> 0 | AA11: =Z11/(AB4-Z14) -> 0 | AB11: =IF(AA11=0,0,(AA11*((LOG(AA11))/LOG(2)))) -> 0 | AD11: =N11 -> 211 | AE11: =COUNTIF(L21:L28,AD11) -> 0 | AF11: =AE11/(AG4-AE14) ->  | AG11: =IF(AF11=0,0,(AF11*((LOG(AF11))/LOG(2)))) ->  | AI11: =N11 -> 211 | AJ11: =COUNTIF(L29:L35,AI11) -> 0 | AK11: =AJ11/(AL4-AJ14) ->  | AL11: =IF(AK11=0,0,(AK11*((LOG(AK11))/LOG(2)))) ->  | AN11: =N11 -> 211 | AO11: =COUNTIF(L36:L42,AN11) -> 0 | AP11: =AO11/(AQ4-AO14) ->  | AQ11: =IF(AP11=0,0,(AP11*((LOG(AP11))/LOG(2)))) ->  | AS11: =N11 -> 211 | AT11: =COUNTIF(L43:L49,AS11) -> 0 | AU11: =AT11/(AV4-AT14) ->  | AV11: =IF(AU11=0,0,(AU11*((LOG(AU11))/LOG(2)))) -> 
A12: 21 | B12: 757 | C12: 21 | D12: 759 | E12: 21 | F12: 763 | K12: 0 | L12: 222 | N12: 212 | O12: =COUNTIF($L$7:$L$500,N12) -> 0 | P12: =O12/$Q$4 -> 0 | Q12: =IF(P12=0,0,(P12*((LOG(P12))/LOG(2)))) -> 0 | T12: =N12 -> 212 | U12: =COUNTIF(L7:L13,T12) -> 0 | V12: =U12/(W4-U14) ->  | W12: =IF(V12=0,0,(V12*((LOG(V12))/LOG(2)))) ->  | Y12: =N12 -> 212 | Z12: =COUNTIF(L14:L20,Y12) -> 0 | AA12: =Z12/(AB4-Z14) -> 0 | AB12: =IF(AA12=0,0,(AA12*((LOG(AA12))/LOG(2)))) -> 0 | AD12: =N12 -> 212 | AE12: =COUNTIF(L21:L28,AD12) -> 0 | AF12: =AE12/(AG4-AE14) ->  | AG12: =IF(AF12=0,0,(AF12*((LOG(AF12))/LOG(2)))) ->  | AI12: =N12 -> 212 | AJ12: =COUNTIF(L29:L35,AI12) -> 0 | AK12: =AJ12/(AL4-AJ14) ->  | AL12: =IF(AK12=0,0,(AK12*((LOG(AK12))/LOG(2)))) ->  | AN12: =N12 -> 212 | AO12: =COUNTIF(L36:L42,AN12) -> 0 | AP12: =AO12/(AQ4-AO14) ->  | AQ12: =IF(AP12=0,0,(AP12*((LOG(AP12))/LOG(2)))) ->  | AS12: =N12 -> 212 | AT12: =COUNTIF(L43:L49,AS12) -> 0 | AU12: =AT12/(AV4-AT14) ->  | AV12: =IF(AU12=0,0,(AU12*((LOG(AU12))/LOG(2)))) -> 
A13: 21 | B13: 945 | C13: 21 | D13: 951 | E13: 21 | F13: 958 | K13: 0 | L13: 222 | N13: 221 | O13: =COUNTIF($L$7:$L$500,N13) -> 0 | P13: =O13/$Q$4 -> 0 | Q13: =IF(P13=0,0,(P13*((LOG(P13))/LOG(2)))) -> 0 | T13: =N13 -> 221 | U13: =COUNTIF(L7:L13,T13) -> 0 | V13: =U13/(W4-U14) ->  | W13: =IF(V13=0,0,(V13*((LOG(V13))/LOG(2)))) ->  | Y13: =N13 -> 221 | Z13: =COUNTIF(L14:L20,Y13) -> 0 | AA13: =Z13/(AB4-Z14) -> 0 | AB13: =IF(AA13=0,0,(AA13*((LOG(AA13))/LOG(2)))) -> 0 | AD13: =N13 -> 221 | AE13: =COUNTIF(L21:L28,AD13) -> 0 | AF13: =AE13/(AG4-AE14) ->  | AG13: =IF(AF13=0,0,(AF13*((LOG(AF13))/LOG(2)))) ->  | AI13: =N13 -> 221 | AJ13: =COUNTIF(L29:L35,AI13) -> 0 | AK13: =AJ13/(AL4-AJ14) ->  | AL13: =IF(AK13=0,0,(AK13*((LOG(AK13))/LOG(2)))) ->  | AN13: =N13 -> 221 | AO13: =COUNTIF(L36:L42,AN13) -> 0 | AP13: =AO13/(AQ4-AO14) ->  | AQ13: =IF(AP13=0,0,(AP13*((LOG(AP13))/LOG(2)))) ->  | AS13: =N13 -> 221 | AT13: =COUNTIF(L43:L49,AS13) -> 0 | AU13: =AT13/(AV4-AT14) ->  | AV13: =IF(AU13=0,0,(AU13*((LOG(AU13))/LOG(2)))) -> 
A14: 21 | B14: 1098 | C14: 21 | D14: 1109 | E14: 21 | F14: 1115 | K14: 0 | L14: 222 | N14: 222 | O14: =COUNTIF($L$7:$L$500,N14) -> 40 | P14: =O14/$Q$4 -> 0.9302325581 | Q14: =IF(P14=0,0,(P14*((LOG(P14))/LOG(2)))) -> -0.09705735797 | T14: =N14 -> 222 | U14: =COUNTIF(L7:L13,T14) -> 7 | Y14: =N14 -> 222 | Z14: =COUNTIF(L14:L20,Y14) -> 4 | AD14: =N14 -> 222 | AE14: =COUNTIF(L21:L28,AD14) -> 8 | AI14: =N14 -> 222 | AJ14: =COUNTIF(L29:L35,AI14) -> 7 | AN14: =N14 -> 222 | AO14: =COUNTIF(L36:L42,AN14) -> 7 | AS14: =N14 -> 222 | AT14: =COUNTIF(L43:L49,AS14) -> 7
A15: 21 | B15: 1308 | C15: 21 | D15: 1312 | E15: 21 | F15: 1318 | K15: 0 | L15: 222 | P15: =SUM(P7:P14) -> 1 | Q15: =-SUM(Q7:Q14) -> 0.3650551896 | V15: =SUM(V7:V14) ->  | W15: =-SUM(W7:W14) ->  | AA15: =SUM(AA7:AA14) -> 1 | AB15: =-SUM(AB7:AB14) -> 0 | AF15: =SUM(AF7:AF14) ->  | AG15: =-SUM(AG7:AG14) ->  | AK15: =SUM(AK7:AK14) ->  | AL15: =-SUM(AL7:AL14) ->  | AP15: =SUM(AP7:AP14) ->  | AQ15: =-SUM(AQ7:AQ14) ->  | AU15: =SUM(AU7:AU14) ->  | AV15: =-SUM(AV7:AV14) -> 
A16: 12 | B16: 1415 | C16: 23 | D16: 1427 | E16: 23 | F16: 1449 | K16: 0 | L16: 122 | P16: U= | Q16: =Q15/(LOG(Q4)/LOG(2)) -> 0.06727559493 | V16: U1= | W16: =W15/(LOG(W4)/LOG(2)) ->  | AA16: U2= | AB16: =AB15/(LOG(AB4)/LOG(2)) -> 0 | AF16: U3= | AG16: =AG15/(LOG(AG4)/LOG(2)) ->  | AK16: U4= | AL16: =AL15/(LOG(AL4)/LOG(2)) ->  | AP16: U5= | AQ16: =AQ15/(LOG(AQ4)/LOG(2)) ->  | AU16: U6= | AV16: =AV15/(LOG(AV4)/LOG(2)) -> 
A17: 12 | B17: 1553 | C17: 23 | D17: 1564 | E17: 23 | F17: 1570 | K17: 0 | L17: 122
A18: 12 | B18: 1669 | C18: 23 | D18: 1696 | E18: 23 | F18: 1702 | K18: 0 | L18: 122
A19: 21 | B19: 1804 | C19: 21 | D19: 1811 | E19: 21 | F19: 1816 | K19: 0 | L19: 222 | N19: Total Target Seq
A20: 21 | B20: 1933 | C20: 21 | D20: 1943 | E20: 21 | F20: 1947 | K20: 0 | L20: 222 | N20: =COUNTIF(L7:L49,G3) -> 40 | P20: 7 | Q20: 7 | R20: 8 | S20: 7 | T20: 7 | U20: 7
A21: 21 | B21: 2091 | C21: 21 | D21: 2097 | E21: 21 | F21: 2104 | K21: 0 | L21: 222 | P21: % of reinforcement given in 6 equal intervals based on number of trials
A22: 21 | B22: 2265 | C22: 21 | D22: 2270 | E22: 21 | F22: 2274 | K22: 0 | L22: 222 | P22: %_1 | Q22: %_2 | R22: %_3 | S22: %_4 | T22: %_5 | U22: %_6
A23: 21 | B23: 2436 | C23: 21 | D23: 2441 | E23: 21 | F23: 2449 | K23: 0 | L23: 222 | O23: target sequence | P23: =$G$3 -> 222 | Q23: =$G$3 -> 222 | R23: =$G$3 -> 222 | S23: =$G$3 -> 222 | T23: =$G$3 -> 222 | U23: =$G$3 -> 222
A24: 21 | B24: 2547 | C24: 21 | D24: 2553 | E24: 21 | F24: 2557 | K24: 0 | L24: 222 | O24: total reinforcement | P24: =U14 -> 7 | Q24: =Z14 -> 4 | R24: =AE14 -> 8 | S24: =AJ14 -> 7 | T24: =AO14 -> 7 | U24: =AT14 -> 7
A25: 21 | B25: 2735 | C25: 21 | D25: 2739 | E25: 21 | F25: 2745 | K25: 0 | L25: 222 | O25: % target
A26: 21 | B26: 2910 | C26: 21 | D26: 2916 | E26: 21 | F26: 2925 | K26: 0 | L26: 222 | O26: CCRF
A27: 21 | B27: 3053 | C27: 21 | D27: 3059 | E27: 21 | F27: 3064 | K27: 0 | L27: 222 | O27: % CCRf
A28: 21 | B28: 3193 | C28: 21 | D28: 3195 | E28: 21 | F28: 3204 | K28: 0 | L28: 222 | O28: average response rate | P28: =F13/P20 -> 136.8571429 | Q28: =(F20-F13)/Q20 -> 141.2857143 | R28: =(F28-F20)/R20 -> 157.125 | S28: =(F35-F28)/S20 -> 164.2857143 | T28: =(F42-F35)/T20 -> 187.7142857 | U28: =(F49-F42)/U20 -> 168.2857143
A29: 21 | B29: 3369 | C29: 21 | D29: 3374 | E29: 21 | F29: 3382 | K29: 0 | L29: 222
A30: 21 | B30: 3570 | C30: 21 | D30: 3575 | E30: 21 | F30: 3582 | K30: 0 | L30: 222
A31: 21 | B31: 3714 | C31: 21 | D31: 3719 | E31: 21 | F31: 3722 | K31: 0 | L31: 222
A32: 21 | B32: 3893 | C32: 21 | D32: 3899 | E32: 21 | F32: 3905 | K32: 0 | L32: 222
A33: 21 | B33: 4044 | C33: 21 | D33: 4052 | E33: 21 | F33: 4055 | K33: 0 | L33: 222
A34: 21 | B34: 4192 | C34: 21 | D34: 4203 | E34: 21 | F34: 4208 | K34: 0 | L34: 222
A35: 21 | B35: 4344 | C35: 21 | D35: 4347 | E35: 21 | F35: 4354 | K35: 0 | L35: 222
A36: 21 | B36: 4538 | C36: 21 | D36: 4542 | E36: 21 | F36: 4546 | K36: 0 | L36: 222
A37: 21 | B37: 4699 | C37: 21 | D37: 4705 | E37: 21 | F37: 4707 | K37: 0 | L37: 222
A38: 21 | B38: 4893 | C38: 21 | D38: 4904 | E38: 21 | F38: 4910 | K38: 0 | L38: 222
A39: 21 | B39: 5129 | C39: 21 | D39: 5133 | E39: 21 | F39: 5139 | K39: 0 | L39: 222
A40: 21 | B40: 5294 | C40: 21 | D40: 5301 | E40: 21 | F40: 5306 | K40: 0 | L40: 222
A41: 21 | B41: 5463 | C41: 21 | D41: 5470 | E41: 21 | F41: 5476 | K41: 0 | L41: 222
A42: 21 | B42: 5655 | C42: 21 | D42: 5662 | E42: 21 | F42: 5668 | K42: 0 | L42: 222
A43: 21 | B43: 5787 | C43: 21 | D43: 5795 | E43: 21 | F43: 5812 | K43: 0 | L43: 222
A44: 21 | B44: 5957 | C44: 21 | D44: 5961 | E44: 21 | F44: 5968 | K44: 0 | L44: 222
A45: 21 | B45: 6148 | C45: 21 | D45: 6156 | E45: 21 | F45: 6162 | K45: 0 | L45: 222
A46: 21 | B46: 6316 | C46: 21 | D46: 6320 | E46: 21 | F46: 6326 | K46: 0 | L46: 222
A47: 21 | B47: 6473 | C47: 21 | D47: 6480 | E47: 21 | F47: 6490 | K47: 0 | L47: 222
A48: 21 | B48: 6687 | C48: 21 | D48: 6695 | E48: 21 | F48: 6700 | K48: 0 | L48: 222
A49: 21 | B49: 6832 | C49: 21 | D49: 6839 | E49: 21 | F49: 6846 | K49: 1 | L49: 222

Sheet !M411B2D.UST
A1: Report for:!M411B2D.UST
A2: Date: | B2: <date>
A3: Hen: | B3: <hen> | F3: Correct Sequence | G3: =Start!J2 -> 222 | P3: Total Sequences in Data | Q3: =4994-COUNTBLANK(L7:L5000) -> 40 | V3: Total Sequences in Block Data | W3: =COUNTA(L7:L13) -> 7 | AA3: Total Sequences in Block Data | AB3: =COUNTA(L14:L19) -> 6 | AF3: Total Sequences in Block Data | AG3: =COUNTA(L20:L26) -> 7 | AK3: Total Sequences in Block Data | AL3: =COUNTA(L27:L33) -> 7 | AP3: Total Sequences in Block Data | AQ3: =COUNTA(L34:L39) -> 6 | AU3: Total Sequences in Block Data | AV3: =COUNTA(L40:L46) -> 7
P4: Total Sequences in Summary | Q4: =SUM(O7:O14) -> 40 | V4: Total Sequences in Block Summary | W4: =SUM(U7:U14) -> 7 | AA4: Total Sequences in Block Summary | AB4: =SUM(Z7:Z14) -> 6 | AF4: Total Sequences in Block Summary | AG4: =SUM(AE7:AE14) -> 7 | AK4: Total Sequences in Block Summary | AL4: =SUM(AJ7:AJ14) -> 7 | AP4: Total Sequences in Block Summary | AQ4: =SUM(AO7:AO14) -> 6 | AU4: Total Sequences in Block Summary | AV4: =SUM(AT7:AT14) -> 7
T5: Block 1 | Y5: Block 2 | AD5: Block 3 | AI5: Block 4 | AN5: Block 5 | AS5: Block 6
A6: Sequence Component 1 | B6: Time 1 | C6: Sequence Component 2 | D6: Time 2 | E6: Sequence Component 3 | F6: Time 3 | G6: Sequence Component 4 | H6: Time 4 | I6: Sequence Component 5 | J6: Time 5 | K6: Correct? 0=No 1=Yes | L6: Sequence | N6: Frequency | P6: Relative Frequency | Q6: Variability | T6: Frequency | V6: Relative Frequency | W6: Variability | Y6: Frequency | AA6: Relative Frequency | AB6: Variability | AD6: Frequency | AF6: Relative Frequency | AG6: Variability | AI6: Frequency | AK6: Relative Frequency | AL6: Variability | AN6: Frequency | AP6: Relative Frequency | AQ6: Variability | AS6: Frequency | AU6: Relative Frequency | AV6: Variability
A7: 21 | B7: 69 | C7: 21 | D7: 73 | E7: 21 | F7: 80 | K7: 0 | L7: 222 | N7: 111 | O7: =COUNTIF($L$7:$L$500,N7) -> 0 | P7: =O7/$Q$4 -> 0 | Q7: =IF(P7=0,0,(P7*((LOG(P7))/LOG(2)))) -> 0 | T7: =N7 -> 111 | U7: =COUNTIF(L7:L13,T7) -> 0 | V7: =U7/(W4-U14) ->  | W7: =IF(V7=0,0,(V7*((LOG(V7))/LOG(2)))) ->  | Y7: =N7 -> 111 | Z7: =COUNTIF(L14:L19,Y7) -> 0 | AA7: =Z7/(AB4-Z14) ->  | AB7: =IF(AA7=0,0,(AA7*((LOG(AA7))/LOG(2)))) ->  | AD7: =N7 -> 111 | AE7: =COUNTIF(L20:L26,AD7) -> 0 | AF7: =AE7/(AG4-AE14) ->  | AG7: =IF(AF7=0,0,(AF7*((LOG(AF7))/LOG(2)))) ->  | AI7: =N7 -> 111 | AJ7: =COUNTIF(L27:L33,AI7) -> 0 | AK7: =AJ7/(AL4-AJ14) ->  | AL7: =IF(AK7=0,0,(AK7*((LOG(AK7))/LOG(2)))) ->  | AN7: =N7 -> 111 | AO7: =COUNTIF(L34:L39,AN7) -> 0 | AP7: =AO7/(AQ4-AO14) ->  | AQ7: =IF(AP7=0,0,(AP7*((LOG(AP7))/LOG(2)))) ->  | AS7: =N7 -> 111 | AT7: =COUNTIF(L40:L46,AS7) -> 0 | AU7: =AT7/(AV4-AT14) ->  | AV7: =IF(AU7=0,0,(AU7*((LOG(AU7))/LOG(2)))) -> 
A8: 21 | B8: 215 | C8: 21 | D8: 223 | E8: 21 | F8: 228 | K8: 0 | L8: 222 | N8: 112 | O8: =COUNTIF($L$7:$L$500,N8) -> 0 | P8: =O8/$Q$4 -> 0 | Q8: =IF(P8=0,0,(P8*((LOG(P8))/LOG(2)))) -> 0 | T8: =N8 -> 112 | U8: =COUNTIF(L7:L13,T8) -> 0 | V8: =U8/(W4-U14) ->  | W8: =IF(V8=0,0,(V8*((LOG(V8))/LOG(2)))) ->  | Y8: =N8 -> 112 | Z8: =COUNTIF(L14:L19,Y8) -> 0 | AA8: =Z8/(AB4-Z14) ->  | AB8: =IF(AA8=0,0,(AA8*((LOG(AA8))/LOG(2)))) ->  | AD8: =N8 -> 112 | AE8: =COUNTIF(L20:L26,AD8) -> 0 | AF8: =AE8/(AG4-AE14) ->  | AG8: =IF(AF8=0,0,(AF8*((LOG(AF8))/LOG(2)))) ->  | AI8: =N8 -> 112 | AJ8: =COUNTIF(L27:L33,AI8) -> 0 | AK8: =AJ8/(AL4-AJ14) ->  | AL8: =IF(AK8=0,0,(AK8*((LOG(AK8))/LOG(2)))) ->  | AN8: =N8 -> 112 | AO8: =COUNTIF(L34:L39,AN8) -> 0 | AP8: =AO8/(AQ4-AO14) ->  | AQ8: =IF(AP8=0,0,(AP8*((LOG(AP8))/LOG(2)))) ->  | AS8: =N8 -> 112 | AT8: =COUNTIF(L40:L46,AS8) -> 0 | AU8: =AT8/(AV4-AT14) ->  | AV8: =IF(AU8=0,0,(AU8*((LOG(AU8))/LOG(2)))) -> 
A9: 21 | B9: 344 | C9: 21 | D9: 348 | E9: 21 | F9: 351 | K9: 0 | L9: 222 | N9: 121 | O9: =COUNTIF($L$7:$L$500,N9) -> 0 | P9: =O9/$Q$4 -> 0 | Q9: =IF(P9=0,0,(P9*((LOG(P9))/LOG(2)))) -> 0 | T9: =N9 -> 121 | U9: =COUNTIF(L7:L13,T9) -> 0 | V9: =U9/(W4-U14) ->  | W9: =IF(V9=0,0,(V9*((LOG(V9))/LOG(2)))) ->  | Y9: =N9 -> 121 | Z9: =COUNTIF(L14:L19,Y9) -> 0 | AA9: =Z9/(AB4-Z14) ->  | AB9: =IF(AA9=0,0,(AA9*((LOG(AA9))/LOG(2)))) ->  | AD9: =N9 -> 121 | AE9: =COUNTIF(L20:L26,AD9) -> 0 | AF9: =AE9/(AG4-AE14) ->  | AG9: =IF(AF9=0,0,(AF9*((LOG(AF9))/LOG(2)))) ->  | AI9: =N9 -> 121 | AJ9: =COUNTIF(L27:L33,AI9) -> 0 | AK9: =AJ9/(AL4-AJ14) ->  | AL9: =IF(AK9=0,0,(AK9*((LOG(AK9))/LOG(2)))) ->  | AN9: =N9 -> 121 | AO9: =COUNTIF(L34:L39,AN9) -> 0 | AP9: =AO9/(AQ4-AO14) ->  | AQ9: =IF(AP9=0,0,(AP9*((LOG(AP9))/LOG(2)))) ->  | AS9: =N9 -> 121 | AT9: =COUNTIF(L40:L46,AS9) -> 0 | AU9: =AT9/(AV4-AT14) ->  | AV9: =IF(AU9=0,0,(AU9*((LOG(AU9))/LOG(2)))) -> 
A10: 21 | B10: 731 | C10: 21 | D10: 736 | E10: 21 | F10: 742 | K10: 0 | L10: 222 | N10: 122 | O10: =COUNTIF($L$7:$L$500,N10) -> 0 | P10: =O10/$Q$4 -> 0 | Q10: =IF(P10=0,0,(P10*((LOG(P10))/LOG(2)))) -> 0 | T10: =N10 -> 122 | U10: =COUNTIF(L7:L13,T10) -> 0 | V10: =U10/(W4-U14) ->  | W10: =IF(V10=0,0,(V10*((LOG(V10))/LOG(2)))) ->  | Y10: =N10 -> 122 | Z10: =COUNTIF(L14:L19,Y10) -> 0 | AA10: =Z10/(AB4-Z14) ->  | AB10: =IF(AA10=0,0,(AA10*((LOG(AA10))/LOG(2)))) ->  | AD10: =N10 -> 122 | AE10: =COUNTIF(L20:L26,AD10) -> 0 | AF10: =AE10/(AG4-AE14) ->  | AG10: =IF(AF10=0,0,(AF10*((LOG(AF10))/LOG(2)))) ->  | AI10: =N10 -> 122 | AJ10: =COUNTIF(L27:L33,AI10) -> 0 | AK10: =AJ10/(AL4-AJ14) ->  | AL10: =IF(AK10=0,0,(AK10*((LOG(AK10))/LOG(2)))) ->  | AN10: =N10 -> 122 | AO10: =COUNTIF(L34:L39,AN10) -> 0 | AP10: =AO10/(AQ4-AO14) ->  | AQ10: =IF(AP10=0,0,(AP10*((LOG(AP10))/LOG(2)))) ->  | AS10: =N10 -> 122 | AT10: =COUNTIF(L40:L46,AS10) -> 0 | AU10: =AT10/(AV4-AT14) ->  | AV10: =IF(AU10=0,0,(AU10*((LOG(AU10))/LOG(2)))) -> 
A11: 21 | B11: 847 | C11: 21 | D11: 850 | E11: 21 | F11: 852 | K11: 0 | L11: 222 | N11: 211 | O11: =COUNTIF($L$7:$L$500,N11) -> 0 | P11: =O11/$Q$4 -> 0 | Q11: =IF(P11=0,0,(P11*((LOG(P11))/LOG(2)))) -> 0 | T11: =N11 -> 211 | U11: =COUNTIF(L7:L13,T11) -> 0 | V11: =U11/(W4-U14) ->  | W11: =IF(V11=0,0,(V11*((LOG(V11))/LOG(2)))) ->  | Y11: =N11 -> 211 | Z11: =COUNTIF(L14:L19,Y11) -> 0 | AA11: =Z11/(AB4-Z14) ->  | AB11: =IF(AA11=0,0,(AA11*((LOG(AA11))/LOG(2)))) ->  | AD11: =N11 -> 211 | AE11: =COUNTIF(L20:L26,AD11) -> 0 | AF11: =AE11/(AG4-AE14) ->  | AG11: =IF(AF11=0,0,(AF11*((LOG(AF11))/LOG(2)))) ->  | AI11: =N11 -> 211 | AJ11: =COUNTIF(L27:L33,AI11) -> 0 | AK11: =AJ11/(AL4-AJ14) ->  | AL11: =IF(AK11=0,0,(AK11*((LOG(AK11))/LOG(2)))) ->  | AN11: =N11 -> 211 | AO11: =COUNTIF(L34:L39,AN11) -> 0 | AP11: =AO11/(AQ4-AO14) ->  | AQ11: =IF(AP11=0,0,(AP11*((LOG(AP11))/LOG(2)))) ->  | AS11: =N11 -> 211 | AT11: =COUNTIF(L40:L46,AS11) -> 0 | AU11: =AT11/(AV4-AT14) ->  | AV11: =IF(AU11=0,0,(AU11*((LOG(AU11))/LOG(2)))) -> 
A12: 21 | B12: 966 | C12: 21 | D12: 971 | E12: 21 | F12: 977 | K12: 0 | L12: 222 | N12: 212 | O12: =COUNTIF($L$7:$L$500,N12) -> 0 | P12: =O12/$Q$4 -> 0 | Q12: =IF(P12=0,0,(P12*((LOG(P12))/LOG(2)))) -> 0 | T12: =N12 -> 212 | U12: =COUNTIF(L7:L13,T12) -> 0 | V12: =U12/(W4-U14) ->  | W12: =IF(V12=0,0,(V12*((LOG(V12))/LOG(2)))) ->  | Y12: =N12 -> 212 | Z12: =COUNTIF(L14:L19,Y12) -> 0 | AA12: =Z12/(AB4-Z14) ->  | AB12: =IF(AA12=0,0,(AA12*((LOG(AA12))/LOG(2)))) ->  | AD12: =N12 -> 212 | AE12: =COUNTIF(L20:L26,AD12) -> 0 | AF12: =AE12/(AG4-AE14) ->  | AG12: =IF(AF12=0,0,(AF12*((LOG(AF12))/LOG(2)))) ->  | AI12: =N12 -> 212 | AJ12: =COUNTIF(L27:L33,AI12) -> 0 | AK12: =AJ12/(AL4-AJ14) ->  | AL12: =IF(AK12=0,0,(AK12*((LOG(AK12))/LOG(2)))) ->  | AN12: =N12 -> 212 | AO12: =COUNTIF(L34:L39,AN12) -> 0 | AP12: =AO12/(AQ4-AO14) ->  | AQ12: =IF(AP12=0,0,(AP12*((LOG(AP12))/LOG(2)))) ->  | AS12: =N12 -> 212 | AT12: =COUNTIF(L40:L46,AS12) -> 0 | AU12: =AT12/(AV4-AT14) ->  | AV12: =IF(AU12=0,0,(AU12*((LOG(AU12))/LOG(2)))) -> 
A13: 21 | B13: 1244 | C13: 21 | D13: 1251 | E13: 21 | F13: 1257 | K13: 0 | L13: 222 | N13: 221 | O13: =COUNTIF($L$7:$L$500,N13) -> 0 | P13: =O13/$Q$4 -> 0 | Q13: =IF(P13=0,0,(P13*((LOG(P13))/LOG(2)))) -> 0 | T13: =N13 -> 221 | U13: =COUNTIF(L7:L13,T13) -> 0 | V13: =U13/(W4-U14) ->  | W13: =IF(V13=0,0,(V13*((LOG(V13))/LOG(2)))) ->  | Y13: =N13 -> 221 | Z13: =COUNTIF(L14:L19,Y13) -> 0 | AA13: =Z13/(AB4-Z14) ->  | AB13: =IF(AA13=0,0,(AA13*((LOG(AA13))/LOG(2)))) ->  | AD13: =N13 -> 221 | AE13: =COUNTIF(L20:L26,AD13) -> 0 | AF13: =AE13/(AG4-AE14) ->  | AG13: =IF(AF13=0,0,(AF13*((LOG(AF13))/LOG(2)))) ->  | AI13: =N13 -> 221 | AJ13: =COUNTIF(L27:L33,AI13) -> 0 | AK13: =AJ13/(AL4-AJ14) ->  | AL13: =IF(AK13=0,0,(AK13*((LOG(AK13))/LOG(2)))) ->  | AN13: =N13 -> 221 | AO13: =COUNTIF(L34:L39,AN13) -> 0 | AP13: =AO13/(AQ4-AO14) ->  | AQ13: =IF(AP13=0,0,(AP13*((LOG(AP13))/LOG(2)))) ->  | AS13: =N13 -> 221 | AT13: =COUNTIF(L40:L46,AS13) -> 0 | AU13: =AT13/(AV4-AT14) ->  | AV13: =IF(AU13=0,0,(AU13*((LOG(AU13))/LOG(2)))) -> 
A14: 21 | B14: 1493 | C14: 21 | D14: 1498 | E14: 21 | F14: 1504 | K14: 0 | L14: 222 | N14: 222 | O14: =COUNTIF($L$7:$L$500,N14) -> 40 | P14: =O14/$Q$4 -> 1 | Q14: =IF(P14=0,0,(P14*((LOG(P14))/LOG(2)))) -> 0 | T14: =N14 -> 222 | U14: =COUNTIF(L7:L13,T14) -> 7 | Y14: =N14 -> 222 | Z14: =COUNTIF(L14:L19,Y14) -> 6 | AD14: =N14 -> 222 | AE14: =COUNTIF(L20:L26,AD14) -> 7 | AI14: =N14 -> 222 | AJ14: =COUNTIF(L27:L33,AI14) -> 7 | AN14: =N14 -> 222 | AO14: =COUNTIF(L34:L39,AN14) -> 6 | AS14: =N14 -> 222 | AT14: =COUNTIF(L40:L46,AS14) -> 7
A15: 21 | B15: 1697 | C15: 21 | D15: 1703 | E15: 21 | F15: 1710 | K15: 0 | L15: 222 | P15: =SUM(P7:P14) -> 1 | Q15: =-SUM(Q7:Q14) -> 0 | V15: =SUM(V7:V14) ->  | W15: =-SUM(W7:W14) ->  | AA15: =SUM(AA7:AA14) ->  | AB15: =-SUM(AB7:AB14) ->  | AF15: =SUM(AF7:AF14) ->  | AG15: =-SUM(AG7:AG14) ->  | AK15: =SUM(AK7:AK14) ->  | AL15: =-SUM(AL7:AL14) ->  | AP15: =SUM(AP7:AP14) ->  | AQ15: =-SUM(AQ7:AQ14) ->  | AU15: =SUM(AU7:AU14) ->  | AV15: =-SUM(AV7:AV14) -> 
A16: 21 | B16: 2000 | C16: 21 | D16: 2002 | E16: 21 | F16: 2006 | K16: 0 | L16: 222 | P16: U= | Q16: =Q15/(LOG(Q4)/LOG(2)) -> 0 | V16: U1= | W16: =W15/(LOG(W4)/LOG(2)) ->  | AA16: U2= | AB16: =AB15/(LOG(AB4)/LOG(2)) ->  | AF16: U3= | AG16: =AG15/(LOG(AG4)/LOG(2)) ->  | AK16: U4= | AL16: =AL15/(LOG(AL4)/LOG(2)) ->  | AP16: U5= | AQ16: =AQ15/(LOG(AQ4)/LOG(2)) ->  | AU16: U6= | AV16: =AV15/(LOG(AV4)/LOG(2)) -> 
A17: 21 | B17: 2224 | C17: 21 | D17: 2231 | E17: 21 | F17: 2232 | K17: 0 | L17: 222
A18: 21 | B18: 2497 | C18: 21 | D18: 2505 | E18: 21 | F18: 2510 | K18: 0 | L18: 222
A19: 21 | B19: 2660 | C19: 21 | D19: 2664 | E19: 21 | F19: 2670 | K19: 0 | L19: 222 | N19: Total Target Seq
A20: 21 | B20: 2862 | C20: 21 | D20: 2865 | E20: 21 | F20: 2872 | K20: 0 | L20: 222 | N20: =COUNTIF(L7:L46,G3) -> 40 | P20: 7 | Q20: 6 | R20: 7 | S20: 7 | T20: 6 | U20: 7
A21: 21 | B21: 3078 | C21: 21 | D21: 3084 | E21: 21 | F21: 3092 | K21: 0 | L21: 222 | P21: % of reinforcement given in 6 equal intervals based on number of trials
A22: 21 | B22: 3273 | C22: 21 | D22: 3280 | E22: 21 | F22: 3286 | K22: 0 | L22: 222 | P22: %_1 | Q22: %_2 | R22: %_3 | S22: %_4 | T22: %_5 | U22: %_6
A23: 21 | B23: 3470 | C23: 21 | D23: 3477 | E23: 21 | F23: 3483 | K23: 0 | L23: 222 | O23: target sequence | P23: =$G$3 -> 222 | Q23: =$G$3 -> 222 | R23: =$G$3 -> 222 | S23: =$G$3 -> 222 | T23: =$G$3 -> 222 | U23: =$G$3 -> 222
A24: 21 | B24: 3839 | C24: 21 | D24: 3847 | E24: 21 | F24: 3855 | K24: 0 | L24: 222 | O24: total reinforcement | P24: =U14 -> 7 | Q24: =Z14 -> 6 | R24: =AE14 -> 7 | S24: =AJ14 -> 7 | T24: =AO14 -> 6 | U24: =AT14 -> 7
A25: 21 | B25: 4051 | C25: 21 | D25: 4059 | E25: 21 | F25: 4065 | K25: 0 | L25: 222 | O25: % target
A26: 21 | B26: 4277 | C26: 21 | D26: 4283 | E26: 21 | F26: 4301 | K26: 0 | L26: 222 | O26: CCRF
A27: 21 | B27: 4816 | C27: 21 | D27: 4823 | E27: 21 | F27: 4830 | K27: 0 | L27: 222 | O27: % CCRf
A28: 21 | B28: 5014 | C28: 21 | D28: 5017 | E28: 21 | F28: 5022 | K28: 0 | L28: 222 | O28: average response rate | P28: =F13/P20 -> 179.5714286 | Q28: =(F19-F13)/Q20 -> 235.5 | R28: =(F26-F19)/R20 -> 233 | S28: =(F33-F26)/S20 -> 254.5714286 | T28: =(F39-F33)/T20 -> 245.6666667 | U28: =(F46-F39)/U20 -> 304.2857143
A29: 21 | B29: 5234 | C29: 21 | D29: 5238 | E29: 21 | F29: 5244 | K29: 0 | L29: 222
A30: 21 | B30: 5488 | C30: 21 | D30: 5493 | E30: 21 | F30: 5499 | K30: 0 | L30: 222
A31: 21 | B31: 5684 | C31: 21 | D31: 5686 | E31: 21 | F31: 5693 | K31: 0 | L31: 222
A32: 21 | B32: 5831 | C32: 21 | D32: 5836 | E32: 21 | F32: 5841 | K32: 0 | L32: 222
A33: 21 | B33: 6072 | C33: 21 | D33: 6077 | E33: 21 | F33: 6083 | K33: 0 | L33: 222
A34: 21 | B34: 6266 | C34: 21 | D34: 6271 | E34: 21 | F34: 6277 | K34: 0 | L34: 222
A35: 21 | B35: 6584 | C35: 21 | D35: 6596 | E35: 21 | F35: 6601 | K35: 0 | L35: 222
A36: 21 | B36: 6759 | C36: 21 | D36: 6770 | E36: 21 | F36: 6777 | K36: 0 | L36: 222
A37: 21 | B37: 7113 | C37: 21 | D37: 7118 | E37: 21 | F37: 7124 | K37: 0 | L37: 222
A38: 21 | B38: 7359 | C38: 21 | D38: 7361 | E38: 21 | F38: 7367 | K38: 0 | L38: 222
A39: 21 | B39: 7527 | C39: 21 | D39: 7551 | E39: 21 | F39: 7557 | K39: 0 | L39: 222
A40: 21 | B40: 7802 | C40: 21 | D40: 7806 | E40: 21 | F40: 7812 | K40: 0 | L40: 222
A41: 21 | B41: 8064 | C41: 21 | D41: 8069 | E41: 21 | F41: 8075 | K41: 0 | L41: 222
A42: 21 | B42: 8408 | C42: 21 | D42: 8416 | E42: 21 | F42: 8422 | K42: 0 | L42: 222
A43: 21 | B43: 8668 | C43: 21 | D43: 8670 | E43: 21 | F43: 8686 | K43: 0 | L43: 222
A44: 21 | B44: 9068 | C44: 21 | D44: 9074 | E44: 21 | F44: 9079 | K44: 0 | L44: 222
A45: 21 | B45: 9324 | C45: 21 | D45: 9327 | E45: 21 | F45: 9333 | K45: 0 | L45: 222
A46: 21 | B46: 9677 | C46: 21 | D46: 9682 | E46: 21 | F46: 9687 | K46: 1 | L46: 222

Sheet !M412A4D.UST
A1: Report for:!M412A4D.UST
A2: Date: | B2: <date>
A3: Hen: | B3: <hen> | F3: Correct Sequence | G3: =Start!J2 -> 222 | P3: Total Sequences in Data | Q3: =4994-COUNTBLANK(L7:L5000) -> 41 | V3: Total Sequences in Block Data | W3: =COUNTA(L7:L13) -> 7 | AA3: Total Sequences in Block Data | AB3: =COUNTA(L14:L20) -> 7 | AF3: Total Sequences in Block Data | AG3: =COUNTA(L21:L26) -> 6 | AK3: Total Sequences in Block Data | AL3: =COUNTA(L27:L33) -> 7 | AP3: Total Sequences in Block Data | AQ3: =COUNTA(L34:L40) -> 7 | AU3: Total Sequences in Block Data | AV3: =COUNTA(L41:L47) -> 7
P4: Total Sequences in Summary | Q4: =SUM(O7:O14) -> 41 | V4: Total Sequences in Block Summary | W4: =SUM(U7:U14) -> 7 | AA4: Total Sequences in Block Summary | AB4: =SUM(Z7:Z14) -> 7 | AF4: Total Sequences in Block Summary | AG4: =SUM(AE7:AE14) -> 6 | AK4: Total Sequences in Block Summary | AL4: =SUM(AJ7:AJ14) -> 7 | AP4: Total Sequences in Block Summary | AQ4: =SUM(AO7:AO14) -> 7 | AU4: Total Sequences in Block Summary | AV4: =SUM(AT7:AT14) -> 7
T5: Block 1 | Y5: Block 2 | AD5: Block 3 | AI5: Block 4 | AN5: Block 5 | AS5: Block 6
A6: Sequence Component 1 | B6: Time 1 | C6: Sequence Component 2 | D6: Time 2 | E6: Sequence Component 3 | F6: Time 3 | G6: Sequence Component 4 | H6: Time 4 | I6: Sequence Component 5 | J6: Time 5 | K6: Correct? 0=No 1=Yes | L6: Sequence | N6: Frequency | P6: Relative Frequency | Q6: Variability | T6: Frequency | V6: Relative Frequency | W6: Variability | Y6: Frequency | AA6: Relative Frequency | AB6: Variability | AD6: Frequency | AF6: Relative Frequency | AG6: Variability | AI6: Frequency | AK6: Relative Frequency | AL6: Variability | AN6: Frequency | AP6: Relative Frequency | AQ6: Variability | AS6: Frequency | AU6: Relative Frequency | AV6: Variability
A7: 12 | B7: 15 | C7: 23 | D7: 27 | E7: 23 | F7: 34 | K7: 0 | L7: 122 | N7: 111 | O7: =COUNTIF($L$7:$L$500,N7) -> 0 | P7: =O7/$Q$4 -> 0 | Q7: =IF(P7=0,0,(P7*((LOG(P7))/LOG(2)))) -> 0 | T7: =N7 -> 111 | U7: =COUNTIF(L7:L13,T7) -> 0 | V7: =U7/(W4-U14) -> 0 | W7: =IF(V7=0,0,(V7*((LOG(V7))/LOG(2)))) -> 0 | Y7: =N7 -> 111 | Z7: =COUNTIF(L14:L20,Y7) -> 0 | AA7: =Z7/(AB4-Z14) ->  | AB7: =IF(AA7=0,0,(AA7*((LOG(AA7))/LOG(2)))) ->  | AD7: =N7 -> 111 | AE7: =COUNTIF(L21:L26,AD7) -> 0 | AF7: =AE7/(AG4-AE14) ->  | AG7: =IF(AF7=0,0,(AF7*((LOG(AF7))/LOG(2)))) ->  | AI7: =N7 -> 111 | AJ7: =COUNTIF(L27:L33,AI7) -> 0 | AK7: =AJ7/(AL4-AJ14) ->  | AL7: =IF(AK7=0,0,(AK7*((LOG(AK7))/LOG(2)))) ->  | AN7: =N7 -> 111 | AO7: =COUNTIF(L34:L40,AN7) -> 0 | AP7: =AO7/(AQ4-AO14) ->  | AQ7: =IF(AP7=0,0,(AP7*((LOG(AP7))/LOG(2)))) ->  | AS7: =N7 -> 111 | AT7: =COUNTIF(L41:L47,AS7) -> 0 | AU7: =AT7/(AV4-AT14) ->  | AV7: =IF(AU7=0,0,(AU7*((LOG(AU7))/LOG(2)))) -> 
A8: 21 | B8: 132 | C8: 21 | D8: 141 | E8: 21 | F8: 152 | K8: 0 | L8: 222 | N8: 112 | O8: =COUNTIF($L$7:$L$500,N8) -> 0 | P8: =O8/$Q$4 -> 0 | Q8: =IF(P8=0,0,(P8*((LOG(P8))/LOG(2)))) -> 0 | T8: =N8 -> 112 | U8: =COUNTIF(L7:L13,T8) -> 0 | V8: =U8/(W4-U14) -> 0 | W8: =IF(V8=0,0,(V8*((LOG(V8))/LOG(2)))) -> 0 | Y8: =N8 -> 112 | Z8: =COUNTIF(L14:L20,Y8) -> 0 | AA8: =Z8/(AB4-Z14) ->  | AB8: =IF(AA8=0,0,(AA8*((LOG(AA8))/LOG(2)))) ->  | AD8: =N8 -> 112 | AE8: =COUNTIF(L21:L26,AD8) -> 0 | AF8: =AE8/(AG4-AE14) ->  | AG8: =IF(AF8=0,0,(AF8*((LOG(AF8))/LOG(2)))) ->  | AI8: =N8 -> 112 | AJ8: =COUNTIF(L27:L33,AI8) -> 0 | AK8: =AJ8/(AL4-AJ14) ->  | AL8: =IF(AK8=0,0,(AK8*((LOG(AK8))/LOG(2)))) ->  | AN8: =N8 -> 112 | AO8: =COUNTIF(L34:L40,AN8) -> 0 | AP8: =AO8/(AQ4-AO14) ->  | AQ8: =IF(AP8=0,0,(AP8*((LOG(AP8))/LOG(2)))) ->  | AS8: =N8 -> 112 | AT8: =COUNTIF(L41:L47,AS8) -> 0 | AU8: =AT8/(AV4-AT14) ->  | AV8: =IF(AU8=0,0,(AU8*((LOG(AU8))/LOG(2)))) -> 
A9: 21 | B9: 299 | C9: 21 | D9: 305 | E9: 21 | F9: 310 | K9: 0 | L9: 222 | N9: 121 | O9: =COUNTIF($L$7:$L$500,N9) -> 0 | P9: =O9/$Q$4 -> 0 | Q9: =IF(P9=0,0,(P9*((LOG(P9))/LOG(2)))) -> 0 | T9: =N9 -> 121 | U9: =COUNTIF(L7:L13,T9) -> 0 | V9: =U9/(W4-U14) -> 0 | W9: =IF(V9=0,0,(V9*((LOG(V9))/LOG(2)))) -> 0 | Y9: =N9 -> 121 | Z9: =COUNTIF(L14:L20,Y9) -> 0 | AA9: =Z9/(AB4-Z14) ->  | AB9: =IF(AA9=0,0,(AA9*((LOG(AA9))/LOG(2)))) ->  | AD9: =N9 -> 121 | AE9: =COUNTIF(L21:L26,AD9) -> 0 | AF9: =AE9/(AG4-AE14) ->  | AG9: =IF(AF9=0,0,(AF9*((LOG(AF9))/LOG(2)))) ->  | AI9: =N9 -> 121 | AJ9: =COUNTIF(L27:L33,AI9) -> 0 | AK9: =AJ9/(AL4-AJ14) ->  | AL9: =IF(AK9=0,0,(AK9*((LOG(AK9))/LOG(2)))) ->  | AN9: =N9 -> 121 | AO9: =COUNTIF(L34:L40,AN9) -> 0 | AP9: =AO9/(AQ4-AO14) ->  | AQ9: =IF(AP9=0,0,(AP9*((LOG(AP9))/LOG(2)))) ->  | AS9: =N9 -> 121 | AT9: =COUNTIF(L41:L47,AS9) -> 0 | AU9: =AT9/(AV4-AT14) ->  | AV9: =IF(AU9=0,0,(AU9*((LOG(AU9))/LOG(2)))) -> 
A10: 21 | B10: 493 | C10: 21 | D10: 499 | E10: 21 | F10: 508 | K10: 0 | L10: 222 | N10: 122 | O10: =COUNTIF($L$7:$L$500,N10) -> 1 | P10: =O10/$Q$4 -> 0.0243902439 | Q10: =IF(P10=0,0,(P10*((LOG(P10))/LOG(2)))) -> -0.1306720001 | T10: =N10 -> 122 | U10: =COUNTIF(L7:L13,T10) -> 1 | V10: =U10/(W4-U14) -> 1 | W10: =IF(V10=0,0,(V10*((LOG(V10))/LOG(2)))) -> 0 | Y10: =N10 -> 122 | Z10: =COUNTIF(L14:L20,Y10) -> 0 | AA10: =Z10/(AB4-Z14) ->  | AB10: =IF(AA10=0,0,(AA10*((LOG(AA10))/LOG(2)))) ->  | AD10: =N10 -> 122 | AE10: =COUNTIF(L21:L26,AD10) -> 0 | AF10: =AE10/(AG4-AE14) ->  | AG10: =IF(AF10=0,0,(AF10*((LOG(AF10))/LOG(2)))) ->  | AI10: =N10 -> 122 | AJ10: =COUNTIF(L27:L33,AI10) -> 0 | AK10: =AJ10/(AL4-AJ14) ->  | AL10: =IF(AK10=0,0,(AK10*((LOG(AK10))/LOG(2)))) ->  | AN10: =N10 -> 122 | AO10: =COUNTIF(L34:L40,AN10) -> 0 | AP10: =AO10/(AQ4-AO14) ->  | AQ10: =IF(AP10=0,0,(AP10*((LOG(AP10))/LOG(2)))) ->  | AS10: =N10 -> 122 | AT10: =COUNTIF(L41:L47,AS10) -> 0 | AU10: =AT10/(AV4-AT14) ->  | AV10: =IF(AU10=0,0,(AU10*((LOG(AU10))/LOG(2)))) -> 
A11: 21 | B11: 636 | C11: 21 | D11: 641 | E11: 21 | F11: 650 | K11: 0 | L11: 222 | N11: 211 | O11: =COUNTIF($L$7:$L$500,N11) -> 0 | P11: =O11/$Q$4 -> 0 | Q11: =IF(P11=0,0,(P11*((LOG(P11))/LOG(2)))) -> 0 | T11: =N11 -> 211 | U11: =COUNTIF(L7:L13,T11) -> 0 | V11: =U11/(W4-U14) -> 0 | W11: =IF(V11=0,0,(V11*((LOG(V11))/LOG(2)))) -> 0 | Y11: =N11 -> 211 | Z11: =COUNTIF(L14:L20,Y11) -> 0 | AA11: =Z11/(AB4-Z14) ->  | AB11: =IF(AA11=0,0,(AA11*((LOG(AA11))/LOG(2)))) ->  | AD11: =N11 -> 211 | AE11: =COUNTIF(L21:L26,AD11) -> 0 | AF11: =AE11/(AG4-AE14) ->  | AG11: =IF(AF11=0,0,(AF11*((LOG(AF11))/LOG(2)))) ->  | AI11: =N11 -> 211 | AJ11: =COUNTIF(L27:L33,AI11) -> 0 | AK11: =AJ11/(AL4-AJ14) ->  | AL11: =IF(AK11=0,0,(AK11*((LOG(AK11))/LOG(2)))) ->  | AN11: =N11 -> 211 | AO11: =COUNTIF(L34:L40,AN11) -> 0 | AP11: =AO11/(AQ4-AO14) ->  | AQ11: =IF(AP11=0,0,(AP11*((LOG(AP11))/LOG(2)))) ->  | AS11: =N11 -> 211 | AT11: =COUNTIF(L41:L47,AS11) -> 0 | AU11: =AT11/(AV4-AT14) ->  | AV11: =IF(AU11=0,0,(AU11*((LOG(AU11))/LOG(2)))) -> 
A12: 21 | B12: 809 | C12: 21 | D12: 815 | E12: 21 | F12: 819 | K12: 0 | L12: 222 | N12: 212 | O12: =COUNTIF($L$7:$L$500,N12) -> 0 | P12: =O12/$Q$4 -> 0 | Q12: =IF(P12=0,0,(P12*((LOG(P12))/LOG(2)))) -> 0 | T12: =N12 -> 212 | U12: =COUNTIF(L7:L13,T12) -> 0 | V12: =U12/(W4-U14) -> 0 | W12: =IF(V12=0,0,(V12*((LOG(V12))/LOG(2)))) -> 0 | Y12: =N12 -> 212 | Z12: =COUNTIF(L14:L20,Y12) -> 0 | AA12: =Z12/(AB4-Z14) ->  | AB12: =IF(AA12=0,0,(AA12*((LOG(AA12))/LOG(2)))) ->  | AD12: =N12 -> 212 | AE12: =COUNTIF(L21:L26,AD12) -> 0 | AF12: =AE12/(AG4-AE14) ->  | AG12: =IF(AF12=0,0,(AF12*((LOG(AF12))/LOG(2)))) ->  | AI12: =N12 -> 212 | AJ12: =COUNTIF(L27:L33,AI12) -> 0 | AK12: =AJ12/(AL4-AJ14) ->  | AL12: =IF(AK12=0,0,(AK12*((LOG(AK12))/LOG(2)))) ->  | AN12: =N12 -> 212 | AO12: =COUNTIF(L34:L40,AN12) -> 0 | AP12: =AO12/(AQ4-AO14) ->  | AQ12: =IF(AP12=0,0,(AP12*((LOG(AP12))/LOG(2)))) ->  | AS12: =N12 -> 212 | AT12: =COUNTIF(L41:L47,AS12) -> 0 | AU12: =AT12/(AV4-AT14) ->  | AV12: =IF(AU12=0,0,(AU12*((LOG(AU12))/LOG(2)))) -> 
A13: 21 | B13: 1070 | C13: 21 | D13: 1074 | E13: 21 | F13: 1080 | K13: 0 | L13: 222 | N13: 221 | O13: =COUNTIF($L$7:$L$500,N13) -> 0 | P13: =O13/$Q$4 -> 0 | Q13: =IF(P13=0,0,(P13*((LOG(P13))/LOG(2)))) -> 0 | T13: =N13 -> 221 | U13: =COUNTIF(L7:L13,T13) -> 0 | V13: =U13/(W4-U14) -> 0 | W13: =IF(V13=0,0,(V13*((LOG(V13))/LOG(2)))) -> 0 | Y13: =N13 -> 221 | Z13: =COUNTIF(L14:L20,Y13) -> 0 | AA13: =Z13/(AB4-Z14) ->  | AB13: =IF(AA13=0,0,(AA13*((LOG(AA13))/LOG(2)))) ->  | AD13: =N13 -> 221 | AE13: =COUNTIF(L21:L26,AD13) -> 0 | AF13: =AE13/(AG4-AE14) ->  | AG13: =IF(AF13=0,0,(AF13*((LOG(AF13))/LOG(2)))) ->  | AI13: =N13 -> 221 | AJ13: =COUNTIF(L27:L33,AI13) -> 0 | AK13: =AJ13/(AL4-AJ14) ->  | AL13: =IF(AK13=0,0,(AK13*((LOG(AK13))/LOG(2)))) ->  | AN13: =N13 -> 221 | AO13: =COUNTIF(L34:L40,AN13) -> 0 | AP13: =AO13/(AQ4-AO14) ->  | AQ13: =IF(AP13=0,0,(AP13*((LOG(AP13))/LOG(2)))) ->  | AS13: =N13 -> 221 | AT13: =COUNTIF(L41:L47,AS13) -> 0 | AU13: =AT13/(AV4-AT14) ->  | AV13: =IF(AU13=0,0,(AU13*((LOG(AU13))/LOG(2)))) -> 
A14: 21 | B14: 1265 | C14: 21 | D14: 1270 | E14: 21 | F14: 1276 | K14: 0 | L14: 222 | N14: 222 | O14: =COUNTIF($L$7:$L$500,N14) -> 40 | P14: =O14/$Q$4 -> 0.9756097561 | Q14: =IF(P14=0,0,(P14*((LOG(P14))/LOG(2)))) -> -0.03475503388 | T14: =N14 -> 222 | U14: =COUNTIF(L7:L13,T14) -> 6 | Y14: =N14 -> 222 | Z14: =COUNTIF(L14:L20,Y14) -> 7 | AD14: =N14 -> 222 | AE14: =COUNTIF(L21:L26,AD14) -> 6 | AI14: =N14 -> 222 | AJ14: =COUNTIF(L27:L33,AI14) -> 7 | AN14: =N14 -> 222 | AO14: =COUNTIF(L34:L40,AN14) -> 7 | AS14: =N14 -> 222 | AT14: =COUNTIF(L41:L47,AS14) -> 7
A15: 21 | B15: 1484 | C15: 21 | D15: 1487 | E15: 21 | F15: 1494 | K15: 0 | L15: 222 | P15: =SUM(P7:P14) -> 1 | Q15: =-SUM(Q7:Q14) -> 0.165427034 | V15: =SUM(V7:V14) -> 1 | W15: =-SUM(W7:W14) -> 0 | AA15: =SUM(AA7:AA14) ->  | AB15: =-SUM(AB7:AB14) ->  | AF15: =SUM(AF7:AF14) ->  | AG15: =-SUM(AG7:AG14) ->  | AK15: =SUM(AK7:AK14) ->  | AL15: =-SUM(AL7:AL14) ->  | AP15: =SUM(AP7:AP14) ->  | AQ15: =-SUM(AQ7:AQ14) ->  | AU15: =SUM(AU7:AU14) ->  | AV15: =-SUM(AV7:AV14) -> 
A16: 21 | B16: 1669 | C16: 21 | D16: 1680 | E16: 21 | F16: 1686 | K16: 0 | L16: 222 | P16: U= | Q16: =Q15/(LOG(Q4)/LOG(2)) -> 0.03087735478 | V16: U1= | W16: =W15/(LOG(W4)/LOG(2)) -> 0 | AA16: U2= | AB16: =AB15/(LOG(AB4)/LOG(2)) ->  | AF16: U3= | AG16: =AG15/(LOG(AG4)/LOG(2)) ->  | AK16: U4= | AL16: =AL15/(LOG(AL4)/LOG(2)) ->  | AP16: U5= | AQ16: =AQ15/(LOG(AQ4)/LOG(2)) ->  | AU16: U6= | AV16: =AV15/(LOG(AV4)/LOG(2)) -> 
A17: 21 | B17: 1804 | C17: 21 | D17: 1816 | E17: 21 | F17: 1824 | K17: 0 | L17: 222
A18: 21 | B18: 1962 | C18: 21 | D18: 1968 | E18: 21 | F18: 1975 | K18: 0 | L18: 222
A19: 21 | B19: 2198 | C19: 21 | D19: 2205 | E19: 21 | F19: 2210 | K19: 0 | L19: 222 | N19: Total Target Seq
A20: 21 | B20: 2335 | C20: 21 | D20: 2339 | E20: 21 | F20: 2344 | K20: 0 | L20: 222 | N20: =COUNTIF(L7:L47,G3) -> 40 | P20: 7 | Q20: 7 | R20: 6 | S20: 7 | T20: 7 | U20: 7
A21: 21 | B21: 2570 | C21: 21 | D21: 2576 | E21: 21 | F21: 2582 | K21: 0 | L21: 222 | P21: % of reinforcement given in 6 equal intervals based on number of trials
A22: 21 | B22: 2771 | C22: 21 | D22: 2776 | E22: 21 | F22: 2783 | K22: 0 | L22: 222 | P22: %_1 | Q22: %_2 | R22: %_3 | S22: %_4 | T22: %_5 | U22: %_6
A23: 21 | B23: 3055 | C23: 21 | D23: 3061 | E23: 21 | F23: 3067 | K23: 0 | L23: 222 | O23: target sequence | P23: =$G$3 -> 222 | Q23: =$G$3 -> 222 | R23: =$G$3 -> 222 | S23: =$G$3 -> 222 | T23: =$G$3 -> 222 | U23: =$G$3 -> 222
A24: 21 | B24: 3201 | C24: 21 | D24: 3209 | E24: 21 | F24: 3215 | K24: 0 | L24: 222 | O24: total reinforcement | P24: =U14 -> 6 | Q24: =Z14 -> 7 | R24: =AE14 -> 6 | S24: =AJ14 -> 7 | T24: =AO14 -> 7 | U24: =AT14 -> 7
A25: 21 | B25: 3353 | C25: 21 | D25: 3360 | E25: 21 | F25: 3367 | K25: 0 | L25: 222 | O25: % target
A26: 21 | B26: 3551 | C26: 21 | D26: 3557 | E26: 21 | F26: 3564 | K26: 0 | L26: 222 | O26: CCRF
A27: 21 | B27: 3714 | C27: 21 | D27: 3720 | E27: 21 | F27: 3727 | K27: 0 | L27: 222 | O27: % CCRf
A28: 21 | B28: 3995 | C28: 21 | D28: 4025 | E28: 21 | F28: 4031 | K28: 0 | L28: 222 | O28: average response rate | P28: =F13/P20 -> 154.2857143 | Q28: =(F20-F13)/Q20 -> 180.5714286 | R28: =(F26-F20)/R20 -> 203.3333333 | S28: =(F33-F26)/S20 -> 185.4285714 | T28: =(F40-F33)/T20 -> 176.4285714 | U28: =(F47-F40)/U20 -> 252.1428571
A29: 21 | B29: 4197 | C29: 21 | D29: 4204 | E29: 21 | F29: 4210 | K29: 0 | L29: 222
A30: 21 | B30: 4416 | C30: 21 | D30: 4421 | E30: 21 | F30: 4427 | K30: 0 | L30: 222
A31: 21 | B31: 4562 | C31: 21 | D31: 4565 | E31: 21 | F31: 4570 | K31: 0 | L31: 222
A32: 21 | B32: 4696 | C32: 21 | D32: 4702 | E32: 21 | F32: 4707 | K32: 0 | L32: 222
A33: 21 | B33: 4837 | C33: 21 | D33: 4852 | E33: 21 | F33: 4862 | K33: 0 | L33: 222
A34: 21 | B34: 5008 | C34: 21 | D34: 5012 | E34: 21 | F34: 5018 | K34: 0 | L34: 222
A35: 21 | B35: 5176 | C35: 21 | D35: 5180 | E35: 21 | F35: 5182 | K35: 0 | L35: 222
A36: 21 | B36: 5377 | C36: 21 | D36: 5391 | E36: 21 | F36: 5410 | K36: 0 | L36: 222
A37: 21 | B37: 5612 | C37: 21 | D37: 5617 | E37: 21 | F37: 5625 | K37: 0 | L37: 222
A38: 21 | B38: 5754 | C38: 21 | D38: 5761 | E38: 21 | F38: 5767 | K38: 0 | L38: 222
A39: 21 | B39: 5910 | C39: 21 | D39: 5915 | E39: 21 | F39: 5920 | K39: 0 | L39: 222
A40: 21 | B40: 6082 | C40: 21 | D40: 6092 | E40: 21 | F40: 6097 | K40: 0 | L40: 222
A41: 21 | B41: 6397 | C41: 21 | D41: 6404 | E41: 21 | F41: 6409 | K41: 0 | L41: 222
A42: 21 | B42: 6605 | C42: 21 | D42: 6611 | E42: 21 | F42: 6616 | K42: 0 | L42: 222
A43: 21 | B43: 6797 | C43: 21 | D43: 6803 | E43: 21 | F43: 6808 | K43: 0 | L43: 222
A44: 21 | B44: 7061 | C44: 21 | D44: 7068 | E44: 21 | F44: 7074 | K44: 0 | L44: 222
A45: 21 | B45: 7296 | C45: 21 | D45: 7308 | E45: 21 | F45: 7321 | K45: 0 | L45: 222
A46: 21 | B46: 7581 | C46: 21 | D46: 7586 | E46: 21 | F46: 7601 | K46: 0 | L46: 222
A47: 21 | B47: 7843 | C47: 21 | D47: 7852 | E47: 21 | F47: 7862 | K47: 1 | L47: 222

Sheet !M413A3D.UST
A1: Report for:!M413A3D.UST
A2: Date: | B2: <date>
A3: Hen: | B3: <hen> | F3: Correct Sequence | G3: =Start!J2 -> 222 | P3: Total Sequences in Data | Q3: =4994-COUNTBLANK(L7:L5000) -> 41 | V3: Total Sequences in Block Data | W3: =COUNTA(L7:L13) -> 7 | AA3: Total Sequences in Block Data | AB3: =COUNTA(L14:L20) -> 7 | AF3: Total Sequences in Block Data | AG3: =COUNTA(L21:L26) -> 6 | AK3: Total Sequences in Block Data | AL3: =COUNTA(L27:L33) -> 7 | AP3: Total Sequences in Block Data | AQ3: =COUNTA(L34:L40) -> 7 | AU3: Total Sequences in Block Data | AV3: =COUNTA(L41:L47) -> 7
P4: Total Sequences in Summary | Q4: =SUM(O7:O14) -> 41 | V4: Total Sequences in Block Summary | W4: =SUM(U7:U14) -> 7 | AA4: Total Sequences in Block Summary | AB4: =SUM(Z7:Z14) -> 7 | AF4: Total Sequences in Block Summary | AG4: =SUM(AE7:AE14) -> 6 | AK4: Total Sequences in Block Summary | AL4: =SUM(AJ7:AJ14) -> 7 | AP4: Total Sequences in Block Summary | AQ4: =SUM(AO7:AO14) -> 7 | AU4: Total Sequences in Block Summary | AV4: =SUM(AT7:AT14) -> 7
T5: Block 1 | Y5: Block 2 | AD5: Block 3 | AI5: Block 4 | AN5: Block 5 | AS5: Block 6
A6: Sequence Component 1 | B6: Time 1 | C6: Sequence Component 2 | D6: Time 2 | E6: Sequence Component 3 | F6: Time 3 | G6: Sequence Component 4 | H6: Time 4 | I6: Sequence Component 5 | J6: Time 5 | K6: Correct? 0=No 1=Yes | L6: Sequence | N6: Frequency | P6: Relative Frequency | Q6: Variability | T6: Frequency | V6: Relative Frequency | W6: Variability | Y6: Frequency | AA6: Relative Frequency | AB6: Variability | AD6: Frequency | AF6: Relative Frequency | AG6: Variability | AI6: Frequency | AK6: Relative Frequency | AL6: Variability | AN6: Frequency | AP6: Relative Frequency | AQ6: Variability | AS6: Frequency | AU6: Relative Frequency | AV6: Variability
A7: 12 | B7: 14 | C7: 23 | D7: 21 | E7: 23 | F7: 29 | K7: 0 | L7: 122 | N7: 111 | O7: =COUNTIF($L$7:$L$500,N7) -> 0 | P7: =O7/$Q$4 -> 0 | Q7: =IF(P7=0,0,(P7*((LOG(P7))/LOG(2)))) -> 0 | T7: =N7 -> 111 | U7: =COUNTIF(L7:L13,T7) -> 0 | V7: =U7/(W4-U14) -> 0 | W7: =IF(V7=0,0,(V7*((LOG(V7))/LOG(2)))) -> 0 | Y7: =N7 -> 111 | Z7: =COUNTIF(L14:L20,Y7) -> 0 | AA7: =Z7/(AB4-Z14) ->  | AB7: =IF(AA7=0,0,(AA7*((LOG(AA7))/LOG(2)))) ->  | AD7: =N7 -> 111 | AE7: =COUNTIF(L21:L26,AD7) -> 0 | AF7: =AE7/(AG4-AE14) ->  | AG7: =IF(AF7=0,0,(AF7*((LOG(AF7))/LOG(2)))) ->  | AI7: =N7 -> 111 | AJ7: =COUNTIF(L27:L33,AI7) -> 0 | AK7: =AJ7/(AL4-AJ14) ->  | AL7: =IF(AK7=0,0,(AK7*((LOG(AK7))/LOG(2)))) ->  | AN7: =N7 -> 111 | AO7: =COUNTIF(L34:L40,AN7) -> 0 | AP7: =AO7/(AQ4-AO14) ->  | AQ7: =IF(AP7=0,0,(AP7*((LOG(AP7))/LOG(2)))) ->  | AS7: =N7 -> 111 | AT7: =COUNTIF(L41:L47,AS7) -> 0 | AU7: =AT7/(AV4-AT14) ->  | AV7: =IF(AU7=0,0,(AU7*((LOG(AU7))/LOG(2)))) -> 
A8: 21 | B8: 128 | C8: 21 | D8: 133 | E8: 21 | F8: 138 | K8: 0 | L8: 222 | N8: 112 | O8: =COUNTIF($L$7:$L$500,N8) -> 0 | P8: =O8/$Q$4 -> 0 | Q8: =IF(P8=0,0,(P8*((LOG(P8))/LOG(2)))) -> 0 | T8: =N8 -> 112 | U8: =COUNTIF(L7:L13,T8) -> 0 | V8: =U8/(W4-U14) -> 0 | W8: =IF(V8=0,0,(V8*((LOG(V8))/LOG(2)))) -> 0 | Y8: =N8 -> 112 | Z8: =COUNTIF(L14:L20,Y8) -> 0 | AA8: =Z8/(AB4-Z14) ->  | AB8: =IF(AA8=0,0,(AA8*((LOG(AA8))/LOG(2)))) ->  | AD8: =N8 -> 112 | AE8: =COUNTIF(L21:L26,AD8) -> 0 | AF8: =AE8/(AG4-AE14) ->  | AG8: =IF(AF8=0,0,(AF8*((LOG(AF8))/LOG(2)))) ->  | AI8: =N8 -> 112 | AJ8: =COUNTIF(L27:L33,AI8) -> 0 | AK8: =AJ8/(AL4-AJ14) ->  | AL8: =IF(AK8=0,0,(AK8*((LOG(AK8))/LOG(2)))) ->  | AN8: =N8 -> 112 | AO8: =COUNTIF(L34:L40,AN8) -> 0 | AP8: =AO8/(AQ4-AO14) ->  | AQ8: =IF(AP8=0,0,(AP8*((LOG(AP8))/LOG(2)))) ->  | AS8: =N8 -> 112 | AT8: =COUNTIF(L41:L47,AS8) -> 0 | AU8: =AT8/(AV4-AT14) ->  | AV8: =IF(AU8=0,0,(AU8*((LOG(AU8))/LOG(2)))) -> 
A9: 21 | B9: 311 | C9: 21 | D9: 315 | E9: 21 | F9: 321 | K9: 0 | L9: 222 | N9: 121 | O9: =COUNTIF($L$7:$L$500,N9) -> 0 | P9: =O9/$Q$4 -> 0 | Q9: =IF(P9=0,0,(P9*((LOG(P9))/LOG(2)))) -> 0 | T9: =N9 -> 121 | U9: =COUNTIF(L7:L13,T9) -> 0 | V9: =U9/(W4-U14) -> 0 | W9: =IF(V9=0,0,(V9*((LOG(V9))/LOG(2)))) -> 0 | Y9: =N9 -> 121 | Z9: =COUNTIF(L14:L20,Y9) -> 0 | AA9: =Z9/(AB4-Z14) ->  | AB9: =IF(AA9=0,0,(AA9*((LOG(AA9))/LOG(2)))) ->  | AD9: =N9 -> 121 | AE9: =COUNTIF(L21:L26,AD9) -> 0 | AF9: =AE9/(AG4-AE14) ->  | AG9: =IF(AF9=0,0,(AF9*((LOG(AF9))/LOG(2)))) ->  | AI9: =N9 -> 121 | AJ9: =COUNTIF(L27:L33,AI9) -> 0 | AK9: =AJ9/(AL4-AJ14) ->  | AL9: =IF(AK9=0,0,(AK9*((LOG(AK9))/LOG(2)))) ->  | AN9: =N9 -> 121 | AO9: =COUNTIF(L34:L40,AN9) -> 0 | AP9: =AO9/(AQ4-AO14) ->  | AQ9: =IF(AP9=0,0,(AP9*((LOG(AP9))/LOG(2)))) ->  | AS9: =N9 -> 121 | AT9: =COUNTIF(L41:L47,AS9) -> 0 | AU9: =AT9/(AV4-AT14) ->  | AV9: =IF(AU9=0,0,(AU9*((LOG(AU9))/LOG(2)))) -> 
A10: 21 | B10: 466 | C10: 21 | D10: 470 | E10: 21 | F10: 476 | K10: 0 | L10: 222 | N10: 122 | O10: =COUNTIF($L$7:$L$500,N10) -> 1 | P10: =O10/$Q$4 -> 0.0243902439 | Q10: =IF(P10=0,0,(P10*((LOG(P10))/LOG(2)))) -> -0.1306720001 | T10: =N10 -> 122 | U10: =COUNTIF(L7:L13,T10) -> 1 | V10: =U10/(W4-U14) -> 1 | W10: =IF(V10=0,0,(V10*((LOG(V10))/LOG(2)))) -> 0 | Y10: =N10 -> 122 | Z10: =COUNTIF(L14:L20,Y10) -> 0 | AA10: =Z10/(AB4-Z14) ->  | AB10: =IF(AA10=0,0,(AA10*((LOG(AA10))/LOG(2)))) ->  | AD10: =N10 -> 122 | AE10: =COUNTIF(L21:L26,AD10) -> 0 | AF10: =AE10/(AG4-AE14) ->  | AG10: =IF(AF10=0,0,(AF10*((LOG(AF10))/LOG(2)))) ->  | AI10: =N10 -> 122 | AJ10: =COUNTIF(L27:L33,AI10) -> 0 | AK10: =AJ10/(AL4-AJ14) ->  | AL10: =IF(AK10=0,0,(AK10*((LOG(AK10))/LOG(2)))) ->  | AN10: =N10 -> 122 | AO10: =COUNTIF(L34:L40,AN10) -> 0 | AP10: =AO10/(AQ4-AO14) ->  | AQ10: =IF(AP10=0,0,(AP10*((LOG(AP10))/LOG(2)))) ->  | AS10: =N10 -> 122 | AT10: =COUNTIF(L41:L47,AS10) -> 0 | AU10: =AT10/(AV4-AT14) ->  | AV10: =IF(AU10=0,0,(AU10*((LOG(AU10))/LOG(2)))) -> 
A11: 21 | B11: 589 | C11: 21 | D11: 595 | E11: 21 | F11: 605 | K11: 0 | L11: 222 | N11: 211 | O11: =COUNTIF($L$7:$L$500,N11) -> 0 | P11: =O11/$Q$4 -> 0 | Q11: =IF(P11=0,0,(P11*((LOG(P11))/LOG(2)))) -> 0 | T11: =N11 -> 211 | U11: =COUNTIF(L7:L13,T11) -> 0 | V11: =U11/(W4-U14) -> 0 | W11: =IF(V11=0,0,(V11*((LOG(V11))/LOG(2)))) -> 0 | Y11: =N11 -> 211 | Z11: =COUNTIF(L14:L20,Y11) -> 0 | AA11: =Z11/(AB4-Z14) ->  | AB11: =IF(AA11=0,0,(AA11*((LOG(AA11))/LOG(2)))) ->  | AD11: =N11 -> 211 | AE11: =COUNTIF(L21:L26,AD11) -> 0 | AF11: =AE11/(AG4-AE14) ->  | AG11: =IF(AF11=0,0,(AF11*((LOG(AF11))/LOG(2)))) ->  | AI11: =N11 -> 211 | AJ11: =COUNTIF(L27:L33,AI11) -> 0 | AK11: =AJ11/(AL4-AJ14) ->  | AL11: =IF(AK11=0,0,(AK11*((LOG(AK11))/LOG(2)))) ->  | AN11: =N11 -> 211 | AO11: =COUNTIF(L34:L40,AN11) -> 0 | AP11: =AO11/(AQ4-AO14) ->  | AQ11: =IF(AP11=0,0,(AP11*((LOG(AP11))/LOG(2)))) ->  | AS11: =N11 -> 211 | AT11: =COUNTIF(L41:L47,AS11) -> 0 | AU11: =AT11/(AV4-AT14) ->  | AV11: =IF(AU11=0,0,(AU11*((LOG(AU11))/LOG(2)))) -> 
A12: 21 | B12: 764 | C12: 21 | D12: 773 | E12: 21 | F12: 781 | K12: 0 | L12: 222 | N12: 212 | O12: =COUNTIF($L$7:$L$500,N12) -> 0 | P12: =O12/$Q$4 -> 0 | Q12: =IF(P12=0,0,(P12*((LOG(P12))/LOG(2)))) -> 0 | T12: =N12 -> 212 | U12: =COUNTIF(L7:L13,T12) -> 0 | V12: =U12/(W4-U14) -> 0 | W12: =IF(V12=0,0,(V12*((LOG(V12))/LOG(2)))) -> 0 | Y12: =N12 -> 212 | Z12: =COUNTIF(L14:L20,Y12) -> 0 | AA12: =Z12/(AB4-Z14) ->  | AB12: =IF(AA12=0,0,(AA12*((LOG(AA12))/LOG(2)))) ->  | AD12: =N12 -> 212 | AE12: =COUNTIF(L21:L26,AD12) -> 0 | AF12: =AE12/(AG4-AE14) ->  | AG12: =IF(AF12=0,0,(AF12*((LOG(AF12))/LOG(2)))) ->  | AI12: =N12 -> 212 | AJ12: =COUNTIF(L27:L33,AI12) -> 0 | AK12: =AJ12/(AL4-AJ14) ->  | AL12: =IF(AK12=0,0,(AK12*((LOG(AK12))/LOG(2)))) ->  | AN12: =N12 -> 212 | AO12: =COUNTIF(L34:L40,AN12) -> 0 | AP12: =AO12/(AQ4-AO14) ->  | AQ12: =IF(AP12=0,0,(AP12*((LOG(AP12))/LOG(2)))) ->  | AS12: =N12 -> 212 | AT12: =COUNTIF(L41:L47,AS12) -> 0 | AU12: =AT12/(AV4-AT14) ->  | AV12: =IF(AU12=0,0,(AU12*((LOG(AU12))/LOG(2)))) -> 
A13: 21 | B13: 938 | C13: 21 | D13: 948 | E13: 21 | F13: 951 | K13: 0 | L13: 222 | N13: 221 | O13: =COUNTIF($L$7:$L$500,N13) -> 0 | P13: =O13/$Q$4 -> 0 | Q13: =IF(P13=0,0,(P13*((LOG(P13))/LOG(2)))) -> 0 | T13: =N13 -> 221 | U13: =COUNTIF(L7:L13,T13) -> 0 | V13: =U13/(W4-U14) -> 0 | W13: =IF(V13=0,0,(V13*((LOG(V13))/LOG(2)))) -> 0 | Y13: =N13 -> 221 | Z13: =COUNTIF(L14:L20,Y13) -> 0 | AA13: =Z13/(AB4-Z14) ->  | AB13: =IF(AA13=0,0,(AA13*((LOG(AA13))/LOG(2)))) ->  | AD13: =N13 -> 221 | AE13: =COUNTIF(L21:L26,AD13) -> 0 | AF13: =AE13/(AG4-AE14) ->  | AG13: =IF(AF13=0,0,(AF13*((LOG(AF13))/LOG(2)))) ->  | AI13: =N13 -> 221 | AJ13: =COUNTIF(L27:L33,AI13) -> 0 | AK13: =AJ13/(AL4-AJ14) ->  | AL13: =IF(AK13=0,0,(AK13*((LOG(AK13))/LOG(2)))) ->  | AN13: =N13 -> 221 | AO13: =COUNTIF(L34:L40,AN13) -> 0 | AP13: =AO13/(AQ4-AO14) ->  | AQ13: =IF(AP13=0,0,(AP13*((LOG(AP13))/LOG(2)))) ->  | AS13: =N13 -> 221 | AT13: =COUNTIF(L41:L47,AS13) -> 0 | AU13: =AT13/(AV4-AT14) ->  | AV13: =IF(AU13=0,0,(AU13*((LOG(AU13))/LOG(2)))) -> 
A14: 21 | B14: 1101 | C14: 21 | D14: 1106 | E14: 21 | F14: 1115 | K14: 0 | L14: 222 | N14: 222 | O14: =COUNTIF($L$7:$L$500,N14) -> 40 | P14: =O14/$Q$4 -> 0.9756097561 | Q14: =IF(P14=0,0,(P14*((LOG(P14))/LOG(2)))) -> -0.03475503388 | T14: =N14 -> 222 | U14: =COUNTIF(L7:L13,T14) -> 6 | Y14: =N14 -> 222 | Z14: =COUNTIF(L14:L20,Y14) -> 7 | AD14: =N14 -> 222 | AE14: =COUNTIF(L21:L26,AD14) -> 6 | AI14: =N14 -> 222 | AJ14: =COUNTIF(L27:L33,AI14) -> 7 | AN14: =N14 -> 222 | AO14: =COUNTIF(L34:L40,AN14) -> 7 | AS14: =N14 -> 222 | AT14: =COUNTIF(L41:L47,AS14) -> 7
A15: 21 | B15: 1287 | C15: 21 | D15: 1294 | E15: 21 | F15: 1299 | K15: 0 | L15: 222 | P15: =SUM(P7:P14) -> 1 | Q15: =-SUM(Q7:Q14) -> 0.165427034 | V15: =SUM(V7:V14) -> 1 | W15: =-SUM(W7:W14) -> 0 | AA15: =SUM(AA7:AA14) ->  | AB15: =-SUM(AB7:AB14) ->  | AF15: =SUM(AF7:AF14) ->  | AG15: =-SUM(AG7:AG14) ->  | AK15: =SUM(AK7:AK14) ->  | AL15: =-SUM(AL7:AL14) ->  | AP15: =SUM(AP7:AP14) ->  | AQ15: =-SUM(AQ7:AQ14) ->  | AU15: =SUM(AU7:AU14) ->  | AV15: =-SUM(AV7:AV14) -> 
A16: 21 | B16: 1459 | C16: 21 | D16: 1464 | E16: 21 | F16: 1473 | K16: 0 | L16: 222 | P16: U= | Q16: =Q15/(LOG(Q4)/LOG(2)) -> 0.03087735478 | V16: U1= | W16: =W15/(LOG(W4)/LOG(2)) -> 0 | AA16: U2= | AB16: =AB15/(LOG(AB4)/LOG(2)) ->  | AF16: U3= | AG16: =AG15/(LOG(AG4)/LOG(2)) ->  | AK16: U4= | AL16: =AL15/(LOG(AL4)/LOG(2)) ->  | AP16: U5= | AQ16: =AQ15/(LOG(AQ4)/LOG(2)) ->  | AU16: U6= | AV16: =AV15/(LOG(AV4)/LOG(2)) -> 
A17: 21 | B17: 1648 | C17: 21 | D17: 1650 | E17: 21 | F17: 1656 | K17: 0 | L17: 222
A18: 21 | B18: 1813 | C18: 21 | D18: 1818 | E18: 21 | F18: 1825 | K18: 0 | L18: 222
A19: 21 | B19: 2011 | C19: 21 | D19: 2013 | E19: 21 | F19: 2018 | K19: 0 | L19: 222 | N19: Total Target Seq
A20: 21 | B20: 2143 | C20: 21 | D20: 2150 | E20: 21 | F20: 2152 | K20: 0 | L20: 222 | N20: =COUNTIF(L7:L47,G3) -> 40 | P20: 7 | Q20: 7 | R20: 6 | S20: 7 | T20: 7 | U20: 7
A21: 21 | B21: 2287 | C21: 21 | D21: 2295 | E21: 21 | F21: 2302 | K21: 0 | L21: 222 | P21: % of reinforcement given in 6 equal intervals based on number of trials
A22: 21 | B22: 2558 | C22: 21 | D22: 2562 | E22: 21 | F22: 2568 | K22: 0 | L22: 222 | P22: %_1 | Q22: %_2 | R22: %_3 | S22: %_4 | T22: %_5 | U22: %_6
A23: 21 | B23: 2754 | C23: 21 | D23: 2760 | E23: 21 | F23: 2767 | K23: 0 | L23: 222 | O23: target sequence | P23: =$G$3 -> 222 | Q23: =$G$3 -> 222 | R23: =$G$3 -> 222 | S23: =$G$3 -> 222 | T23: =$G$3 -> 222 | U23: =$G$3 -> 222
A24: 21 | B24: 3019 | C24: 21 | D24: 3025 | E24: 21 | F24: 3033 | K24: 0 | L24: 222 | O24: total reinforcement | P24: =U14 -> 6 | Q24: =Z14 -> 7 | R24: =AE14 -> 6 | S24: =AJ14 -> 7 | T24: =AO14 -> 7 | U24: =AT14 -> 7
A25: 21 | B25: 3190 | C25: 21 | D25: 3193 | E25: 21 | F25: 3197 | K25: 0 | L25: 222 | O25: % target
A26: 21 | B26: 3452 | C26: 21 | D26: 3455 | E26: 21 | F26: 3477 | K26: 0 | L26: 222 | O26: CCRF
A27: 21 | B27: 3687 | C27: 21 | D27: 3693 | E27: 21 | F27: 3701 | K27: 0 | L27: 222 | O27: % CCRf
A28: 21 | B28: 3859 | C28: 21 | D28: 3862 | E28: 21 | F28: 3868 | K28: 0 | L28: 222 | O28: average response rate | P28: =F13/P20 -> 135.8571429 | Q28: =(F20-F13)/Q20 -> 171.5714286 | R28: =(F26-F20)/R20 -> 220.8333333 | S28: =(F33-F26)/S20 -> 243 | T28: =(F40-F33)/T20 -> 206.7142857 | U28: =(F47-F40)/U20 -> 213
A29: 21 | B29: 4199 | C29: 21 | D29: 4203 | E29: 21 | F29: 4208 | K29: 0 | L29: 222
A30: 21 | B30: 4405 | C30: 21 | D30: 4410 | E30: 21 | F30: 4416 | K30: 0 | L30: 222
A31: 21 | B31: 4660 | C31: 21 | D31: 4674 | E31: 21 | F31: 4694 | K31: 0 | L31: 222
A32: 21 | B32: 4947 | C32: 21 | D32: 4953 | E32: 21 | F32: 4960 | K32: 0 | L32: 222
A33: 21 | B33: 5170 | C33: 21 | D33: 5175 | E33: 21 | F33: 5178 | K33: 0 | L33: 222
A34: 21 | B34: 5329 | C34: 21 | D34: 5335 | E34: 21 | F34: 5340 | K34: 0 | L34: 222
A35: 21 | B35: 5535 | C35: 21 | D35: 5540 | E35: 21 | F35: 5543 | K35: 0 | L35: 222
A36: 21 | B36: 5753 | C36: 21 | D36: 5759 | E36: 21 | F36: 5764 | K36: 0 | L36: 222
A37: 21 | B37: 5986 | C37: 21 | D37: 5991 | E37: 21 | F37: 5998 | K37: 0 | L37: 222
A38: 21 | B38: 6193 | C38: 21 | D38: 6206 | E38: 21 | F38: 6213 | K38: 0 | L38: 222
A39: 21 | B39: 6438 | C39: 21 | D39: 6442 | E39: 21 | F39: 6448 | K39: 0 | L39: 222
A40: 21 | B40: 6615 | C40: 21 | D40: 6619 | E40: 21 | F40: 6625 | K40: 0 | L40: 222
A41: 21 | B41: 6854 | C41: 21 | D41: 6859 | E41: 21 | F41: 6865 | K41: 0 | L41: 222
A42: 21 | B42: 7075 | C42: 21 | D42: 7079 | E42: 21 | F42: 7085 | K42: 0 | L42: 222
A43: 21 | B43: 7237 | C43: 21 | D43: 7250 | E43: 21 | F43: 7256 | K43: 0 | L43: 222
A44: 21 | B44: 7494 | C44: 21 | D44: 7499 | E44: 21 | F44: 7507 | K44: 0 | L44: 222
A45: 21 | B45: 7656 | C45: 21 | D45: 7658 | E45: 21 | F45: 7665 | K45: 0 | L45: 222
A46: 21 | B46: 7843 | C46: 21 | D46: 7846 | E46: 21 | F46: 7848 | K46: 0 | L46: 222
A47: 21 | B47: 8105 | C47: 21 | D47: 8108 | E47: 21 | F47: 8116 | K47: 1 | L47: 222

Sheet !M414A0D.UST
A1: Report for:!M414A0D.UST
A2: Date: | B2: <date>
A3: Hen: | B3: <hen> | F3: Correct Sequence | G3: =Start!J2 -> 222 | P3: Total Sequences in Data | Q3: =4994-COUNTBLANK(L7:L5000) -> 92 | V3: Total Sequences in Block Data | W3: =COUNTA(L7:L21) -> 15 | AA3: Total Sequences in Block Data | AB3: =COUNTA(L22:L37) -> 16 | AF3: Total Sequences in Block Data | AG3: =COUNTA(L38:L52) -> 15 | AK3: Total Sequences in Block Data | AL3: =COUNTA(L53:L67) -> 15 | AP3: Total Sequences in Block Data | AQ3: =COUNTA(L68:L83) -> 16 | AU3: Total Sequences in Block Data | AV3: =COUNTA(L84:L98) -> 15
P4: Total Sequences in Summary | Q4: =SUM(O7:O14) -> 92 | V4: Total Sequences in Block Summary | W4: =SUM(U7:U14) -> 15 | AA4: Total Sequences in Block Summary | AB4: =SUM(Z7:Z14) -> 16 | AF4: Total Sequences in Block Summary | AG4: =SUM(AE7:AE14) -> 15 | AK4: Total Sequences in Block Summary | AL4: =SUM(AJ7:AJ14) -> 15 | AP4: Total Sequences in Block Summary | AQ4: =SUM(AO7:AO14) -> 16 | AU4: Total Sequences in Block Summary | AV4: =SUM(AT7:AT14) -> 15
T5: Block 1 | Y5: Block 2 | AD5: Block 3 | AI5: Block 4 | AN5: Block 5 | AS5: Block 6
A6: Sequence Component 1 | B6: Time 1 | C6: Sequence Component 2 | D6: Time 2 | E6: Sequence Component 3 | F6: Time 3 | G6: Sequence Component 4 | H6: Time 4 | I6: Sequence Component 5 | J6: Time 5 | K6: Correct? 0=No 1=Yes | L6: Sequence | N6: Frequency | P6: Relative Frequency | Q6: Variability | T6: Frequency | V6: Relative Frequency | W6: Variability | Y6: Frequency | AA6: Relative Frequency | AB6: Variability | AD6: Frequency | AF6: Relative Frequency | AG6: Variability | AI6: Frequency | AK6: Relative Frequency | AL6: Variability | AN6: Frequency | AP6: Relative Frequency | AQ6: Variability | AS6: Frequency | AU6: Relative Frequency | AV6: Variability
A7: 12 | B7: 14 | C7: 23 | D7: 21 | E7: 23 | F7: 27 | K7: 0 | L7: 122 | N7: 111 | O7: =COUNTIF($L$7:$L$500,N7) -> 47 | P7: =O7/$Q$4 -> 0.5108695652 | Q7: =IF(P7=0,0,(P7*((LOG(P7))/LOG(2)))) -> -0.4950188685 | T7: =N7 -> 111 | U7: =COUNTIF(L7:L21,T7) -> 13 | V7: =U7/(W4-U14) -> 0.8666666667 | W7: =IF(V7=0,0,(V7*((LOG(V7))/LOG(2)))) -> -0.1789240938 | Y7: =N7 -> 111 | Z7: =COUNTIF(L22:L37,Y7) -> 15 | AA7: =Z7/(AB4-Z14) -> 0.9375 | AB7: =IF(AA7=0,0,(AA7*((LOG(AA7))/LOG(2)))) -> -0.08729006662 | AD7: =N7 -> 111 | AE7: =COUNTIF(L38:L52,AD7) -> 15 | AF7: =AE7/(AG4-AE14) -> 1 | AG7: =IF(AF7=0,0,(AF7*((LOG(AF7))/LOG(2)))) -> 0 | AI7: =N7 -> 111 | AJ7: =COUNTIF(L53:L67,AI7) -> 4 | AK7: =AJ7/(AL4-AJ14) -> 0.5714285714 | AL7: =IF(AK7=0,0,(AK7*((LOG(AK7))/LOG(2)))) -> -0.4613456697 | AN7: =N7 -> 111 | AO7: =COUNTIF(L68:L83,AN7) -> 0 | AP7: =AO7/(AQ4-AO14) ->  | AQ7: =IF(AP7=0,0,(AP7*((LOG(AP7))/LOG(2)))) ->  | AS7: =N7 -> 111 | AT7: =COUNTIF(L84:L98,AS7) -> 0 | AU7: =AT7/(AV4-AT14) ->  | AV7: =IF(AU7=0,0,(AU7*((LOG(AU7))/LOG(2)))) -> 
A8: 21 | B8: 123 | C8: 12 | D8: 205 | E8: 14 | F8: 247 | K8: 0 | L8: 211 | N8: 112 | O8: =COUNTIF($L$7:$L$500,N8) -> 2 | P8: =O8/$Q$4 -> 0.02173913043 | Q8: =IF(P8=0,0,(P8*((LOG(P8))/LOG(2)))) -> -0.1200774338 | T8: =N8 -> 112 | U8: =COUNTIF(L7:L21,T8) -> 0 | V8: =U8/(W4-U14) -> 0 | W8: =IF(V8=0,0,(V8*((LOG(V8))/LOG(2)))) -> 0 | Y8: =N8 -> 112 | Z8: =COUNTIF(L22:L37,Y8) -> 1 | AA8: =Z8/(AB4-Z14) -> 0.0625 | AB8: =IF(AA8=0,0,(AA8*((LOG(AA8))/LOG(2)))) -> -0.25 | AD8: =N8 -> 112 | AE8: =COUNTIF(L38:L52,AD8) -> 0 | AF8: =AE8/(AG4-AE14) -> 0 | AG8: =IF(AF8=0,0,(AF8*((LOG(AF8))/LOG(2)))) -> 0 | AI8: =N8 -> 112 | AJ8: =COUNTIF(L53:L67,AI8) -> 1 | AK8: =AJ8/(AL4-AJ14) -> 0.1428571429 | AL8: =IF(AK8=0,0,(AK8*((LOG(AK8))/LOG(2)))) -> -0.4010507032 | AN8: =N8 -> 112 | AO8: =COUNTIF(L68:L83,AN8) -> 0 | AP8: =AO8/(AQ4-AO14) ->  | AQ8: =IF(AP8=0,0,(AP8*((LOG(AP8))/LOG(2)))) ->  | AS8: =N8 -> 112 | AT8: =COUNTIF(L84:L98,AS8) -> 0 | AU8: =AT8/(AV4-AT14) ->  | AV8: =IF(AU8=0,0,(AU8*((LOG(AU8))/LOG(2)))) -> 
